Workbook

Sheet INDICE
C2: =HLOOKUP($F$2,Nombres!$C$3:$E$853,192) -> Quarterly series 2014-2015 | F2: 1
C4: =HLOOKUP($F$2,Nombres!$C$3:$E$853,200) -> BBVA Group | D4: =HLOOKUP($F$2,Nombres!$C$3:$E$853,263) -> Print | E4: FALSE
C5: =HLOOKUP($F$2,Nombres!$C$3:$E$853,267) -> Consolidated income statement | E5: FALSE | F5: =OR($E$4,E5) -> FALSE
C6: =HLOOKUP($F$2,Nombres!$C$3:$E$853,196) -> Consolidated balance sheet | E6: FALSE | F6: =OR($E$4,E6) -> FALSE
A7: ESPAÑOL
A8: ENGLISH | C8: =HLOOKUP($F$2,Nombres!$C$3:$E$853,193) -> Business areas | E8: FALSE
C9: =HLOOKUP($F$2,Nombres!$C$3:$E$853,7) -> Banking activity in Spain | E9: FALSE | F9: =OR($E$8,E9) -> FALSE
C10: =HLOOKUP($F$2,Nombres!$C$3:$E$853,279) -> Real-estate business in Spain | E10: FALSE | F10: FALSE
C11: =HLOOKUP($F$2,Nombres!$C$3:$E$853,262) -> Coverage of real estate exposure in Spain | E11: FALSE | F11: FALSE
C12: =HLOOKUP($F$2,Nombres!$C$3:$E$853,20) -> The United States | E12: FALSE | F12: FALSE
C13: =HLOOKUP($F$2,Nombres!$C$3:$E$853,295) -> Turkey | E13: FALSE | F13: FALSE
C14: =HLOOKUP($F$2,Nombres!$C$3:$E$853,9) -> Mexico | E14: FALSE | F14: FALSE
C15: =HLOOKUP($F$2,Nombres!$C$3:$E$853,12) -> South America | E15: FALSE | F15: FALSE
C16: =HLOOKUP($F$2,Nombres!$C$3:$E$853,15) -> Argentina | E16: FALSE | F16: FALSE
C17: =HLOOKUP($F$2,Nombres!$C$3:$E$853,16) -> Chile | E17: FALSE | F17: FALSE
C18: =HLOOKUP($F$2,Nombres!$C$3:$E$853,17) -> Colombia | E18: FALSE | F18: FALSE
C19: =HLOOKUP($F$2,Nombres!$C$3:$E$853,18) -> Peru | E19: FALSE | F19: FALSE
C20: =HLOOKUP($F$2,Nombres!$C$3:$E$853,19) -> Venezuela | E20: FALSE | F20: FALSE
C21: =HLOOKUP($F$2,Nombres!$C$3:$E$853,184) -> Rest of Eurasia | E21: FALSE | F21: =OR($E$8,E21) -> FALSE
C22: =HLOOKUP($F$2,Nombres!$C$3:$E$853,25) -> Corporate Center | E22: FALSE | F22: FALSE
C24: =HLOOKUP($F$2,Nombres!$C$3:$E$853,194) -> Additional information:
C25: =HLOOKUP($F$2,Nombres!$C$3:$E$853,268) -> Corporate & Investment Banking | E25: FALSE | F25: =OR($E$8,E25) -> FALSE
C26: =HLOOKUP($F$2,Nombres!$C$3:$E$853,303) -> BBVA Group without Venezuela | E26: FALSE | F26: =OR($E$8,E26) -> FALSE
C27: =HLOOKUP($F$2,Nombres!$C$3:$E$853,305) -> South America without Venezuela | E27: FALSE | F27: =OR($E$8,E27) -> FALSE
C28: =HLOOKUP($F$2,Nombres!$C$3:$E$853,201) -> Annex:
C29: =HLOOKUP($F$2,Nombres!$C$3:$E$853,26) -> Efficiency | E29: FALSE | F29: =OR($E$28,E29) -> FALSE
C30: =HLOOKUP($F$2,Nombres!$C$3:$E$853,27) -> NPL, coverage ratios and cost of risk | E30: FALSE | F30: =OR($E$28,E30) -> FALSE
C31: =HLOOKUP($F$2,Nombres!$C$3:$E$853,28) -> Branches, employees and atm´s | E31: FALSE | F31: =OR($E$28,E31) -> FALSE
C32: =HLOOKUP($F$2,Nombres!$C$3:$E$853,182) -> Exchange rates | E32: FALSE | F32: =OR($E$28,E32) -> FALSE
C33: =HLOOKUP($F$2,Nombres!$C$3:$E$853,199) -> Breakdown of yields and costs | E33: FALSE | F33: =OR($E$28,E33) -> FALSE

Sheet Cuenta de resultados
A1: =HLOOKUP(INDICE!$F$2,Nombres!$C$3:$E$853,290) -> Consolidated income statement (*)
A2: =HLOOKUP(INDICE!$F$2,Nombres!$C$3:$E$853,30) -> (Million euros)
B3: 2014 | F3: 2015
B4: =HLOOKUP(INDICE!$F$2,Nombres!$C$3:$E$857,34) -> 1st Quarter | C4: =HLOOKUP(INDICE!$F$2,Nombres!$C$3:$E$857,35) -> 2nd Quarter | D4: =HLOOKUP(INDICE!$F$2,Nombres!$C$3:$E$857,36) -> 3rd Quarter | E4: =HLOOKUP(INDICE!$F$2,Nombres!$C$3:$E$857,37) -> 4th Quarter | F4: =HLOOKUP(INDICE!$F$2,Nombres!$C$3:$E$857,34) -> 1st Quarter | G4: =HLOOKUP(INDICE!$F$2,Nombres!$C$3:$E$857,35) -> 2nd Quarter
A5: =HLOOKUP(INDICE!$F$2,Nombres!$C$3:$E$853,38) -> Net interest income | B5: 3390.587 | C5: 3647.451 | D5: 3829.922 | E5: 4248.298 | F5: 3662.966 | G5: 3857.745
A6: =HLOOKUP(INDICE!$F$2,Nombres!$C$3:$E$853,39) -> Net fees and commissions | B6: 985.176 | C6: 1101.174 | D6: 1111.264 | E6: 1167.566 | F6: 1076.765 | G6: 1139.632
A7: =HLOOKUP(INDICE!$F$2,Nombres!$C$3:$E$853,40) -> Net trading income | B7: 750.659 | C7: 425.815 | D7: 444.112 | E7: 514.391 | F7: 775.271 | G7: 649.783
A8: =HLOOKUP(INDICE!$F$2,Nombres!$C$3:$E$853,41) -> Dividends | B8: 28.537 | C8: 342.071 | D8: 41.59 | E8: 118.78 | F8: 41.867 | G8: 194.232
A9: =HLOOKUP(INDICE!$F$2,Nombres!$C$3:$E$853,42) -> Income by the equity method | B9: -14.395 | C9: 15.877 | D9: 30.523 | E9: 2.841 | F9: 2.79 | G9: 17.981
A10: =HLOOKUP(INDICE!$F$2,Nombres!$C$3:$E$853,43) -> Other operating income and expenses | B10: -89.657 | C10: -215.068 | D10: -234.096 | E10: -286.761 | F10: 72.521 | G10: 62.38
A11: =HLOOKUP(INDICE!$F$2,Nombres!$C$3:$E$853,44) -> Gross income | B11: 5050.907 | C11: 5317.32 | D11: 5223.315 | E11: 5765.115 | F11: 5632.18 | G11: 5921.753
A12: =HLOOKUP(INDICE!$F$2,Nombres!$C$3:$E$853,45) -> Operating expenses | B12: -2612.946 | C12: -2662.215 | D12: -2770.376 | E12: -2905.396 | F12: -2775.518 | G12: -2942.026
A13: =HLOOKUP(INDICE!$F$2,Nombres!$C$3:$E$853,46) -> Administration expenses | B13: -2334.065 | C13: -2376.383001 | D13: -2474.843999 | E13: -2585.295001 | F13: -2484.162999 | G13: -2643.31
A14: =HLOOKUP(INDICE!$F$2,Nombres!$C$3:$E$853,47) -> Personnel expenses | B14: -1374.905001 | C14: -1359.044999 | D14: -1437.544 | E14: -1437.917002 | F14: -1459.948999 | G14: -1537.644006
A15: =HLOOKUP(INDICE!$F$2,Nombres!$C$3:$E$853,48) -> General and administrative expenses | B15: -959.159999 | C15: -1017.338002 | D15: -1037.299999 | E15: -1147.377999 | F15: -1024.213999 | G15: -1105.665995
A16: =HLOOKUP(INDICE!$F$2,Nombres!$C$3:$E$853,49) -> Depreciation and amortization | B16: -278.8809998 | C16: -285.8319992 | D16: -295.532001 | E16: -320.1009991 | F16: -291.3550014 | G16: -298.7159997
A17: =HLOOKUP(INDICE!$F$2,Nombres!$C$3:$E$853,50) -> Operating income | B17: 2437.961 | C17: 2655.105 | D17: 2452.939 | E17: 2859.719 | F17: 2856.662 | G17: 2979.727
A18: =HLOOKUP(INDICE!$F$2,Nombres!$C$3:$E$853,51) -> Impairment on financial assets (net) | B18: -1103.372 | C18: -1073.148 | D18: -1141.693 | E18: -1167.988 | F18: -1119.431 | G18: -1088.875
A19: =HLOOKUP(INDICE!$F$2,Nombres!$C$3:$E$853,52) -> Provisions | B19: -144.441 | C19: -298.208 | D19: -199.272 | E19: -513.339 | F19: -229.57 | G19: -164.02
A20: =HLOOKUP(INDICE!$F$2,Nombres!$C$3:$E$853,53) -> Other gains (losses) | B20: -173.281 | C20: -191.444 | D20: -136.008 | E20: -200.586 | F20: -65.802 | G20: -122.635
A21: =HLOOKUP(INDICE!$F$2,Nombres!$C$3:$E$853,54) -> Income before tax | B21: 1016.867 | C21: 1092.305 | D21: 975.966 | E21: 977.806 | F21: 1441.859 | G21: 1604.197
A22: =HLOOKUP(INDICE!$F$2,Nombres!$C$3:$E$853,55) -> Income tax | B22: -273.241 | C22: -292.335 | D22: -242.662 | E22: -172.939 | F22: -386.13 | G22: -429.002
A23: =HLOOKUP(INDICE!$F$2,Nombres!$C$3:$E$853,269) -> Net income from ongoing operations | B23: 743.626 | C23: 799.97 | D23: 733.304 | E23: 804.867 | F23: 1055.729 | G23: 1175.195
A24: =HLOOKUP(INDICE!$F$2,Nombres!$C$3:$E$853,270) -> Result from corporate operations | B24: 0 | C24: 0 | D24: 0 | E24: 0 | F24: 582.942 | G24: 144.274
A25: =HLOOKUP(INDICE!$F$2,Nombres!$C$3:$E$853,56) -> Net income | B25: 743.626 | C25: 799.97 | D25: 733.304 | E25: 804.867 | F25: 1638.671 | G25: 1319.469
A26: =HLOOKUP(INDICE!$F$2,Nombres!$C$3:$E$853,57) -> Non-controlling interests | B26: -119.714 | C26: -95.489 | D26: -132.312 | E26: -116.233 | F26: -102.677 | G26: -96.897
A27: =HLOOKUP(INDICE!$F$2,Nombres!$C$3:$E$853,58) -> Net attributable profit | B27: 623.912 | C27: 704.481 | D27: 600.992 | E27: 688.634 | F27: 1535.994 | G27: 1222.572
A28: =HLOOKUP(INDICE!$F$2,Nombres!$C$3:$E$853,242) -> Net attributable profit (excluding results from corporate operations) (**) | B28: 623.912 | C28: 704.481 | D28: 600.992 | E28: 688.634 | F28: 953.052 | G28: 1078.298
A29: =HLOOKUP(INDICE!$F$2,Nombres!$C$3:$E$853,289) -> (*) Financial statements with the revenues and expenses of the Garanti Group consolidated in proportion to the percentage of the Group's stake.
A30: =HLOOKUP(INDICE!$F$2,Nombres!$C$3:$E$853,29) -> (**) 2015 includes the capitral gains from the various sale operations equivalent to 6.34 of BBVA Group's stake in CNCB and the badwill from Catalunya Banc operation.
A31: =HLOOKUP(INDICE!$F$2,Nombres!$C$3:$E$853,290) -> Consolidated income statement (*)
A32: =HLOOKUP(INDICE!$F$2,Nombres!$C$3:$E$853,31) -> (Constant million euros)
B33: 2014 | F33: 2015
B34: =HLOOKUP(INDICE!$F$2,Nombres!$C$3:$E$857,34) -> 1st Quarter | C34: =HLOOKUP(INDICE!$F$2,Nombres!$C$3:$E$857,35) -> 2nd Quarter | D34: =HLOOKUP(INDICE!$F$2,Nombres!$C$3:$E$857,36) -> 3rd Quarter | E34: =HLOOKUP(INDICE!$F$2,Nombres!$C$3:$E$857,37) -> 4th Quarter | F34: =HLOOKUP(INDICE!$F$2,Nombres!$C$3:$E$857,34) -> 1st Quarter | G34: =HLOOKUP(INDICE!$F$2,Nombres!$C$3:$E$857,35) -> 2nd Quarter
A35: =HLOOKUP(INDICE!$F$2,Nombres!$C$3:$E$853,38) -> Net interest income | B35: 3331.290288 | C35: 3418.575401 | D35: 3490.723394 | E35: 3736.906491 | F35: 3652.806101 | G35: 3867.904899
A36: =HLOOKUP(INDICE!$F$2,Nombres!$C$3:$E$853,39) -> Net fees and commissions | B36: 1014.449756 | C36: 1101.717446 | D36: 1079.690009 | E36: 1096.646982 | F36: 1074.831158 | G36: 1141.565842
A37: =HLOOKUP(INDICE!$F$2,Nombres!$C$3:$E$853,40) -> Net trading income | B37: 703.7566652 | C37: 434.6221895 | D37: 440.4075107 | E37: 512.4297348 | F37: 771.7705275 | G37: 653.2834725
A38: =HLOOKUP(INDICE!$F$2,Nombres!$C$3:$E$853,41) -> Dividends | B38: 29.67120413 | C38: 343.9010298 | D38: 42.85728645 | E38: 119.4813221 | F38: 41.92993414 | G38: 194.1690659
A39: =HLOOKUP(INDICE!$F$2,Nombres!$C$3:$E$853,42) -> Income by the equity method | B39: -13.04852898 | C39: 16.85450262 | D39: 31.5959083 | E39: 3.625837984 | F39: 2.740251889 | G39: 18.03074811
A40: =HLOOKUP(INDICE!$F$2,Nombres!$C$3:$E$853,43) -> Other operating income and expenses | B40: 25.6308623 | C40: 33.19339919 | D40: -4.382988515 | E40: 46.20144116 | F40: 73.44540213 | G40: 61.45559787
A41: =HLOOKUP(INDICE!$F$2,Nombres!$C$3:$E$853,44) -> Gross income | B41: 5091.750247 | C41: 5348.863968 | D41: 5080.89112 | E41: 5515.291809 | F41: 5617.523375 | G41: 5936.409625
A42: =HLOOKUP(INDICE!$F$2,Nombres!$C$3:$E$853,45) -> Operating expenses | B42: -2681.933269 | C42: -2681.261833 | D42: -2735.668938 | E42: -2769.684847 | F42: -2771.827299 | G42: -2945.716701
A43: =HLOOKUP(INDICE!$F$2,Nombres!$C$3:$E$853,46) -> Administration expenses | B43: -2398.146656 | C43: -2397.501587 | D43: -2447.44896 | E43: -2482.711794 | F43: -2480.695546 | G43: -2646.777453
A44: =HLOOKUP(INDICE!$F$2,Nombres!$C$3:$E$853,47) -> Personnel expenses | B44: -1423.761975 | C44: -1387.922317 | D44: -1444.296922 | E44: -1407.743798 | F44: -1458.502164 | G44: -1539.090841
A45: =HLOOKUP(INDICE!$F$2,Nombres!$C$3:$E$853,48) -> General and administrative expenses | B45: -974.3846814 | C45: -1009.579271 | D45: -1003.152038 | E45: -1074.967996 | F45: -1022.193382 | G45: -1107.686612
A46: =HLOOKUP(INDICE!$F$2,Nombres!$C$3:$E$853,49) -> Depreciation and amortization | B46: -283.7866126 | C46: -283.7602456 | D46: -288.2199783 | E46: -286.9730531 | F46: -291.1317529 | G46: -298.9392482
A47: =HLOOKUP(INDICE!$F$2,Nombres!$C$3:$E$853,50) -> Operating income | B47: 2409.816978 | C47: 2667.602136 | D47: 2345.222182 | E47: 2745.606962 | F47: 2845.696076 | G47: 2990.692924
A48: =HLOOKUP(INDICE!$F$2,Nombres!$C$3:$E$853,51) -> Impairment on financial assets (net) | B48: -1123.029213 | C48: -1060.153607 | D48: -1094.020325 | E48: -1102.275851 | F48: -1117.123568 | G48: -1091.182432
A49: =HLOOKUP(INDICE!$F$2,Nombres!$C$3:$E$853,52) -> Provisions | B49: -131.2477557 | C49: -286.6181062 | D49: -180.2954642 | E49: -474.405458 | F49: -227.7083082 | G49: -165.8816918
A50: =HLOOKUP(INDICE!$F$2,Nombres!$C$3:$E$853,53) -> Other gains (losses) | B50: -173.976564 | C50: -190.7199979 | D50: -135.1565961 | E50: -203.094301 | F50: -65.92778365 | G50: -122.5092164
A51: =HLOOKUP(INDICE!$F$2,Nombres!$C$3:$E$853,54) -> Income before tax | B51: 981.5634451 | C51: 1130.110424 | D51: 935.7497976 | E51: 965.8313513 | F51: 1434.936416 | G51: 1611.119584
A52: =HLOOKUP(INDICE!$F$2,Nombres!$C$3:$E$853,55) -> Income tax | B52: -253.9686088 | C52: -291.9047006 | D52: -233.8280565 | E52: -183.0002597 | F52: -383.9195173 | G52: -431.2124827
A53: =HLOOKUP(INDICE!$F$2,Nombres!$C$3:$E$853,269) -> Net income from ongoing operations | B53: 727.5948363 | C53: 838.2057237 | D53: 701.9217411 | E53: 782.8310916 | F53: 1051.016899 | G53: 1179.907101
A54: =HLOOKUP(INDICE!$F$2,Nombres!$C$3:$E$853,270) -> Result from corporate operations | B54: 0 | C54: 0 | D54: 0 | E54: 0 | F54: 582.942 | G54: 144.274
A55: =HLOOKUP(INDICE!$F$2,Nombres!$C$3:$E$853,56) -> Net income | B55: 727.5948363 | C55: 838.2057237 | D55: 701.9217411 | E55: 782.8310916 | F55: 1633.958899 | G55: 1324.181101
A56: =HLOOKUP(INDICE!$F$2,Nombres!$C$3:$E$853,57) -> Non-controlling interests | B56: -83.81773725 | C56: -90.83490857 | D56: -103.6499049 | E56: -91.37855161 | F56: -101.8558206 | G56: -97.71817935
A57: =HLOOKUP(INDICE!$F$2,Nombres!$C$3:$E$853,58) -> Net attributable profit | B57: 643.777099 | C57: 747.3708151 | D57: 598.2718362 | E57: 691.45254 | F57: 1532.103078 | G57: 1226.462922
A58: =HLOOKUP(INDICE!$F$2,Nombres!$C$3:$E$853,242) -> Net attributable profit (excluding results from corporate operations) (**) | B58: 643.777099 | C58: 747.3708151 | D58: 598.2718362 | E58: 691.45254 | F58: 949.1610782 | G58: 1082.188922
A60: =HLOOKUP(INDICE!$F$2,Nombres!$C$3:$E$853,289) -> (*) Financial statements with the revenues and expenses of the Garanti Group consolidated in proportion to the percentage of the Group's stake.
A61: =HLOOKUP(INDICE!$F$2,Nombres!$C$3:$E$853,29) -> (**) 2015 includes the capitral gains from the various sale operations equivalent to 6.34 of BBVA Group's stake in CNCB and the badwill from Catalunya Banc operation.

Sheet Balances consolidados
A1: =HLOOKUP(INDICE!$F$2,Nombres!$C$3:$E$853,291) -> BBVA Group. Consolidated balance sheet (*)
A2: =HLOOKUP(INDICE!F2,Nombres!$C$3:$E$853,30) -> (Million euros)
B4: 2014-03-31 | C4: 2014-06-30 | D4: 2014-09-30 | E4: 2014-12-31 | F4: 2015-03-31 | G4: 2015-06-30
A6: =HLOOKUP(INDICE!F2,Nombres!$C$3:$E$853,63) -> Cash and balances with central banks | B6: 27546.094 | C6: 27210.223 | D6: 23120.533 | E6: 33908.393 | F6: 27553.318 | G6: 30192.352
A7: =HLOOKUP(INDICE!F2,Nombres!$C$3:$E$853,64) -> Financial assets held for trading | B7: 76433.226 | C7: 79589.287 | D7: 88023.118 | E7: 83426.686 | F7: 94882.676 | G7: 82693.036
A8: =HLOOKUP(INDICE!F2,Nombres!$C$3:$E$853,65) -> Other financial assets designated at fair value | B8: 3384.569 | C8: 2989.545 | D8: 3227.083 | E8: 3235.544 | F8: 3602.844 | G8: 3498.592
A9: =HLOOKUP(INDICE!F2,Nombres!$C$3:$E$853,66) -> Financial assets available for sale | B9: 88236.264 | C9: 92316.255 | D9: 98322.124 | E9: 98733.927 | F9: 101182.759 | G9: 107135.899
A10: =HLOOKUP(INDICE!F2,Nombres!$C$3:$E$853,67) -> Loans and receivables | B10: 360937.637 | C10: 372180.096 | D10: 379715.108 | E10: 386839.223 | F10: 398558.473 | G10: 415020.402
A11: =HLOOKUP(INDICE!F2,Nombres!$C$3:$E$853,68) -> . Due from banks | B11: 21441.327 | C11: 27874.335 | D11: 27560.836 | E11: 28253.82 | F11: 33671.557 | G11: 29074.346
A12: =HLOOKUP(INDICE!F2,Nombres!$C$3:$E$853,69) -> . Loans and advances to customers | B12: 334697.795 | C12: 339062.616 | D12: 346103.352 | E12: 351754.588 | F12: 360265.26 | G12: 374887.678
A13: =HLOOKUP(INDICE!F2,Nombres!$C$3:$E$853,300) -> . Debt securities | B13: 4798.515 | C13: 5243.145 | D13: 6050.92 | E13: 6830.815 | F13: 4621.656 | G13: 11058.378
A14: =HLOOKUP(INDICE!F2,Nombres!$C$3:$E$853,71) -> Held to maturity investments | B14: - | C14: - | D14: - | E14: - | F14: - | G14: -
A15: =HLOOKUP(INDICE!F2,Nombres!$C$3:$E$853,72) -> Investments in associates | B15: 1318.839 | C15: 1338.81 | D15: 1443.184 | E15: 661.425 | F15: 673.969 | G15: 1012.598
A16: =HLOOKUP(INDICE!F2,Nombres!$C$3:$E$853,73) -> Tangible assets | B16: 7473.518 | C16: 7466.19 | D16: 7762.073 | E16: 8014.185 | F16: 8056.837 | G16: 8752.944
A17: =HLOOKUP(INDICE!F2,Nombres!$C$3:$E$853,74) -> Intangible assets | B17: 8138.822 | C17: 8218.989 | D17: 8621.096 | E17: 8839.939 | F17: 9493.405 | G17: 9212.034
A18: =HLOOKUP(INDICE!F2,Nombres!$C$3:$E$853,75) -> Other assets | B18: 25666.233 | C18: 25822.005 | D18: 27464.84 | E18: 27851.241 | F18: 28593.282 | G18: 31553.233
A19: =HLOOKUP(INDICE!F2,Nombres!$C$3:$E$853,76) -> Total assets | B19: 599135.202 | C19: 617131.4 | D19: 637699.158 | E19: 651510.563 | F19: 672597.564 | G19: 689071.09
A21: =HLOOKUP(INDICE!F2,Nombres!$C$3:$E$853,77) -> Financial liabilities held for trading | B21: 48975.636 | C21: 51868.74 | D21: 59083.521 | E21: 56990.141 | F21: 67437.782 | G21: 56977.113
A22: =HLOOKUP(INDICE!F2,Nombres!$C$3:$E$853,78) -> Other financial liabilities at fair value | B22: 3039.65 | C22: 3394.774 | D22: 3614.708 | E22: 3590.199 | F22: 3903.235 | G22: 3746.418
A23: =HLOOKUP(INDICE!F2,Nombres!$C$3:$E$853,79) -> Financial liabilities at amortised cost | B23: 476656.006 | C23: 486888.536 | D23: 497179.103 | E23: 509973.93 | F23: 518819.425 | G23: 546479.761
A24: =HLOOKUP(INDICE!F2,Nombres!$C$3:$E$853,80) -> . Deposits from central banks and credit institutions | B24: 84461.047 | C24: 81772.369 | D24: 84199.318 | E24: 97734.703 | F24: 92546.855 | G24: 94763.183
A25: =HLOOKUP(INDICE!F2,Nombres!$C$3:$E$853,81) -> . Deposits from customers | B25: 309817.34 | C25: 320796.464 | D25: 329609.864 | E25: 330685.926 | F25: 339674.512 | G25: 363372.821
A26: =HLOOKUP(INDICE!F2,Nombres!$C$3:$E$853,208) -> .Other debt certificates | B26: 62891.545 | C26: 62644.604 | D26: 61181.238 | E26: 59393.042 | F26: 58258.856 | G26: 62298.588
A27: =HLOOKUP(INDICE!F2,Nombres!$C$3:$E$853,83) -> . Subordinated liabilities | B27: 12122.837 | C27: 13820.9 | D27: 14265.227 | E27: 14118.193 | F27: 15723.076 | G27: 16126.071
A28: =HLOOKUP(INDICE!F2,Nombres!$C$3:$E$853,84) -> . Other financial liabilities | B28: 7363.237 | C28: 7854.199 | D28: 7923.456 | E28: 8042.066 | F28: 12616.126 | G28: 9919.098
A29: =HLOOKUP(INDICE!F2,Nombres!$C$3:$E$853,85) -> Liabilities under insurance contracts | B29: 10102.003 | C29: 10265.858 | D29: 10624.05 | E29: 10470.828 | F29: 11192.771 | G29: 10333.217
A30: =HLOOKUP(INDICE!F2,Nombres!$C$3:$E$853,86) -> Other liabilities | B30: 16306.018 | C30: 17846.333 | D30: 18808.367 | E30: 18876.654 | F30: 18878.709 | G30: 20537.678
A31: =HLOOKUP(INDICE!F2,Nombres!$C$3:$E$853,87) -> Total liabilities | B31: 555079.313 | C31: 570264.241 | D31: 589309.749 | E31: 599901.752 | F31: 620231.922 | G31: 638074.187
A33: =HLOOKUP(INDICE!F2,Nombres!$C$3:$E$853,88) -> Minority interests | B33: 1862.829 | C33: 2047.84 | D33: 2252.88 | E33: 2510.84 | F33: 1691.644 | G33: 1727.974
A34: =HLOOKUP(INDICE!F2,Nombres!$C$3:$E$853,89) -> Valuation adjustments | B34: -3636.491 | C34: -2145.585 | D34: -878.794 | E34: -348.407 | F34: 327.322 | G34: -2908.536
A35: =HLOOKUP(INDICE!F2,Nombres!$C$3:$E$853,90) -> Shareholders' funds | B35: 45829.551 | C35: 46964.904 | D35: 47015.323 | E35: 49446.378 | F35: 50346.676 | G35: 52177.465
A36: =HLOOKUP(INDICE!F2,Nombres!$C$3:$E$853,91) -> Equity | B36: 44055.889 | C36: 46867.159 | D36: 48389.409 | E36: 51608.811 | F36: 52365.642 | G36: 50996.903
A38: =HLOOKUP(INDICE!F2,Nombres!$C$3:$E$853,92) -> Total liabilities and equity | B38: 599135.202 | C38: 617131.4 | D38: 637699.158 | E38: 651510.563 | F38: 672597.564 | G38: 689071.09
A39: =HLOOKUP(INDICE!F2,Nombres!$C$3:$E$853,276) -> (*) Financial statements with the assets and liabilities of the Garanti Group consolidated in proportion to the percentage of the Group's stake.
A40: =HLOOKUP(INDICE!F2,Nombres!$C$3:$E$853,291) -> BBVA Group. Consolidated balance sheet (*)
A41: =HLOOKUP(INDICE!F2,Nombres!$C$3:$E$853,31) -> (Constant million euros)
B43: 2014-03-31 | C43: 2014-06-30 | D43: 2014-09-30 | E43: 2014-12-31 | F43: 2015-03-31 | G43: 2015-06-30
A45: =HLOOKUP(INDICE!F2,Nombres!$C$3:$E$853,63) -> Cash and balances with central banks | B45: 24787.46437 | C45: 24077.04784 | D45: 20004.78821 | E45: 28927.94597 | F45: 26246.76971 | G45: 30192.354
A46: =HLOOKUP(INDICE!F2,Nombres!$C$3:$E$853,64) -> Financial assets held for trading | B46: 76919.94411 | C46: 79727.42809 | D46: 87320.76824 | E46: 83976.40524 | F46: 93279.18203 | G46: 82693.035
A47: =HLOOKUP(INDICE!F2,Nombres!$C$3:$E$853,65) -> Other financial assets designated at fair value | B47: 3542.502182 | C47: 3105.132915 | D47: 3220.524215 | E47: 3293.560382 | F47: 3425.541932 | G47: 3498.592
A48: =HLOOKUP(INDICE!F2,Nombres!$C$3:$E$853,66) -> Financial assets available for sale | B48: 88719.60965 | C48: 92456.02432 | D48: 97315.17419 | E48: 98163.86502 | F48: 99430.74243 | G48: 107135.898
A49: =HLOOKUP(INDICE!F2,Nombres!$C$3:$E$853,67) -> Loans and receivables | B49: 365455.7393 | C49: 373417.208 | D49: 372943.8812 | E49: 379374.2054 | F49: 389467.451 | G49: 415020.393
A50: =HLOOKUP(INDICE!F2,Nombres!$C$3:$E$853,68) -> . Due from banks | B50: 21270.98099 | C50: 27624.7215 | D50: 27071.50141 | E50: 27854.68898 | F50: 33205.52263 | G50: 29074.343
A51: =HLOOKUP(INDICE!F2,Nombres!$C$3:$E$853,69) -> . Loans and advances to customers | B51: 340220.255 | C51: 341586.1182 | D51: 341508.0959 | E51: 346975.6324 | F51: 351720.4713 | G51: 374887.673
A52: =HLOOKUP(INDICE!F2,Nombres!$C$3:$E$853,300) -> . Debt securities | B52: 3964.503342 | C52: 4206.368304 | D52: 4364.28391 | E52: 4543.88408 | F52: 4541.457084 | G52: 11058.377
A53: =HLOOKUP(INDICE!F2,Nombres!$C$3:$E$853,71) -> Held to maturity investments | B53: 4.495461325 | C53: 4.161071188 | D53: 4.073111066 | E53: 1.610861924 | F53: 0.0566003075 | G53: -0.002
A54: =HLOOKUP(INDICE!F2,Nombres!$C$3:$E$853,72) -> Investments in associates | B54: 1288.922449 | C54: 1310.799034 | D54: 1401.433321 | E54: 637.488782 | F54: 694.0685602 | G54: 1012.598
A55: =HLOOKUP(INDICE!F2,Nombres!$C$3:$E$853,73) -> Tangible assets | B55: 7500.04871 | C55: 7407.650326 | D55: 7540.407142 | E55: 7764.130456 | F55: 7839.76205 | G55: 8752.944
A56: =HLOOKUP(INDICE!F2,Nombres!$C$3:$E$853,74) -> Intangible assets | B56: 8255.92682 | C56: 8308.726816 | D56: 8645.046692 | E56: 8861.313841 | F56: 9415.926626 | G56: 9212.033
A57: =HLOOKUP(INDICE!F2,Nombres!$C$3:$E$853,75) -> Other assets | B57: 26015.88912 | C57: 26030.19054 | D57: 27449.62154 | E57: 27665.96212 | F57: 28219.8361 | G57: 31553.227
A58: =HLOOKUP(INDICE!F2,Nombres!$C$3:$E$853,76) -> Total assets | B58: 602490.5422 | C58: 615844.3689 | D58: 625845.7179 | E58: 638666.4881 | F58: 658019.3371 | G58: 689071.072
A60: =HLOOKUP(INDICE!F2,Nombres!$C$3:$E$853,77) -> Financial liabilities held for trading | B60: 49286.17702 | C60: 52040.54474 | D60: 58968.35949 | E60: 57398.20397 | F60: 66645.44909 | G60: 56977.111
A61: =HLOOKUP(INDICE!F2,Nombres!$C$3:$E$853,78) -> Other financial liabilities at fair value | B61: 3080.473227 | C61: 3387.275719 | D61: 3524.326348 | E61: 3578.09507 | F61: 3724.657062 | G61: 3746.418
A62: =HLOOKUP(INDICE!F2,Nombres!$C$3:$E$853,79) -> Financial liabilities at amortised cost | B62: 478593.8839 | C62: 485493.0729 | D62: 487191.7477 | E62: 498324.3684 | F62: 507179.3689 | G62: 546479.748
A63: =HLOOKUP(INDICE!F2,Nombres!$C$3:$E$853,80) -> . Deposits from central banks and credit institutions | B63: 85698.11889 | C63: 82882.59122 | D63: 84273.61025 | E63: 97976.44742 | F63: 91051.12604 | G63: 94763.178
A64: =HLOOKUP(INDICE!F2,Nombres!$C$3:$E$853,81) -> . Deposits from customers | B64: 310259.502 | C64: 318203.2286 | D64: 319881.749 | E64: 318857.2402 | F64: 331130.7468 | G64: 363372.816
A65: =HLOOKUP(INDICE!F2,Nombres!$C$3:$E$853,208) -> .Other debt certificates | B65: 63249.4798 | C65: 62882.99477 | D65: 61273.65014 | E65: 59616.14628 | F65: 57487.31068 | G65: 62298.586
A66: =HLOOKUP(INDICE!F2,Nombres!$C$3:$E$853,83) -> . Subordinated liabilities | B66: 12423.38991 | C66: 14025.57232 | D66: 14252.53083 | E66: 14285.10137 | F66: 15316.87559 | G66: 16126.071
A67: =HLOOKUP(INDICE!F2,Nombres!$C$3:$E$853,84) -> . Other financial liabilities | B67: 6963.393295 | C67: 7498.685964 | D67: 7510.207512 | E67: 7589.433192 | F67: 12193.3097 | G67: 9919.097
A68: =HLOOKUP(INDICE!F2,Nombres!$C$3:$E$853,85) -> Liabilities under insurance contracts | B68: 10201.22539 | C68: 10275.97141 | D68: 10448.79858 | E68: 10558.01864 | F68: 10873.5585 | G68: 10333.217
A69: =HLOOKUP(INDICE!F2,Nombres!$C$3:$E$853,86) -> Other liabilities | B69: 18071.11677 | C69: 18482.32872 | D69: 18718.1947 | E69: 18639.46762 | F69: 17945.11313 | G69: 20537.679
A70: =HLOOKUP(INDICE!F2,Nombres!$C$3:$E$853,87) -> Total liabilities | B70: 558846.9333 | C70: 569672.0267 | D70: 578851.4268 | E70: 588498.1537 | F70: 606368.1466 | G70: 638074.173
A72: =HLOOKUP(INDICE!F2,Nombres!$C$3:$E$853,88) -> Minority interests | B72: 1360.500631 | C72: 1449.047795 | D72: 1556.25169 | E72: 1653.654931 | F72: 1602.067929 | G72: 1727.974
A73: =HLOOKUP(INDICE!F2,Nombres!$C$3:$E$853,89) -> Valuation adjustments | B73: -3614.528299 | C73: -2089.730518 | D73: -803.5260313 | E73: -287.0216271 | F73: 373.7733519 | G73: -2908.536
A74: =HLOOKUP(INDICE!F2,Nombres!$C$3:$E$853,90) -> Shareholders' funds | B74: 45897.6366 | C74: 46813.02495 | D74: 46241.5654 | E74: 48801.70108 | F74: 49675.34914 | G74: 52177.461
A75: =HLOOKUP(INDICE!F2,Nombres!$C$3:$E$853,91) -> Equity | B75: 43643.60893 | C75: 46172.34223 | D75: 46994.29106 | E75: 50168.33439 | F75: 51651.19042 | G75: 50996.899
A77: =HLOOKUP(INDICE!F2,Nombres!$C$3:$E$853,92) -> Total liabilities and equity | B77: 602490.5422 | C77: 615844.3689 | D77: 625845.7179 | E77: 638666.4881 | F77: 658019.3371 | G77: 689071.072
A78: =HLOOKUP(INDICE!F2,Nombres!$C$3:$E$853,276) -> (*) Financial statements with the assets and liabilities of the Garanti Group consolidated in proportion to the percentage of the Group's stake.

Sheet Actividad bancaria en España
A1: =HLOOKUP(INDICE!$F$2,Nombres!$C$3:$E$853,301) -> Banking activity in Spain
A2: =HLOOKUP(INDICE!$F$2,Nombres!$C$3:$E$853,93) -> Income statement
A3: =HLOOKUP(INDICE!$F$2,Nombres!$C$3:$E$853,30) -> (Million euros)
B4: 2014 | F4: 2015
B5: =HLOOKUP(INDICE!$F$2,Nombres!$C$3:$E$857,34) -> 1st Quarter | C5: =HLOOKUP(INDICE!$F$2,Nombres!$C$3:$E$857,35) -> 2nd Quarter | D5: =HLOOKUP(INDICE!$F$2,Nombres!$C$3:$E$857,36) -> 3rd Quarter | E5: =HLOOKUP(INDICE!$F$2,Nombres!$C$3:$E$857,37) -> 4th Quarter | F5: =HLOOKUP(INDICE!$F$2,Nombres!$C$3:$E$857,34) -> 1st Quarter | G5: =HLOOKUP(INDICE!$F$2,Nombres!$C$3:$E$857,35) -> 2nd Quarter
A6: =HLOOKUP(INDICE!$F$2,Nombres!$C$3:$E$853,38) -> Net interest income | B6: 930.9670659 | C6: 937.7231275 | D6: 965.5356129 | E6: 995.9066348 | F6: 967.6830682 | G6: 1014.428757
A7: =HLOOKUP(INDICE!$F$2,Nombres!$C$3:$E$853,39) -> Net fees and commissions | B7: 346.7875373 | C7: 386.1649435 | D7: 352.8901024 | E7: 366.908885 | F7: 377.6174904 | G7: 432.1811639
A8: =HLOOKUP(INDICE!$F$2,Nombres!$C$3:$E$853,40) -> Net trading income | B8: 436.6279315 | C8: 205.8092538 | D8: 151.0256176 | E8: 355.595712 | F8: 336.7186288 | G8: 338.0510886
A9: =HLOOKUP(INDICE!$F$2,Nombres!$C$3:$E$853,95) -> Other income/expenses | B9: 39.04075261 | C9: 101.1883385 | D9: 24.84218587 | E9: 23.7073795 | F9: 103.9503497 | G9: 140.3148593
A10: =HLOOKUP(INDICE!$F$2,Nombres!$C$3:$E$853,44) -> Gross income | B10: 1753.423287 | C10: 1630.885663 | D10: 1494.293519 | E10: 1742.118611 | F10: 1785.969537 | G10: 1924.975869
A11: =HLOOKUP(INDICE!$F$2,Nombres!$C$3:$E$853,45) -> Operating expenses | B11: -705.8388051 | C11: -713.5903639 | D11: -718.2692918 | E11: -708.3572071 | F11: -704.8575315 | G11: -798.4259223
A12: =HLOOKUP(INDICE!$F$2,Nombres!$C$3:$E$853,46) -> Administration expenses | B12: -679.5415179 | C12: -687.4821532 | D12: -691.7678438 | E12: -681.9163301 | F12: -679.4422693 | G12: -767.8318342
A13: =HLOOKUP(INDICE!$F$2,Nombres!$C$3:$E$853,47) -> Personnel expenses | B13: -437.7240427 | C13: -419.3767924 | D13: -436.2361321 | E13: -413.8392185 | F13: -410.6600014 | G13: -458.2416236
A14: =HLOOKUP(INDICE!$F$2,Nombres!$C$3:$E$853,48) -> General and administrative expenses | B14: -241.8174752 | C14: -268.1053608 | D14: -255.5317117 | E14: -268.0771116 | F14: -268.7822679 | G14: -309.5902106
A15: =HLOOKUP(INDICE!$F$2,Nombres!$C$3:$E$853,49) -> Depreciation and amortization | B15: -26.2972872 | C15: -26.10821069 | D15: -26.50144798 | E15: -26.44087696 | F15: -25.41526222 | G15: -30.5940881
A16: =HLOOKUP(INDICE!$F$2,Nombres!$C$3:$E$853,50) -> Operating income | B16: 1047.584482 | C16: 917.2952994 | D16: 776.0242269 | E16: 1033.761404 | F16: 1081.112006 | G16: 1126.549947
A17: =HLOOKUP(INDICE!$F$2,Nombres!$C$3:$E$853,51) -> Impairment on financial assets (net) | B17: -462.8629219 | C17: -396.0519804 | D17: -385.8229656 | E17: -445.3618132 | F17: -420.7555521 | G17: -354.4491189
A18: =HLOOKUP(INDICE!$F$2,Nombres!$C$3:$E$853,160) -> Provisions (net) and other gains/losses | B18: -34.86681877 | C18: -203.3241468 | D18: -75.98957461 | E18: -308.9749518 | F18: -164.1988905 | G18: -115.8853931
A19: =HLOOKUP(INDICE!$F$2,Nombres!$C$3:$E$853,54) -> Income before tax | B19: 549.8547416 | C19: 317.9191723 | D19: 314.2116867 | E19: 279.4246393 | F19: 496.157563 | G19: 656.2154346
A20: =HLOOKUP(INDICE!$F$2,Nombres!$C$3:$E$853,55) -> Income tax | B20: -164.6186763 | C20: -93.40518996 | D20: -87.09949248 | E20: -85.80314584 | F20: -147.9297009 | G20: -193.3689035
A21: =HLOOKUP(INDICE!$F$2,Nombres!$C$3:$E$853,56) -> Net income | B21: 385.2360653 | C21: 224.5139823 | D21: 227.1121942 | E21: 193.6214934 | F21: 348.2278621 | G21: 462.8465312
A22: =HLOOKUP(INDICE!$F$2,Nombres!$C$3:$E$853,57) -> Non-controlling interests | B22: -0.869 | C22: -0.859575 | D22: -0.929121 | E22: -0.916 | F22: -0.835043 | G22: -1.049
A23: =HLOOKUP(INDICE!$F$2,Nombres!$C$3:$E$853,58) -> Net attributable profit | B23: 384.3670653 | C23: 223.6544073 | D23: 226.1830733 | E23: 192.7054935 | F23: 347.3928191 | G23: 461.7975312
A24: =HLOOKUP(INDICE!$F$2,Nombres!$C$3:$E$853,94) -> Balance sheet
A25: =HLOOKUP(INDICE!$F$2,Nombres!$C$3:$E$853,30) -> (Million euros)
B26: 2014-03-31 | C26: 2014-06-30 | D26: 2014-09-30 | E26: 2014-12-31 | F26: 2015-03-31 | G26: 2015-06-30
A27: =HLOOKUP(INDICE!$F$2,Nombres!$C$3:$E$853,100) -> Cash and balances with central banks | B27: 4468.379107 | C27: 5835.361539 | D27: 829.729193 | E27: 7876.209789 | F27: 3902.276099 | G27: 7921.908892
A28: =HLOOKUP(INDICE!$F$2,Nombres!$C$3:$E$853,101) -> Financial assets | B28: 108376.8434 | C28: 112019.2588 | D28: 121611.6936 | E28: 116016.0659 | F28: 125945.4724 | G28: 122871.7011
A29: =HLOOKUP(INDICE!$F$2,Nombres!$C$3:$E$853,102) -> Loans and receivables | B29: 189842.0917 | C29: 195026.0008 | D29: 190641.6536 | E29: 191278.0556 | F29: 195471.7733 | G29: 216897.3365
A30: =HLOOKUP(INDICE!$F$2,Nombres!$C$3:$E$853,103) -> . Loans and advances to customers | B30: 174565.7945 | C30: 173369.9857 | D30: 168774.0526 | E30: 169215.5746 | F30: 168212.0407 | G30: 187961.5096
A31: =HLOOKUP(INDICE!$F$2,Nombres!$C$3:$E$853,104) -> . Loans and advances to credit institutions and other | B31: 15276.29724 | C31: 21656.01517 | D31: 21867.60094 | E31: 22062.48106 | F31: 27259.73261 | G31: 28935.82696
A32: =HLOOKUP(INDICE!$F$2,Nombres!$C$3:$E$853,105) -> Inter-area positions | B32: 8515.765007 | C32: 6521.226751 | D32: 4594.643026 | E32: 0 | F32: 0 | G32: 1260.41934
A33: =HLOOKUP(INDICE!$F$2,Nombres!$C$3:$E$853,106) -> Tangible assets | B33: 746.0889341 | C33: 737.8976198 | D33: 725.1053634 | E33: 699.8305952 | F33: 705.6938888 | G33: 700.7709114
A34: =HLOOKUP(INDICE!$F$2,Nombres!$C$3:$E$853,107) -> Other assets | B34: 1793.419093 | C34: 1664.841267 | D34: 2216.851112 | E34: 2575.926259 | F34: 3499.935254 | G34: 2290.414288
A35: =HLOOKUP(INDICE!$F$2,Nombres!$C$3:$E$853,108) -> Total assets / Liabilities and equity | B35: 313742.5873 | C35: 321804.5869 | D35: 320619.6759 | E35: 318446.0881 | F35: 329525.151 | G35: 351942.5511
A36: =HLOOKUP(INDICE!$F$2,Nombres!$C$3:$E$853,109) -> Deposits from central banks and credit institutions | B36: 57305.74496 | C36: 54519.35111 | D36: 53132.91547 | E36: 64764.89164 | F36: 58264.21233 | G36: 61816.2856
A37: =HLOOKUP(INDICE!$F$2,Nombres!$C$3:$E$853,110) -> Deposits from customers | B37: 156122.7376 | C37: 162241.4872 | D37: 160777.1367 | E37: 154261.3183 | F37: 159815.6283 | G37: 187967.687
A38: =HLOOKUP(INDICE!$F$2,Nombres!$C$3:$E$853,111) -> Debt certificates | B38: 48236.1999 | C38: 48274.78076 | D38: 44980.79806 | E38: 41688.88768 | F38: 39183.58154 | G38: 43677.42399
A39: =HLOOKUP(INDICE!$F$2,Nombres!$C$3:$E$853,112) -> Subordinated liabilities | B39: 2173.454384 | C39: 2204.210735 | D39: 2144.467686 | E39: 2128.443188 | F39: 2052.118366 | G39: 2201.667027
A40: =HLOOKUP(INDICE!$F$2,Nombres!$C$3:$E$853,113) -> Inter-area positions | B40: 0 | C40: 0 | D40: 0 | E40: 44.98654521 | F40: 5768.078447 | G40: 0
A41: =HLOOKUP(INDICE!$F$2,Nombres!$C$3:$E$853,114) -> Financial liabilities held for trading | B41: 40193.26858 | C41: 42694.39323 | D41: 49105.89032 | E41: 43977.07004 | F41: 51937.8539 | G41: 41361.21441
A42: =HLOOKUP(INDICE!$F$2,Nombres!$C$3:$E$853,115) -> Other liabilities | B42: 1404.383107 | C42: 3647.180078 | D42: 2628.936483 | E42: 3422.302588 | F42: 4638.024327 | G42: 6219.977842
A43: =HLOOKUP(INDICE!$F$2,Nombres!$C$3:$E$853,116) -> Economic capital allocated | B43: 8306.79873 | C43: 8223.18375 | D43: 7849.531184 | E43: 8158.188178 | F43: 7865.65376 | G43: 8698.295229
A44: =HLOOKUP(INDICE!$F$2,Nombres!$C$3:$E$853,117) -> Relevant business indicators
A45: =HLOOKUP(INDICE!$F$2,Nombres!$C$3:$E$853,201) -> Annex:
A46: =HLOOKUP(INDICE!$F$2,Nombres!$C$3:$E$853,30) -> (Million euros) | B46: 2014-03-31 | C46: 2014-06-30 | D46: 2014-09-30 | E46: 2014-12-31 | F46: 2015-03-31 | G46: 2015-06-30
A47: =HLOOKUP(INDICE!$F$2,Nombres!$C$3:$E$853,118) -> Loans and advances to customers gross | B47: 179562.6572 | C47: 178656.3863 | D47: 173757.4017 | E47: 174201.4375 | F47: 173233.6716 | G47: 196614.576
A48: =HLOOKUP(INDICE!$F$2,Nombres!$C$3:$E$853,121) -> Customer deposits under management (*) | B48: 135415.5219 | C48: 141509.6091 | D48: 139352.1808 | E48: 138140.2948 | F48: 136250.0304 | G48: 159725.0556
A49: =HLOOKUP(INDICE!$F$2,Nombres!$C$3:$E$853,122) -> Mutual funds | B49: 23783.228 | C49: 25752.17586 | D49: 27551.97586 | E49: 28694.703 | F49: 30743.362 | G49: 32891.884
A50: =HLOOKUP(INDICE!$F$2,Nombres!$C$3:$E$853,206) -> Pension funds | B50: 20994.41 | C50: 21363.572 | D50: 21676.718 | E50: 21879.792 | F50: 22595.353 | G50: 23106.303
A51: =HLOOKUP(INDICE!$F$2,Nombres!$C$3:$E$853,285) -> (*) Excluding repos.

Sheet Actividad inm. en España
A1: =HLOOKUP(INDICE!$F$2,Nombres!$C$3:$E$853,279) -> Real-estate business in Spain
A2: =HLOOKUP(INDICE!$F$2,Nombres!$C$3:$E$853,93) -> Income statement
A3: =HLOOKUP(INDICE!$F$2,Nombres!$C$3:$E$853,30) -> (Million euros)
B4: 2014 | F4: 2015
B5: =HLOOKUP(INDICE!$F$2,Nombres!$C$3:$E$857,34) -> 1st Quarter | C5: =HLOOKUP(INDICE!$F$2,Nombres!$C$3:$E$857,35) -> 2nd Quarter | D5: =HLOOKUP(INDICE!$F$2,Nombres!$C$3:$E$857,36) -> 3rd Quarter | E5: =HLOOKUP(INDICE!$F$2,Nombres!$C$3:$E$857,37) -> 4th Quarter | F5: =HLOOKUP(INDICE!$F$2,Nombres!$C$3:$E$857,34) -> 1st Quarter | G5: =HLOOKUP(INDICE!$F$2,Nombres!$C$3:$E$857,35) -> 2nd Quarter
A6: =HLOOKUP(INDICE!$F$2,Nombres!$C$3:$E$853,38) -> Net interest income | B6: -7.31701187 | C6: -14.30579127 | D6: -8.74841384 | E6: -8.06590051 | F6: -9.46705196 | G6: -4.57655284
A7: =HLOOKUP(INDICE!$F$2,Nombres!$C$3:$E$853,39) -> Net fees and commissions | B7: 1.45053881 | C7: -0.77394092 | D7: 2.89789652 | E7: 1.06139936 | F7: 1.23537381 | G7: -0.16756781
A8: =HLOOKUP(INDICE!$F$2,Nombres!$C$3:$E$853,40) -> Net trading income | B8: 0.04220763 | C8: 0.001683 | D8: 1.93294242 | E8: -3.66835949 | F8: 0.71921943 | G8: 1.05272273
A9: =HLOOKUP(INDICE!$F$2,Nombres!$C$3:$E$853,95) -> Other income/expenses | B9: -52.12588874 | C9: -45.22224293 | D9: -32.21387242 | E9: -54.77996538 | F9: -38.68607761 | G9: -6.15331831
A10: =HLOOKUP(INDICE!$F$2,Nombres!$C$3:$E$853,44) -> Gross income | B10: -57.95015417 | C10: -60.30029212 | D10: -36.13144732 | E10: -65.45282602 | F10: -46.19853633 | G10: -9.84471623
A11: =HLOOKUP(INDICE!$F$2,Nombres!$C$3:$E$853,45) -> Operating expenses | B11: -36.10903391 | C11: -39.08511519 | D11: -40.16876377 | E11: -37.63367147 | F11: -32.50525742 | G11: -36.52614246
A12: =HLOOKUP(INDICE!$F$2,Nombres!$C$3:$E$853,46) -> Administration expenses | B12: -30.71625162 | C12: -32.91529149 | D12: -33.65392569 | E12: -32.66837799 | F12: -27.33949092 | G12: -29.8423409
A13: =HLOOKUP(INDICE!$F$2,Nombres!$C$3:$E$853,47) -> Personnel expenses | B13: -18.39855613 | C13: -21.45268393 | D13: -20.84773899 | E13: -20.29522947 | F13: -18.34481967 | G13: -18.05342469
A14: =HLOOKUP(INDICE!$F$2,Nombres!$C$3:$E$853,48) -> General and administrative expenses | B14: -12.31769549 | C14: -11.46260756 | D14: -12.8061867 | E14: -12.37314852 | F14: -8.99467125 | G14: -11.78891621
A15: =HLOOKUP(INDICE!$F$2,Nombres!$C$3:$E$853,49) -> Depreciation and amortization | B15: -5.39278229 | C15: -6.1698237 | D15: -6.51483808 | E15: -4.96529348 | F15: -5.1657665 | G15: -6.68380156
A16: =HLOOKUP(INDICE!$F$2,Nombres!$C$3:$E$853,50) -> Operating income | B16: -94.05918808 | C16: -99.38540731 | D16: -76.30021109 | E16: -103.0864975 | F16: -78.70379375 | G16: -46.37085869
A17: =HLOOKUP(INDICE!$F$2,Nombres!$C$3:$E$853,51) -> Impairment on financial assets (net) | B17: -75.82084608 | C17: -50.20510518 | D17: -92.17842095 | E17: -79.28412905 | F17: -57.3307799 | G17: -58.47204676
A18: =HLOOKUP(INDICE!$F$2,Nombres!$C$3:$E$853,160) -> Provisions (net) and other gains/losses | B18: -183.1921641 | C18: -158.1188384 | D18: -120.6008623 | E18: -154.3754224 | F18: -84.72038035 | G18: -111.3877602
A19: =HLOOKUP(INDICE!$F$2,Nombres!$C$3:$E$853,54) -> Income before tax | B19: -353.0721983 | C19: -307.7093509 | D19: -289.0794943 | E19: -336.746049 | F19: -220.754954 | G19: -216.2306657
A20: =HLOOKUP(INDICE!$F$2,Nombres!$C$3:$E$853,55) -> Income tax | B20: 106.6080595 | C20: 88.16295329 | D20: 117.7744483 | E20: 69.91356176 | F20: 67.43868618 | G20: 68.97749974
A21: =HLOOKUP(INDICE!$F$2,Nombres!$C$3:$E$853,56) -> Net income | B21: -246.4641388 | C21: -219.5463976 | D21: -171.305046 | E21: -266.8324872 | F21: -153.3162678 | G21: -147.2531659
A22: =HLOOKUP(INDICE!$F$2,Nombres!$C$3:$E$853,57) -> Non-controlling interests | B22: 1.427 | C22: -0.5 | D22: 0.408 | E22: 1.421 | F22: -0.508 | G22: 0.804
A23: =HLOOKUP(INDICE!$F$2,Nombres!$C$3:$E$853,58) -> Net attributable profit | B23: -245.0371388 | C23: -220.0463976 | D23: -170.897046 | E23: -265.4114872 | F23: -153.8242678 | G23: -146.449166
A24: =HLOOKUP(INDICE!$F$2,Nombres!$C$3:$E$853,94) -> Balance sheet
A25: =HLOOKUP(INDICE!$F$2,Nombres!$C$3:$E$853,30) -> (Million euros)
B26: 2014-03-31 | C26: 2014-06-30 | D26: 2014-09-30 | E26: 2014-12-31 | F26: 2015-03-31 | G26: 2015-06-30
A27: =HLOOKUP(INDICE!$F$2,Nombres!$C$3:$E$853,100) -> Cash and balances with central banks | B27: 5.1004065 | C27: 5.5763285 | D27: 5.52900262 | E27: 5.97998699 | F27: 6.08969762 | G27: 6.80967962
A28: =HLOOKUP(INDICE!$F$2,Nombres!$C$3:$E$853,101) -> Financial assets | B28: 602.8616003 | C28: 373.4279888 | D28: 379.7557586 | E28: 345.8610427 | F28: 345.8438907 | G28: 555.3590147
A29: =HLOOKUP(INDICE!$F$2,Nombres!$C$3:$E$853,102) -> Loans and receivables | B29: 10067.15446 | C29: 9711.426457 | D29: 9364.633753 | E29: 8813.86336 | F29: 8776.609324 | G29: 8531.599616
A30: =HLOOKUP(INDICE!$F$2,Nombres!$C$3:$E$853,103) -> . Loans and advances to customers | B30: 10067.15446 | C30: 9711.426457 | D30: 9364.633753 | E30: 8813.86336 | F30: 8776.609324 | G30: 8531.599616
A31: =HLOOKUP(INDICE!$F$2,Nombres!$C$3:$E$853,104) -> . Loans and advances to credit institutions and other | B31: 0 | C31: 0 | D31: 0 | E31: 0 | F31: 0 | G31: 0
A32: =HLOOKUP(INDICE!$F$2,Nombres!$C$3:$E$853,105) -> Inter-area positions | B32: 0 | C32: 0 | D32: 0 | E32: 0 | F32: 0 | G32: 0
A33: =HLOOKUP(INDICE!$F$2,Nombres!$C$3:$E$853,106) -> Tangible assets | B33: 1600.045225 | C33: 1448.782948 | D33: 1429.540007 | E33: 1373.281879 | F33: 1279.305455 | G33: 1608.290661
A34: =HLOOKUP(INDICE!$F$2,Nombres!$C$3:$E$853,107) -> Other assets | B34: 7080.021925 | C34: 7255.543469 | D34: 7209.944789 | E34: 6826.278008 | F34: 6761.904535 | G34: 7216.693496
A35: =HLOOKUP(INDICE!$F$2,Nombres!$C$3:$E$853,108) -> Total assets / Liabilities and equity | B35: 19355.18361 | C35: 18794.75719 | D35: 18389.40331 | E35: 17365.26428 | F35: 17169.7529 | G35: 17918.75247
A36: =HLOOKUP(INDICE!$F$2,Nombres!$C$3:$E$853,109) -> Deposits from central banks and credit institutions | B36: 0 | C36: 0 | D36: 0 | E36: 0 | F36: 0 | G36: 0
A37: =HLOOKUP(INDICE!$F$2,Nombres!$C$3:$E$853,110) -> Deposits from customers | B37: 100.1095311 | C37: 68.52456835 | D37: 105.7179723 | E37: 52.67364838 | F37: 27.658391 | G37: 173.8118179
A38: =HLOOKUP(INDICE!$F$2,Nombres!$C$3:$E$853,111) -> Debt certificates | B38: 0 | C38: 0 | D38: 0 | E38: 0 | F38: 0 | G38: 0
A39: =HLOOKUP(INDICE!$F$2,Nombres!$C$3:$E$853,112) -> Subordinated liabilities | B39: 911.8936106 | C39: 875.9600115 | D39: 900.5262582 | E39: 870.6457324 | F39: 775.6515119 | G39: 869.6117904
A40: =HLOOKUP(INDICE!$F$2,Nombres!$C$3:$E$853,113) -> Inter-area positions | B40: 14695.30645 | C40: 14346.42906 | D40: 13781.05039 | E40: 12959.16251 | F40: 13263.83385 | G40: 13421.87333
A41: =HLOOKUP(INDICE!$F$2,Nombres!$C$3:$E$853,114) -> Financial liabilities held for trading | B41: 0 | C41: 0 | D41: 0 | E41: 0 | F41: 0 | G41: 0
A42: =HLOOKUP(INDICE!$F$2,Nombres!$C$3:$E$853,115) -> Other liabilities | B42: 0.295931662 | C42: -4.400137643e-09 | D42: -3.510018814e-08 | E42: -7.999775335e-09 | F42: 1.289990132e-08 | G42: -3.119996472e-08
A43: =HLOOKUP(INDICE!$F$2,Nombres!$C$3:$E$853,116) -> Economic capital allocated | B43: 3647.57809 | C43: 3503.84355 | D43: 3602.108692 | E43: 3482.78239 | F43: 3102.60915 | G43: 3453.455531

Sheet Riesgo promoción inmobiliaria
A1: =HLOOKUP(INDICE!$F$2,Nombres!$C$3:$E$853,262) -> Coverage of real estate exposure in Spain
A2: =HLOOKUP(INDICE!$F$2,Nombres!$C$3:$E$853,243) -> (Million of euros as of 30-Jun-15)
B5: =HLOOKUP(INDICE!$F$2,Nombres!$C$3:$E$853,244) -> Risk amount | C5: =HLOOKUP(INDICE!$F$2,Nombres!$C$3:$E$853,245) -> Provision | D5: =HLOOKUP(INDICE!$F$2,Nombres!$C$3:$E$853,246) -> % Coverage over risk
A6: =HLOOKUP(INDICE!$F$2,Nombres!$C$3:$E$853,247) -> NPL + Substandard | B6: 8212 | C6: 4533 | D6: 55.19970774
A7: =HLOOKUP(INDICE!$F$2,Nombres!$C$3:$E$853,248) -> NPL | B7: 7213 | C7: 4212 | D7: 58.39456537
A8: =HLOOKUP(INDICE!$F$2,Nombres!$C$3:$E$853,249) -> Substandard | B8: 999 | C8: 321 | D8: 32.13213213
A9: =HLOOKUP(INDICE!$F$2,Nombres!$C$3:$E$853,250) -> Foreclosed real estate and other assets | B9: 15223 | C9: 8480 | D9: 55.70518295
A10: =HLOOKUP(INDICE!$F$2,Nombres!$C$3:$E$853,251) -> From real estate developers | B10: 9140 | C10: 5323 | D10: 58.23851204
A11: =HLOOKUP(INDICE!$F$2,Nombres!$C$3:$E$853,252) -> From dwellings | B11: 4815 | C11: 2540 | D11: 52.75181724
A12: =HLOOKUP(INDICE!$F$2,Nombres!$C$3:$E$853,253) -> Other | B12: 1268 | C12: 617 | D12: 48.65930599
A13: =HLOOKUP(INDICE!$F$2,Nombres!$C$3:$E$853,254) -> Subtotal | B13: 23435 | C13: 13013 | D13: 55.52805633
A14: =HLOOKUP(INDICE!$F$2,Nombres!$C$3:$E$853,255) -> Performing | B14: 2725 | C14: - | D14: -
A15: =HLOOKUP(INDICE!$F$2,Nombres!$C$3:$E$853,256) -> With collateral | B15: 2413
A16: =HLOOKUP(INDICE!$F$2,Nombres!$C$3:$E$853,257) -> Finished properties | B16: 1880
A17: =HLOOKUP(INDICE!$F$2,Nombres!$C$3:$E$853,258) -> Construction in progress | B17: 299
A18: =HLOOKUP(INDICE!$F$2,Nombres!$C$3:$E$853,259) -> Land | B18: 234
A19: =HLOOKUP(INDICE!$F$2,Nombres!$C$3:$E$853,260) -> Without collateral and other | B19: 312
A20: =HLOOKUP(INDICE!$F$2,Nombres!$C$3:$E$853,261) -> Real estate exposure | B20: 26160 | C20: 13013 | D20: 49.74388379

Sheet Estados Unidos
A1: =HLOOKUP(INDICE!$F$2,Nombres!$C$3:$E$853,20) -> The United States
A2: =HLOOKUP(INDICE!$F$2,Nombres!$C$3:$E$853,93) -> Income statement
A3: =HLOOKUP(INDICE!$F$2,Nombres!$C$3:$E$853,30) -> (Million euros)
B4: 2014 | F4: 2015
B5: =HLOOKUP(INDICE!$F$2,Nombres!$C$3:$E$857,34) -> 1st Quarter | C5: =HLOOKUP(INDICE!$F$2,Nombres!$C$3:$E$857,35) -> 2nd Quarter | D5: =HLOOKUP(INDICE!$F$2,Nombres!$C$3:$E$857,36) -> 3rd Quarter | E5: =HLOOKUP(INDICE!$F$2,Nombres!$C$3:$E$857,37) -> 4th Quarter | F5: =HLOOKUP(INDICE!$F$2,Nombres!$C$3:$E$857,34) -> 1st Quarter | G5: =HLOOKUP(INDICE!$F$2,Nombres!$C$3:$E$857,35) -> 2nd Quarter
A6: =HLOOKUP(INDICE!$F$2,Nombres!$C$3:$E$853,38) -> Net interest income | B6: 345.3414319 | C6: 347.2677195 | D6: 361.7455467 | E6: 388.5614085 | F6: 434.9317504 | G6: 446.4603008
A7: =HLOOKUP(INDICE!$F$2,Nombres!$C$3:$E$853,39) -> Net fees and commissions | B7: 132.9956644 | C7: 135.0182668 | D7: 136.1211859 | E7: 149.3205523 | F7: 155.9100981 | G7: 161.4045766
A8: =HLOOKUP(INDICE!$F$2,Nombres!$C$3:$E$853,40) -> Net trading income | B8: 36.85087245 | C8: 37.56732563 | D8: 33.06377538 | E8: 37.26130331 | F8: 55.80665005 | G8: 61.64276355
A9: =HLOOKUP(INDICE!$F$2,Nombres!$C$3:$E$853,95) -> Other income/expenses | B9: 2.10219651 | C9: -0.53554946 | D9: -2.27398177 | E9: -3.22464653 | F9: 6.96367182 | G9: 8.8586988
A10: =HLOOKUP(INDICE!$F$2,Nombres!$C$3:$E$853,44) -> Gross income | B10: 517.2901652 | C10: 519.3177625 | D10: 528.6565262 | E10: 571.9186175 | F10: 653.6121704 | G10: 678.3663398
A11: =HLOOKUP(INDICE!$F$2,Nombres!$C$3:$E$853,45) -> Operating expenses | B11: -351.2655415 | C11: -361.4130249 | D11: -381.4485923 | E11: -403.1543794 | F11: -430.6703298 | G11: -451.8660367
A12: =HLOOKUP(INDICE!$F$2,Nombres!$C$3:$E$853,46) -> Administration expenses | B12: -307.7848773 | C12: -318.2327954 | D12: -336.6880472 | E12: -355.510919 | F12: -378.7028207 | G12: -399.571659
A13: =HLOOKUP(INDICE!$F$2,Nombres!$C$3:$E$853,47) -> Personnel expenses | B13: -206.211451 | C13: -207.4979111 | D13: -215.9909275 | E13: -231.1264923 | F13: -246.357782 | G13: -261.8183795
A14: =HLOOKUP(INDICE!$F$2,Nombres!$C$3:$E$853,48) -> General and administrative expenses | B14: -101.5734263 | C14: -110.7348843 | D14: -120.6971198 | E14: -124.3844266 | F14: -132.3450388 | G14: -137.7532795
A15: =HLOOKUP(INDICE!$F$2,Nombres!$C$3:$E$853,49) -> Depreciation and amortization | B15: -43.48066424 | C15: -43.18022944 | D15: -44.76054508 | E15: -47.64346049 | F15: -51.96750903 | G15: -52.2943777
A16: =HLOOKUP(INDICE!$F$2,Nombres!$C$3:$E$853,50) -> Operating income | B16: 166.0246237 | C16: 157.9047376 | D16: 147.2079339 | E16: 168.7642381 | F16: 222.9418406 | G16: 226.5003031
A17: =HLOOKUP(INDICE!$F$2,Nombres!$C$3:$E$853,51) -> Impairment on financial assets (net) | B17: -19.34687544 | C17: -22.18391539 | D17: -11.70968373 | E17: -15.06438836 | F17: -29.68715092 | G17: -32.73526687
A18: =HLOOKUP(INDICE!$F$2,Nombres!$C$3:$E$853,160) -> Provisions (net) and other gains/losses | B18: -3.391 | C18: -12.741 | D18: -5.09031964 | E18: 10.95144022 | F18: -2.208 | G18: 5.64863053
A19: =HLOOKUP(INDICE!$F$2,Nombres!$C$3:$E$853,54) -> Income before tax | B19: 143.2867483 | C19: 122.9798222 | D19: 130.4079305 | E19: 164.6512899 | F19: 191.0466897 | G19: 199.4136667
A20: =HLOOKUP(INDICE!$F$2,Nombres!$C$3:$E$853,55) -> Income tax | B20: -37.66945464 | C20: -32.59197351 | D20: -24.81816155 | E20: -37.81080387 | F20: -54.63085785 | G20: -49.81540743
A21: =HLOOKUP(INDICE!$F$2,Nombres!$C$3:$E$853,56) -> Net income | B21: 105.6172936 | C21: 90.38784873 | D21: 105.589769 | E21: 126.8404861 | F21: 136.4158318 | G21: 149.5982593
A22: =HLOOKUP(INDICE!$F$2,Nombres!$C$3:$E$853,57) -> Non-controlling interests | B22: -0.001 | C22: -0.001 | D22: -0.001 | E22: -0.001 | F22: -0.001 | G22: -0.002
A23: =HLOOKUP(INDICE!$F$2,Nombres!$C$3:$E$853,58) -> Net attributable profit | B23: 105.6162936 | C23: 90.38684873 | D23: 105.588769 | E23: 126.8394861 | F23: 136.4148318 | G23: 149.5962593
A24: =HLOOKUP(INDICE!$F$2,Nombres!$C$3:$E$853,94) -> Balance sheet
A25: =HLOOKUP(INDICE!$F$2,Nombres!$C$3:$E$853,30) -> (Million euros)
B26: 2014-03-31 | C26: 2014-06-30 | D26: 2014-09-30 | E26: 2014-12-31 | F26: 2015-03-31 | G26: 2015-06-30
A27: =HLOOKUP(INDICE!$F$2,Nombres!$C$3:$E$853,100) -> Cash and balances with central banks | B27: 4478.577306 | C27: 3866.636711 | D27: 4233.093756 | E27: 3808.230501 | F27: 4838.937003 | G27: 4608.481779
A28: =HLOOKUP(INDICE!$F$2,Nombres!$C$3:$E$853,101) -> Financial assets | B28: 7358.001829 | C28: 7834.201114 | D28: 8906.875382 | E28: 11892.19929 | F28: 14179.31013 | G28: 14897.04781
A29: =HLOOKUP(INDICE!$F$2,Nombres!$C$3:$E$853,102) -> Loans and receivables | B29: 41079.961 | C29: 42369.50217 | D29: 46908.31889 | E29: 50969.73016 | F29: 59242.64901 | G29: 58721.72377
A30: =HLOOKUP(INDICE!$F$2,Nombres!$C$3:$E$853,103) -> . Loans and advances to customers | B30: 39618.72837 | C30: 40857.41908 | D30: 45184.27204 | E30: 48976.09856 | F30: 57096.1565 | G30: 56413.84567
A31: =HLOOKUP(INDICE!$F$2,Nombres!$C$3:$E$853,104) -> . Loans and advances to credit institutions and other | B31: 1461.232634 | C31: 1512.08309 | D31: 1724.046852 | E31: 1993.631595 | F31: 2146.492509 | G31: 2307.8781
A32: =HLOOKUP(INDICE!$F$2,Nombres!$C$3:$E$853,105) -> Inter-area positions | B32: 0 | C32: 8.94492408 | D32: 723.6197382 | E32: 0 | F32: 0 | G32: 100.4076153
A33: =HLOOKUP(INDICE!$F$2,Nombres!$C$3:$E$853,106) -> Tangible assets | B33: 657.5356115 | C33: 653.4139244 | D33: 705.0663101 | E33: 724.7642848 | F33: 810.9496196 | G33: 768.538483
A34: =HLOOKUP(INDICE!$F$2,Nombres!$C$3:$E$853,107) -> Other assets | B34: 2179.531965 | C34: 2112.129931 | D34: 2543.191802 | E34: 1866.195855 | F34: 1858.256824 | G34: 1712.966278
A35: =HLOOKUP(INDICE!$F$2,Nombres!$C$3:$E$853,108) -> Total assets / Liabilities and equity | B35: 55753.60771 | C35: 56844.82878 | D35: 64020.16588 | E35: 69261.12008 | F35: 80930.10258 | G35: 80809.16574
A36: =HLOOKUP(INDICE!$F$2,Nombres!$C$3:$E$853,109) -> Deposits from central banks and credit institutions | B36: 3682.840424 | C36: 4761.194921 | D36: 5081.608929 | E36: 5765.324927 | F36: 7548.259924 | G36: 7805.800818
A37: =HLOOKUP(INDICE!$F$2,Nombres!$C$3:$E$853,110) -> Deposits from customers | B37: 42535.89443 | C37: 44024.40561 | D37: 48820.52136 | E37: 51394.09589 | F37: 59337.18322 | G37: 57568.71279
A38: =HLOOKUP(INDICE!$F$2,Nombres!$C$3:$E$853,111) -> Debt certificates | B38: 0 | C38: 0 | D38: 790.302 | E38: 821.921 | F38: 925.822 | G38: 895.822
A39: =HLOOKUP(INDICE!$F$2,Nombres!$C$3:$E$853,112) -> Subordinated liabilities | B39: 651.2761677 | C39: 651.4226117 | D39: 711.5887593 | E39: 741.7904213 | F39: 846.0021924 | G39: 1404.797108
A40: =HLOOKUP(INDICE!$F$2,Nombres!$C$3:$E$853,113) -> Inter-area positions | B40: 1668.771533 | C40: 0 | D40: 0 | E40: 344.7967155 | F40: 223.415539 | G40: 0
A41: =HLOOKUP(INDICE!$F$2,Nombres!$C$3:$E$853,114) -> Financial liabilities held for trading | B41: 177.6746915 | C41: 182.822 | D41: 367.4802828 | E41: 2341.179692 | F41: 3492.079387 | G41: 4580.680356
A42: =HLOOKUP(INDICE!$F$2,Nombres!$C$3:$E$853,115) -> Other liabilities | B42: 4750.7075 | C42: 4833.630714 | D42: 5788.230712 | E42: 5299.933688 | F42: 5634.866555 | G42: 5623.887022
A43: =HLOOKUP(INDICE!$F$2,Nombres!$C$3:$E$853,116) -> Economic capital allocated | B43: 2286.442969 | C43: 2391.352923 | D43: 2460.433835 | E43: 2552.077757 | F43: 2922.47376 | G43: 2929.46564
A44: =HLOOKUP(INDICE!$F$2,Nombres!$C$3:$E$853,117) -> Relevant business indicators
A45: =HLOOKUP(INDICE!$F$2,Nombres!$C$3:$E$853,201) -> Annex:
A46: =HLOOKUP(INDICE!$F$2,Nombres!$C$3:$E$853,30) -> (Million euros) | B46: 2014-03-31 | C46: 2014-06-30 | D46: 2014-09-30 | E46: 2014-12-31 | F46: 2015-03-31 | G46: 2015-06-30
A47: =HLOOKUP(INDICE!$F$2,Nombres!$C$3:$E$853,118) -> Loans and advances to customers gross | B47: 40255.16897 | C47: 41496.61615 | D47: 45854.98444 | E47: 49666.93005 | F47: 57877.59229 | G47: 57175.81283
A48: =HLOOKUP(INDICE!$F$2,Nombres!$C$3:$E$853,121) -> Customer deposits under management (*) | B48: 39541.26091 | C48: 42428.6999 | D48: 47691.06775 | E48: 50093.34261 | F48: 58423.98433 | G48: 56457.66206
A49: =HLOOKUP(INDICE!$F$2,Nombres!$C$3:$E$853,122) -> Mutual funds | B49: 0 | C49: 0 | D49: 0 | E49: 0 | F49: 0 | G49: 0
A50: =HLOOKUP(INDICE!$F$2,Nombres!$C$3:$E$853,206) -> Pension funds | B50: 0 | C50: 0 | D50: 0 | E50: 0 | F50: 0 | G50: 0
A51: =HLOOKUP(INDICE!$F$2,Nombres!$C$3:$E$853,298) -> (*) Excluding repos.
A52: =HLOOKUP(INDICE!$F$2,Nombres!$C$3:$E$853,93) -> Income statement
A53: =HLOOKUP(INDICE!$F$2,Nombres!$C$3:$E$853,31) -> (Constant million euros)
B54: 2014 | F54: 2015
B55: =HLOOKUP(INDICE!$F$2,Nombres!$C$3:$E$857,34) -> 1st Quarter | C55: =HLOOKUP(INDICE!$F$2,Nombres!$C$3:$E$857,35) -> 2nd Quarter | D55: =HLOOKUP(INDICE!$F$2,Nombres!$C$3:$E$857,36) -> 3rd Quarter | E55: =HLOOKUP(INDICE!$F$2,Nombres!$C$3:$E$857,37) -> 4th Quarter | F55: =HLOOKUP(INDICE!$F$2,Nombres!$C$3:$E$857,34) -> 1st Quarter | G55: =HLOOKUP(INDICE!$F$2,Nombres!$C$3:$E$857,35) -> 2nd Quarter
A56: =HLOOKUP(INDICE!$F$2,Nombres!$C$3:$E$853,38) -> Net interest income | B56: 424.0259051 | C56: 426.8019766 | D56: 428.6606491 | E56: 436.6246764 | F56: 438.8722037 | G56: 442.5198475
A57: =HLOOKUP(INDICE!$F$2,Nombres!$C$3:$E$853,39) -> Net fees and commissions | B57: 163.3062204 | C57: 165.902471 | D57: 160.6103029 | E57: 167.4479715 | F57: 157.1591476 | G57: 160.1555271
A58: =HLOOKUP(INDICE!$F$2,Nombres!$C$3:$E$853,40) -> Net trading income | B58: 45.28055812 | C58: 46.03159941 | D58: 37.57152108 | E58: 40.51545952 | F58: 56.22400944 | G58: 61.22540416
A59: =HLOOKUP(INDICE!$F$2,Nombres!$C$3:$E$853,95) -> Other income/expenses | B59: 2.579039281 | C59: -0.6445570988 | D59: -2.655659498 | E59: -3.848190424 | F59: 6.977553725 | G59: 8.844816895
A60: =HLOOKUP(INDICE!$F$2,Nombres!$C$3:$E$853,44) -> Gross income | B60: 635.1917229 | C60: 638.0914899 | D60: 624.1868136 | E60: 640.7399171 | F60: 659.2329145 | G60: 672.7455957
A61: =HLOOKUP(INDICE!$F$2,Nombres!$C$3:$E$853,45) -> Operating expenses | B61: -431.3139362 | C61: -444.0855853 | D61: -450.6505588 | E61: -451.9659066 | F61: -434.0823437 | G61: -448.4540228
A62: =HLOOKUP(INDICE!$F$2,Nombres!$C$3:$E$853,46) -> Administration expenses | B62: -377.9272029 | C62: -391.0130977 | D62: -397.5941913 | E62: -398.4547574 | F62: -381.6429664 | G62: -396.6315134
A63: =HLOOKUP(INDICE!$F$2,Nombres!$C$3:$E$853,47) -> Personnel expenses | B63: -253.2126476 | C63: -254.94203 | D63: -254.8839297 | E63: -259.0550148 | F63: -248.3332697 | G63: -259.8428918
A64: =HLOOKUP(INDICE!$F$2,Nombres!$C$3:$E$853,48) -> General and administrative expenses | B64: -124.7145553 | C64: -136.0710676 | D64: -142.7102617 | E64: -139.3997426 | F64: -133.3096967 | G64: -136.7886216
A65: =HLOOKUP(INDICE!$F$2,Nombres!$C$3:$E$853,49) -> Depreciation and amortization | B65: -53.38673327 | C65: -53.07248767 | D65: -53.05636747 | E65: -53.51114917 | F65: -52.43937734 | G65: -51.82250939
A66: =HLOOKUP(INDICE!$F$2,Nombres!$C$3:$E$853,50) -> Operating income | B66: 203.8777867 | C66: 194.0059046 | D66: 173.5362548 | E66: 188.7740105 | F66: 225.1505708 | G66: 224.2915729
A67: =HLOOKUP(INDICE!$F$2,Nombres!$C$3:$E$853,51) -> Impairment on financial assets (net) | B67: -23.73503296 | C67: -27.31347673 | D67: -14.28383457 | E67: -16.40527968 | F67: -29.76583108 | G67: -32.65658671
A68: =HLOOKUP(INDICE!$F$2,Nombres!$C$3:$E$853,160) -> Provisions (net) and other gains/losses | B68: -4.163417563 | C68: -15.65528274 | D68: -5.951080336 | E68: 13.51741244 | F68: -2.229006145 | G68: 5.669636675
A69: =HLOOKUP(INDICE!$F$2,Nombres!$C$3:$E$853,54) -> Income before tax | B69: 175.9793362 | C69: 151.0371451 | D69: 153.3013399 | E69: 185.8861432 | F69: 193.1557336 | G69: 197.3046229
A70: =HLOOKUP(INDICE!$F$2,Nombres!$C$3:$E$853,55) -> Income tax | B70: -46.25344696 | C70: -40.05959924 | D70: -29.10440238 | E70: -43.05764899 | F70: -55.13760632 | G70: -49.30865896
A71: =HLOOKUP(INDICE!$F$2,Nombres!$C$3:$E$853,56) -> Net income | B71: 129.7258892 | C71: 110.9775459 | D71: 124.1969375 | E71: 142.8284942 | F71: 138.0181272 | G71: 147.9959639
A72: =HLOOKUP(INDICE!$F$2,Nombres!$C$3:$E$853,57) -> Non-controlling interests | B72: -0.0012277846 | C72: -0.0012292821 | D72: -0.0011870174 | E72: -0.0011188794 | F72: -0.0010095137 | G72: -0.0019904863
A73: =HLOOKUP(INDICE!$F$2,Nombres!$C$3:$E$853,58) -> Net attributable profit | B73: 129.7246614 | C73: 110.9763166 | D73: 124.1957505 | E73: 142.8273754 | F73: 138.0171177 | G73: 147.9939734
A74: =HLOOKUP(INDICE!$F$2,Nombres!$C$3:$E$853,94) -> Balance sheet
A75: =HLOOKUP(INDICE!$F$2,Nombres!$C$3:$E$853,31) -> (Constant million euros)
B76: 2014-03-31 | C76: 2014-06-30 | D76: 2014-09-30 | E76: 2014-12-31 | F76: 2015-03-31 | G76: 2015-06-30
A77: =HLOOKUP(INDICE!$F$2,Nombres!$C$3:$E$853,100) -> Cash and balances with central banks | B77: 5518.872043 | C77: 4719.858942 | D77: 4760.481385 | E77: 4132.250623 | F77: 4652.976223 | G77: 4608.481779
A78: =HLOOKUP(INDICE!$F$2,Nombres!$C$3:$E$853,101) -> Financial assets | B78: 9067.136237 | C78: 9562.916545 | D78: 10016.55453 | E78: 12904.03716 | F78: 13634.39798 | G78: 14897.04781
A79: =HLOOKUP(INDICE!$F$2,Nombres!$C$3:$E$853,102) -> Loans and receivables | B79: 50622.1134 | C79: 51718.86801 | D79: 52752.4765 | E79: 55306.44722 | F79: 56965.94873 | G79: 58721.72377
A80: =HLOOKUP(INDICE!$F$2,Nombres!$C$3:$E$853,103) -> . Loans and advances to customers | B80: 48821.46213 | C80: 49873.12468 | D80: 50813.63616 | E80: 53143.18914 | F80: 54901.94612 | G80: 56413.84567
A81: =HLOOKUP(INDICE!$F$2,Nombres!$C$3:$E$853,104) -> . Loans and advances to credit institutions and other | B81: 1800.651274 | C81: 1845.743324 | D81: 1938.840342 | E81: 2163.25808 | F81: 2064.00261 | G81: 2307.8781
A82: =HLOOKUP(INDICE!$F$2,Nombres!$C$3:$E$853,105) -> Inter-area positions | B82: 0 | C82: 10.91873456 | D82: 813.7732099 | E82: 0 | F82: 0 | G82: 100.4076153
A83: =HLOOKUP(INDICE!$F$2,Nombres!$C$3:$E$853,106) -> Tangible assets | B83: 810.269569 | C83: 797.5979602 | D83: 792.9082695 | E83: 786.4302506 | F83: 779.7847535 | G83: 768.538483
A84: =HLOOKUP(INDICE!$F$2,Nombres!$C$3:$E$853,107) -> Other assets | B84: 2685.798906 | C84: 2578.198079 | D84: 2860.039945 | E84: 2024.979575 | F84: 1786.843849 | G84: 1712.966278
A85: =HLOOKUP(INDICE!$F$2,Nombres!$C$3:$E$853,108) -> Total assets / Liabilities and equity | B85: 68704.19016 | C85: 69388.35827 | D85: 71996.23385 | E85: 75154.14483 | F85: 77819.95153 | G85: 80809.16574
A86: =HLOOKUP(INDICE!$F$2,Nombres!$C$3:$E$853,109) -> Deposits from central banks and credit institutions | B86: 4538.299479 | C86: 5811.81272 | D86: 5714.710353 | E86: 6255.862799 | F86: 7258.179623 | G86: 7805.800818
A87: =HLOOKUP(INDICE!$F$2,Nombres!$C$3:$E$853,110) -> Deposits from customers | B87: 52416.23456 | C87: 53738.94679 | D87: 54902.91417 | E87: 55766.91975 | F87: 57056.84999 | G87: 57568.71279
A88: =HLOOKUP(INDICE!$F$2,Nombres!$C$3:$E$853,111) -> Debt certificates | B88: 0 | C88: 0 | D88: 888.7632017 | E88: 891.8534641 | F88: 890.2425781 | G88: 895.822
A89: =HLOOKUP(INDICE!$F$2,Nombres!$C$3:$E$853,112) -> Subordinated liabilities | B89: 802.5561665 | C89: 795.1672392 | D89: 800.2433298 | E89: 804.9050418 | F89: 813.4902528 | G89: 1404.797108
A90: =HLOOKUP(INDICE!$F$2,Nombres!$C$3:$E$853,113) -> Inter-area positions | B90: 2056.397809 | C90: 0 | D90: 0 | E90: 374.133457 | F90: 214.8296599 | G90: 0
A91: =HLOOKUP(INDICE!$F$2,Nombres!$C$3:$E$853,114) -> Financial liabilities held for trading | B91: 218.9453973 | C91: 223.1639836 | D91: 413.2634774 | E91: 2540.377017 | F91: 3357.878466 | G91: 4580.680356
A92: =HLOOKUP(INDICE!$F$2,Nombres!$C$3:$E$853,115) -> Other liabilities | B92: 5854.213294 | C92: 5900.232385 | D92: 6509.367887 | E92: 5750.874133 | F92: 5418.318131 | G92: 5623.887022
A93: =HLOOKUP(INDICE!$F$2,Nombres!$C$3:$E$853,116) -> Economic capital allocated | B93: 2817.543455 | C93: 2919.035151 | D93: 2766.971427 | E93: 2769.219168 | F93: 2810.162833 | G93: 2929.46564
A94: =HLOOKUP(INDICE!$F$2,Nombres!$C$3:$E$853,117) -> Relevant business indicators
A95: =HLOOKUP(INDICE!$F$2,Nombres!$C$3:$E$853,201) -> Annex:
A96: =HLOOKUP(INDICE!$F$2,Nombres!$C$3:$E$853,31) -> (Constant million euros)
B97: 2014-03-31 | C97: 2014-06-30 | D97: 2014-09-30 | E97: 2014-12-31 | F97: 2015-03-31 | G97: 2015-06-30
A98: =HLOOKUP(INDICE!$F$2,Nombres!$C$3:$E$853,118) -> Loans and advances to customers gross | B98: 49605.73669 | C98: 50653.36865 | D98: 51567.91048 | E98: 53892.79945 | F98: 55653.35127 | G98: 57175.81283
A99: =HLOOKUP(INDICE!$F$2,Nombres!$C$3:$E$853,121) -> Customer deposits under management (*) | B99: 48726.00035 | C99: 51791.12846 | D99: 53632.74554 | E99: 54355.49296 | F99: 56178.74541 | G99: 56457.66206
A100: =HLOOKUP(INDICE!$F$2,Nombres!$C$3:$E$853,122) -> Mutual funds | B100: 0 | C100: 0 | D100: 0 | E100: 0 | F100: 0 | G100: 0
A101: =HLOOKUP(INDICE!$F$2,Nombres!$C$3:$E$853,206) -> Pension funds | B101: 0 | C101: 0 | D101: 0 | E101: 0 | F101: 0 | G101: 0
A102: =HLOOKUP(INDICE!$F$2,Nombres!$C$3:$E$853,298) -> (*) Excluding repos.

Sheet Turquía
A1: =HLOOKUP(INDICE!$F$2,Nombres!$C$3:$E$853,295) -> Turkey
A2: =HLOOKUP(INDICE!$F$2,Nombres!$C$3:$E$853,304) -> Income statement (*)
A3: =HLOOKUP(INDICE!$F$2,Nombres!$C$3:$E$853,30) -> (Million euros)
B4: 2014 | F4: 2015
B5: =HLOOKUP(INDICE!$F$2,Nombres!$C$3:$E$857,34) -> 1st Quarter | C5: =HLOOKUP(INDICE!$F$2,Nombres!$C$3:$E$857,35) -> 2nd Quarter | D5: =HLOOKUP(INDICE!$F$2,Nombres!$C$3:$E$857,36) -> 3rd Quarter | E5: =HLOOKUP(INDICE!$F$2,Nombres!$C$3:$E$857,37) -> 4th Quarter | F5: =HLOOKUP(INDICE!$F$2,Nombres!$C$3:$E$857,34) -> 1st Quarter | G5: =HLOOKUP(INDICE!$F$2,Nombres!$C$3:$E$857,35) -> 2nd Quarter
A6: =HLOOKUP(INDICE!$F$2,Nombres!$C$3:$E$853,38) -> Net interest income | B6: 146.3488695 | C6: 167.271885 | D6: 196.5572732 | E6: 224.4631509 | F6: 210.405012 | G6: 214.6015253
A7: =HLOOKUP(INDICE!$F$2,Nombres!$C$3:$E$853,39) -> Net fees and commissions | B7: 41.73 | C7: 52.956 | D7: 47.694 | E7: 48.45 | F7: 49.621 | G7: 48.45
A8: =HLOOKUP(INDICE!$F$2,Nombres!$C$3:$E$853,40) -> Net trading income | B8: 17.852 | C8: 8.051 | D8: -2.703 | E8: -21.917 | F8: -14.707 | G8: -7.03
A9: =HLOOKUP(INDICE!$F$2,Nombres!$C$3:$E$853,95) -> Other income/expenses | B9: 3.784 | C9: 3.626 | D9: 4.325 | E9: 5.911 | F9: 4.738 | G9: 4.269
A10: =HLOOKUP(INDICE!$F$2,Nombres!$C$3:$E$853,44) -> Gross income | B10: 209.7148695 | C10: 231.904885 | D10: 245.8732732 | E10: 256.9071509 | F10: 250.057012 | G10: 260.2905253
A11: =HLOOKUP(INDICE!$F$2,Nombres!$C$3:$E$853,45) -> Operating expenses | B11: -91.783929 | C11: -94.406953 | D11: -101.8217626 | E11: -106.6560904 | F11: -109.906207 | G11: -111.406456
A12: =HLOOKUP(INDICE!$F$2,Nombres!$C$3:$E$853,46) -> Administration expenses | B12: -83.521677 | C12: -85.716701 | D12: -92.85250564 | E12: -97.38582936 | F12: -100.337955 | G12: -102.403205
A13: =HLOOKUP(INDICE!$F$2,Nombres!$C$3:$E$853,47) -> Personnel expenses | B13: -46.930353 | C13: -50.525184 | D13: -52.746526 | E13: -51.644427 | F13: -56.24804 | G13: -55.285053
A14: =HLOOKUP(INDICE!$F$2,Nombres!$C$3:$E$853,48) -> General and administrative expenses | B14: -36.591324 | C14: -35.191517 | D14: -40.10597964 | E14: -45.74140236 | F14: -44.089915 | G14: -47.118152
A15: =HLOOKUP(INDICE!$F$2,Nombres!$C$3:$E$853,49) -> Depreciation and amortization | B15: -8.262252 | C15: -8.690252 | D15: -8.969257 | E15: -9.270261 | F15: -9.568252 | G15: -9.003251
A16: =HLOOKUP(INDICE!$F$2,Nombres!$C$3:$E$853,50) -> Operating income | B16: 117.9309405 | C16: 137.497932 | D16: 144.0515105 | E16: 150.2510605 | F16: 140.150805 | G16: 148.8840693
A17: =HLOOKUP(INDICE!$F$2,Nombres!$C$3:$E$853,51) -> Impairment on financial assets (net) | B17: -25.16 | C17: -25.331 | D17: -50.101 | E17: -45.805 | F17: -33.068 | G17: -37.913
A18: =HLOOKUP(INDICE!$F$2,Nombres!$C$3:$E$853,160) -> Provisions (net) and other gains/losses | B18: -4.56 | C18: -4.374 | D18: 6.893 | E18: -9.024 | F18: -0.478 | G18: 1.027
A19: =HLOOKUP(INDICE!$F$2,Nombres!$C$3:$E$853,54) -> Income before tax | B19: 88.2109405 | C19: 107.792932 | D19: 100.8435105 | E19: 95.42206053 | F19: 106.604805 | G19: 111.9980693
A20: =HLOOKUP(INDICE!$F$2,Nombres!$C$3:$E$853,55) -> Income tax | B20: -18.55758215 | C20: -22.9173796 | D20: -19.90778716 | E20: -20.39907416 | F20: -20.91044151 | G20: -23.25872079
A21: =HLOOKUP(INDICE!$F$2,Nombres!$C$3:$E$853,56) -> Net income | B21: 69.65335835 | C21: 84.87555241 | D21: 80.93572338 | E21: 75.02298637 | F21: 85.69436352 | G21: 88.73934853
A22: =HLOOKUP(INDICE!$F$2,Nombres!$C$3:$E$853,57) -> Non-controlling interests | B22: 0 | C22: 0 | D22: 0 | E22: 0 | F22: 0 | G22: 0
A23: =HLOOKUP(INDICE!$F$2,Nombres!$C$3:$E$853,58) -> Net attributable profit | B23: 69.65335835 | C23: 84.87555241 | D23: 80.93572338 | E23: 75.02298637 | F23: 85.69436352 | G23: 88.73934853
A24: =HLOOKUP(INDICE!$F$2,Nombres!$C$3:$E$853,289) -> (*) Financial statements with the revenues and expenses of the Garanti Group consolidated in proportion to the percentage of the Group's stake.
A25: =HLOOKUP(INDICE!$F$2,Nombres!$C$3:$E$853,293) -> Balance sheet (*)
A26: =HLOOKUP(INDICE!$F$2,Nombres!$C$3:$E$853,30) -> (Million euros) | B26: 2014-03-31 | C26: 2014-06-30 | D26: 2014-09-30 | E26: 2014-12-31 | F26: 2015-03-31 | G26: 2015-06-30
A27: =HLOOKUP(INDICE!$F$2,Nombres!$C$3:$E$853,100) -> Cash and balances with central banks | B27: 2023.842 | C27: 2205.881 | D27: 2226.152 | E27: 2478.34 | F27: 2430.147 | G27: 2316.551
A28: =HLOOKUP(INDICE!$F$2,Nombres!$C$3:$E$853,101) -> Financial assets | B28: 3847.791 | C28: 4122.396 | D28: 4282.211 | E28: 4508.121 | F28: 4469.305 | G28: 4298.35
A29: =HLOOKUP(INDICE!$F$2,Nombres!$C$3:$E$853,102) -> Loans and receivables | B29: 12747.96 | C29: 13095.614 | D29: 13997.549 | E29: 14464.214 | F29: 15748.941 | G29: 15036.8
A30: =HLOOKUP(INDICE!$F$2,Nombres!$C$3:$E$853,103) -> . Loans and advances to customers | B30: 11334.891 | C30: 11823.876 | D30: 12633.233 | E30: 13097.802 | F30: 14176.656 | G30: 13796.26
A31: =HLOOKUP(INDICE!$F$2,Nombres!$C$3:$E$853,104) -> . Loans and advances to credit institutions and other | B31: 1413.069 | C31: 1271.738 | D31: 1364.316 | E31: 1366.412 | F31: 1572.285 | G31: 1240.54
A32: =HLOOKUP(INDICE!$F$2,Nombres!$C$3:$E$853,106) -> Tangible assets | B32: 175.142 | C32: 180.999 | D32: 181.238 | E32: 194.404 | F32: 192.622 | G32: 182.77
A33: =HLOOKUP(INDICE!$F$2,Nombres!$C$3:$E$853,107) -> Other assets | B33: 635.713 | C33: 618.9 | D33: 669.11 | E33: 697.222 | F33: 779.405 | G33: 664.516
A34: =HLOOKUP(INDICE!$F$2,Nombres!$C$3:$E$853,108) -> Total assets / Liabilities and equity | B34: 19430.448 | C34: 20223.79 | D34: 21356.26 | E34: 22342.301 | F34: 23620.42 | G34: 22498.987
A35: =HLOOKUP(INDICE!$F$2,Nombres!$C$3:$E$853,109) -> Deposits from central banks and credit institutions | B35: 4407.101 | C35: 4218.8 | D35: 4619.154 | E35: 4373.904 | F35: 4348.66 | G35: 4230.711
A36: =HLOOKUP(INDICE!$F$2,Nombres!$C$3:$E$853,110) -> Deposits from customers | B36: 10132.687 | C36: 10354.254 | D36: 10709.601 | E36: 11625.644 | F36: 12507.076 | G36: 12018.363
A37: =HLOOKUP(INDICE!$F$2,Nombres!$C$3:$E$853,111) -> Debt certificates | B37: 940.415 | C37: 1139.014 | D37: 1291.149 | E37: 1297.318 | F37: 1306.103 | G37: 1257.734
A38: =HLOOKUP(INDICE!$F$2,Nombres!$C$3:$E$853,112) -> Subordinated liabilities | B38: 23.296 | C38: 23.667 | D38: 23.154 | E38: 23.354 | F38: 22.932 | G38: 22.875
A39: =HLOOKUP(INDICE!$F$2,Nombres!$C$3:$E$853,114) -> Financial liabilities held for trading | B39: 165.523 | C39: 119.954 | D39: 167.766 | E39: 191.746 | F39: 372.908 | G39: 241.804
A40: =HLOOKUP(INDICE!$F$2,Nombres!$C$3:$E$853,115) -> Other liabilities | B40: 2972.81927 | C40: 3547.55562 | D40: 3684.763749 | E40: 3912.679469 | F40: 4119.98106 | G40: 3725.3404
A41: =HLOOKUP(INDICE!$F$2,Nombres!$C$3:$E$853,116) -> Economic capital allocated | B41: 788.60673 | C41: 820.54538 | D41: 860.6722513 | E41: 917.6555312 | F41: 942.75994 | G41: 1002.1596
A42: =HLOOKUP(INDICE!$F$2,Nombres!$C$3:$E$853,289) -> (*) Financial statements with the revenues and expenses of the Garanti Group consolidated in proportion to the percentage of the Group's stake.
A43: =HLOOKUP(INDICE!$F$2,Nombres!$C$3:$E$853,117) -> Relevant business indicators
A44: =HLOOKUP(INDICE!$F$2,Nombres!$C$3:$E$853,201) -> Annex:
A45: =HLOOKUP(INDICE!$F$2,Nombres!$C$3:$E$853,30) -> (Million euros) | B45: 2014-03-31 | C45: 2014-06-30 | D45: 2014-09-30 | E45: 2014-12-31 | F45: 2015-03-31 | G45: 2015-06-30
A46: =HLOOKUP(INDICE!$F$2,Nombres!$C$3:$E$853,118) -> Loans and advances to customers gross | B46: 11775.187 | C46: 12270.794 | D46: 13117.258 | E46: 13634.606 | F46: 14741.394 | G46: 14355.491
A47: =HLOOKUP(INDICE!$F$2,Nombres!$C$3:$E$853,121) -> Customer deposits under management (*) | B47: 10168.33295 | C47: 9995.323346 | D47: 10500.35513 | E47: 10980.69735 | F47: 12056.61048 | G47: 11644.38746
A48: =HLOOKUP(INDICE!$F$2,Nombres!$C$3:$E$853,122) -> Mutual funds | B48: 350.247 | C48: 373.549 | D48: 340.446 | E48: 343.761 | F48: 365.126 | G48: 352.359
A49: =HLOOKUP(INDICE!$F$2,Nombres!$C$3:$E$853,206) -> Pension funds | B49: 384.977 | C49: 444.325 | D49: 470.173 | E49: 537.919 | F49: 572.248 | G49: 563.248
A50: =HLOOKUP(INDICE!$F$2,Nombres!$C$3:$E$853,297) -> (*) Including repos.
A51: =HLOOKUP(INDICE!$F$2,Nombres!$C$3:$E$853,304) -> Income statement (*)
A52: =HLOOKUP(INDICE!$F$2,Nombres!$C$3:$E$853,31) -> (Constant million euros)
B53: 2014 | F53: 2015
B54: =HLOOKUP(INDICE!$F$2,Nombres!$C$3:$E$857,34) -> 1st Quarter | C54: =HLOOKUP(INDICE!$F$2,Nombres!$C$3:$E$857,35) -> 2nd Quarter | D54: =HLOOKUP(INDICE!$F$2,Nombres!$C$3:$E$857,36) -> 3rd Quarter | E54: =HLOOKUP(INDICE!$F$2,Nombres!$C$3:$E$857,37) -> 4th Quarter | F54: =HLOOKUP(INDICE!$F$2,Nombres!$C$3:$E$857,34) -> 1st Quarter | G54: =HLOOKUP(INDICE!$F$2,Nombres!$C$3:$E$857,35) -> 2nd Quarter
A55: =HLOOKUP(INDICE!$F$2,Nombres!$C$3:$E$853,38) -> Net interest income | B55: 155.2929449 | C55: 169.8772959 | D55: 197.6545778 | E55: 223.1522358 | F55: 203.8496809 | G55: 221.1568565
A56: =HLOOKUP(INDICE!$F$2,Nombres!$C$3:$E$853,39) -> Net fees and commissions | B56: 44.28029904 | C56: 53.89258706 | D56: 47.73651315 | E56: 47.86515039 | F56: 48.07502656 | G56: 49.99597344
A57: =HLOOKUP(INDICE!$F$2,Nombres!$C$3:$E$853,40) -> Net trading income | B57: 18.94301219 | C57: 7.913886074 | D57: -3.081803003 | E57: -22.47229828 | F57: -14.24879417 | G57: -7.488205827
A58: =HLOOKUP(INDICE!$F$2,Nombres!$C$3:$E$853,95) -> Other income/expenses | B58: 4.015256448 | C58: 3.667622605 | D58: 4.343015035 | E58: 5.892387644 | F58: 4.590384633 | G58: 4.416615367
A59: =HLOOKUP(INDICE!$F$2,Nombres!$C$3:$E$853,44) -> Gross income | B59: 222.5315125 | C59: 235.3513916 | D59: 246.652303 | E59: 254.4374755 | F59: 242.2662979 | G59: 268.0812394
A60: =HLOOKUP(INDICE!$F$2,Nombres!$C$3:$E$853,45) -> Operating expenses | B60: -97.32314429 | C60: -95.68105996 | D60: -102.1006154 | E60: -105.6075375 | F60: -106.5151661 | G60: -114.7974969
A61: =HLOOKUP(INDICE!$F$2,Nombres!$C$3:$E$853,46) -> Administration expenses | B61: -88.55596609 | C61: -86.8714635 | D61: -93.11308406 | E61: -96.43681651 | F61: -97.24501115 | G61: -105.4961489
A62: =HLOOKUP(INDICE!$F$2,Nombres!$C$3:$E$853,47) -> Personnel expenses | B62: -49.73342072 | C62: -51.27274781 | D62: -52.87724777 | E62: -51.03652743 | F62: -54.52609957 | G62: -57.00699343
A63: =HLOOKUP(INDICE!$F$2,Nombres!$C$3:$E$853,48) -> General and administrative expenses | B63: -38.82254537 | C63: -35.59871569 | D63: -40.23583629 | E63: -45.40028908 | F63: -42.71891157 | G63: -48.48915543
A64: =HLOOKUP(INDICE!$F$2,Nombres!$C$3:$E$853,49) -> Depreciation and amortization | B64: -8.767178209 | C64: -8.809596466 | D64: -8.987531331 | E64: -9.170721005 | F64: -9.270154948 | G64: -9.301348052
A65: =HLOOKUP(INDICE!$F$2,Nombres!$C$3:$E$853,50) -> Operating income | B65: 125.2083682 | C65: 139.6703316 | D65: 144.5516876 | E65: 148.829938 | F65: 135.7511318 | G65: 153.2837425
A66: =HLOOKUP(INDICE!$F$2,Nombres!$C$3:$E$853,51) -> Impairment on financial assets (net) | B66: -26.69763537 | C66: -25.65273525 | D66: -50.73516309 | E66: -45.57040479 | F66: -32.03774568 | G66: -38.94325432
A67: =HLOOKUP(INDICE!$F$2,Nombres!$C$3:$E$853,160) -> Provisions (net) and other gains/losses | B67: -4.838681132 | C67: -4.424320414 | D67: 7.171408037 | E67: -9.144141919 | F67: -0.4631076096 | G67: 1.01210761
A68: =HLOOKUP(INDICE!$F$2,Nombres!$C$3:$E$853,54) -> Income before tax | B68: 93.67205174 | C68: 109.593276 | D68: 100.9879326 | E68: 94.11539128 | F68: 103.2502785 | G68: 115.3525958
A69: =HLOOKUP(INDICE!$F$2,Nombres!$C$3:$E$853,55) -> Income tax | B69: -19.71276433 | C69: -23.3025831 | D69: -19.90322806 | E69: -20.13908021 | F69: -20.24900752 | G69: -23.92015478
A70: =HLOOKUP(INDICE!$F$2,Nombres!$C$3:$E$853,56) -> Net income | B70: 73.95928741 | C70: 86.29069288 | D70: 81.08470451 | E70: 73.97631107 | F70: 83.001271 | G70: 91.43244105
A71: =HLOOKUP(INDICE!$F$2,Nombres!$C$3:$E$853,57) -> Non-controlling interests | B71: 0 | C71: 0 | D71: 0 | E71: 0 | F71: 0 | G71: 0
A72: =HLOOKUP(INDICE!$F$2,Nombres!$C$3:$E$853,58) -> Net attributable profit | B72: 73.95928741 | C72: 86.29069288 | D72: 81.08470451 | E72: 73.97631107 | F72: 83.001271 | G72: 91.43244105
A73: =HLOOKUP(INDICE!$F$2,Nombres!$C$3:$E$853,289) -> (*) Financial statements with the revenues and expenses of the Garanti Group consolidated in proportion to the percentage of the Group's stake.
A74: =HLOOKUP(INDICE!$F$2,Nombres!$C$3:$E$853,293) -> Balance sheet (*)
A75: =HLOOKUP(INDICE!$F$2,Nombres!$C$3:$E$853,31) -> (Constant million euros)
B76: 2014-03-31 | C76: 2014-06-30 | D76: 2014-09-30 | E76: 2014-12-31 | F76: 2015-03-31 | G76: 2015-06-30
A77: =HLOOKUP(INDICE!$F$2,Nombres!$C$3:$E$853,100) -> Cash and balances with central banks | B77: 2006.270547 | C77: 2133.409639 | D77: 2138.893628 | E77: 2343.223666 | F77: 2282.320122 | G77: 2316.551
A78: =HLOOKUP(INDICE!$F$2,Nombres!$C$3:$E$853,101) -> Financial assets | B78: 3814.391788 | C78: 3987.048728 | D78: 4114.513662 | E78: 4262.622296 | F78: 4197.791494 | G78: 4298.35
A79: =HLOOKUP(INDICE!$F$2,Nombres!$C$3:$E$853,102) -> Loans and receivables | B79: 12637.27933 | C79: 12665.37458 | D79: 13448.88775 | E79: 13675.64118 | F79: 14790.9262 | G79: 15036.8
A80: =HLOOKUP(INDICE!$F$2,Nombres!$C$3:$E$853,103) -> . Loans and advances to customers | B80: 11236.47892 | C80: 11435.41788 | D80: 12138.04878 | E80: 12383.72444 | F80: 13314.28397 | G80: 13796.26
A81: =HLOOKUP(INDICE!$F$2,Nombres!$C$3:$E$853,104) -> . Loans and advances to credit institutions and other | B81: 1400.800416 | C81: 1229.956696 | D81: 1310.838972 | E81: 1291.916741 | F81: 1476.642233 | G81: 1240.54
A82: =HLOOKUP(INDICE!$F$2,Nombres!$C$3:$E$853,106) -> Tangible assets | B82: 173.6213776 | C82: 175.0525125 | D82: 174.1340229 | E82: 183.8053106 | F82: 180.9047216 | G82: 182.77
A83: =HLOOKUP(INDICE!$F$2,Nombres!$C$3:$E$853,107) -> Other assets | B83: 630.1935962 | C83: 598.5668427 | D83: 642.8829276 | E83: 659.2102338 | F83: 731.9934615 | G83: 664.516
A84: =HLOOKUP(INDICE!$F$2,Nombres!$C$3:$E$853,108) -> Total assets / Liabilities and equity | B84: 19261.75664 | C84: 19559.4523 | D84: 20519.31199 | E84: 21124.50268 | F84: 22183.936 | G84: 22498.987
A85: =HLOOKUP(INDICE!$F$2,Nombres!$C$3:$E$853,109) -> Deposits from central banks and credit institutions | B85: 4368.837554 | C85: 4080.196794 | D85: 4438.097244 | E85: 4135.44363 | F85: 4084.129158 | G85: 4230.711
A86: =HLOOKUP(INDICE!$F$2,Nombres!$C$3:$E$853,110) -> Deposits from customers | B86: 10044.71272 | C86: 10014.07841 | D86: 10289.81729 | E86: 10991.82685 | F86: 11746.26523 | G86: 12018.363
A87: =HLOOKUP(INDICE!$F$2,Nombres!$C$3:$E$853,111) -> Debt certificates | B87: 932.2501046 | C87: 1101.593171 | D87: 1240.539895 | E87: 1226.589669 | F87: 1226.652198 | G87: 1257.734
A88: =HLOOKUP(INDICE!$F$2,Nombres!$C$3:$E$853,112) -> Subordinated liabilities | B88: 23.09373887 | C88: 22.88945139 | D88: 22.24643378 | E88: 22.08076595 | F88: 21.53703666 | G88: 22.875
A89: =HLOOKUP(INDICE!$F$2,Nombres!$C$3:$E$853,114) -> Financial liabilities held for trading | B89: 164.0858919 | C89: 116.0130668 | D89: 161.1900842 | E89: 181.2922218 | F89: 350.2238473 | G89: 241.804
A90: =HLOOKUP(INDICE!$F$2,Nombres!$C$3:$E$853,115) -> Other liabilities | B90: 2947.016767 | C90: 3431.075615 | D90: 3540.46203 | E90: 3699.611444 | F90: 3869.681051 | G90: 3725.3404
A91: =HLOOKUP(INDICE!$F$2,Nombres!$C$3:$E$853,116) -> Economic capital allocated | B91: 781.7598616 | C91: 793.6057933 | D91: 826.959015 | E91: 867.6581042 | F91: 885.4474776 | G91: 1002.1596
A92: =HLOOKUP(INDICE!$F$2,Nombres!$C$3:$E$853,289) -> (*) Financial statements with the revenues and expenses of the Garanti Group consolidated in proportion to the percentage of the Group's stake.
A93: =HLOOKUP(INDICE!$F$2,Nombres!$C$3:$E$853,117) -> Relevant business indicators
A94: =HLOOKUP(INDICE!$F$2,Nombres!$C$3:$E$853,201) -> Annex:
A95: =HLOOKUP(INDICE!$F$2,Nombres!$C$3:$E$853,31) -> (Constant million euros)
B96: 2014-03-31 | C96: 2014-06-30 | D96: 2014-09-30 | E96: 2014-12-31 | F96: 2015-03-31 | G96: 2015-06-30
A97: =HLOOKUP(INDICE!$F$2,Nombres!$C$3:$E$853,118) -> Loans and advances to customers gross | B97: 11672.95217 | C97: 11867.65297 | D97: 12603.10147 | E97: 12891.26248 | F97: 13844.66872 | G97: 14355.491
A98: =HLOOKUP(INDICE!$F$2,Nombres!$C$3:$E$853,121) -> Customer deposits under management (*) | B98: 10080.04919 | C98: 9666.939953 | D98: 10088.77321 | E98: 10382.04197 | F98: 11323.20172 | G98: 11644.38746
A99: =HLOOKUP(INDICE!$F$2,Nombres!$C$3:$E$853,122) -> Mutual funds | B99: 347.2060765 | C99: 361.2765318 | D99: 327.1015546 | E99: 325.0195335 | F99: 342.9152297 | G99: 352.359
A100: =HLOOKUP(INDICE!$F$2,Nombres!$C$3:$E$853,206) -> Pension funds | B100: 381.6345428 | C100: 429.727278 | D100: 451.7436516 | E100: 508.5922558 | F100: 537.4379101 | G100: 563.248
A101: =HLOOKUP(INDICE!$F$2,Nombres!$C$3:$E$853,297) -> (*) Including repos.

Sheet México
A1: =HLOOKUP(INDICE!$F$2,Nombres!$C$3:$E$853,9) -> Mexico
A2: =HLOOKUP(INDICE!$F$2,Nombres!$C$3:$E$853,93) -> Income statement
A3: =HLOOKUP(INDICE!$F$2,Nombres!$C$3:$E$853,30) -> (Million euros)
B4: 2014 | F4: 2015
B5: =HLOOKUP(INDICE!$F$2,Nombres!$C$3:$E$857,34) -> 1st Quarter | C5: =HLOOKUP(INDICE!$F$2,Nombres!$C$3:$E$857,35) -> 2nd Quarter | D5: =HLOOKUP(INDICE!$F$2,Nombres!$C$3:$E$857,36) -> 3rd Quarter | E5: =HLOOKUP(INDICE!$F$2,Nombres!$C$3:$E$857,37) -> 4th Quarter | F5: =HLOOKUP(INDICE!$F$2,Nombres!$C$3:$E$857,34) -> 1st Quarter | G5: =HLOOKUP(INDICE!$F$2,Nombres!$C$3:$E$857,35) -> 2nd Quarter
A6: =HLOOKUP(INDICE!$F$2,Nombres!$C$3:$E$853,38) -> Net interest income | B6: 1172.695142 | C6: 1181.398174 | D6: 1232.763624 | E6: 1323.55858 | F6: 1340.377177 | G6: 1393.464352
A7: =HLOOKUP(INDICE!$F$2,Nombres!$C$3:$E$853,39) -> Net fees and commissions | B7: 262.0140046 | C7: 297.9740004 | D7: 302.0551384 | E7: 303.9496901 | F7: 295.1176539 | G7: 309.6009542
A8: =HLOOKUP(INDICE!$F$2,Nombres!$C$3:$E$853,40) -> Net trading income | B8: 48.44897803 | C8: 59.46770853 | D8: 55.66836904 | E8: 31.76689131 | F8: 51.94280414 | G8: 57.48443568
A9: =HLOOKUP(INDICE!$F$2,Nombres!$C$3:$E$853,95) -> Other income/expenses | B9: 53.53275206 | C9: 58.64097354 | D9: 55.85476296 | E9: 82.11196413 | F9: 64.21260886 | G9: 45.46997462
A10: =HLOOKUP(INDICE!$F$2,Nombres!$C$3:$E$853,44) -> Gross income | B10: 1536.690877 | C10: 1597.480856 | D10: 1646.341894 | E10: 1741.387125 | F10: 1751.650243 | G10: 1806.019716
A11: =HLOOKUP(INDICE!$F$2,Nombres!$C$3:$E$853,45) -> Operating expenses | B11: -567.5690872 | C11: -586.9371861 | D11: -617.3912713 | E11: -634.5640003 | F11: -646.7228057 | G11: -662.4722863
A12: =HLOOKUP(INDICE!$F$2,Nombres!$C$3:$E$853,46) -> Administration expenses | B12: -523.9883708 | C12: -542.7087186 | D12: -569.7408327 | E12: -582.7731689 | F12: -592.4168438 | G12: -608.7218801
A13: =HLOOKUP(INDICE!$F$2,Nombres!$C$3:$E$853,47) -> Personnel expenses | B13: -244.2656455 | C13: -254.0051122 | D13: -265.673185 | E13: -256.3771071 | F13: -287.81489 | G13: -292.3570756
A14: =HLOOKUP(INDICE!$F$2,Nombres!$C$3:$E$853,48) -> General and administrative expenses | B14: -279.7227253 | C14: -288.7036064 | D14: -304.0676477 | E14: -326.3960618 | F14: -304.6019538 | G14: -316.3648045
A15: =HLOOKUP(INDICE!$F$2,Nombres!$C$3:$E$853,49) -> Depreciation and amortization | B15: -43.5807165 | C15: -44.22846758 | D15: -47.65043859 | E15: -51.79083146 | F15: -54.3059619 | G15: -53.75040616
A16: =HLOOKUP(INDICE!$F$2,Nombres!$C$3:$E$853,50) -> Operating income | B16: 969.1217893 | C16: 1010.54367 | D16: 1028.950623 | E16: 1106.823125 | F16: 1104.927438 | G16: 1143.54743
A17: =HLOOKUP(INDICE!$F$2,Nombres!$C$3:$E$853,51) -> Impairment on financial assets (net) | B17: -355.4336169 | C17: -394.962678 | D17: -396.2108119 | E17: -370.6471524 | F17: -421.8676858 | G17: -429.7627052
A18: =HLOOKUP(INDICE!$F$2,Nombres!$C$3:$E$853,160) -> Provisions (net) and other gains/losses | B18: -16.08799983 | C18: -25.49400102 | D18: -43.76799929 | E18: 6.62400063 | F18: 10.37400083 | G18: -26.87063825
A19: =HLOOKUP(INDICE!$F$2,Nombres!$C$3:$E$853,54) -> Income before tax | B19: 597.6001726 | C19: 590.0869912 | D19: 588.9718115 | E19: 742.7999732 | F19: 693.4337528 | G19: 686.9140865
A20: =HLOOKUP(INDICE!$F$2,Nombres!$C$3:$E$853,55) -> Income tax | B20: -143.7249647 | C20: -143.3729413 | D20: -140.5100524 | E20: -175.9998208 | F20: -169.5843935 | G20: -169.0502596
A21: =HLOOKUP(INDICE!$F$2,Nombres!$C$3:$E$853,56) -> Net income | B21: 453.8752079 | C21: 446.7140498 | D21: 448.4617591 | E21: 566.8001524 | F21: 523.8493593 | G21: 517.8638269
A22: =HLOOKUP(INDICE!$F$2,Nombres!$C$3:$E$853,57) -> Non-controlling interests | B22: -0.145 | C22: -0.138 | D22: -0.139 | E22: -0.174 | F22: -0.164 | G22: -0.163
A23: =HLOOKUP(INDICE!$F$2,Nombres!$C$3:$E$853,58) -> Net attributable profit | B23: 453.7302079 | C23: 446.5760498 | D23: 448.3227591 | E23: 566.6261524 | F23: 523.6853593 | G23: 517.7008269
A24: =HLOOKUP(INDICE!$F$2,Nombres!$C$3:$E$853,94) -> Balance sheet
A25: =HLOOKUP(INDICE!$F$2,Nombres!$C$3:$E$853,30) -> (Million euros)
B26: 2014-03-31 | C26: 2014-06-30 | D26: 2014-09-30 | E26: 2014-12-31 | F26: 2015-03-31 | G26: 2015-06-30
A27: =HLOOKUP(INDICE!$F$2,Nombres!$C$3:$E$853,100) -> Cash and balances with central banks | B27: 5298.743521 | C27: 4442.461128 | D27: 4888.578662 | E27: 6004.173472 | F27: 6328.311517 | G27: 5326.455651
A28: =HLOOKUP(INDICE!$F$2,Nombres!$C$3:$E$853,101) -> Financial assets | B28: 32502.39539 | C28: 34870.2351 | D28: 37888.28087 | E28: 34311.30063 | F28: 37896.32065 | G28: 35355.60934
A29: =HLOOKUP(INDICE!$F$2,Nombres!$C$3:$E$853,102) -> Loans and receivables | B29: 42672.8631 | C29: 43942.02303 | D29: 46078.47522 | E29: 47800.07636 | F29: 51672.29799 | G29: 50340.0929
A30: =HLOOKUP(INDICE!$F$2,Nombres!$C$3:$E$853,103) -> . Loans and advances to customers | B30: 40381.0554 | C30: 41504.04776 | D30: 44869.0567 | E30: 45223.71346 | F30: 49986.85924 | G30: 48006.04003
A31: =HLOOKUP(INDICE!$F$2,Nombres!$C$3:$E$853,104) -> . Loans and advances to credit institutions and other | B31: 2291.807704 | C31: 2437.975269 | D31: 1209.418524 | E31: 2576.362903 | F31: 1685.438754 | G31: 2334.052872
A32: =HLOOKUP(INDICE!$F$2,Nombres!$C$3:$E$853,106) -> Tangible assets | B32: 1333.071486 | C32: 1410.836006 | D32: 1566.309146 | E32: 1662.121291 | F32: 1898.004665 | G32: 1898.728077
A33: =HLOOKUP(INDICE!$F$2,Nombres!$C$3:$E$853,107) -> Other assets | B33: 3681.873771 | C33: 3813.063006 | D33: 3391.959303 | E33: 3952.901775 | F33: 4504.692919 | G33: 3934.568747
A34: =HLOOKUP(INDICE!$F$2,Nombres!$C$3:$E$853,108) -> Total assets / Liabilities and equity | B34: 85488.94727 | C34: 88478.61827 | D34: 93813.6032 | E34: 93730.57353 | F34: 102299.6277 | G34: 96855.45472
A35: =HLOOKUP(INDICE!$F$2,Nombres!$C$3:$E$853,109) -> Deposits from central banks and credit institutions | B35: 9366.265794 | C35: 8617.168577 | D35: 11411.53866 | E35: 11617.07062 | F35: 9241.132779 | G35: 8851.017086
A36: =HLOOKUP(INDICE!$F$2,Nombres!$C$3:$E$853,110) -> Deposits from customers | B36: 44341.97978 | C36: 46030.33086 | D36: 48334.19895 | E36: 45937.42573 | F36: 50963.07613 | G36: 50497.32784
A37: =HLOOKUP(INDICE!$F$2,Nombres!$C$3:$E$853,111) -> Debt certificates | B37: 3882.772 | C37: 4345.485 | D37: 4586.868 | E37: 5032.574 | F37: 6188.79 | G37: 5447.756
A38: =HLOOKUP(INDICE!$F$2,Nombres!$C$3:$E$853,112) -> Subordinated liabilities | B38: 3638.24 | C38: 3770.49 | D38: 3712.999 | E38: 4128.123 | F38: 4683.358 | G38: 4465.656
A39: =HLOOKUP(INDICE!$F$2,Nombres!$C$3:$E$853,114) -> Financial liabilities held for trading | B39: 6890.423 | C39: 7291.103 | D39: 6824.798 | E39: 7615.966 | F39: 7860.901 | G39: 7251.939
A40: =HLOOKUP(INDICE!$F$2,Nombres!$C$3:$E$853,115) -> Other liabilities | B40: 12806.96384 | C40: 13627.41997 | D40: 14028.67097 | E40: 14420.72425 | F40: 18320.92464 | G40: 15091.78614
A41: =HLOOKUP(INDICE!$F$2,Nombres!$C$3:$E$853,116) -> Economic capital allocated | B41: 4562.302861 | C41: 4796.620867 | D41: 4914.529616 | E41: 4978.689931 | F41: 5041.44519 | G41: 5249.97266
A42: =HLOOKUP(INDICE!$F$2,Nombres!$C$3:$E$853,117) -> Relevant business indicators
A43: =HLOOKUP(INDICE!$F$2,Nombres!$C$3:$E$853,201) -> Annex:
A44: =HLOOKUP(INDICE!$F$2,Nombres!$C$3:$E$853,30) -> (Million euros) | B44: 2014-03-31 | C44: 2014-06-30 | D44: 2014-09-30 | E44: 2014-12-31 | F44: 2015-03-31 | G44: 2015-06-30
A45: =HLOOKUP(INDICE!$F$2,Nombres!$C$3:$E$853,118) -> Loans and advances to customers gross | B45: 41988.38517 | C45: 43156.83893 | D45: 46582.41629 | E45: 46798.19097 | F45: 51700.19953 | G45: 49626.61587
A46: =HLOOKUP(INDICE!$F$2,Nombres!$C$3:$E$853,121) -> Customer deposits under management (*) | B46: 41311.40139 | C46: 43908.01162 | D46: 46225.8624 | E46: 44437.14151 | F46: 50250.70172 | G46: 47325.99247
A47: =HLOOKUP(INDICE!$F$2,Nombres!$C$3:$E$853,122) -> Mutual funds | B47: 17191.11394 | C47: 18362.39992 | D47: 20027.19019 | E47: 18691.02099 | F47: 20797.48302 | G47: 20260.31594
A48: =HLOOKUP(INDICE!$F$2,Nombres!$C$3:$E$853,206) -> Pension funds | B48: 0 | C48: 0 | D48: 0 | E48: 0 | F48: 0 | G48: 0
A49: =HLOOKUP(INDICE!$F$2,Nombres!$C$3:$E$853,287) -> (*) Including all the repos.
A50: =HLOOKUP(INDICE!$F$2,Nombres!$C$3:$E$853,93) -> Income statement
A51: =HLOOKUP(INDICE!$F$2,Nombres!$C$3:$E$853,31) -> (Constant million euros)
B52: 2014 | F52: 2015
B53: =HLOOKUP(INDICE!$F$2,Nombres!$C$3:$E$857,34) -> 1st Quarter | C53: =HLOOKUP(INDICE!$F$2,Nombres!$C$3:$E$857,35) -> 2nd Quarter | D53: =HLOOKUP(INDICE!$F$2,Nombres!$C$3:$E$857,36) -> 3rd Quarter | E53: =HLOOKUP(INDICE!$F$2,Nombres!$C$3:$E$857,37) -> 4th Quarter | F53: =HLOOKUP(INDICE!$F$2,Nombres!$C$3:$E$857,34) -> 1st Quarter | G53: =HLOOKUP(INDICE!$F$2,Nombres!$C$3:$E$857,35) -> 2nd Quarter
A54: =HLOOKUP(INDICE!$F$2,Nombres!$C$3:$E$853,38) -> Net interest income | B54: 1259.183482 | C54: 1247.036624 | D54: 1269.532859 | E54: 1359.672323 | F54: 1335.843617 | G54: 1397.997911
A55: =HLOOKUP(INDICE!$F$2,Nombres!$C$3:$E$853,39) -> Net fees and commissions | B55: 281.3380006 | C55: 314.8376853 | D55: 311.2655669 | E55: 311.9808226 | F55: 294.1194771 | G55: 310.599131
A56: =HLOOKUP(INDICE!$F$2,Nombres!$C$3:$E$853,40) -> Net trading income | B56: 52.0221758 | C56: 62.8683291 | D56: 57.30949337 | E56: 32.10355292 | F56: 51.76711794 | G56: 57.66012188
A57: =HLOOKUP(INDICE!$F$2,Nombres!$C$3:$E$853,95) -> Other income/expenses | B57: 57.48088715 | C57: 61.9417562 | D57: 57.4547941 | E57: 84.72519098 | F57: 63.99542249 | G57: 45.68716099
A58: =HLOOKUP(INDICE!$F$2,Nombres!$C$3:$E$853,44) -> Gross income | B58: 1650.024545 | C58: 1686.684395 | D58: 1695.562714 | E58: 1788.48189 | F58: 1745.725635 | G58: 1811.944325
A59: =HLOOKUP(INDICE!$F$2,Nombres!$C$3:$E$853,45) -> Operating expenses | B59: -609.4283107 | C59: -619.6847476 | D59: -636.0986079 | E59: -651.5210678 | F59: -644.5353945 | G59: -664.6596975
A60: =HLOOKUP(INDICE!$F$2,Nombres!$C$3:$E$853,46) -> Administration expenses | B60: -562.6334393 | C60: -572.9960085 | D60: -586.9888336 | E60: -598.2836286 | F60: -590.4131117 | G60: -610.7256122
A61: =HLOOKUP(INDICE!$F$2,Nombres!$C$3:$E$853,47) -> Personnel expenses | B61: -262.2806686 | C61: -268.189463 | D61: -273.7056846 | E61: -262.8993633 | F61: -286.8414134 | G61: -293.3305522
A62: =HLOOKUP(INDICE!$F$2,Nombres!$C$3:$E$853,48) -> General and administrative expenses | B62: -300.3527707 | C62: -304.8065454 | D62: -313.283149 | E62: -335.3842653 | F62: -303.5716983 | G62: -317.39506
A63: =HLOOKUP(INDICE!$F$2,Nombres!$C$3:$E$853,49) -> Depreciation and amortization | B63: -46.79487138 | C63: -46.68873913 | D63: -49.10977435 | E63: -53.23743918 | F63: -54.12228279 | G63: -53.93408527
A64: =HLOOKUP(INDICE!$F$2,Nombres!$C$3:$E$853,50) -> Operating income | B64: 1040.596234 | C64: 1066.999647 | D64: 1059.464106 | E64: 1136.960822 | F64: 1101.190241 | G64: 1147.284627
A65: =HLOOKUP(INDICE!$F$2,Nombres!$C$3:$E$853,51) -> Impairment on financial assets (net) | B65: -381.6474744 | C65: -417.2411122 | D65: -408.102731 | E65: -379.7880214 | F65: -420.4408023 | G65: -431.1895887
A66: =HLOOKUP(INDICE!$F$2,Nombres!$C$3:$E$853,160) -> Provisions (net) and other gains/losses | B66: -17.27451826 | C66: -26.99460476 | D66: -45.575697 | E66: 7.511362241 | F66: 10.33891284 | G66: -26.83555026
A67: =HLOOKUP(INDICE!$F$2,Nombres!$C$3:$E$853,54) -> Income before tax | B67: 641.6742417 | C67: 622.7639306 | D67: 605.7856777 | E67: 764.684163 | F67: 691.0883511 | G67: 689.2594882
A68: =HLOOKUP(INDICE!$F$2,Nombres!$C$3:$E$853,55) -> Income tax | B68: -154.3249349 | C68: -151.3258818 | D68: -144.4764241 | E68: -181.1396331 | F68: -169.010808 | G68: -169.623845
A69: =HLOOKUP(INDICE!$F$2,Nombres!$C$3:$E$853,56) -> Net income | B69: 487.3493068 | C69: 471.4380488 | D69: 461.3092536 | E69: 583.5445299 | F69: 522.0775431 | G69: 519.6356431
A70: =HLOOKUP(INDICE!$F$2,Nombres!$C$3:$E$853,57) -> Non-controlling interests | B70: -0.1556940063 | C70: -0.1455940885 | D70: -0.1429358535 | E70: -0.1790865354 | F70: -0.1634453026 | G70: -0.1635546974
A71: =HLOOKUP(INDICE!$F$2,Nombres!$C$3:$E$853,58) -> Net attributable profit | B71: 487.1936127 | C71: 471.2924547 | D71: 461.1663178 | E71: 583.3654434 | F71: 521.9140978 | G71: 519.4720884
A73: =HLOOKUP(INDICE!$F$2,Nombres!$C$3:$E$853,94) -> Balance sheet
A74: =HLOOKUP(INDICE!$F$2,Nombres!$C$3:$E$853,31) -> (Constant million euros)
B75: 2014-03-31 | C75: 2014-06-30 | D75: 2014-09-30 | E75: 2014-12-31 | F75: 2015-03-31 | G75: 2015-06-30
A76: =HLOOKUP(INDICE!$F$2,Nombres!$C$3:$E$853,100) -> Cash and balances with central banks | B76: 5444.313398 | C76: 4487.86302 | D76: 4739.339531 | E76: 6118.858485 | F76: 5959.86274 | G76: 5326.455651
A77: =HLOOKUP(INDICE!$F$2,Nombres!$C$3:$E$853,101) -> Financial assets | B77: 33395.31834 | C77: 35226.60844 | D77: 36731.62277 | E77: 34966.67676 | F77: 35689.91014 | G77: 35355.60934
A78: =HLOOKUP(INDICE!$F$2,Nombres!$C$3:$E$853,102) -> Loans and receivables | B78: 43845.19451 | C78: 44391.10991 | D78: 44671.78586 | E78: 48713.10001 | F78: 48663.81856 | G78: 50340.0929
A79: =HLOOKUP(INDICE!$F$2,Nombres!$C$3:$E$853,103) -> . Loans and advances to customers | B79: 41490.42505 | C79: 41928.21857 | D79: 43499.28862 | E79: 46087.5263 | F79: 47076.50991 | G79: 48006.04003
A80: =HLOOKUP(INDICE!$F$2,Nombres!$C$3:$E$853,104) -> . Loans and advances to credit institutions and other | B80: 2354.769454 | C80: 2462.891343 | D80: 1172.497247 | E80: 2625.573709 | F80: 1587.308653 | G80: 2334.052872
A81: =HLOOKUP(INDICE!$F$2,Nombres!$C$3:$E$853,106) -> Tangible assets | B81: 1369.694329 | C81: 1425.254731 | D81: 1518.492668 | E81: 1693.869275 | F81: 1787.49849 | G81: 1898.728077
A82: =HLOOKUP(INDICE!$F$2,Nombres!$C$3:$E$853,107) -> Other assets | B82: 3783.024149 | C82: 3852.032459 | D82: 3288.409152 | E82: 4028.405688 | F82: 4242.419389 | G82: 3934.568747
A83: =HLOOKUP(INDICE!$F$2,Nombres!$C$3:$E$853,108) -> Total assets / Liabilities and equity | B83: 87837.54473 | C83: 89382.86856 | D83: 90949.64999 | E83: 95520.91022 | F83: 96343.50932 | G83: 96855.45472
A84: =HLOOKUP(INDICE!$F$2,Nombres!$C$3:$E$853,109) -> Deposits from central banks and credit institutions | B84: 9623.580789 | C84: 8705.235924 | D84: 11063.16581 | E84: 11838.96692 | F84: 8703.092882 | G84: 8851.017086
A85: =HLOOKUP(INDICE!$F$2,Nombres!$C$3:$E$853,110) -> Deposits from customers | B85: 45560.16604 | C85: 46500.76022 | D85: 46858.64658 | E85: 46814.87111 | F85: 47995.88922 | G85: 50497.32784
A86: =HLOOKUP(INDICE!$F$2,Nombres!$C$3:$E$853,111) -> Debt certificates | B86: 3989.44156 | C86: 4389.895798 | D86: 4446.83953 | E86: 5128.700606 | F86: 5828.464485 | G86: 5447.756
A87: =HLOOKUP(INDICE!$F$2,Nombres!$C$3:$E$853,112) -> Subordinated liabilities | B87: 3738.191648 | C87: 3809.024357 | D87: 3599.64811 | E87: 4206.973793 | F87: 4410.68218 | G87: 4465.656
A88: =HLOOKUP(INDICE!$F$2,Nombres!$C$3:$E$853,114) -> Financial liabilities held for trading | B88: 7079.720335 | C88: 7365.617975 | D88: 6616.449728 | E88: 7761.437673 | F88: 7403.221356 | G88: 7251.939
A89: =HLOOKUP(INDICE!$F$2,Nombres!$C$3:$E$853,115) -> Other liabilities | B89: 13158.8035 | C89: 13766.69202 | D89: 13600.40198 | E89: 14696.17281 | F89: 17254.23849 | G89: 15091.78614
A90: =HLOOKUP(INDICE!$F$2,Nombres!$C$3:$E$853,116) -> Economic capital allocated | B90: 4687.640852 | C90: 4845.642268 | D90: 4764.498252 | E90: 5073.787304 | F90: 4747.920715 | G90: 5249.97266
A91: =HLOOKUP(INDICE!$F$2,Nombres!$C$3:$E$853,117) -> Relevant business indicators
A92: =HLOOKUP(INDICE!$F$2,Nombres!$C$3:$E$853,201) -> Annex:
A93: =HLOOKUP(INDICE!$F$2,Nombres!$C$3:$E$853,31) -> (Constant million euros)
B94: 2014-03-31 | C94: 2014-06-30 | D94: 2014-09-30 | E94: 2014-12-31 | F94: 2015-03-31 | G94: 2015-06-30
A95: =HLOOKUP(INDICE!$F$2,Nombres!$C$3:$E$853,118) -> Loans and advances to customers gross | B95: 43141.91224 | C95: 43597.90124 | D95: 45160.34256 | E95: 47692.07772 | F95: 48690.09561 | G95: 49626.61587
A96: =HLOOKUP(INDICE!$F$2,Nombres!$C$3:$E$853,121) -> Customer deposits under management (*) | B96: 42446.33 | C96: 44356.75091 | D96: 44814.67359 | E96: 45285.93014 | F96: 47324.99088 | G96: 47325.99247
A97: =HLOOKUP(INDICE!$F$2,Nombres!$C$3:$E$853,122) -> Mutual funds | B97: 17663.39729 | C97: 18550.0634 | D97: 19415.79766 | E97: 19048.03598 | F97: 19586.60597 | G97: 20260.31594
A98: =HLOOKUP(INDICE!$F$2,Nombres!$C$3:$E$853,206) -> Pension funds | B98: 0 | C98: 0 | D98: 0 | E98: 0 | F98: 0 | G98: 0
A99: =HLOOKUP(INDICE!$F$2,Nombres!$C$3:$E$853,287) -> (*) Including all the repos.

Sheet América del sur
A1: =HLOOKUP(INDICE!$F$2,Nombres!$C$3:$E$853,12) -> South America
A2: =HLOOKUP(INDICE!$F$2,Nombres!$C$3:$E$853,93) -> Income statement
A3: =HLOOKUP(INDICE!$F$2,Nombres!$C$3:$E$853,30) -> (Million euros)
B4: 2014 | F4: 2015
B5: =HLOOKUP(INDICE!$F$2,Nombres!$C$3:$E$857,34) -> 1st Quarter | C5: =HLOOKUP(INDICE!$F$2,Nombres!$C$3:$E$857,35) -> 2nd Quarter | D5: =HLOOKUP(INDICE!$F$2,Nombres!$C$3:$E$857,36) -> 3rd Quarter | E5: =HLOOKUP(INDICE!$F$2,Nombres!$C$3:$E$857,37) -> 4th Quarter | F5: =HLOOKUP(INDICE!$F$2,Nombres!$C$3:$E$857,34) -> 1st Quarter | G5: =HLOOKUP(INDICE!$F$2,Nombres!$C$3:$E$857,35) -> 2nd Quarter
A6: =HLOOKUP(INDICE!$F$2,Nombres!$C$3:$E$853,38) -> Net interest income | B6: 933.7473852 | C6: 1126.844122 | D6: 1203.597369 | E6: 1434.315563 | F6: 801.9629613 | G6: 850.3756938
A7: =HLOOKUP(INDICE!$F$2,Nombres!$C$3:$E$853,39) -> Net fees and commissions | B7: 172.7703958 | C7: 218.3140131 | D7: 238.7710784 | E7: 271.4634489 | F7: 174.3240059 | G7: 185.786976
A8: =HLOOKUP(INDICE!$F$2,Nombres!$C$3:$E$853,40) -> Net trading income | B8: 152.3999979 | C8: 93.26866074 | D8: 133.0171826 | E8: 103.3682724 | F8: 180.1484368 | G8: 126.06113
A9: =HLOOKUP(INDICE!$F$2,Nombres!$C$3:$E$853,95) -> Other income/expenses | B9: -98.89600164 | C9: -236.4529995 | D9: -221.028002 | E9: -334.0409999 | F9: 2.49600089 | G9: -24.5340024
A10: =HLOOKUP(INDICE!$F$2,Nombres!$C$3:$E$853,44) -> Gross income | B10: 1160.021777 | C10: 1201.973797 | D10: 1354.357628 | E10: 1475.106285 | F10: 1158.931405 | G10: 1137.689797
A11: =HLOOKUP(INDICE!$F$2,Nombres!$C$3:$E$853,45) -> Operating expenses | B11: -495.3728252 | C11: -549.9570024 | D11: -587.7862113 | E11: -683.2375322 | F11: -503.8081379 | G11: -510.1687588
A12: =HLOOKUP(INDICE!$F$2,Nombres!$C$3:$E$853,46) -> Administration expenses | B12: -461.4009008 | C12: -510.9744881 | D12: -544.5771442 | E12: -619.9288235 | F12: -476.9594802 | G12: -483.9752984
A13: =HLOOKUP(INDICE!$F$2,Nombres!$C$3:$E$853,47) -> Personnel expenses | B13: -246.4732608 | C13: -269.9781059 | D13: -275.9158312 | E13: -306.575348 | F13: -266.2898681 | G13: -260.4603969
A14: =HLOOKUP(INDICE!$F$2,Nombres!$C$3:$E$853,48) -> General and administrative expenses | B14: -214.9276401 | C14: -240.9963822 | D14: -268.661313 | E14: -313.3534755 | F14: -210.669612 | G14: -223.5149015
A15: =HLOOKUP(INDICE!$F$2,Nombres!$C$3:$E$853,49) -> Depreciation and amortization | B15: -33.97192443 | C15: -38.98251427 | D15: -43.20906711 | E15: -63.30870867 | F15: -26.84865771 | G15: -26.19346037
A16: =HLOOKUP(INDICE!$F$2,Nombres!$C$3:$E$853,50) -> Operating income | B16: 664.6489521 | C16: 652.0167942 | D16: 766.5714171 | E16: 791.8687526 | F16: 655.123267 | G16: 627.5210386
A17: =HLOOKUP(INDICE!$F$2,Nombres!$C$3:$E$853,51) -> Impairment on financial assets (net) | B17: -136.5079997 | C17: -169.5880005 | D17: -199.1289985 | E17: -200.7790023 | F17: -136.6870008 | G17: -173.2619997
A18: =HLOOKUP(INDICE!$F$2,Nombres!$C$3:$E$853,160) -> Provisions (net) and other gains/losses | B18: -26.66599962 | C18: -27.72499983 | D18: -50.47399993 | E18: -113.6509984 | F18: -50.3799998 | G18: 4.93699634
A19: =HLOOKUP(INDICE!$F$2,Nombres!$C$3:$E$853,54) -> Income before tax | B19: 501.4749527 | C19: 454.7037938 | D19: 516.9684186 | E19: 477.4387519 | F19: 468.0562664 | G19: 459.1960353
A20: =HLOOKUP(INDICE!$F$2,Nombres!$C$3:$E$853,55) -> Income tax | B20: -141.6462114 | C20: -122.174647 | D20: -111.9538376 | E20: -114.2124016 | F20: -144.6554203 | G20: -127.2542358
A21: =HLOOKUP(INDICE!$F$2,Nombres!$C$3:$E$853,56) -> Net income | B21: 359.8287413 | C21: 332.5291468 | D21: 405.014581 | E21: 363.2263503 | F21: 323.4008461 | G21: 331.9417994
A22: =HLOOKUP(INDICE!$F$2,Nombres!$C$3:$E$853,57) -> Non-controlling interests | B22: -116.6888536 | C22: -94.86830845 | D22: -132.2998007 | E22: -115.8040809 | F22: -96.09641125 | G22: -84.86137456
A23: =HLOOKUP(INDICE!$F$2,Nombres!$C$3:$E$853,58) -> Net attributable profit | B23: 243.1398877 | C23: 237.6608384 | D23: 272.7147804 | E23: 247.4222694 | F23: 227.3044348 | G23: 247.0804249
A24: =HLOOKUP(INDICE!$F$2,Nombres!$C$3:$E$853,94) -> Balance sheet
A25: =HLOOKUP(INDICE!$F$2,Nombres!$C$3:$E$853,30) -> (Million euros)
B26: 2014-03-31 | C26: 2014-06-30 | D26: 2014-09-30 | E26: 2014-12-31 | F26: 2015-03-31 | G26: 2015-06-30
A27: =HLOOKUP(INDICE!$F$2,Nombres!$C$3:$E$853,100) -> Cash and balances with central banks | B27: 11076.497 | C27: 10643.932 | D27: 10717.743 | E27: 13522.715 | F27: 9786.429 | G27: 9722.472
A28: =HLOOKUP(INDICE!$F$2,Nombres!$C$3:$E$853,101) -> Financial assets | B28: 9292.06 | C28: 9185.822 | D28: 9905.383 | E28: 10670.65 | F28: 10527.879 | G28: 9736.497
A29: =HLOOKUP(INDICE!$F$2,Nombres!$C$3:$E$853,102) -> Loans and receivables | B29: 47225.19427 | C29: 50785.55671 | D29: 55067.1594 | E29: 57212.26748 | F29: 50427.16633 | G29: 49513.16508
A30: =HLOOKUP(INDICE!$F$2,Nombres!$C$3:$E$853,103) -> . Loans and advances to customers | B30: 42700.30927 | C30: 46134.53871 | D30: 49220.2234 | E30: 51302.48348 | F30: 45799.78033 | G30: 45018.34308
A31: =HLOOKUP(INDICE!$F$2,Nombres!$C$3:$E$853,104) -> . Loans and advances to credit institutions and other | B31: 4524.885 | C31: 4651.018 | D31: 5846.936 | E31: 5909.784 | F31: 4627.386 | G31: 4494.822
A32: =HLOOKUP(INDICE!$F$2,Nombres!$C$3:$E$853,106) -> Tangible assets | B32: 795.3 | C32: 857.424 | D32: 917.696 | E32: 1062.439 | F32: 808.264 | G32: 767.375
A33: =HLOOKUP(INDICE!$F$2,Nombres!$C$3:$E$853,107) -> Other assets | B33: 1578.947 | C33: 1562.272843 | D33: 2012.003 | E33: 1896.138 | F33: 1979.244 | G33: 1701.249
A34: =HLOOKUP(INDICE!$F$2,Nombres!$C$3:$E$853,108) -> Total assets / Liabilities and equity | B34: 69967.99827 | C34: 73035.00755 | D34: 78619.9844 | E34: 84364.20948 | F34: 73528.98233 | G34: 71440.75808
A35: =HLOOKUP(INDICE!$F$2,Nombres!$C$3:$E$853,109) -> Deposits from central banks and credit institutions | B35: 4416.92 | C35: 4360.607 | D35: 5178.313 | E35: 5770.162 | F35: 7074.617 | G35: 6407.348
A36: =HLOOKUP(INDICE!$F$2,Nombres!$C$3:$E$853,110) -> Deposits from customers | B36: 48058.462 | C36: 50342.774 | D36: 52096.069 | E36: 56369.898 | F36: 44055.208 | G36: 43337.52
A37: =HLOOKUP(INDICE!$F$2,Nombres!$C$3:$E$853,111) -> Debt certificates | B37: 3783.181 | C37: 4266.398 | D37: 4656.833 | E37: 4676.737 | F37: 5314.727 | G37: 5119.176
A38: =HLOOKUP(INDICE!$F$2,Nombres!$C$3:$E$853,112) -> Subordinated liabilities | B38: 1243.008339 | C38: 1262.393339 | D38: 1540.795338 | E38: 1658.236338 | F38: 1813.877 | G38: 2056.328
A39: =HLOOKUP(INDICE!$F$2,Nombres!$C$3:$E$853,114) -> Financial liabilities held for trading | B39: 1358.476 | C39: 1378.051 | D39: 2405.108 | E39: 2647.652 | F39: 3659.251 | G39: 3444.762
A40: =HLOOKUP(INDICE!$F$2,Nombres!$C$3:$E$853,115) -> Other liabilities | B40: 8201.243186 | C40: 8345.71378 | D40: 9548.778335 | E40: 9833.67354 | F40: 8967.631146 | G40: 8481.930586
A41: =HLOOKUP(INDICE!$F$2,Nombres!$C$3:$E$853,116) -> Economic capital allocated | B41: 2906.70774 | C41: 3079.07043 | D41: 3194.08773 | E41: 3407.850601 | F41: 2643.67118 | G41: 2593.69349
A42: =HLOOKUP(INDICE!$F$2,Nombres!$C$3:$E$853,117) -> Relevant business indicators
A43: =HLOOKUP(INDICE!$F$2,Nombres!$C$3:$E$853,201) -> Annex:
A44: =HLOOKUP(INDICE!$F$2,Nombres!$C$3:$E$853,30) -> (Million euros) | B44: 2014-03-31 | C44: 2014-06-30 | D44: 2014-09-30 | E44: 2014-12-31 | F44: 2015-03-31 | G44: 2015-06-30
A45: =HLOOKUP(INDICE!$F$2,Nombres!$C$3:$E$853,118) -> Loans and advances to customers gross | B45: 44076.77027 | C45: 47608.89971 | D45: 50805.3434 | E45: 52919.78448 | F45: 47212.30233 | G45: 46403.03308
A46: =HLOOKUP(INDICE!$F$2,Nombres!$C$3:$E$853,121) -> Customer deposits under management (*) | B46: 47944.21664 | C46: 49961.66284 | D46: 52078.03026 | E46: 56619.6187 | F46: 44234.56 | G46: 43284.36278
A47: =HLOOKUP(INDICE!$F$2,Nombres!$C$3:$E$853,122) -> Mutual funds | B47: 3219.782338 | C47: 3170.831649 | D47: 3734.88657 | E47: 3847.558435 | F47: 4399.809177 | G47: 4327.668392
A48: =HLOOKUP(INDICE!$F$2,Nombres!$C$3:$E$853,206) -> Pension funds | B48: 3656.447729 | C48: 3828.208599 | D48: 4285.031887 | E48: 4631.60694 | F48: 5410.975285 | G48: 5381.215325
A49: =HLOOKUP(INDICE!$F$2,Nombres!$C$3:$E$853,284) -> (*) Excluding repos and including specific marketable debt securities.
A50: =HLOOKUP(INDICE!$F$2,Nombres!$C$3:$E$853,93) -> Income statement
A51: =HLOOKUP(INDICE!$F$2,Nombres!$C$3:$E$853,31) -> (Constant million euros)
B52: 2014 | F52: 2015
B53: =HLOOKUP(INDICE!$F$2,Nombres!$C$3:$E$857,34) -> 1st Quarter | C53: =HLOOKUP(INDICE!$F$2,Nombres!$C$3:$E$857,35) -> 2nd Quarter | D53: =HLOOKUP(INDICE!$F$2,Nombres!$C$3:$E$857,36) -> 3rd Quarter | E53: =HLOOKUP(INDICE!$F$2,Nombres!$C$3:$E$857,37) -> 4th Quarter | F53: =HLOOKUP(INDICE!$F$2,Nombres!$C$3:$E$857,34) -> 1st Quarter | G53: =HLOOKUP(INDICE!$F$2,Nombres!$C$3:$E$857,35) -> 2nd Quarter
A54: =HLOOKUP(INDICE!$F$2,Nombres!$C$3:$E$853,38) -> Net interest income | B54: 699.8172969 | C54: 749.7170524 | D54: 759.1635594 | E54: 839.5586422 | F54: 798.9024534 | G54: 853.4362016
A55: =HLOOKUP(INDICE!$F$2,Nombres!$C$3:$E$853,39) -> Net fees and commissions | B55: 148.4261268 | C55: 168.6862347 | D55: 172.1054953 | E55: 173.0463802 | F55: 173.5318687 | G55: 186.5791132
A56: =HLOOKUP(INDICE!$F$2,Nombres!$C$3:$E$853,40) -> Net trading income | B56: 92.31107209 | C56: 90.21972125 | D56: 123.4830619 | E56: 98.34233312 | F56: 175.9257637 | G56: 130.2838031
A57: =HLOOKUP(INDICE!$F$2,Nombres!$C$3:$E$853,95) -> Other income/expenses | B57: 11.40337791 | C57: 9.070072006 | D57: 8.696667422 | E57: -4.694204821 | F57: 3.943112986 | G57: -25.9811145
A58: =HLOOKUP(INDICE!$F$2,Nombres!$C$3:$E$853,44) -> Gross income | B58: 951.9578737 | C58: 1017.69308 | D58: 1063.448784 | E58: 1106.253151 | F58: 1152.303199 | G58: 1144.318004
A59: =HLOOKUP(INDICE!$F$2,Nombres!$C$3:$E$853,45) -> Operating expenses | B59: -433.1713904 | C59: -448.7908598 | D59: -462.1986484 | E59: -480.5066595 | F59: -502.273803 | G59: -511.7030937
A60: =HLOOKUP(INDICE!$F$2,Nombres!$C$3:$E$853,46) -> Administration expenses | B60: -408.6180694 | C60: -424.8518823 | D60: -436.4665618 | E60: -457.6669394 | F60: -475.6178235 | G60: -485.3169551
A61: =HLOOKUP(INDICE!$F$2,Nombres!$C$3:$E$853,47) -> Personnel expenses | B61: -225.9399241 | C61: -234.9436039 | D61: -234.2896941 | E61: -241.4754362 | F61: -265.4918594 | G61: -261.2584057
A62: =HLOOKUP(INDICE!$F$2,Nombres!$C$3:$E$853,48) -> General and administrative expenses | B62: -182.6781453 | C62: -189.9082785 | D62: -202.1768677 | E62: -216.1915032 | F62: -210.1259641 | G62: -224.0585494
A63: =HLOOKUP(INDICE!$F$2,Nombres!$C$3:$E$853,49) -> Depreciation and amortization | B63: -24.55332101 | C63: -23.93897746 | D63: -25.73208663 | E63: -22.83972007 | F63: -26.65597953 | G63: -26.38613855
A64: =HLOOKUP(INDICE!$F$2,Nombres!$C$3:$E$853,50) -> Operating income | B64: 518.7864833 | C64: 568.9022206 | D64: 601.2501356 | E64: 625.7464913 | F64: 650.0293958 | G64: 632.6149099
A65: =HLOOKUP(INDICE!$F$2,Nombres!$C$3:$E$853,51) -> Impairment on financial assets (net) | B65: -124.0054774 | C65: -128.8951933 | D65: -138.5650464 | E65: -122.6452557 | F65: -136.7596676 | G65: -173.1893329
A66: =HLOOKUP(INDICE!$F$2,Nombres!$C$3:$E$853,160) -> Provisions (net) and other gains/losses | B66: -11.94723563 | C66: -10.91412555 | D66: -28.23065975 | E66: -80.16025942 | F66: -48.60125261 | G66: 3.15824915
A67: =HLOOKUP(INDICE!$F$2,Nombres!$C$3:$E$853,54) -> Income before tax | B67: 382.8337702 | C67: 429.0929017 | D67: 434.4544294 | E67: 422.9409762 | F67: 464.6684756 | G67: 462.5838261
A68: =HLOOKUP(INDICE!$F$2,Nombres!$C$3:$E$853,55) -> Income tax | B68: -101.2225886 | C68: -105.6108542 | D68: -93.75120413 | E68: -113.3556588 | F68: -143.1821356 | G68: -128.7275206
A69: =HLOOKUP(INDICE!$F$2,Nombres!$C$3:$E$853,56) -> Net income | B69: 281.6111816 | C69: 323.4820475 | D69: 340.7032253 | E69: 309.5853173 | F69: 321.48634 | G69: 333.8563055
A70: =HLOOKUP(INDICE!$F$2,Nombres!$C$3:$E$853,57) -> Non-controlling interests | B70: -80.78166903 | C70: -90.20639365 | D70: -103.6335827 | E70: -90.9444271 | F70: -95.27577708 | G70: -85.68200873
A71: =HLOOKUP(INDICE!$F$2,Nombres!$C$3:$E$853,58) -> Net attributable profit | B71: 200.8295126 | C71: 233.2756539 | D71: 237.0696426 | E71: 218.6408902 | F71: 226.2105629 | G71: 248.1742968
A73: =HLOOKUP(INDICE!$F$2,Nombres!$C$3:$E$853,94) -> Balance sheet
A74: =HLOOKUP(INDICE!$F$2,Nombres!$C$3:$E$853,31) -> (Constant million euros)
B75: 2014-03-31 | C75: 2014-06-30 | D75: 2014-09-30 | E75: 2014-12-31 | F75: 2015-03-31 | G75: 2015-06-30
A76: =HLOOKUP(INDICE!$F$2,Nombres!$C$3:$E$853,100) -> Cash and balances with central banks | B76: 7148.102896 | C76: 6682.313216 | D76: 7308.423094 | E76: 8236.151578 | F76: 9181.961473 | G76: 9722.472
A77: =HLOOKUP(INDICE!$F$2,Nombres!$C$3:$E$853,101) -> Financial assets | B77: 7741.002647 | C77: 7523.735553 | D77: 8289.694016 | E77: 9184.928381 | F77: 10035.40346 | G77: 9736.497
A78: =HLOOKUP(INDICE!$F$2,Nombres!$C$3:$E$853,102) -> Loans and receivables | B78: 41087.50573 | C78: 42592.7692 | D78: 44345.39737 | E78: 45225.8978 | F78: 47579.49851 | G78: 49513.16508
A79: =HLOOKUP(INDICE!$F$2,Nombres!$C$3:$E$853,103) -> . Loans and advances to customers | B79: 37967.11809 | C79: 39566.60707 | D79: 40820.50867 | E79: 42167.11562 | F79: 43220.5471 | G79: 45018.34308
A80: =HLOOKUP(INDICE!$F$2,Nombres!$C$3:$E$853,104) -> . Loans and advances to credit institutions and other | B80: 3120.387643 | C80: 3026.162131 | D80: 3524.888709 | E80: 3058.782181 | F80: 4358.951417 | G80: 4494.822
A81: =HLOOKUP(INDICE!$F$2,Nombres!$C$3:$E$853,106) -> Tangible assets | B81: 628.4714057 | C81: 643.4630259 | D81: 668.3990121 | E81: 724.4766201 | F81: 759.8996267 | G81: 767.375
A82: =HLOOKUP(INDICE!$F$2,Nombres!$C$3:$E$853,107) -> Other assets | B82: 1454.152389 | C82: 1377.328938 | D82: 1758.585344 | E82: 1544.410421 | F82: 1870.316283 | G82: 1701.249
A83: =HLOOKUP(INDICE!$F$2,Nombres!$C$3:$E$853,108) -> Total assets / Liabilities and equity | B83: 58059.23507 | C83: 58819.60993 | D83: 62370.49884 | E83: 64915.8648 | F83: 69427.07936 | G83: 71440.75808
A84: =HLOOKUP(INDICE!$F$2,Nombres!$C$3:$E$853,109) -> Deposits from central banks and credit institutions | B84: 4577.077462 | C84: 4469.187911 | D84: 5150.106067 | E84: 5535.160468 | F84: 6674.548877 | G84: 6407.348
A85: =HLOOKUP(INDICE!$F$2,Nombres!$C$3:$E$853,110) -> Deposits from customers | B85: 37375.62384 | C85: 37782.24001 | D85: 38060.01041 | E85: 39809.64115 | F85: 41515.70392 | G85: 43337.52
A86: =HLOOKUP(INDICE!$F$2,Nombres!$C$3:$E$853,111) -> Debt certificates | B86: 4042.612136 | C86: 4497.798801 | D86: 4841.422518 | E86: 4804.509538 | F86: 5018.537416 | G86: 5119.176
A87: =HLOOKUP(INDICE!$F$2,Nombres!$C$3:$E$853,112) -> Subordinated liabilities | B87: 1290.888087 | C87: 1284.098907 | D87: 1552.931332 | E87: 1683.657761 | F87: 1714.243565 | G87: 2056.328
A88: =HLOOKUP(INDICE!$F$2,Nombres!$C$3:$E$853,114) -> Financial liabilities held for trading | B88: 1439.417962 | C88: 1438.790911 | D88: 2458.887405 | E88: 2721.07099 | F88: 3481.64717 | G88: 3444.762
A89: =HLOOKUP(INDICE!$F$2,Nombres!$C$3:$E$853,115) -> Other liabilities | B89: 7056.470585 | C89: 7031.294448 | D89: 8004.600224 | E89: 7933.098113 | F89: 8526.709827 | G89: 8481.930586
A90: =HLOOKUP(INDICE!$F$2,Nombres!$C$3:$E$853,116) -> Economic capital allocated | B90: 2277.145006 | C90: 2316.19894 | D90: 2302.540888 | E90: 2428.726784 | F90: 2495.688582 | G90: 2593.69349
A91: =HLOOKUP(INDICE!$F$2,Nombres!$C$3:$E$853,117) -> Relevant business indicators
A92: =HLOOKUP(INDICE!$F$2,Nombres!$C$3:$E$853,201) -> Annex:
A93: =HLOOKUP(INDICE!$F$2,Nombres!$C$3:$E$853,31) -> (Constant million euros)
B94: 2014-03-31 | C94: 2014-06-30 | D94: 2014-09-30 | E94: 2014-12-31 | F94: 2015-03-31 | G94: 2015-06-30
A95: =HLOOKUP(INDICE!$F$2,Nombres!$C$3:$E$853,118) -> Loans and advances to customers gross | B95: 39185.32047 | C95: 40812.37173 | D95: 42110.21738 | E95: 43453.35311 | F95: 44552.81868 | G95: 46403.03308
A96: =HLOOKUP(INDICE!$F$2,Nombres!$C$3:$E$853,121) -> Customer deposits under management (*) | B96: 37364.48927 | C96: 37504.19037 | D96: 38173.6145 | E96: 40077.17996 | F96: 41693.09412 | G96: 43284.36278
A97: =HLOOKUP(INDICE!$F$2,Nombres!$C$3:$E$853,122) -> Mutual funds | B97: 3367.818183 | C97: 3260.674025 | D97: 3775.051631 | E97: 3926.545587 | F97: 4155.308907 | G97: 4327.668392
A98: =HLOOKUP(INDICE!$F$2,Nombres!$C$3:$E$853,206) -> Pension funds | B98: 4505.771709 | C98: 4672.952226 | D98: 4818.858538 | E98: 5025.649843 | F98: 5202.998553 | G98: 5381.215325
A99: =HLOOKUP(INDICE!$F$2,Nombres!$C$3:$E$853,284) -> (*) Excluding repos and including specific marketable debt securities.

Sheet Argentina
A1: =HLOOKUP(INDICE!$F$2,Nombres!$C$3:$E$853,15) -> Argentina
A2: =HLOOKUP(INDICE!$F$2,Nombres!$C$3:$E$853,93) -> Income statement
A3: =HLOOKUP(INDICE!$F$2,Nombres!$C$3:$E$853,30) -> (Million euros)
B4: 2014 | F4: 2015
B5: =HLOOKUP(INDICE!$F$2,Nombres!$C$3:$E$857,34) -> 1st Quarter | C5: =HLOOKUP(INDICE!$F$2,Nombres!$C$3:$E$857,35) -> 2nd Quarter | D5: =HLOOKUP(INDICE!$F$2,Nombres!$C$3:$E$857,36) -> 3rd Quarter | E5: =HLOOKUP(INDICE!$F$2,Nombres!$C$3:$E$857,37) -> 4th Quarter | F5: =HLOOKUP(INDICE!$F$2,Nombres!$C$3:$E$857,34) -> 1st Quarter | G5: =HLOOKUP(INDICE!$F$2,Nombres!$C$3:$E$857,35) -> 2nd Quarter
A6: =HLOOKUP(INDICE!$F$2,Nombres!$C$3:$E$853,38) -> Net interest income | B6: 125.4440002 | C6: 137.8175678 | D6: 160.0080314 | E6: 183.9769401 | F6: 202.794 | G6: 212.6790004
A7: =HLOOKUP(INDICE!$F$2,Nombres!$C$3:$E$853,39) -> Net fees and commissions | B7: 43.56699942 | C7: 47.40847751 | D7: 49.11245555 | E7: 43.62346733 | F7: 59.14799849 | G7: 62.21000255
A8: =HLOOKUP(INDICE!$F$2,Nombres!$C$3:$E$853,40) -> Net trading income | B8: 22.36300065 | C8: 30.6439988 | D8: 35.50000124 | E8: 35.61499952 | F8: 26.49600056 | G8: 20.15499862
A9: =HLOOKUP(INDICE!$F$2,Nombres!$C$3:$E$853,95) -> Other income/expenses | B9: 17.174999 | C9: 19.93800144 | D9: 23.61799974 | E9: 21.06999936 | F9: 20.01699962 | G9: 20.26200233
A10: =HLOOKUP(INDICE!$F$2,Nombres!$C$3:$E$853,44) -> Gross income | B10: 208.5489992 | C10: 235.8080456 | D10: 268.2384879 | E10: 284.2854063 | F10: 308.4549987 | G10: 315.3060039
A11: =HLOOKUP(INDICE!$F$2,Nombres!$C$3:$E$853,45) -> Operating expenses | B11: -109.9014515 | C11: -117.7284392 | D11: -116.0304402 | E11: -129.8724457 | F11: -159.7565281 | G11: -161.466528
A12: =HLOOKUP(INDICE!$F$2,Nombres!$C$3:$E$853,46) -> Administration expenses | B12: -106.0954521 | C12: -114.0054399 | D12: -111.9134396 | E12: -125.0314445 | F12: -154.2055281 | G12: -154.6295294
A13: =HLOOKUP(INDICE!$F$2,Nombres!$C$3:$E$853,47) -> Personnel expenses | B13: -57.54000026 | C13: -64.29500069 | D13: -57.86699769 | E13: -68.28200107 | F13: -89.47300036 | G13: -84.58600033
A14: =HLOOKUP(INDICE!$F$2,Nombres!$C$3:$E$853,48) -> General and administrative expenses | B14: -48.55545185 | C14: -49.71043924 | D14: -54.04644195 | E14: -56.74944345 | F14: -64.73252773 | G14: -70.04352904
A15: =HLOOKUP(INDICE!$F$2,Nombres!$C$3:$E$853,49) -> Depreciation and amortization | B15: -3.80599941 | C15: -3.72299926 | D15: -4.11700058 | E15: -4.8410012 | F15: -5.55100003 | G15: -6.83699859
A16: =HLOOKUP(INDICE!$F$2,Nombres!$C$3:$E$853,50) -> Operating income | B16: 98.6475477 | C16: 118.0796064 | D16: 152.2080477 | E16: 154.4129606 | F16: 148.6984706 | G16: 153.839476
A17: =HLOOKUP(INDICE!$F$2,Nombres!$C$3:$E$853,51) -> Impairment on financial assets (net) | B17: -10.18799983 | C17: -14.06300011 | D17: -15.70300029 | E17: -12.84400014 | F17: -15.01099979 | G17: -21.68300025
A18: =HLOOKUP(INDICE!$F$2,Nombres!$C$3:$E$853,160) -> Provisions (net) and other gains/losses | B18: -7.02699942 | C18: -7.30899974 | D18: -28.86700099 | E18: -8.93599978 | F18: -14.5540013 | G18: -8.67599968
A19: =HLOOKUP(INDICE!$F$2,Nombres!$C$3:$E$853,54) -> Income before tax | B19: 81.43254845 | C19: 96.70760653 | D19: 107.6380464 | E19: 132.6329607 | F19: 119.1334695 | G19: 123.480476
A20: =HLOOKUP(INDICE!$F$2,Nombres!$C$3:$E$853,55) -> Income tax | B20: -25.47254186 | C20: -31.1199123 | D20: -35.41949161 | E20: -44.27534436 | F20: -40.92516581 | G20: -41.02846562
A21: =HLOOKUP(INDICE!$F$2,Nombres!$C$3:$E$853,56) -> Net income | B21: 55.96000659 | C21: 65.58769423 | D21: 72.2185548 | E21: 88.3576163 | F21: 78.20830367 | G21: 82.45201043
A22: =HLOOKUP(INDICE!$F$2,Nombres!$C$3:$E$853,57) -> Non-controlling interests | B22: -13.06063529 | C22: -15.07024974 | D22: -17.16634867 | E22: -20.1620043 | F22: -17.969984 | G22: -19.01141201
A23: =HLOOKUP(INDICE!$F$2,Nombres!$C$3:$E$853,58) -> Net attributable profit | B23: 42.8993713 | C23: 50.51744449 | D23: 55.05220613 | E23: 68.195612 | F23: 60.23831967 | G23: 63.44059842
A24: =HLOOKUP(INDICE!$F$2,Nombres!$C$3:$E$853,94) -> Balance sheet
A25: =HLOOKUP(INDICE!$F$2,Nombres!$C$3:$E$853,30) -> (Million euros)
B26: 2014-03-31 | C26: 2014-06-30 | D26: 2014-09-30 | E26: 2014-12-31 | F26: 2015-03-31 | G26: 2015-06-30
A27: =HLOOKUP(INDICE!$F$2,Nombres!$C$3:$E$853,100) -> Cash and balances with central banks | B27: 1148.788 | C27: 1210.155 | D27: 1328.968 | E27: 1266.113 | F27: 1376.024 | G27: 1266.161
A28: =HLOOKUP(INDICE!$F$2,Nombres!$C$3:$E$853,101) -> Financial assets | B28: 547.117 | C28: 712.943 | D28: 681.475 | E28: 1022.58 | F28: 1325.084 | G28: 1385.919
A29: =HLOOKUP(INDICE!$F$2,Nombres!$C$3:$E$853,102) -> Loans and receivables | B29: 3581.128 | C29: 3673.485 | D29: 4145.847 | E29: 4345.237 | F29: 5125.791 | G29: 5214.848
A30: =HLOOKUP(INDICE!$F$2,Nombres!$C$3:$E$853,103) -> . Loans and advances to customers | B30: 3140.577 | C30: 3268.701 | D30: 3691.232 | E30: 3905.882 | F30: 4474.226 | G30: 4584.356
A31: =HLOOKUP(INDICE!$F$2,Nombres!$C$3:$E$853,104) -> . Loans and advances to credit institutions and other | B31: 440.551 | C31: 404.784 | D31: 454.615 | E31: 439.355 | F31: 651.565 | G31: 630.492
A32: =HLOOKUP(INDICE!$F$2,Nombres!$C$3:$E$853,106) -> Tangible assets | B32: 134.729 | C32: 148.254 | D32: 173.664 | E32: 201.264 | F32: 231.904 | G32: 231.455
A33: =HLOOKUP(INDICE!$F$2,Nombres!$C$3:$E$853,107) -> Other assets | B33: 162.472 | C33: 170.084 | D33: 177.751 | E33: 184.2736346 | F33: 185.896 | G33: 201.861
A34: =HLOOKUP(INDICE!$F$2,Nombres!$C$3:$E$853,108) -> Total assets / Liabilities and equity | B34: 5574.234 | C34: 5914.921 | D34: 6507.705 | E34: 7019.467635 | F34: 8244.699 | G34: 8300.244
A35: =HLOOKUP(INDICE!$F$2,Nombres!$C$3:$E$853,109) -> Deposits from central banks and credit institutions | B35: 28.983 | C35: 54.372 | D35: 61.681 | E35: 58.29 | F35: 66.111 | G35: 183.211
A36: =HLOOKUP(INDICE!$F$2,Nombres!$C$3:$E$853,110) -> Deposits from customers | B36: 4060.956 | C36: 4318.116 | D36: 4660.49 | E36: 4945.303 | F36: 5829.348 | G36: 5895.029
A37: =HLOOKUP(INDICE!$F$2,Nombres!$C$3:$E$853,111) -> Debt certificates | B37: 95.031 | C37: 93.535 | D37: 137.264 | E37: 163.055 | F37: 179.746 | G37: 157.95
A38: =HLOOKUP(INDICE!$F$2,Nombres!$C$3:$E$853,112) -> Subordinated liabilities | B38: 0 | C38: 0 | D38: 0 | E38: 0 | F38: 0 | G38: 0
A39: =HLOOKUP(INDICE!$F$2,Nombres!$C$3:$E$853,114) -> Financial liabilities held for trading | B39: 5.573 | C39: 1.365 | D39: 0.362 | E39: 0.125 | F39: -0.868 | G39: 5.661
A40: =HLOOKUP(INDICE!$F$2,Nombres!$C$3:$E$853,115) -> Other liabilities | B40: 1073.3779 | C40: 1144.3026 | D40: 1338.636845 | E40: 1530.281501 | F40: 1732.00732 | G40: 1604.6202
A41: =HLOOKUP(INDICE!$F$2,Nombres!$C$3:$E$853,116) -> Economic capital allocated | B41: 310.3131 | C41: 303.2304 | D41: 309.2711553 | E41: 322.4131338 | F41: 438.35468 | G41: 453.7728
A42: =HLOOKUP(INDICE!$F$2,Nombres!$C$3:$E$853,117) -> Relevant business indicators
A43: =HLOOKUP(INDICE!$F$2,Nombres!$C$3:$E$853,201) -> Annex:
A44: =HLOOKUP(INDICE!$F$2,Nombres!$C$3:$E$853,30) -> (Million euros) | B44: 2014-03-31 | C44: 2014-06-30 | D44: 2014-09-30 | E44: 2014-12-31 | F44: 2015-03-31 | G44: 2015-06-30
A45: =HLOOKUP(INDICE!$F$2,Nombres!$C$3:$E$853,118) -> Loans and advances to customers gross | B45: 3247.855 | C45: 3383.959 | D45: 3819.933 | E45: 4045.551 | F45: 4629.087 | G45: 4740.81
A46: =HLOOKUP(INDICE!$F$2,Nombres!$C$3:$E$853,121) -> Customer deposits under management (*) | B46: 3987.812632 | C46: 4225.317523 | D46: 4541.482532 | E46: 4868.602258 | F46: 5729.420193 | G46: 5793.834433
A47: =HLOOKUP(INDICE!$F$2,Nombres!$C$3:$E$853,122) -> Mutual funds | B47: 281.1990197 | C47: 317.3404786 | D47: 506.8869296 | E47: 647.2363872 | F47: 819.0671402 | G47: 941.9783776
A48: =HLOOKUP(INDICE!$F$2,Nombres!$C$3:$E$853,206) -> Pension funds | B48: 0 | C48: 0 | D48: 0 | E48: 0 | F48: 0 | G48: 0
A49: =HLOOKUP(INDICE!$F$2,Nombres!$C$3:$E$853,284) -> (*) Excluding repos and including specific marketable debt securities.
A50: =HLOOKUP(INDICE!$F$2,Nombres!$C$3:$E$853,93) -> Income statement
A51: =HLOOKUP(INDICE!$F$2,Nombres!$C$3:$E$853,31) -> (Constant million euros)
B52: 2014 | F52: 2015
B53: =HLOOKUP(INDICE!$F$2,Nombres!$C$3:$E$857,34) -> 1st Quarter | C53: =HLOOKUP(INDICE!$F$2,Nombres!$C$3:$E$857,35) -> 2nd Quarter | D53: =HLOOKUP(INDICE!$F$2,Nombres!$C$3:$E$857,36) -> 3rd Quarter | E53: =HLOOKUP(INDICE!$F$2,Nombres!$C$3:$E$857,37) -> 4th Quarter | F53: =HLOOKUP(INDICE!$F$2,Nombres!$C$3:$E$857,34) -> 1st Quarter | G53: =HLOOKUP(INDICE!$F$2,Nombres!$C$3:$E$857,35) -> 2nd Quarter
A54: =HLOOKUP(INDICE!$F$2,Nombres!$C$3:$E$853,38) -> Net interest income | B54: 132.6558397 | C54: 154.3612833 | D54: 178.3583802 | E54: 199.5106778 | F54: 201.6674879 | G54: 213.8055126
A55: =HLOOKUP(INDICE!$F$2,Nombres!$C$3:$E$853,39) -> Net fees and commissions | B55: 46.07168844 | C55: 53.11301162 | D55: 54.8388636 | E55: 47.12566176 | F55: 58.81943385 | G55: 62.53856719
A56: =HLOOKUP(INDICE!$F$2,Nombres!$C$3:$E$853,40) -> Net trading income | B56: 23.64866097 | C56: 34.14145478 | D56: 39.52136151 | E56: 38.59214237 | F56: 26.34881639 | G56: 20.30218279
A57: =HLOOKUP(INDICE!$F$2,Nombres!$C$3:$E$853,95) -> Other income/expenses | B57: 18.16239845 | C57: 22.29951437 | D57: 26.31047011 | E57: 22.79314056 | F57: 19.90580603 | G57: 20.37319592
A58: =HLOOKUP(INDICE!$F$2,Nombres!$C$3:$E$853,44) -> Gross income | B58: 220.5385876 | C58: 263.9152641 | D58: 299.0290755 | E58: 308.0216225 | F58: 306.7415442 | G58: 317.0194585
A59: =HLOOKUP(INDICE!$F$2,Nombres!$C$3:$E$853,45) -> Operating expenses | B59: -116.219742 | C59: -131.9504594 | D59: -129.6766832 | E59: -140.6334674 | F59: -158.8690873 | G59: -162.3539687
A60: =HLOOKUP(INDICE!$F$2,Nombres!$C$3:$E$853,46) -> Administration expenses | B60: -112.1949338 | C60: -127.7668856 | D60: -125.0805483 | E60: -135.3860432 | F60: -153.3489229 | G60: -155.4861346
A61: =HLOOKUP(INDICE!$F$2,Nombres!$C$3:$E$853,47) -> Personnel expenses | B61: -60.84800423 | C61: -71.98084629 | D61: -64.74949715 | E61: -73.94421169 | F61: -88.97598161 | G61: -85.08301908
A62: =HLOOKUP(INDICE!$F$2,Nombres!$C$3:$E$853,48) -> General and administrative expenses | B62: -51.34692955 | C62: -55.78603928 | D62: -60.33105116 | E62: -61.44183153 | F62: -64.37294126 | G62: -70.40311551
A63: =HLOOKUP(INDICE!$F$2,Nombres!$C$3:$E$853,49) -> Depreciation and amortization | B63: -4.024808258 | C63: -4.183573826 | D63: -4.596134874 | E63: -5.24742415 | F63: -5.520164459 | G63: -6.867834161
A64: =HLOOKUP(INDICE!$F$2,Nombres!$C$3:$E$853,50) -> Operating income | B64: 104.3188455 | C64: 131.9648047 | D64: 169.3523923 | E64: 167.3881552 | F64: 147.8724568 | G64: 154.6654897
A65: =HLOOKUP(INDICE!$F$2,Nombres!$C$3:$E$853,51) -> Impairment on financial assets (net) | B65: -10.77371314 | C65: -15.66558937 | D65: -17.48923144 | E65: -13.88103524 | F65: -14.92761432 | G65: -21.76638572
A66: =HLOOKUP(INDICE!$F$2,Nombres!$C$3:$E$853,160) -> Provisions (net) and other gains/losses | B66: -7.430985201 | C66: -8.198630875 | D66: -31.87112097 | E66: -9.5872796 | F66: -14.47315444 | G66: -8.756846545
A67: =HLOOKUP(INDICE!$F$2,Nombres!$C$3:$E$853,54) -> Income before tax | B67: 86.1141472 | C67: 108.1005845 | D67: 119.9920399 | E67: 143.9198403 | F67: 118.4716881 | G67: 124.1422575
A68: =HLOOKUP(INDICE!$F$2,Nombres!$C$3:$E$853,55) -> Income tax | B68: -26.93697129 | C68: -34.76213468 | D68: -39.46598039 | E68: -48.0585485 | F68: -40.69782824 | G68: -41.25580319
A69: =HLOOKUP(INDICE!$F$2,Nombres!$C$3:$E$853,56) -> Net income | B69: 59.17717591 | C69: 73.33844979 | D69: 80.52605947 | E69: 95.86129183 | F69: 77.77385984 | G69: 82.88645426
A70: =HLOOKUP(INDICE!$F$2,Nombres!$C$3:$E$853,57) -> Non-controlling interests | B70: -13.81149788 | C70: -16.85779333 | D70: -19.13400902 | E70: -21.86930711 | F70: -17.8701615 | G70: -19.11123451
A71: =HLOOKUP(INDICE!$F$2,Nombres!$C$3:$E$853,58) -> Net attributable profit | B71: 45.36567804 | C71: 56.48065646 | D71: 61.39205045 | E71: 73.99198472 | F71: 59.90369834 | G71: 63.77521975
A73: =HLOOKUP(INDICE!$F$2,Nombres!$C$3:$E$853,94) -> Balance sheet
A74: =HLOOKUP(INDICE!$F$2,Nombres!$C$3:$E$853,31) -> (Constant million euros)
B75: 2014-03-31 | C75: 2014-06-30 | D75: 2014-09-30 | E75: 2014-12-31 | F75: 2015-03-31 | G75: 2015-06-30
A76: =HLOOKUP(INDICE!$F$2,Nombres!$C$3:$E$853,100) -> Cash and balances with central banks | B76: 1247.749308 | C76: 1322.694738 | D76: 1392.205707 | E76: 1293.693495 | F76: 1284.376946 | G76: 1266.161
A77: =HLOOKUP(INDICE!$F$2,Nombres!$C$3:$E$853,101) -> Financial assets | B77: 594.2479013 | C77: 779.2439434 | D77: 713.9023545 | E77: 1044.855471 | F77: 1236.829693 | G77: 1385.919
A78: =HLOOKUP(INDICE!$F$2,Nombres!$C$3:$E$853,102) -> Loans and receivables | B78: 3889.621047 | C78: 4015.104907 | D78: 4343.123276 | E78: 4439.891891 | F78: 4784.398958 | G78: 5214.848
A79: =HLOOKUP(INDICE!$F$2,Nombres!$C$3:$E$853,103) -> . Loans and advances to customers | B79: 3411.119178 | C79: 3572.677559 | D79: 3866.875844 | E79: 3990.966159 | F79: 4176.230012 | G79: 4584.356
A80: =HLOOKUP(INDICE!$F$2,Nombres!$C$3:$E$853,104) -> . Loans and advances to credit institutions and other | B80: 478.5018692 | C80: 442.4273475 | D80: 476.2474322 | E80: 448.9257322 | F80: 608.1689454 | G80: 630.492
A81: =HLOOKUP(INDICE!$F$2,Nombres!$C$3:$E$853,106) -> Tangible assets | B81: 146.3351084 | C81: 162.041049 | D81: 181.92764 | E81: 205.6482538 | F81: 216.4585438 | G81: 231.455
A82: =HLOOKUP(INDICE!$F$2,Nombres!$C$3:$E$853,107) -> Other assets | B82: 176.4680041 | C82: 185.9011546 | D82: 186.2091161 | E82: 188.2877772 | F82: 173.5148056 | G82: 201.861
A83: =HLOOKUP(INDICE!$F$2,Nombres!$C$3:$E$853,108) -> Total assets / Liabilities and equity | B83: 6054.421369 | C83: 6464.985791 | D83: 6817.368094 | E83: 7172.376888 | F83: 7695.578946 | G83: 8300.244
A84: =HLOOKUP(INDICE!$F$2,Nombres!$C$3:$E$853,109) -> Deposits from central banks and credit institutions | B84: 31.47971444 | C84: 59.42838585 | D84: 64.61603305 | E84: 59.55976586 | F84: 61.70782217 | G84: 183.211
A85: =HLOOKUP(INDICE!$F$2,Nombres!$C$3:$E$853,110) -> Deposits from customers | B85: 4410.783398 | C85: 4719.684098 | D85: 4882.255085 | E85: 5053.029487 | F85: 5441.09709 | G85: 5895.029
A86: =HLOOKUP(INDICE!$F$2,Nombres!$C$3:$E$853,111) -> Debt certificates | B86: 103.2173599 | C86: 102.2333935 | D86: 143.7955799 | E86: 166.6069244 | F86: 167.7744128 | G86: 157.95
A87: =HLOOKUP(INDICE!$F$2,Nombres!$C$3:$E$853,112) -> Subordinated liabilities | B87: 0 | C87: 0 | D87: 0 | E87: 0 | F87: 0 | G87: 0
A88: =HLOOKUP(INDICE!$F$2,Nombres!$C$3:$E$853,114) -> Financial liabilities held for trading | B88: 6.053081067 | C88: 1.491939724 | D88: 0.3792254335 | E88: 0.1277229496 | F88: -0.810188768 | G88: 5.661
A89: =HLOOKUP(INDICE!$F$2,Nombres!$C$3:$E$853,115) -> Other liabilities | B89: 1165.843073 | C89: 1250.718319 | D89: 1402.334635 | E89: 1563.616536 | F89: 1616.65078 | G89: 1604.6202
A90: =HLOOKUP(INDICE!$F$2,Nombres!$C$3:$E$853,116) -> Economic capital allocated | B90: 337.0447426 | C90: 331.4296552 | D90: 323.9875357 | E90: 329.4364515 | F90: 409.1590301 | G90: 453.7728
A91: =HLOOKUP(INDICE!$F$2,Nombres!$C$3:$E$853,117) -> Relevant business indicators
A92: =HLOOKUP(INDICE!$F$2,Nombres!$C$3:$E$853,201) -> Annex:
A93: =HLOOKUP(INDICE!$F$2,Nombres!$C$3:$E$853,31) -> (Constant million euros)
B94: 2014-03-31 | C94: 2014-06-30 | D94: 2014-09-30 | E94: 2014-12-31 | F94: 2015-03-31 | G94: 2015-06-30
A95: =HLOOKUP(INDICE!$F$2,Nombres!$C$3:$E$853,118) -> Loans and advances to customers gross | B95: 3527.638545 | C95: 3698.654108 | D95: 4001.700961 | E95: 4133.677652 | F95: 4320.776836 | G95: 4740.81
A96: =HLOOKUP(INDICE!$F$2,Nombres!$C$3:$E$853,121) -> Customer deposits under management (*) | B96: 4331.339161 | C96: 4618.255721 | D96: 4757.584757 | E96: 4974.657927 | F96: 5347.824755 | G96: 5793.834433
A97: =HLOOKUP(INDICE!$F$2,Nombres!$C$3:$E$853,122) -> Mutual funds | B97: 305.4226561 | C97: 346.8519165 | D97: 531.006673 | E97: 661.3355238 | F97: 764.5149738 | G97: 941.9783776
A98: =HLOOKUP(INDICE!$F$2,Nombres!$C$3:$E$853,206) -> Pension funds | B98: 0 | C98: 0 | D98: 0 | E98: 0 | F98: 0 | G98: 0
A99: =HLOOKUP(INDICE!$F$2,Nombres!$C$3:$E$853,284) -> (*) Excluding repos and including specific marketable debt securities.

Sheet Chile
A1: =HLOOKUP(INDICE!$F$2,Nombres!$C$3:$E$853,16) -> Chile
A2: =HLOOKUP(INDICE!$F$2,Nombres!$C$3:$E$853,93) -> Income statement
A3: =HLOOKUP(INDICE!$F$2,Nombres!$C$3:$E$853,30) -> (Million euros)
B4: 2014 | F4: 2015
B5: =HLOOKUP(INDICE!$F$2,Nombres!$C$3:$E$857,34) -> 1st Quarter | C5: =HLOOKUP(INDICE!$F$2,Nombres!$C$3:$E$857,35) -> 2nd Quarter | D5: =HLOOKUP(INDICE!$F$2,Nombres!$C$3:$E$857,36) -> 3rd Quarter | E5: =HLOOKUP(INDICE!$F$2,Nombres!$C$3:$E$857,37) -> 4th Quarter | F5: =HLOOKUP(INDICE!$F$2,Nombres!$C$3:$E$857,34) -> 1st Quarter | G5: =HLOOKUP(INDICE!$F$2,Nombres!$C$3:$E$857,35) -> 2nd Quarter
A6: =HLOOKUP(INDICE!$F$2,Nombres!$C$3:$E$853,38) -> Net interest income | B6: 124.0639999 | C6: 131.7670004 | D6: 114.759999 | E6: 141.6180007 | F6: 119.1810001 | G6: 141.7420005
A7: =HLOOKUP(INDICE!$F$2,Nombres!$C$3:$E$853,39) -> Net fees and commissions | B7: 15.04837322 | C7: 18.36973049 | D7: 20.61718358 | E7: 22.02963058 | F7: 22.198777 | G7: 20.58499624
A8: =HLOOKUP(INDICE!$F$2,Nombres!$C$3:$E$853,40) -> Net trading income | B8: 15.96943126 | C8: 8.24565659 | D8: 28.25260773 | E8: -7.29327616 | F8: 27.86054937 | G8: 19.47585364
A9: =HLOOKUP(INDICE!$F$2,Nombres!$C$3:$E$853,95) -> Other income/expenses | B9: 3.01100042 | C9: 4.11599952 | D9: 0.25600013 | E9: -1.43999998 | F9: 2.69500079 | G9: 4.00399746
A10: =HLOOKUP(INDICE!$F$2,Nombres!$C$3:$E$853,44) -> Gross income | B10: 158.0928048 | C10: 162.498387 | D10: 163.8857905 | E10: 154.9143552 | F10: 171.9353272 | G10: 185.8068478
A11: =HLOOKUP(INDICE!$F$2,Nombres!$C$3:$E$853,45) -> Operating expenses | B11: -73.11864294 | C11: -74.64044527 | D11: -75.60103855 | E11: -78.94207535 | F11: -83.32037594 | G11: -88.52038606
A12: =HLOOKUP(INDICE!$F$2,Nombres!$C$3:$E$853,46) -> Administration expenses | B12: -69.96064285 | C12: -72.69044457 | D12: -72.74603887 | E12: -76.65007582 | F12: -80.75537566 | G12: -85.87738576
A13: =HLOOKUP(INDICE!$F$2,Nombres!$C$3:$E$853,47) -> Personnel expenses | B13: -40.05599975 | C13: -39.65100041 | D13: -40.55100116 | E13: -42.28600146 | F13: -43.75499892 | G13: -45.25800123
A14: =HLOOKUP(INDICE!$F$2,Nombres!$C$3:$E$853,48) -> General and administrative expenses | B14: -29.9046431 | C14: -33.03944416 | D14: -32.19503771 | E14: -34.36407436 | F14: -37.00037674 | G14: -40.61938453
A15: =HLOOKUP(INDICE!$F$2,Nombres!$C$3:$E$853,49) -> Depreciation and amortization | B15: -3.15800009 | C15: -1.9500007 | D15: -2.85499968 | E15: -2.29199953 | F15: -2.56500028 | G15: -2.6430003
A16: =HLOOKUP(INDICE!$F$2,Nombres!$C$3:$E$853,50) -> Operating income | B16: 84.9741619 | C16: 87.8579417 | D16: 88.28475192 | E16: 75.97227982 | F16: 88.6149513 | G16: 97.28646173
A17: =HLOOKUP(INDICE!$F$2,Nombres!$C$3:$E$853,51) -> Impairment on financial assets (net) | B17: -28.8340008 | C17: -26.24699931 | D17: -30.55599915 | E17: -19.39100029 | F17: -36.76600048 | G17: -34.96799945
A18: =HLOOKUP(INDICE!$F$2,Nombres!$C$3:$E$853,160) -> Provisions (net) and other gains/losses | B18: 0.5250002 | C18: 0.43300033 | D18: -2.27000151 | E18: -54.51299878 | F18: -1.0939992 | G18: 4.83699909
A19: =HLOOKUP(INDICE!$F$2,Nombres!$C$3:$E$853,54) -> Income before tax | B19: 56.6651613 | C19: 62.04394272 | D19: 55.45875126 | E19: 2.06828075 | F19: 50.75495162 | G19: 67.15546137
A20: =HLOOKUP(INDICE!$F$2,Nombres!$C$3:$E$853,55) -> Income tax | B20: -6.83263192 | C20: -4.31091673 | D20: 15.41158246 | E20: 9.96862292 | F20: -9.07173641 | G20: -9.1506675
A21: =HLOOKUP(INDICE!$F$2,Nombres!$C$3:$E$853,56) -> Net income | B21: 49.83252938 | C21: 57.73302599 | D21: 70.87033372 | E21: 12.03690367 | F21: 41.68321521 | G21: 58.00479387
A22: =HLOOKUP(INDICE!$F$2,Nombres!$C$3:$E$853,57) -> Non-controlling interests | B22: -14.26998279 | C22: -15.65666933 | D22: -21.52724088 | E22: -3.09330857 | F22: -11.47694589 | G22: -13.95385143
A23: =HLOOKUP(INDICE!$F$2,Nombres!$C$3:$E$853,58) -> Net attributable profit | B23: 35.56254659 | C23: 42.07635666 | D23: 49.34309284 | E23: 8.9435951 | F23: 30.20626932 | G23: 44.05094244
A24: =HLOOKUP(INDICE!$F$2,Nombres!$C$3:$E$853,94) -> Balance sheet
A25: =HLOOKUP(INDICE!$F$2,Nombres!$C$3:$E$853,30) -> (Million euros)
B26: 2014-03-31 | C26: 2014-06-30 | D26: 2014-09-30 | E26: 2014-12-31 | F26: 2015-03-31 | G26: 2015-06-30
A27: =HLOOKUP(INDICE!$F$2,Nombres!$C$3:$E$853,100) -> Cash and balances with central banks | B27: 381.957 | C27: 362.41 | D27: 370.531 | E27: 589.331 | F27: 396.945 | G27: 592.295
A28: =HLOOKUP(INDICE!$F$2,Nombres!$C$3:$E$853,101) -> Financial assets | B28: 1595.252 | C28: 1886.408 | D28: 2227.806 | E28: 2631.029 | F28: 2899.843 | G28: 2676.487
A29: =HLOOKUP(INDICE!$F$2,Nombres!$C$3:$E$853,102) -> Loans and receivables | B29: 12570.79227 | C29: 13104.45871 | D29: 13419.0334 | E29: 13613.16348 | F29: 15338.23133 | G29: 14360.63008
A30: =HLOOKUP(INDICE!$F$2,Nombres!$C$3:$E$853,103) -> . Loans and advances to customers | B30: 11042.59627 | C30: 11467.88871 | D30: 11548.5404 | E30: 12125.55448 | F30: 13396.61333 | G30: 12658.02808
A31: =HLOOKUP(INDICE!$F$2,Nombres!$C$3:$E$853,104) -> . Loans and advances to credit institutions and other | B31: 1528.196 | C31: 1636.57 | D31: 1870.493 | E31: 1487.609 | F31: 1941.618 | G31: 1702.602
A32: =HLOOKUP(INDICE!$F$2,Nombres!$C$3:$E$853,106) -> Tangible assets | B32: 82.302 | C32: 82.901 | D32: 84.472 | E32: 89.14 | F32: 121.586 | G32: 108.235
A33: =HLOOKUP(INDICE!$F$2,Nombres!$C$3:$E$853,107) -> Other assets | B33: 434.3529128 | C33: 406.0867512 | D33: 709.108504 | E33: 561.106502 | F33: 748.305675 | G33: 690.0515419
A34: =HLOOKUP(INDICE!$F$2,Nombres!$C$3:$E$853,108) -> Total assets / Liabilities and equity | B34: 15064.65618 | C34: 15842.26446 | D34: 16810.95091 | E34: 17483.76998 | F34: 19504.911 | G34: 18427.69862
A35: =HLOOKUP(INDICE!$F$2,Nombres!$C$3:$E$853,109) -> Deposits from central banks and credit institutions | B35: 1947.447 | C35: 1967.221 | D35: 1965.997 | E35: 1946.385 | F35: 2209.676 | G35: 1865.622
A36: =HLOOKUP(INDICE!$F$2,Nombres!$C$3:$E$853,110) -> Deposits from customers | B36: 7453.386 | C36: 7645.631 | D36: 7325.401 | E36: 8240.04 | F36: 8787.605 | G36: 8401.739
A37: =HLOOKUP(INDICE!$F$2,Nombres!$C$3:$E$853,111) -> Debt certificates | B37: 1936.841 | C37: 2350.874 | D37: 2608.716 | E37: 2607.764 | F37: 3052.125 | G37: 2977.244
A38: =HLOOKUP(INDICE!$F$2,Nombres!$C$3:$E$853,112) -> Subordinated liabilities | B38: 560.368 | C38: 562.776 | D38: 567.242 | E38: 580.223 | F38: 639.281 | G38: 601.573
A39: =HLOOKUP(INDICE!$F$2,Nombres!$C$3:$E$853,114) -> Financial liabilities held for trading | B39: 1134.409 | C39: 1170.7 | D39: 1712.415 | E39: 1761.429 | F39: 2128.233 | G39: 2041.289
A40: =HLOOKUP(INDICE!$F$2,Nombres!$C$3:$E$853,115) -> Other liabilities | B40: 1598.326488 | C40: 1701.938066 | D40: 2200.480062 | E40: 1891.213408 | F40: 2174.817591 | G40: 2016.289248
A41: =HLOOKUP(INDICE!$F$2,Nombres!$C$3:$E$853,116) -> Economic capital allocated | B41: 433.87869 | C41: 443.12439 | D41: 430.6998453 | E41: 456.7155738 | F41: 513.17341 | G41: 523.94237
A42: =HLOOKUP(INDICE!$F$2,Nombres!$C$3:$E$853,117) -> Relevant business indicators
A43: =HLOOKUP(INDICE!$F$2,Nombres!$C$3:$E$853,201) -> Annex:
A44: =HLOOKUP(INDICE!$F$2,Nombres!$C$3:$E$853,30) -> (Million euros) | B44: 2014-03-31 | C44: 2014-06-30 | D44: 2014-09-30 | E44: 2014-12-31 | F44: 2015-03-31 | G44: 2015-06-30
A45: =HLOOKUP(INDICE!$F$2,Nombres!$C$3:$E$853,118) -> Loans and advances to customers gross | B45: 11280.37227 | C45: 11700.34871 | D45: 11778.6404 | E45: 12338.41048 | F45: 13621.57233 | G45: 12871.36108
A46: =HLOOKUP(INDICE!$F$2,Nombres!$C$3:$E$853,121) -> Customer deposits under management (*) | B46: 7734.894233 | C46: 7819.967125 | D46: 7724.480308 | E46: 8668.206394 | F46: 9163.147233 | G46: 8533.470717
A47: =HLOOKUP(INDICE!$F$2,Nombres!$C$3:$E$853,122) -> Mutual funds | B47: 1146.170613 | C47: 1087.07284 | D47: 1275.273585 | E47: 1281.660717 | F47: 1441.029204 | G47: 1376.093862
A48: =HLOOKUP(INDICE!$F$2,Nombres!$C$3:$E$853,206) -> Pension funds | B48: 0 | C48: 0 | D48: 0 | E48: 0 | F48: 0 | G48: 0
A49: =HLOOKUP(INDICE!$F$2,Nombres!$C$3:$E$853,284) -> (*) Excluding repos and including specific marketable debt securities.
A50: =HLOOKUP(INDICE!$F$2,Nombres!$C$3:$E$853,93) -> Income statement
A51: =HLOOKUP(INDICE!$F$2,Nombres!$C$3:$E$853,31) -> (Constant million euros)
B52: 2014 | F52: 2015
B53: =HLOOKUP(INDICE!$F$2,Nombres!$C$3:$E$857,34) -> 1st Quarter | C53: =HLOOKUP(INDICE!$F$2,Nombres!$C$3:$E$857,35) -> 2nd Quarter | D53: =HLOOKUP(INDICE!$F$2,Nombres!$C$3:$E$857,36) -> 3rd Quarter | E53: =HLOOKUP(INDICE!$F$2,Nombres!$C$3:$E$857,37) -> 4th Quarter | F53: =HLOOKUP(INDICE!$F$2,Nombres!$C$3:$E$857,34) -> 1st Quarter | G53: =HLOOKUP(INDICE!$F$2,Nombres!$C$3:$E$857,35) -> 2nd Quarter
A54: =HLOOKUP(INDICE!$F$2,Nombres!$C$3:$E$853,38) -> Net interest income | B54: 135.2147673 | C54: 144.4550308 | D54: 126.6849223 | E54: 152.7357388 | F54: 120.941057 | G54: 139.9819435
A55: =HLOOKUP(INDICE!$F$2,Nombres!$C$3:$E$853,39) -> Net fees and commissions | B55: 16.40090828 | C55: 20.1311551 | D55: 22.7178755 | E55: 23.77704788 | F55: 22.52660704 | G55: 20.2571662
A56: =HLOOKUP(INDICE!$F$2,Nombres!$C$3:$E$853,40) -> Net trading income | B56: 17.40475023 | C56: 9.066743531 | D56: 31.05957365 | E56: -8.221924284 | F56: 28.27199208 | G56: 19.06441093
A57: =HLOOKUP(INDICE!$F$2,Nombres!$C$3:$E$853,95) -> Other income/expenses | B57: 3.281626591 | C57: 4.509480162 | D57: 0.3043864853 | E57: -1.608542307 | F57: 2.73480038 | G57: 3.96419787
A58: =HLOOKUP(INDICE!$F$2,Nombres!$C$3:$E$853,44) -> Gross income | B58: 172.3020524 | C58: 178.1624096 | D58: 180.766758 | E58: 166.6823201 | F58: 174.4744565 | G58: 183.2677185
A59: =HLOOKUP(INDICE!$F$2,Nombres!$C$3:$E$853,45) -> Operating expenses | B59: -79.69048471 | C59: -81.83706399 | D59: -83.38784865 | E59: -85.05591705 | F59: -84.55084563 | G59: -87.28991637
A60: =HLOOKUP(INDICE!$F$2,Nombres!$C$3:$E$853,46) -> Administration expenses | B60: -76.24864625 | C60: -79.69492886 | D60: -80.24035592 | E60: -82.59376386 | F60: -81.9479656 | G60: -84.68479582
A61: =HLOOKUP(INDICE!$F$2,Nombres!$C$3:$E$853,47) -> Personnel expenses | B61: -43.65619912 | C61: -43.47804423 | D61: -44.72920338 | E61: -45.55788156 | F61: -44.40116979 | G61: -44.61183036
A62: =HLOOKUP(INDICE!$F$2,Nombres!$C$3:$E$853,48) -> General and administrative expenses | B62: -32.59244712 | C62: -36.21688463 | D62: -35.51115254 | E62: -37.0358823 | F62: -37.54679581 | G62: -40.07296546
A63: =HLOOKUP(INDICE!$F$2,Nombres!$C$3:$E$853,49) -> Depreciation and amortization | B63: -3.441838467 | C63: -2.142135124 | D63: -3.14749273 | E63: -2.462153195 | F63: -2.602880031 | G63: -2.605120549
A64: =HLOOKUP(INDICE!$F$2,Nombres!$C$3:$E$853,50) -> Operating income | B64: 92.61156769 | C64: 96.32534556 | D64: 97.37890933 | E64: 81.62640306 | F64: 89.92361092 | G64: 95.97780211
A65: =HLOOKUP(INDICE!$F$2,Nombres!$C$3:$E$853,51) -> Impairment on financial assets (net) | B65: -31.4255764 | C65: -28.78797145 | D65: -33.68781228 | E65: -20.73964089 | F65: -37.30895829 | G65: -34.42504164
A66: =HLOOKUP(INDICE!$F$2,Nombres!$C$3:$E$853,160) -> Provisions (net) and other gains/losses | B66: 0.5721867739 | C66: 0.4750819873 | D66: -2.485883818 | E66: -59.49593461 | F66: -1.110155306 | G66: 4.853155196
A67: =HLOOKUP(INDICE!$F$2,Nombres!$C$3:$E$853,54) -> Income before tax | B67: 61.75817806 | C67: 68.0124561 | D67: 61.20521323 | E67: 1.390827563 | F67: 51.50449732 | G67: 66.40591567
A68: =HLOOKUP(INDICE!$F$2,Nombres!$C$3:$E$853,55) -> Income tax | B68: -7.446743097 | C68: -4.735181677 | D68: 16.86184331 | E68: 10.85979074 | F68: -9.205707201 | G68: -9.016696709
A69: =HLOOKUP(INDICE!$F$2,Nombres!$C$3:$E$853,56) -> Net income | B69: 54.31143497 | C69: 63.27727443 | D69: 78.06705653 | E69: 12.25061831 | F69: 42.29879012 | G69: 57.38921896
A70: =HLOOKUP(INDICE!$F$2,Nombres!$C$3:$E$853,57) -> Non-controlling interests | B70: -15.55255677 | C70: -17.1627152 | D70: -23.70415629 | E70: -3.120368908 | F70: -11.64643665 | G70: -13.78436067
A71: =HLOOKUP(INDICE!$F$2,Nombres!$C$3:$E$853,58) -> Net attributable profit | B71: 38.75887819 | C71: 46.11455922 | D71: 54.36290024 | E71: 9.130249397 | F71: 30.65235347 | G71: 43.60485829
A73: =HLOOKUP(INDICE!$F$2,Nombres!$C$3:$E$853,94) -> Balance sheet
A74: =HLOOKUP(INDICE!$F$2,Nombres!$C$3:$E$853,31) -> (Constant million euros)
B75: 2014-03-31 | C75: 2014-06-30 | D75: 2014-09-30 | E75: 2014-12-31 | F75: 2015-03-31 | G75: 2015-06-30
A76: =HLOOKUP(INDICE!$F$2,Nombres!$C$3:$E$853,100) -> Cash and balances with central banks | B76: 408.3488656 | C76: 383.6641203 | D76: 394.9338743 | E76: 611.4797701 | F76: 376.870236 | G76: 592.295
A77: =HLOOKUP(INDICE!$F$2,Nombres!$C$3:$E$853,101) -> Financial assets | B77: 1705.47822 | C77: 1997.039447 | D77: 2374.527516 | E77: 2729.910709 | F77: 2753.188769 | G77: 2676.487
A78: =HLOOKUP(INDICE!$F$2,Nombres!$C$3:$E$853,102) -> Loans and receivables | B78: 13439.38915 | C78: 13872.99087 | D78: 14302.80018 | E78: 14124.78569 | F78: 14562.52846 | G78: 14360.63008
A79: =HLOOKUP(INDICE!$F$2,Nombres!$C$3:$E$853,103) -> . Loans and advances to customers | B79: 11805.60026 | C79: 12140.44158 | D79: 12309.11801 | E79: 12581.26802 | F79: 12719.10422 | G79: 12658.02808
A80: =HLOOKUP(INDICE!$F$2,Nombres!$C$3:$E$853,104) -> . Loans and advances to credit institutions and other | B80: 1633.78889 | C80: 1732.549293 | D80: 1993.682168 | E80: 1543.517665 | F80: 1843.424237 | G80: 1702.602
A81: =HLOOKUP(INDICE!$F$2,Nombres!$C$3:$E$853,106) -> Tangible assets | B81: 87.98877449 | C81: 87.76286316 | D81: 90.03525814 | E81: 92.49014001 | F81: 115.4370115 | G81: 108.235
A82: =HLOOKUP(INDICE!$F$2,Nombres!$C$3:$E$853,107) -> Other assets | B82: 464.365149 | C82: 429.9023652 | D82: 755.809821 | E82: 582.1945135 | F82: 710.4614905 | G82: 690.0515419
A83: =HLOOKUP(INDICE!$F$2,Nombres!$C$3:$E$853,108) -> Total assets / Liabilities and equity | B83: 16105.57016 | C83: 16771.35967 | D83: 17918.10664 | E83: 18140.86082 | F83: 18518.48597 | G83: 18427.69862
A84: =HLOOKUP(INDICE!$F$2,Nombres!$C$3:$E$853,109) -> Deposits from central banks and credit institutions | B84: 2082.008638 | C84: 2082.591856 | D84: 2095.475985 | E84: 2019.5358 | F84: 2097.925697 | G84: 1865.622
A85: =HLOOKUP(INDICE!$F$2,Nombres!$C$3:$E$853,110) -> Deposits from customers | B85: 7968.388374 | C85: 8094.021389 | D85: 7807.846032 | E85: 8549.724628 | F85: 8343.188024 | G85: 8401.739
A86: =HLOOKUP(INDICE!$F$2,Nombres!$C$3:$E$853,111) -> Debt certificates | B86: 2070.669801 | C86: 2488.744806 | D86: 2780.523942 | E86: 2705.771343 | F86: 2897.769386 | G86: 2977.244
A87: =HLOOKUP(INDICE!$F$2,Nombres!$C$3:$E$853,112) -> Subordinated liabilities | B87: 599.087429 | C87: 595.7809083 | D87: 604.600103 | E87: 602.029465 | F87: 606.9505381 | G87: 601.573
A88: =HLOOKUP(INDICE!$F$2,Nombres!$C$3:$E$853,114) -> Financial liabilities held for trading | B88: 1212.792614 | C88: 1239.357594 | D88: 1825.193278 | E88: 1827.628616 | F88: 2020.601527 | G88: 2041.289
A89: =HLOOKUP(INDICE!$F$2,Nombres!$C$3:$E$853,115) -> Other liabilities | B89: 1708.765144 | C89: 1801.750976 | D89: 2345.401913 | E89: 1962.290698 | F89: 2064.830188 | G89: 2016.289248
A90: =HLOOKUP(INDICE!$F$2,Nombres!$C$3:$E$853,116) -> Economic capital allocated | B90: 463.8581591 | C90: 469.1121362 | D90: 459.0653915 | E90: 473.8802711 | F90: 487.2206077 | G90: 523.94237
A91: =HLOOKUP(INDICE!$F$2,Nombres!$C$3:$E$853,117) -> Relevant business indicators
A92: =HLOOKUP(INDICE!$F$2,Nombres!$C$3:$E$853,201) -> Annex:
A93: =HLOOKUP(INDICE!$F$2,Nombres!$C$3:$E$853,31) -> (Constant million euros)
B94: 2014-03-31 | C94: 2014-06-30 | D94: 2014-09-30 | E94: 2014-12-31 | F94: 2015-03-31 | G94: 2015-06-30
A95: =HLOOKUP(INDICE!$F$2,Nombres!$C$3:$E$853,118) -> Loans and advances to customers gross | B95: 12059.80573 | C95: 12386.53457 | D95: 12554.37221 | E95: 12802.12377 | F95: 12932.68634 | G95: 12871.36108
A96: =HLOOKUP(INDICE!$F$2,Nombres!$C$3:$E$853,121) -> Customer deposits under management (*) | B96: 8269.347821 | C96: 8278.581738 | D96: 8233.208383 | E96: 8993.982758 | F96: 8699.737899 | G96: 8533.470717
A97: =HLOOKUP(INDICE!$F$2,Nombres!$C$3:$E$853,122) -> Mutual funds | B97: 1225.366912 | C97: 1150.825984 | D97: 1359.26208 | E97: 1329.829248 | F97: 1368.1518 | G97: 1376.093862
A98: =HLOOKUP(INDICE!$F$2,Nombres!$C$3:$E$853,206) -> Pension funds | B98: 0 | C98: 0 | D98: 0 | E98: 0 | F98: 0 | G98: 0
A99: =HLOOKUP(INDICE!$F$2,Nombres!$C$3:$E$853,284) -> (*) Excluding repos and including specific marketable debt securities.

Sheet Colombia
A1: =HLOOKUP(INDICE!$F$2,Nombres!$C$3:$E$853,17) -> Colombia
A2: =HLOOKUP(INDICE!$F$2,Nombres!$C$3:$E$853,93) -> Income statement
A3: =HLOOKUP(INDICE!$F$2,Nombres!$C$3:$E$853,30) -> (Million euros)
B4: 2014 | F4: 2015
B5: =HLOOKUP(INDICE!$F$2,Nombres!$C$3:$E$857,34) -> 1st Quarter | C5: =HLOOKUP(INDICE!$F$2,Nombres!$C$3:$E$857,35) -> 2nd Quarter | D5: =HLOOKUP(INDICE!$F$2,Nombres!$C$3:$E$857,36) -> 3rd Quarter | E5: =HLOOKUP(INDICE!$F$2,Nombres!$C$3:$E$857,37) -> 4th Quarter | F5: =HLOOKUP(INDICE!$F$2,Nombres!$C$3:$E$857,34) -> 1st Quarter | G5: =HLOOKUP(INDICE!$F$2,Nombres!$C$3:$E$857,35) -> 2nd Quarter
A6: =HLOOKUP(INDICE!$F$2,Nombres!$C$3:$E$853,38) -> Net interest income | B6: 181.2929999 | C6: 197.307 | D6: 201.5849997 | E6: 202.1439999 | F6: 201.2350008 | G6: 201.6521663
A7: =HLOOKUP(INDICE!$F$2,Nombres!$C$3:$E$853,39) -> Net fees and commissions | B7: 20.67100061 | C7: 22.02409432 | D7: 24.49568123 | E7: 22.37527852 | F7: 17.85932247 | G7: 21.50788816
A8: =HLOOKUP(INDICE!$F$2,Nombres!$C$3:$E$853,40) -> Net trading income | B8: 15.20422342 | C8: 12.07962426 | D8: 16.26768337 | E8: 20.63366423 | F8: 17.72236863 | G8: 10.5248559
A9: =HLOOKUP(INDICE!$F$2,Nombres!$C$3:$E$853,95) -> Other income/expenses | B9: 5.3089997 | C9: 3.7850001 | D9: 5.54099859 | E9: 4.20299941 | F9: 11.68100047 | G9: 5.06500024
A10: =HLOOKUP(INDICE!$F$2,Nombres!$C$3:$E$853,44) -> Gross income | B10: 222.4772236 | C10: 235.1957187 | D10: 247.8893629 | E10: 249.3559421 | F10: 248.4976924 | G10: 238.7499105
A11: =HLOOKUP(INDICE!$F$2,Nombres!$C$3:$E$853,45) -> Operating expenses | B11: -91.84430746 | C11: -95.74749626 | D11: -102.0679003 | E11: -105.4009038 | F11: -97.210899 | G11: -94.47689669
A12: =HLOOKUP(INDICE!$F$2,Nombres!$C$3:$E$853,46) -> Administration expenses | B12: -84.92330604 | C12: -88.37849804 | D12: -94.52690012 | E12: -103.7949038 | F12: -91.12989852 | G12: -90.54989694
A13: =HLOOKUP(INDICE!$F$2,Nombres!$C$3:$E$853,47) -> Personnel expenses | B13: -42.9280012 | C13: -44.69599731 | D13: -47.79100098 | E13: -45.70400042 | F13: -45.57200223 | G13: -44.50599894
A14: =HLOOKUP(INDICE!$F$2,Nombres!$C$3:$E$853,48) -> General and administrative expenses | B14: -41.99530484 | C14: -43.68250073 | D14: -46.73589914 | E14: -58.09090342 | F14: -45.55789629 | G14: -46.043898
A15: =HLOOKUP(INDICE!$F$2,Nombres!$C$3:$E$853,49) -> Depreciation and amortization | B15: -6.92100142 | C15: -7.36899822 | D15: -7.54100021 | E15: -1.60599996 | F15: -6.08100048 | G15: -3.92699975
A16: =HLOOKUP(INDICE!$F$2,Nombres!$C$3:$E$853,50) -> Operating income | B16: 130.6329161 | C16: 139.4482225 | D16: 145.8214625 | E16: 143.9550383 | F16: 151.2867934 | G16: 144.2730139
A17: =HLOOKUP(INDICE!$F$2,Nombres!$C$3:$E$853,51) -> Impairment on financial assets (net) | B17: -35.92299953 | C17: -39.57000034 | D17: -44.44399915 | E17: -37.29600164 | F17: -37.73900025 | G17: -47.49299979
A18: =HLOOKUP(INDICE!$F$2,Nombres!$C$3:$E$853,160) -> Provisions (net) and other gains/losses | B18: 0.03999991 | C18: 0.8760006 | D18: 1.46699954 | E18: -2.89099951 | F18: -3.20400034 | G18: 12.35299975
A19: =HLOOKUP(INDICE!$F$2,Nombres!$C$3:$E$853,54) -> Income before tax | B19: 94.7499165 | C19: 100.7542227 | D19: 102.8444629 | E19: 103.7680371 | F19: 110.3437928 | G19: 109.1330138
A20: =HLOOKUP(INDICE!$F$2,Nombres!$C$3:$E$853,55) -> Income tax | B20: -31.14844348 | C20: -27.58665686 | D20: -32.25873859 | E20: -30.80599008 | F20: -35.3586768 | G20: -18.16604096
A21: =HLOOKUP(INDICE!$F$2,Nombres!$C$3:$E$853,56) -> Net income | B21: 63.60147302 | C21: 73.16756585 | D21: 70.58572434 | E21: 72.96204703 | F21: 74.98511602 | G21: 90.96697286
A22: =HLOOKUP(INDICE!$F$2,Nombres!$C$3:$E$853,57) -> Non-controlling interests | B22: -2.56094 | C22: -2.921982 | D22: -2.773903 | E22: -2.85351616 | F22: -2.872074 | G22: -3.64946606
A23: =HLOOKUP(INDICE!$F$2,Nombres!$C$3:$E$853,58) -> Net attributable profit | B23: 61.04053302 | C23: 70.24558385 | D23: 67.81182134 | E23: 70.10853087 | F23: 72.11304202 | G23: 87.3175068
A24: =HLOOKUP(INDICE!$F$2,Nombres!$C$3:$E$853,94) -> Balance sheet
A25: =HLOOKUP(INDICE!$F$2,Nombres!$C$3:$E$853,30) -> (Million euros)
B26: 2014-03-31 | C26: 2014-06-30 | D26: 2014-09-30 | E26: 2014-12-31 | F26: 2015-03-31 | G26: 2015-06-30
A27: =HLOOKUP(INDICE!$F$2,Nombres!$C$3:$E$853,100) -> Cash and balances with central banks | B27: 1246.519 | C27: 1108.905 | D27: 1019.654 | E27: 974.284 | F27: 1778.834 | G27: 1174.037
A28: =HLOOKUP(INDICE!$F$2,Nombres!$C$3:$E$853,101) -> Financial assets | B28: 2843.862 | C28: 2487.043 | D28: 2206.299 | E28: 2827.27 | F28: 2988.454 | G28: 2787.013
A29: =HLOOKUP(INDICE!$F$2,Nombres!$C$3:$E$853,102) -> Loans and receivables | B29: 10058.038 | C29: 11084.38 | D29: 11688.484 | E29: 10681.384 | F29: 11563.272 | G29: 11705.355
A30: =HLOOKUP(INDICE!$F$2,Nombres!$C$3:$E$853,103) -> . Loans and advances to customers | B30: 9724.869 | C30: 10933.111 | D30: 11470.769 | E30: 10476.72 | F30: 11057.997 | G30: 11134.859
A31: =HLOOKUP(INDICE!$F$2,Nombres!$C$3:$E$853,104) -> . Loans and advances to credit institutions and other | B31: 333.169 | C31: 151.269 | D31: 217.715 | E31: 204.664 | F31: 505.275 | G31: 570.496
A32: =HLOOKUP(INDICE!$F$2,Nombres!$C$3:$E$853,106) -> Tangible assets | B32: 117.408 | C32: 119.252 | D32: 118.98 | E32: 121.417 | F32: 124.813 | G32: 117.215
A33: =HLOOKUP(INDICE!$F$2,Nombres!$C$3:$E$853,107) -> Other assets | B33: 248.605785 | C33: 300.892993 | D33: 322.8054825 | E33: 222.9565689 | F33: 290.0287214 | G33: 307.989
A34: =HLOOKUP(INDICE!$F$2,Nombres!$C$3:$E$853,108) -> Total assets / Liabilities and equity | B34: 14514.43278 | C34: 15100.47299 | D34: 15356.22248 | E34: 14827.31157 | F34: 16745.40172 | G34: 16091.609
A35: =HLOOKUP(INDICE!$F$2,Nombres!$C$3:$E$853,109) -> Deposits from central banks and credit institutions | B35: 382.894 | C35: 389.563 | D35: 308.257 | E35: 754.191 | F35: 1227.984 | G35: 671.88
A36: =HLOOKUP(INDICE!$F$2,Nombres!$C$3:$E$853,110) -> Deposits from customers | B36: 11551.877 | C36: 11930.577 | D36: 11764.355 | E36: 10779.151 | F36: 11536.393 | G36: 11202.465
A37: =HLOOKUP(INDICE!$F$2,Nombres!$C$3:$E$853,111) -> Debt certificates | B37: 245.018 | C37: 247.47 | D37: 251.557 | E37: 214.645 | F37: 211.829 | G37: 207.869
A38: =HLOOKUP(INDICE!$F$2,Nombres!$C$3:$E$853,112) -> Subordinated liabilities | B38: 270.232 | C38: 285.029 | D38: 287.246 | E38: 338.899 | F38: 373.718 | G38: 712.576
A39: =HLOOKUP(INDICE!$F$2,Nombres!$C$3:$E$853,114) -> Financial liabilities held for trading | B39: 99.846 | C39: 114.028 | D39: 535.082 | E39: 680.814 | F39: 1216.608 | G39: 1118.365
A40: =HLOOKUP(INDICE!$F$2,Nombres!$C$3:$E$853,115) -> Other liabilities | B40: 1112.723785 | C40: 1228.887583 | D40: 1303.812524 | E40: 1170.547004 | F40: 1267.175591 | G40: 1328.64898
A41: =HLOOKUP(INDICE!$F$2,Nombres!$C$3:$E$853,116) -> Economic capital allocated | B41: 851.842 | C41: 904.91841 | D41: 905.9129585 | E41: 889.0645649 | F41: 911.69413 | G41: 849.80502
A42: =HLOOKUP(INDICE!$F$2,Nombres!$C$3:$E$853,117) -> Relevant business indicators
A43: =HLOOKUP(INDICE!$F$2,Nombres!$C$3:$E$853,201) -> Annex:
A44: =HLOOKUP(INDICE!$F$2,Nombres!$C$3:$E$853,30) -> (Million euros) | B44: 2014-03-31 | C44: 2014-06-30 | D44: 2014-09-30 | E44: 2014-12-31 | F44: 2015-03-31 | G44: 2015-06-30
A45: =HLOOKUP(INDICE!$F$2,Nombres!$C$3:$E$853,118) -> Loans and advances to customers gross | B45: 10044.656 | C45: 11284.701 | D45: 11842.585 | E45: 10816.283 | F45: 11425.763 | G45: 11504.851
A46: =HLOOKUP(INDICE!$F$2,Nombres!$C$3:$E$853,121) -> Customer deposits under management (*) | B46: 11565.80303 | C46: 11935.74776 | D46: 11926.88746 | E46: 11002.60932 | F46: 11752.56221 | G46: 11401.30136
A47: =HLOOKUP(INDICE!$F$2,Nombres!$C$3:$E$853,122) -> Mutual funds | B47: 700.572404 | C47: 669.7196238 | D47: 750.6981831 | E47: 669.3741353 | F47: 769.7363018 | G47: 708.0209911
A48: =HLOOKUP(INDICE!$F$2,Nombres!$C$3:$E$853,206) -> Pension funds | B48: 0 | C48: 0 | D48: 0 | E48: 0 | F48: 0 | G48: 0
A49: =HLOOKUP(INDICE!$F$2,Nombres!$C$3:$E$853,284) -> (*) Excluding repos and including specific marketable debt securities.
A50: =HLOOKUP(INDICE!$F$2,Nombres!$C$3:$E$853,93) -> Income statement
A51: =HLOOKUP(INDICE!$F$2,Nombres!$C$3:$E$853,31) -> (Constant million euros)
B52: 2014 | F52: 2015
B53: =HLOOKUP(INDICE!$F$2,Nombres!$C$3:$E$857,34) -> 1st Quarter | C53: =HLOOKUP(INDICE!$F$2,Nombres!$C$3:$E$857,35) -> 2nd Quarter | D53: =HLOOKUP(INDICE!$F$2,Nombres!$C$3:$E$857,36) -> 3rd Quarter | E53: =HLOOKUP(INDICE!$F$2,Nombres!$C$3:$E$857,37) -> 4th Quarter | F53: =HLOOKUP(INDICE!$F$2,Nombres!$C$3:$E$857,34) -> 1st Quarter | G53: =HLOOKUP(INDICE!$F$2,Nombres!$C$3:$E$857,35) -> 2nd Quarter
A54: =HLOOKUP(INDICE!$F$2,Nombres!$C$3:$E$853,38) -> Net interest income | B54: 179.7988268 | C54: 187.6060118 | D54: 183.770911 | E54: 197.9509581 | F54: 201.793987 | G54: 201.0931801
A55: =HLOOKUP(INDICE!$F$2,Nombres!$C$3:$E$853,39) -> Net fees and commissions | B55: 20.50063522 | C55: 20.93197034 | D55: 22.39863179 | E55: 21.93360546 | F55: 17.9089317 | G55: 21.45827893
A56: =HLOOKUP(INDICE!$F$2,Nombres!$C$3:$E$853,40) -> Net trading income | B56: 15.07891389 | C56: 11.39815335 | D56: 14.89688726 | E56: 20.08720066 | F56: 17.77159743 | G56: 10.4756271
A57: =HLOOKUP(INDICE!$F$2,Nombres!$C$3:$E$853,95) -> Other income/expenses | B57: 5.265244208 | C57: 3.559846996 | D57: 5.078157267 | E57: 4.135258707 | F57: 11.71344769 | G57: 5.032553016
A58: =HLOOKUP(INDICE!$F$2,Nombres!$C$3:$E$853,44) -> Gross income | B58: 220.6436201 | C58: 223.4959825 | D58: 226.1445873 | E58: 244.107023 | F58: 249.1879638 | G58: 238.0596392
A59: =HLOOKUP(INDICE!$F$2,Nombres!$C$3:$E$853,45) -> Operating expenses | B59: -91.08734888 | C59: -90.95738537 | D59: -93.13198459 | E59: -103.1173911 | F59: -97.48092928 | G59: -94.20686642
A60: =HLOOKUP(INDICE!$F$2,Nombres!$C$3:$E$853,46) -> Administration expenses | B60: -84.22338868 | C60: -83.95389969 | D60: -86.25998062 | E60: -101.4145148 | F60: -91.38303713 | G60: -90.29675833
A61: =HLOOKUP(INDICE!$F$2,Nombres!$C$3:$E$853,47) -> Personnel expenses | B61: -42.57419899 | C61: -42.4587673 | D61: -43.61128322 | E61: -44.78800239 | F61: -45.69859113 | G61: -44.37941004
A62: =HLOOKUP(INDICE!$F$2,Nombres!$C$3:$E$853,48) -> General and administrative expenses | B62: -41.64918969 | C62: -41.49513238 | D62: -42.6486974 | E62: -56.62651245 | F62: -45.684446 | G62: -45.91734829
A63: =HLOOKUP(INDICE!$F$2,Nombres!$C$3:$E$853,49) -> Depreciation and amortization | B63: -6.863960199 | C63: -7.003485688 | D63: -6.87200397 | E63: -1.70287622 | F63: -6.097892148 | G63: -3.910108082
A64: =HLOOKUP(INDICE!$F$2,Nombres!$C$3:$E$853,50) -> Operating income | B64: 129.5562712 | C64: 132.5385971 | D64: 133.0126027 | E64: 140.9896319 | F64: 151.7070345 | G64: 143.8527728
A65: =HLOOKUP(INDICE!$F$2,Nombres!$C$3:$E$853,51) -> Impairment on financial assets (net) | B65: -35.62693085 | C65: -37.63374913 | D65: -40.67946909 | E65: -36.619833 | F65: -37.84383081 | G65: -47.38816923
A66: =HLOOKUP(INDICE!$F$2,Nombres!$C$3:$E$853,160) -> Provisions (net) and other gains/losses | B66: 0.0396702404 | C66: 0.8492442329 | D66: 1.374935574 | E66: -2.750289849 | F66: -3.212900341 | G66: 12.36189975
A67: =HLOOKUP(INDICE!$F$2,Nombres!$C$3:$E$853,54) -> Income before tax | B67: 93.96901059 | C67: 95.75409224 | D67: 93.7080692 | E67: 101.6195091 | F67: 110.6503034 | G67: 108.8265033
A68: =HLOOKUP(INDICE!$F$2,Nombres!$C$3:$E$853,55) -> Income tax | B68: -30.89172554 | C68: -26.1065842 | D68: -29.44583724 | E68: -30.18645851 | F68: -35.45689535 | G68: -18.06782241
A69: =HLOOKUP(INDICE!$F$2,Nombres!$C$3:$E$853,56) -> Net income | B69: 63.07728506 | C69: 69.64750804 | D69: 64.26223195 | E69: 71.43305054 | F69: 75.19340801 | G69: 90.75868087
A70: =HLOOKUP(INDICE!$F$2,Nombres!$C$3:$E$853,57) -> Non-controlling interests | B70: -2.539833352 | C70: -2.780959234 | D70: -2.523191164 | E70: -2.794830995 | F70: -2.880051983 | G70: -3.641488077
A71: =HLOOKUP(INDICE!$F$2,Nombres!$C$3:$E$853,58) -> Net attributable profit | B71: 60.5374517 | C71: 66.86654881 | D71: 61.73904079 | E71: 68.63821954 | F71: 72.31335603 | G71: 87.11719279
A73: =HLOOKUP(INDICE!$F$2,Nombres!$C$3:$E$853,94) -> Balance sheet
A74: =HLOOKUP(INDICE!$F$2,Nombres!$C$3:$E$853,31) -> (Constant million euros)
B75: 2014-03-31 | C75: 2014-06-30 | D75: 2014-09-30 | E75: 2014-12-31 | F75: 2015-03-31 | G75: 2015-06-30
A76: =HLOOKUP(INDICE!$F$2,Nombres!$C$3:$E$853,100) -> Cash and balances with central banks | B76: 1168.822694 | C76: 986.3268123 | D76: 900.0007245 | E76: 979.9484419 | F76: 1704.92123 | G76: 1174.037
A77: =HLOOKUP(INDICE!$F$2,Nombres!$C$3:$E$853,101) -> Financial assets | B77: 2666.602309 | C77: 2212.12565 | D77: 1947.396566 | E77: 2843.707616 | F77: 2864.280011 | G77: 2787.013
A78: =HLOOKUP(INDICE!$F$2,Nombres!$C$3:$E$853,102) -> Loans and receivables | B78: 9431.114222 | C78: 9859.114344 | D78: 10316.87618 | E78: 10743.48507 | F78: 11082.80363 | G78: 11705.355
A79: =HLOOKUP(INDICE!$F$2,Nombres!$C$3:$E$853,103) -> . Loans and advances to customers | B79: 9118.711854 | C79: 9724.566596 | D79: 10124.70937 | E79: 10537.63116 | F79: 10598.52344 | G79: 11134.859
A80: =HLOOKUP(INDICE!$F$2,Nombres!$C$3:$E$853,104) -> . Loans and advances to credit institutions and other | B80: 312.4023686 | C80: 134.5477481 | D80: 192.1668112 | E80: 205.853907 | F80: 484.2801939 | G80: 570.496
A81: =HLOOKUP(INDICE!$F$2,Nombres!$C$3:$E$853,106) -> Tangible assets | B81: 110.0898862 | C81: 106.0699023 | D81: 105.0180612 | E81: 122.1229128 | F81: 119.6268643 | G81: 117.215
A82: =HLOOKUP(INDICE!$F$2,Nombres!$C$3:$E$853,107) -> Other assets | B82: 233.1100314 | C82: 267.632328 | D82: 284.9252473 | E82: 224.252828 | F82: 277.9776665 | G82: 307.989
A83: =HLOOKUP(INDICE!$F$2,Nombres!$C$3:$E$853,108) -> Total assets / Liabilities and equity | B83: 13609.73914 | C83: 13431.26904 | D83: 13554.21678 | E83: 14913.51687 | F83: 16049.60941 | G83: 16091.609
A84: =HLOOKUP(INDICE!$F$2,Nombres!$C$3:$E$853,109) -> Deposits from central banks and credit institutions | B84: 359.0279783 | C84: 346.5007661 | D84: 272.0839847 | E84: 758.5758314 | F84: 1176.959734 | G84: 671.88
A85: =HLOOKUP(INDICE!$F$2,Nombres!$C$3:$E$853,110) -> Deposits from customers | B85: 10831.84131 | C85: 10611.77286 | D85: 10383.84395 | E85: 10841.82048 | F85: 11057.04149 | G85: 11202.465
A86: =HLOOKUP(INDICE!$F$2,Nombres!$C$3:$E$853,111) -> Debt certificates | B86: 229.7458753 | C86: 220.1147044 | D86: 222.0375561 | E86: 215.892936 | F86: 203.027241 | G86: 207.869
A87: =HLOOKUP(INDICE!$F$2,Nombres!$C$3:$E$853,112) -> Subordinated liabilities | B87: 253.388271 | C87: 253.5219383 | D87: 253.5385612 | E87: 340.869343 | F87: 358.1895512 | G87: 712.576
A88: =HLOOKUP(INDICE!$F$2,Nombres!$C$3:$E$853,114) -> Financial liabilities held for trading | B88: 93.62253659 | C88: 101.4233625 | D88: 472.2917653 | E88: 684.7722209 | F88: 1166.056421 | G88: 1118.365
A89: =HLOOKUP(INDICE!$F$2,Nombres!$C$3:$E$853,115) -> Other liabilities | B89: 1043.367018 | C89: 1093.046539 | D89: 1150.814116 | E89: 1177.35251 | F89: 1214.522866 | G89: 1328.64898
A90: =HLOOKUP(INDICE!$F$2,Nombres!$C$3:$E$853,116) -> Economic capital allocated | B90: 798.7461572 | C90: 804.8888685 | D90: 799.606846 | E90: 894.2335449 | F90: 873.8121024 | G90: 849.80502
A91: =HLOOKUP(INDICE!$F$2,Nombres!$C$3:$E$853,117) -> Relevant business indicators
A92: =HLOOKUP(INDICE!$F$2,Nombres!$C$3:$E$853,201) -> Annex:
A93: =HLOOKUP(INDICE!$F$2,Nombres!$C$3:$E$853,31) -> (Constant million euros)
B94: 2014-03-31 | C94: 2014-06-30 | D94: 2014-09-30 | E94: 2014-12-31 | F94: 2015-03-31 | G94: 2015-06-30
A95: =HLOOKUP(INDICE!$F$2,Nombres!$C$3:$E$853,118) -> Loans and advances to customers gross | B95: 9418.566331 | C95: 10037.29189 | D95: 10452.8939 | E95: 10879.16837 | F95: 10951.0083 | G95: 11504.851
A96: =HLOOKUP(INDICE!$F$2,Nombres!$C$3:$E$853,121) -> Customer deposits under management (*) | B96: 10844.89932 | C96: 10616.37204 | D96: 10527.30373 | E96: 11066.57797 | F96: 11264.2286 | G96: 11401.30136
A97: =HLOOKUP(INDICE!$F$2,Nombres!$C$3:$E$853,122) -> Mutual funds | B97: 656.9052894 | C97: 595.6889199 | D97: 662.6060494 | E97: 673.2658454 | F97: 737.752799 | G97: 708.0209911
A98: =HLOOKUP(INDICE!$F$2,Nombres!$C$3:$E$853,206) -> Pension funds | B98: 0 | C98: 0 | D98: 0 | E98: 0 | F98: 0 | G98: 0
A99: =HLOOKUP(INDICE!$F$2,Nombres!$C$3:$E$853,284) -> (*) Excluding repos and including specific marketable debt securities.

Sheet Perú
A1: =HLOOKUP(INDICE!$F$2,Nombres!$C$3:$E$853,18) -> Peru
A2: =HLOOKUP(INDICE!$F$2,Nombres!$C$3:$E$853,93) -> Income statement
A3: =HLOOKUP(INDICE!$F$2,Nombres!$C$3:$E$853,30) -> (Million euros)
B4: 2014 | F4: 2015
B5: =HLOOKUP(INDICE!$F$2,Nombres!$C$3:$E$857,34) -> 1st Quarter | C5: =HLOOKUP(INDICE!$F$2,Nombres!$C$3:$E$857,35) -> 2nd Quarter | D5: =HLOOKUP(INDICE!$F$2,Nombres!$C$3:$E$857,36) -> 3rd Quarter | E5: =HLOOKUP(INDICE!$F$2,Nombres!$C$3:$E$857,37) -> 4th Quarter | F5: =HLOOKUP(INDICE!$F$2,Nombres!$C$3:$E$857,34) -> 1st Quarter | G5: =HLOOKUP(INDICE!$F$2,Nombres!$C$3:$E$857,35) -> 2nd Quarter
A6: =HLOOKUP(INDICE!$F$2,Nombres!$C$3:$E$853,38) -> Net interest income | B6: 166.8559997 | C6: 171.4894142 | D6: 177.2596147 | E6: 185.0218005 | F6: 189.0508091 | G6: 191.3557878
A7: =HLOOKUP(INDICE!$F$2,Nombres!$C$3:$E$853,39) -> Net fees and commissions | B7: 43.5330236 | C7: 46.71389244 | D7: 46.79410395 | E7: 51.8767901 | F7: 51.27394692 | G7: 53.2853367
A8: =HLOOKUP(INDICE!$F$2,Nombres!$C$3:$E$853,40) -> Net trading income | B8: 23.82235823 | C8: 29.31239539 | D8: 29.90144681 | E8: 43.47449852 | F8: 42.35952364 | G8: 51.09270423
A9: =HLOOKUP(INDICE!$F$2,Nombres!$C$3:$E$853,95) -> Other income/expenses | B9: -4.43800031 | C9: -2.32100029 | D9: -3.98499922 | E9: -3.60000006 | F9: -5.76800009 | G9: -4.33800031
A10: =HLOOKUP(INDICE!$F$2,Nombres!$C$3:$E$853,44) -> Gross income | B10: 229.7733812 | C10: 245.1947017 | D10: 249.9701663 | E10: 276.773089 | F10: 276.9162796 | G10: 291.3958285
A11: =HLOOKUP(INDICE!$F$2,Nombres!$C$3:$E$853,45) -> Operating expenses | B11: -85.52956375 | C11: -84.39842363 | D11: -92.03149672 | E11: -88.07241427 | F11: -100.6782645 | G11: -100.6382612
A12: =HLOOKUP(INDICE!$F$2,Nombres!$C$3:$E$853,46) -> Administration expenses | B12: -79.58556338 | C12: -78.41142453 | D12: -85.65149541 | E12: -81.23941521 | F12: -93.13726424 | G12: -93.34826101
A13: =HLOOKUP(INDICE!$F$2,Nombres!$C$3:$E$853,47) -> Personnel expenses | B13: -44.17699972 | C13: -43.9920003 | D13: -46.74899911 | E13: -45.30100147 | F13: -52.42199947 | G13: -52.09600018
A14: =HLOOKUP(INDICE!$F$2,Nombres!$C$3:$E$853,48) -> General and administrative expenses | B14: -35.40856366 | C14: -34.41942423 | D14: -38.9024963 | E14: -35.93841374 | F14: -40.71526477 | G14: -41.25226083
A15: =HLOOKUP(INDICE!$F$2,Nombres!$C$3:$E$853,49) -> Depreciation and amortization | B15: -5.94400037 | C15: -5.9869991 | D15: -6.38000131 | E15: -6.83299906 | F15: -7.54100022 | G15: -7.29000016
A16: =HLOOKUP(INDICE!$F$2,Nombres!$C$3:$E$853,50) -> Operating income | B16: 144.2438175 | C16: 160.7962781 | D16: 157.9386695 | E16: 188.7006748 | F16: 176.2380151 | G16: 190.7575673
A17: =HLOOKUP(INDICE!$F$2,Nombres!$C$3:$E$853,51) -> Impairment on financial assets (net) | B17: -35.73100021 | C17: -36.99600004 | D17: -32.32900105 | E17: -38.31699922 | F17: -38.32400044 | G17: -54.37299984
A18: =HLOOKUP(INDICE!$F$2,Nombres!$C$3:$E$853,160) -> Provisions (net) and other gains/losses | B18: -3.29199983 | C18: -1.29500168 | D18: 6.20100126 | E18: -4.15199916 | F18: -2.777 | G18: -0.0970015
A19: =HLOOKUP(INDICE!$F$2,Nombres!$C$3:$E$853,54) -> Income before tax | B19: 105.2208174 | C19: 122.5052764 | D19: 131.8106697 | E19: 146.2316764 | F19: 135.1370147 | G19: 136.287566
A20: =HLOOKUP(INDICE!$F$2,Nombres!$C$3:$E$853,55) -> Income tax | B20: -28.73858084 | C20: -33.49256132 | D20: -36.48167642 | E20: -41.00992996 | F20: -37.4634927 | G20: -37.63059776
A21: =HLOOKUP(INDICE!$F$2,Nombres!$C$3:$E$853,56) -> Net income | B21: 76.48223658 | C21: 89.01271503 | D21: 95.32899332 | E21: 105.2217464 | F21: 97.67352197 | G21: 98.6569682
A22: =HLOOKUP(INDICE!$F$2,Nombres!$C$3:$E$853,57) -> Non-controlling interests | B22: -40.95431449 | C22: -47.67475538 | D22: -51.2166441 | E22: -56.93938487 | F22: -52.00537436 | G22: -52.70465906
A23: =HLOOKUP(INDICE!$F$2,Nombres!$C$3:$E$853,58) -> Net attributable profit | B23: 35.52792209 | C23: 41.33795965 | D23: 44.11234922 | E23: 48.28236156 | F23: 45.66814761 | G23: 45.95230914
A24: =HLOOKUP(INDICE!$F$2,Nombres!$C$3:$E$853,94) -> Balance sheet
A25: =HLOOKUP(INDICE!$F$2,Nombres!$C$3:$E$853,30) -> (Million euros)
B26: 2014-03-31 | C26: 2014-06-30 | D26: 2014-09-30 | E26: 2014-12-31 | F26: 2015-03-31 | G26: 2015-06-30
A27: =HLOOKUP(INDICE!$F$2,Nombres!$C$3:$E$853,100) -> Cash and balances with central banks | B27: 2921.672 | C27: 2557.344 | D27: 3349.948 | E27: 3858.336 | F27: 4480.142 | G27: 5227.042
A28: =HLOOKUP(INDICE!$F$2,Nombres!$C$3:$E$853,101) -> Financial assets | B28: 1187.268 | C28: 1034.711 | D28: 1805.271 | E28: 1192.571 | F28: 1709.77 | G28: 1292.679
A29: =HLOOKUP(INDICE!$F$2,Nombres!$C$3:$E$853,102) -> Loans and receivables | B29: 10392.911 | C29: 10862.712 | D29: 11493.339 | E29: 11865.819 | F29: 13401.378 | G29: 13140.682
A30: =HLOOKUP(INDICE!$F$2,Nombres!$C$3:$E$853,103) -> . Loans and advances to customers | B30: 10090.537 | C30: 10567.752 | D30: 11166.614 | E30: 11529.554 | F30: 12831.027 | G30: 12606.984
A31: =HLOOKUP(INDICE!$F$2,Nombres!$C$3:$E$853,104) -> . Loans and advances to credit institutions and other | B31: 302.374 | C31: 294.96 | D31: 326.725 | E31: 336.265 | F31: 570.351 | G31: 533.698
A32: =HLOOKUP(INDICE!$F$2,Nombres!$C$3:$E$853,106) -> Tangible assets | B32: 212.553 | C32: 216.817 | D32: 228.999 | E32: 237.657 | F32: 257.014 | G32: 236.328
A33: =HLOOKUP(INDICE!$F$2,Nombres!$C$3:$E$853,107) -> Other assets | B33: 452.3925036 | C33: 368.7010245 | D33: 411.3250521 | E33: 421.8488815 | F33: 560.0986402 | G33: 326.5915462
A34: =HLOOKUP(INDICE!$F$2,Nombres!$C$3:$E$853,108) -> Total assets / Liabilities and equity | B34: 15166.7965 | C34: 15040.28502 | D34: 17288.88205 | E34: 17576.23188 | F34: 20408.40264 | G34: 20223.32255
A35: =HLOOKUP(INDICE!$F$2,Nombres!$C$3:$E$853,109) -> Deposits from central banks and credit institutions | B35: 1748.655 | C35: 1715.216 | D35: 2486.737 | E35: 2409.817 | F35: 3306.063 | G35: 3465.023
A36: =HLOOKUP(INDICE!$F$2,Nombres!$C$3:$E$853,110) -> Deposits from customers | B36: 9479.146 | C36: 9580.55 | D36: 10359.986 | E36: 10522.248 | F36: 11945.871 | G36: 12016.855
A37: =HLOOKUP(INDICE!$F$2,Nombres!$C$3:$E$853,111) -> Debt certificates | B37: 1432.76 | C37: 1498.436 | D37: 1578.453 | E37: 1605.44 | F37: 1776.439 | G37: 1683.337
A38: =HLOOKUP(INDICE!$F$2,Nombres!$C$3:$E$853,112) -> Subordinated liabilities | B38: 368.558 | C38: 370.474 | D38: 639.351 | E38: 661.784 | F38: 723.279 | G38: 667.554
A39: =HLOOKUP(INDICE!$F$2,Nombres!$C$3:$E$853,114) -> Financial liabilities held for trading | B39: 112.498 | C39: 84.125 | D39: 150.321 | E39: 195.397 | F39: 291.712 | G39: 264.005
A40: =HLOOKUP(INDICE!$F$2,Nombres!$C$3:$E$853,115) -> Other liabilities | B40: 1599.517144 | C40: 1333.890805 | D40: 1603.217296 | E40: 1712.79434 | F40: 1877.02574 | G40: 1671.523336
A41: =HLOOKUP(INDICE!$F$2,Nombres!$C$3:$E$853,116) -> Economic capital allocated | B41: 425.66236 | C41: 457.59322 | D41: 470.8167565 | E41: 468.7515416 | F41: 488.0129 | G41: 455.02521
A42: =HLOOKUP(INDICE!$F$2,Nombres!$C$3:$E$853,117) -> Relevant business indicators
A43: =HLOOKUP(INDICE!$F$2,Nombres!$C$3:$E$853,201) -> Annex:
A44: =HLOOKUP(INDICE!$F$2,Nombres!$C$3:$E$853,30) -> (Million euros) | B44: 2014-03-31 | C44: 2014-06-30 | D44: 2014-09-30 | E44: 2014-12-31 | F44: 2015-03-31 | G44: 2015-06-30
A45: =HLOOKUP(INDICE!$F$2,Nombres!$C$3:$E$853,118) -> Loans and advances to customers gross | B45: 10532.196 | C45: 11026.95 | D45: 11658.323 | E45: 12019.917 | F45: 13396.904 | G45: 13148.773
A46: =HLOOKUP(INDICE!$F$2,Nombres!$C$3:$E$853,121) -> Customer deposits under management (*) | B46: 9204.740626 | C46: 9244.28905 | D46: 10030.57374 | E46: 10192.87358 | F46: 11642.38093 | G46: 11728.56492
A47: =HLOOKUP(INDICE!$F$2,Nombres!$C$3:$E$853,122) -> Mutual funds | B47: 1082.320214 | C47: 1086.941099 | D47: 1192.78929 | E47: 1239.98401 | F47: 1369.312841 | G47: 1300.955384
A48: =HLOOKUP(INDICE!$F$2,Nombres!$C$3:$E$853,206) -> Pension funds | B48: 0 | C48: 0 | D48: 0 | E48: 0 | F48: 0 | G48: 0
A49: =HLOOKUP(INDICE!$F$2,Nombres!$C$3:$E$853,284) -> (*) Excluding repos and including specific marketable debt securities.
A50: =HLOOKUP(INDICE!$F$2,Nombres!$C$3:$E$853,93) -> Income statement
A51: =HLOOKUP(INDICE!$F$2,Nombres!$C$3:$E$853,31) -> (Constant million euros)
B52: 2014 | F52: 2015
B53: =HLOOKUP(INDICE!$F$2,Nombres!$C$3:$E$857,34) -> 1st Quarter | C53: =HLOOKUP(INDICE!$F$2,Nombres!$C$3:$E$857,35) -> 2nd Quarter | D53: =HLOOKUP(INDICE!$F$2,Nombres!$C$3:$E$857,36) -> 3rd Quarter | E53: =HLOOKUP(INDICE!$F$2,Nombres!$C$3:$E$857,37) -> 4th Quarter | F53: =HLOOKUP(INDICE!$F$2,Nombres!$C$3:$E$857,34) -> 1st Quarter | G53: =HLOOKUP(INDICE!$F$2,Nombres!$C$3:$E$857,35) -> 2nd Quarter
A54: =HLOOKUP(INDICE!$F$2,Nombres!$C$3:$E$853,38) -> Net interest income | B54: 185.6245399 | C54: 189.8547947 | D54: 191.656783 | E54: 196.2321914 | F54: 188.268362 | G54: 192.138235
A55: =HLOOKUP(INDICE!$F$2,Nombres!$C$3:$E$853,39) -> Net fees and commissions | B55: 48.42976872 | C55: 51.72188279 | D55: 50.58565267 | E55: 55.09818946 | F55: 51.06173333 | G55: 53.49755029
A56: =HLOOKUP(INDICE!$F$2,Nombres!$C$3:$E$853,40) -> Net trading income | B56: 26.50197951 | C56: 32.46439365 | D56: 32.36871033 | E56: 46.50471127 | F56: 42.18420523 | G56: 51.26802264
A57: =HLOOKUP(INDICE!$F$2,Nombres!$C$3:$E$853,95) -> Other income/expenses | B57: -4.93720194 | C57: -2.563609194 | D57: -4.316975752 | E57: -3.810725294 | F57: -5.744127381 | G57: -4.361873019
A58: =HLOOKUP(INDICE!$F$2,Nombres!$C$3:$E$853,44) -> Gross income | B58: 255.6190861 | C58: 271.4774619 | D58: 270.2941703 | E58: 294.0243668 | F58: 275.7701732 | G58: 292.5419349
A59: =HLOOKUP(INDICE!$F$2,Nombres!$C$3:$E$853,45) -> Operating expenses | B59: -95.15022501 | C59: -93.42761588 | D59: -99.56264755 | E59: -93.23693996 | F59: -100.2615753 | G59: -101.0549503
A60: =HLOOKUP(INDICE!$F$2,Nombres!$C$3:$E$853,46) -> Administration expenses | B60: -88.53762292 | C60: -86.79977328 | D60: -92.66203599 | E60: -85.98233873 | F60: -92.75178595 | G60: -93.7337393
A61: =HLOOKUP(INDICE!$F$2,Nombres!$C$3:$E$853,47) -> Personnel expenses | B61: -49.1461815 | C61: -48.69949956 | D61: -50.55642128 | E61: -47.95559911 | F61: -52.20503429 | G61: -52.31296536
A62: =HLOOKUP(INDICE!$F$2,Nombres!$C$3:$E$853,48) -> General and administrative expenses | B62: -39.39144141 | C62: -38.10027371 | D62: -42.10561471 | E62: -38.02673963 | F62: -40.54675165 | G62: -41.42077395
A63: =HLOOKUP(INDICE!$F$2,Nombres!$C$3:$E$853,49) -> Depreciation and amortization | B63: -6.612602098 | C63: -6.627842601 | D63: -6.900611567 | E63: -7.254601225 | F63: -7.509789384 | G63: -7.321210996
A64: =HLOOKUP(INDICE!$F$2,Nombres!$C$3:$E$853,50) -> Operating income | B64: 160.4688611 | C64: 178.049846 | D64: 170.7315227 | E64: 200.7874268 | F64: 175.5085978 | G64: 191.4869846
A65: =HLOOKUP(INDICE!$F$2,Nombres!$C$3:$E$853,51) -> Impairment on financial assets (net) | B65: -39.75014674 | C65: -40.95875173 | D65: -34.8467098 | E65: -40.65651552 | F65: -38.16538433 | G65: -54.53161595
A66: =HLOOKUP(INDICE!$F$2,Nombres!$C$3:$E$853,160) -> Provisions (net) and other gains/losses | B66: -3.662295361 | C66: -1.428136499 | D66: 6.865739511 | E66: -4.540586166 | F66: -2.765506499 | G66: -0.1084950008
A67: =HLOOKUP(INDICE!$F$2,Nombres!$C$3:$E$853,54) -> Income before tax | B67: 117.056419 | C67: 135.6629578 | D67: 142.7505524 | E67: 155.5903252 | F67: 134.577707 | G67: 136.8468736
A68: =HLOOKUP(INDICE!$F$2,Nombres!$C$3:$E$853,55) -> Income tax | B68: -31.97119585 | C68: -37.08990824 | D68: -39.51736505 | E68: -43.6565208 | F68: -37.30843808 | G68: -37.78565238
A69: =HLOOKUP(INDICE!$F$2,Nombres!$C$3:$E$853,56) -> Net income | B69: 85.08522318 | C69: 98.57304957 | D69: 103.2331874 | E69: 111.9338044 | F69: 97.26926893 | G69: 99.06122124
A70: =HLOOKUP(INDICE!$F$2,Nombres!$C$3:$E$853,57) -> Non-controlling interests | B70: -45.56099749 | C70: -52.79524679 | D70: -55.46606328 | E70: -60.58499444 | F70: -51.79013352 | G70: -52.9198999
A71: =HLOOKUP(INDICE!$F$2,Nombres!$C$3:$E$853,58) -> Net attributable profit | B71: 39.52422569 | C71: 45.77780277 | D71: 47.76712412 | E71: 51.34880991 | F71: 45.47913541 | G71: 46.14132134
A73: =HLOOKUP(INDICE!$F$2,Nombres!$C$3:$E$853,94) -> Balance sheet
A74: =HLOOKUP(INDICE!$F$2,Nombres!$C$3:$E$853,31) -> (Constant million euros)
B75: 2014-03-31 | C75: 2014-06-30 | D75: 2014-09-30 | E75: 2014-12-31 | F75: 2015-03-31 | G75: 2015-06-30
A76: =HLOOKUP(INDICE!$F$2,Nombres!$C$3:$E$853,100) -> Cash and balances with central banks | B76: 3183.969338 | C76: 2744.922933 | D76: 3430.708113 | E76: 3925.288218 | F76: 4201.881583 | G76: 5227.042
A77: =HLOOKUP(INDICE!$F$2,Nombres!$C$3:$E$853,101) -> Financial assets | B77: 1293.856705 | C77: 1110.606142 | D77: 1848.79224 | E77: 1213.265225 | F77: 1603.576644 | G77: 1292.679
A78: =HLOOKUP(INDICE!$F$2,Nombres!$C$3:$E$853,102) -> Loans and receivables | B78: 11325.94965 | C78: 11659.48237 | D78: 11770.41893 | E78: 12071.72199 | F78: 12569.02201 | G78: 13140.682
A79: =HLOOKUP(INDICE!$F$2,Nombres!$C$3:$E$853,103) -> . Loans and advances to customers | B79: 10996.42958 | C79: 11342.88731 | D79: 11435.81728 | E79: 11729.62191 | F79: 12034.09536 | G79: 12606.984
A80: =HLOOKUP(INDICE!$F$2,Nombres!$C$3:$E$853,104) -> . Loans and advances to credit institutions and other | B80: 329.5200641 | C80: 316.5950566 | D80: 334.601644 | E80: 342.100077 | F80: 534.9266525 | G80: 533.698
A81: =HLOOKUP(INDICE!$F$2,Nombres!$C$3:$E$853,106) -> Tangible assets | B81: 231.6352536 | C81: 232.7203363 | D81: 234.5196782 | E81: 241.7809704 | F81: 241.0509294 | G81: 236.328
A82: =HLOOKUP(INDICE!$F$2,Nombres!$C$3:$E$853,107) -> Other assets | B82: 493.0066963 | C82: 395.7449204 | D82: 421.2412232 | E82: 429.1690627 | F82: 525.311064 | G82: 326.5915462
A83: =HLOOKUP(INDICE!$F$2,Nombres!$C$3:$E$853,108) -> Total assets / Liabilities and equity | B83: 16528.41764 | C83: 16143.4767 | D83: 17705.68018 | E83: 17881.22546 | F83: 19140.84223 | G83: 20223.32255
A84: =HLOOKUP(INDICE!$F$2,Nombres!$C$3:$E$853,109) -> Deposits from central banks and credit institutions | B84: 1905.643037 | C84: 1841.025585 | D84: 2546.686934 | E84: 2451.633626 | F84: 3100.724314 | G84: 3465.023
A85: =HLOOKUP(INDICE!$F$2,Nombres!$C$3:$E$853,110) -> Deposits from customers | B85: 10330.15007 | C85: 10283.27492 | D85: 10609.7432 | E85: 10704.83652 | F85: 11203.91616 | G85: 12016.855
A86: =HLOOKUP(INDICE!$F$2,Nombres!$C$3:$E$853,111) -> Debt certificates | B86: 1561.388106 | C86: 1608.344963 | D86: 1616.506141 | E86: 1633.298582 | F86: 1666.10485 | G86: 1683.337
A87: =HLOOKUP(INDICE!$F$2,Nombres!$C$3:$E$853,112) -> Subordinated liabilities | B87: 401.6458286 | C87: 397.6479421 | D87: 654.7643911 | E87: 673.2676828 | F87: 678.3563354 | G87: 667.554
A88: =HLOOKUP(INDICE!$F$2,Nombres!$C$3:$E$853,114) -> Financial liabilities held for trading | B88: 122.597671 | C88: 90.29549476 | D88: 153.9449192 | E88: 198.7876489 | F88: 273.593846 | G88: 264.005
A89: =HLOOKUP(INDICE!$F$2,Nombres!$C$3:$E$853,115) -> Other liabilities | B89: 1743.116113 | C89: 1431.730522 | D89: 1641.867451 | E89: 1742.5158 | F89: 1760.444175 | G89: 1671.523336
A90: =HLOOKUP(INDICE!$F$2,Nombres!$C$3:$E$853,116) -> Economic capital allocated | B90: 463.8768153 | C90: 491.1572802 | D90: 482.167146 | E90: 476.8856066 | F90: 457.7025497 | G90: 455.02521
A91: =HLOOKUP(INDICE!$F$2,Nombres!$C$3:$E$853,117) -> Relevant business indicators
A92: =HLOOKUP(INDICE!$F$2,Nombres!$C$3:$E$853,201) -> Annex:
A93: =HLOOKUP(INDICE!$F$2,Nombres!$C$3:$E$853,31) -> (Constant million euros)
B94: 2014-03-31 | C94: 2014-06-30 | D94: 2014-09-30 | E94: 2014-12-31 | F94: 2015-03-31 | G94: 2015-06-30
A95: =HLOOKUP(INDICE!$F$2,Nombres!$C$3:$E$853,118) -> Loans and advances to customers gross | B95: 11477.73916 | C95: 11835.76708 | D95: 11939.38034 | E95: 12228.49399 | F95: 12564.82589 | G95: 13148.773
A96: =HLOOKUP(INDICE!$F$2,Nombres!$C$3:$E$853,121) -> Customer deposits under management (*) | B96: 10031.10956 | C96: 9922.349522 | D96: 10272.38951 | E96: 10369.74659 | F96: 10919.27578 | G96: 11728.56492
A97: =HLOOKUP(INDICE!$F$2,Nombres!$C$3:$E$853,122) -> Mutual funds | B97: 1179.48708 | C97: 1166.667273 | D97: 1221.5449 | E97: 1261.500975 | F97: 1284.265187 | G97: 1300.955384
A98: =HLOOKUP(INDICE!$F$2,Nombres!$C$3:$E$853,206) -> Pension funds | B98: 0 | C98: 0 | D98: 0 | E98: 0 | F98: 0 | G98: 0
A99: =HLOOKUP(INDICE!$F$2,Nombres!$C$3:$E$853,284) -> (*) Excluding repos and including specific marketable debt securities.

Sheet Venezuela
A1: =HLOOKUP(INDICE!$F$2,Nombres!$C$3:$E$853,19) -> Venezuela
A2: =HLOOKUP(INDICE!$F$2,Nombres!$C$3:$E$853,93) -> Income statement
A3: =HLOOKUP(INDICE!$F$2,Nombres!$C$3:$E$853,30) -> (Million euros)
B4: 2014 | F4: 2015
B5: =HLOOKUP(INDICE!$F$2,Nombres!$C$3:$E$857,34) -> 1st Quarter | C5: =HLOOKUP(INDICE!$F$2,Nombres!$C$3:$E$857,35) -> 2nd Quarter | D5: =HLOOKUP(INDICE!$F$2,Nombres!$C$3:$E$857,36) -> 3rd Quarter | E5: =HLOOKUP(INDICE!$F$2,Nombres!$C$3:$E$857,37) -> 4th Quarter | F5: =HLOOKUP(INDICE!$F$2,Nombres!$C$3:$E$857,34) -> 1st Quarter | G5: =HLOOKUP(INDICE!$F$2,Nombres!$C$3:$E$857,35) -> 2nd Quarter
A6: =HLOOKUP(INDICE!$F$2,Nombres!$C$3:$E$853,38) -> Net interest income | B6: 293.1519993 | C6: 447.2290002 | D6: 508.3229998 | E6: 676.2730004 | F6: 38.9629994 | G6: 54.94600128
A7: =HLOOKUP(INDICE!$F$2,Nombres!$C$3:$E$853,39) -> Net fees and commissions | B7: 36.98000004 | C7: 67.18159113 | D7: 83.36582375 | E7: 115.63196 | F7: 6.16599929 | G7: 8.27799836
A8: =HLOOKUP(INDICE!$F$2,Nombres!$C$3:$E$853,40) -> Net trading income | B8: 70.66798494 | C8: 10.53298479 | D8: 19.13144377 | E8: 10.32038517 | F8: 71.92099438 | G8: 17.61195156
A9: =HLOOKUP(INDICE!$F$2,Nombres!$C$3:$E$853,95) -> Other income/expenses | B9: -118.0289989 | C9: -260.2120011 | D9: -244.3850013 | E9: -351.9849998 | F9: -23.24600022 | G9: -47.16400121
A10: =HLOOKUP(INDICE!$F$2,Nombres!$C$3:$E$853,44) -> Gross income | B10: 282.7709854 | C10: 264.7315751 | D10: 366.4352661 | E10: 450.2403457 | F10: 93.80399285 | G10: 33.67194999
A11: =HLOOKUP(INDICE!$F$2,Nombres!$C$3:$E$853,45) -> Operating expenses | B11: -93.56000287 | C11: -139.4099931 | D11: -159.4789995 | E11: -240.764002 | F11: -14.7200051 | G11: -18.75299162
A12: =HLOOKUP(INDICE!$F$2,Nombres!$C$3:$E$853,46) -> Administration expenses | B12: -81.99100182 | C12: -122.0629951 | D12: -139.8629995 | E12: -196.0299999 | F12: -12.88100326 | G12: -16.40799458
A13: =HLOOKUP(INDICE!$F$2,Nombres!$C$3:$E$853,47) -> Personnel expenses | B13: -36.41000094 | C13: -54.71200049 | D13: -58.10799787 | E13: -82.52399842 | F13: -5.42599926 | G13: -6.83000102
A14: =HLOOKUP(INDICE!$F$2,Nombres!$C$3:$E$853,48) -> General and administrative expenses | B14: -45.58100088 | C14: -67.35099456 | D14: -81.75500163 | E14: -113.5060015 | F14: -7.455004 | G14: -9.57799356
A15: =HLOOKUP(INDICE!$F$2,Nombres!$C$3:$E$853,49) -> Depreciation and amortization | B15: -11.56900105 | C15: -17.34699808 | D15: -19.61599997 | E15: -44.73400211 | F15: -1.83900184 | G15: -2.34499704
A16: =HLOOKUP(INDICE!$F$2,Nombres!$C$3:$E$853,50) -> Operating income | B16: 189.2109825 | C16: 125.321582 | D16: 206.9562666 | E16: 209.4763438 | F16: 79.08398775 | G16: 14.91895837
A17: =HLOOKUP(INDICE!$F$2,Nombres!$C$3:$E$853,51) -> Impairment on financial assets (net) | B17: -21.19300056 | C17: -50.4199992 | D17: -69.48100055 | E17: -88.36599979 | F17: -3.39900017 | G17: -6.37600008
A18: =HLOOKUP(INDICE!$F$2,Nombres!$C$3:$E$853,160) -> Provisions (net) and other gains/losses | B18: -16.64000045 | C18: -19.32799952 | D18: -26.68699963 | E18: -42.30600085 | F18: -28.71399929 | G18: -1.8560006
A19: =HLOOKUP(INDICE!$F$2,Nombres!$C$3:$E$853,54) -> Income before tax | B19: 151.3779815 | C19: 55.57358325 | D19: 110.7882664 | E19: 78.80434312 | F19: 46.97098829 | G19: 6.68695769
A20: =HLOOKUP(INDICE!$F$2,Nombres!$C$3:$E$853,55) -> Income tax | B20: -49.08705418 | C20: -24.36155324 | D20: -22.77519769 | E20: -6.52197814 | F20: -20.87899803 | G20: -16.37098374
A21: =HLOOKUP(INDICE!$F$2,Nombres!$C$3:$E$853,56) -> Net income | B21: 102.2909273 | C21: 31.21203001 | D21: 88.01306876 | E21: 72.28236498 | F21: 26.09199026 | G21: -9.68402605
A22: =HLOOKUP(INDICE!$F$2,Nombres!$C$3:$E$853,57) -> Non-controlling interests | B22: -45.752981 | C22: -13.643652 | D22: -39.487664 | E22: -32.441821 | F22: -11.507998 | G22: 4.299014
A23: =HLOOKUP(INDICE!$F$2,Nombres!$C$3:$E$853,58) -> Net attributable profit | B23: 56.53794631 | C23: 17.56837801 | D23: 48.52540476 | E23: 39.84054398 | F23: 14.58399226 | G23: -5.38501205
A24: =HLOOKUP(INDICE!$F$2,Nombres!$C$3:$E$853,94) -> Balance sheet
A25: =HLOOKUP(INDICE!$F$2,Nombres!$C$3:$E$853,30) -> (Million euros)
B26: 2014-03-31 | C26: 2014-06-30 | D26: 2014-09-30 | E26: 2014-12-31 | F26: 2015-03-31 | G26: 2015-06-30
A27: =HLOOKUP(INDICE!$F$2,Nombres!$C$3:$E$853,100) -> Cash and balances with central banks | B27: 4575.765 | C27: 4484.069 | D27: 3724.856 | E27: 5762.085 | F27: 549.406 | G27: 440.285
A28: =HLOOKUP(INDICE!$F$2,Nombres!$C$3:$E$853,101) -> Financial assets | B28: 1767.335 | C28: 1763.637 | D28: 1699.772 | E28: 1756.178 | F28: 253.398 | G28: 264.31
A29: =HLOOKUP(INDICE!$F$2,Nombres!$C$3:$E$853,102) -> Loans and receivables | B29: 8269.536 | C29: 9582.742 | D29: 11510.931 | E29: 13682.894 | F29: 1542.279 | G29: 1687.444
A30: =HLOOKUP(INDICE!$F$2,Nombres!$C$3:$E$853,103) -> . Loans and advances to customers | B30: 6592.568 | C30: 7685.038 | D30: 8874.422 | E30: 10560.779 | F30: 1010.849 | G30: 1161.918
A31: =HLOOKUP(INDICE!$F$2,Nombres!$C$3:$E$853,104) -> . Loans and advances to credit institutions and other | B31: 1676.968 | C31: 1897.704 | D31: 2636.509 | E31: 3122.115 | F31: 531.43 | G31: 525.526
A32: =HLOOKUP(INDICE!$F$2,Nombres!$C$3:$E$853,106) -> Tangible assets | B32: 211.834 | C32: 253.453 | D32: 273.909 | E32: 374.431 | F32: 31.425 | G32: 36.501
A33: =HLOOKUP(INDICE!$F$2,Nombres!$C$3:$E$853,107) -> Other assets | B33: 210.99 | C33: 237.4319286 | D33: 303.4565229 | E33: 412.156052 | F33: 66.013 | G33: 73.588
A34: =HLOOKUP(INDICE!$F$2,Nombres!$C$3:$E$853,108) -> Total assets / Liabilities and equity | B34: 15035.46 | C34: 16321.33293 | D34: 17512.92452 | E34: 21987.74405 | F34: 2442.521 | G34: 2502.128
A35: =HLOOKUP(INDICE!$F$2,Nombres!$C$3:$E$853,109) -> Deposits from central banks and credit institutions | B35: 128.428 | C35: 105.375 | D35: 194.185 | E35: 372.882 | F35: 36.881 | G35: 8.277
A36: =HLOOKUP(INDICE!$F$2,Nombres!$C$3:$E$853,110) -> Deposits from customers | B36: 12633.431 | C36: 13798.061 | D36: 14645.154 | E36: 18340.96 | F36: 1944.454 | G36: 2017.466
A37: =HLOOKUP(INDICE!$F$2,Nombres!$C$3:$E$853,111) -> Debt certificates | B37: 0 | C37: 0 | D37: 0 | E37: 0 | F37: 0 | G37: 0
A38: =HLOOKUP(INDICE!$F$2,Nombres!$C$3:$E$853,112) -> Subordinated liabilities | B38: 0 | C38: 0 | D38: 0 | E38: 0 | F38: 0 | G38: 0
A39: =HLOOKUP(INDICE!$F$2,Nombres!$C$3:$E$853,114) -> Financial liabilities held for trading | B39: 2.058 | C39: 1.882 | D39: 0 | E39: 0 | F39: 0 | G39: 0
A40: =HLOOKUP(INDICE!$F$2,Nombres!$C$3:$E$853,115) -> Other liabilities | B40: 1579.52925 | C40: 1641.769689 | D40: 1806.492285 | E40: 2225.514678 | F40: 373.6168 | G40: 361.43967
A41: =HLOOKUP(INDICE!$F$2,Nombres!$C$3:$E$853,116) -> Economic capital allocated | B41: 692.01375 | C41: 774.24524 | D41: 867.0932381 | E41: 1048.387374 | F41: 87.5692 | G41: 114.94533
A42: =HLOOKUP(INDICE!$F$2,Nombres!$C$3:$E$853,117) -> Relevant business indicators
A43: =HLOOKUP(INDICE!$F$2,Nombres!$C$3:$E$853,201) -> Annex:
A44: =HLOOKUP(INDICE!$F$2,Nombres!$C$3:$E$853,30) -> (Million euros) | B44: 2014-03-31 | C44: 2014-06-30 | D44: 2014-09-30 | E44: 2014-12-31 | F44: 2015-03-31 | G44: 2015-06-30
A45: =HLOOKUP(INDICE!$F$2,Nombres!$C$3:$E$853,118) -> Loans and advances to customers gross | B45: 6812.871 | C45: 7951.88 | D45: 9180.773 | E45: 10936.634 | F45: 1041.626 | G45: 1195.561
A46: =HLOOKUP(INDICE!$F$2,Nombres!$C$3:$E$853,121) -> Customer deposits under management (*) | B46: 12512.23479 | C46: 13662.68636 | D46: 14498.27391 | E46: 18332.53035 | F46: 1922.001585 | G46: 1995.884073
A47: =HLOOKUP(INDICE!$F$2,Nombres!$C$3:$E$853,122) -> Mutual funds | B47: 9.52008647 | C47: 9.75760683 | D47: 9.23858211 | E47: 9.30318539 | F47: 0.66369003 | G47: 0.61977721
A48: =HLOOKUP(INDICE!$F$2,Nombres!$C$3:$E$853,206) -> Pension funds | B48: 0 | C48: 0 | D48: 0 | E48: 0 | F48: 0 | G48: 0
A49: =HLOOKUP(INDICE!$F$2,Nombres!$C$3:$E$853,284) -> (*) Excluding repos and including specific marketable debt securities.
A50: =HLOOKUP(INDICE!$F$2,Nombres!$C$3:$E$853,93) -> Income statement
A51: =HLOOKUP(INDICE!$F$2,Nombres!$C$3:$E$853,31) -> (Constant million euros)
B52: 2014 | F52: 2015
B53: =HLOOKUP(INDICE!$F$2,Nombres!$C$3:$E$857,34) -> 1st Quarter | C53: =HLOOKUP(INDICE!$F$2,Nombres!$C$3:$E$857,35) -> 2nd Quarter | D53: =HLOOKUP(INDICE!$F$2,Nombres!$C$3:$E$857,36) -> 3rd Quarter | E53: =HLOOKUP(INDICE!$F$2,Nombres!$C$3:$E$857,37) -> 4th Quarter | F53: =HLOOKUP(INDICE!$F$2,Nombres!$C$3:$E$857,34) -> 1st Quarter | G53: =HLOOKUP(INDICE!$F$2,Nombres!$C$3:$E$857,35) -> 2nd Quarter
A54: =HLOOKUP(INDICE!$F$2,Nombres!$C$3:$E$853,38) -> Net interest income | B54: 20.54326929 | C54: 28.53809471 | D54: 34.11169887 | E54: 45.67735667 | F54: 36.6415585 | G54: 57.26744218
A55: =HLOOKUP(INDICE!$F$2,Nombres!$C$3:$E$853,39) -> Net fees and commissions | B55: 2.591454607 | C55: 4.313629363 | D55: 5.58865356 | E55: 7.801713191 | F55: 5.798625033 | G55: 8.645372617
A56: =HLOOKUP(INDICE!$F$2,Nombres!$C$3:$E$853,40) -> Net trading income | B56: 4.952214034 | C56: 0.4307635891 | D56: 1.301521497 | E56: 0.72331541 | F56: 67.63589465 | G56: 21.89705129
A57: =HLOOKUP(INDICE!$F$2,Nombres!$C$3:$E$853,95) -> Other income/expenses | B57: -8.271140958 | C57: -16.80322509 | D57: -16.40717328 | E57: -23.76522913 | F57: -21.86098837 | G57: -48.54901306
A58: =HLOOKUP(INDICE!$F$2,Nombres!$C$3:$E$853,44) -> Gross income | B58: 19.81579697 | C58: 16.47926257 | D58: 24.59470065 | E58: 30.43715614 | F58: 88.21508981 | G58: 39.26085303
A59: =HLOOKUP(INDICE!$F$2,Nombres!$C$3:$E$853,45) -> Operating expenses | B59: -6.556422397 | C59: -8.887633006 | D59: -10.7022803 | E59: -16.24504075 | F59: -13.8429776 | G59: -19.63001912
A60: =HLOOKUP(INDICE!$F$2,Nombres!$C$3:$E$853,46) -> Administration expenses | B60: -5.745699275 | C60: -7.781455667 | D60: -9.385807871 | E60: -13.23458386 | F60: -12.11354469 | G60: -17.17545315
A61: =HLOOKUP(INDICE!$F$2,Nombres!$C$3:$E$853,47) -> Personnel expenses | B61: -2.55151067 | C61: -3.489152345 | D61: -3.901565664 | E61: -5.572883928 | F61: -5.102714687 | G61: -7.153285593
A62: =HLOOKUP(INDICE!$F$2,Nombres!$C$3:$E$853,48) -> General and administrative expenses | B62: -3.194188605 | C62: -4.292303322 | D62: -5.484242207 | E62: -7.661699929 | F62: -7.010830002 | G62: -10.02216756
A63: =HLOOKUP(INDICE!$F$2,Nombres!$C$3:$E$853,49) -> Depreciation and amortization | B63: -0.8107231217 | C63: -1.106177339 | D63: -1.316472424 | E63: -3.010456889 | F63: -1.729432912 | G63: -2.454565968
A64: =HLOOKUP(INDICE!$F$2,Nombres!$C$3:$E$853,50) -> Operating income | B64: 13.25937458 | C64: 7.591629566 | D64: 13.89242035 | E64: 14.1921154 | F64: 74.37211221 | G64: 19.63083391
A65: =HLOOKUP(INDICE!$F$2,Nombres!$C$3:$E$853,51) -> Impairment on financial assets (net) | B65: -1.485145995 | C65: -3.262225576 | D65: -4.652808172 | E65: -5.961357816 | F65: -3.196485524 | G65: -6.578514726
A66: =HLOOKUP(INDICE!$F$2,Nombres!$C$3:$E$853,160) -> Provisions (net) and other gains/losses | B66: -1.166084526 | C66: -1.218307429 | D66: -1.789905015 | E66: -2.852471747 | F66: -27.00320049 | G66: -3.566799395
A67: =HLOOKUP(INDICE!$F$2,Nombres!$C$3:$E$853,54) -> Income before tax | B67: 10.60814406 | C67: 3.111096561 | D67: 7.449707163 | E67: 5.378285833 | F67: 44.17242619 | G67: 9.485519791
A68: =HLOOKUP(INDICE!$F$2,Nombres!$C$3:$E$853,55) -> Income tax | B68: -3.439882979 | C68: -1.429174761 | D68: -1.541711403 | E68: -0.4676985969 | F68: -19.63501372 | G68: -17.61496805
A69: =HLOOKUP(INDICE!$F$2,Nombres!$C$3:$E$853,56) -> Net income | B69: 7.168261076 | C69: 1.681921801 | D69: 5.907995759 | E69: 4.910587237 | F69: 24.53741247 | G69: -8.129448262
A70: =HLOOKUP(INDICE!$F$2,Nombres!$C$3:$E$853,57) -> Non-controlling interests | B70: -3.206240489 | C70: -0.7312832545 | D70: -2.65049675 | E70: -2.203799838 | F70: -10.82234398 | G70: 3.613359978
A71: =HLOOKUP(INDICE!$F$2,Nombres!$C$3:$E$853,58) -> Net attributable profit | B71: 3.962020587 | C71: 0.9506385459 | D71: 3.25749901 | E71: 2.706787398 | F71: 13.71506849 | G71: -4.516088284
A73: =HLOOKUP(INDICE!$F$2,Nombres!$C$3:$E$853,94) -> Balance sheet
A74: =HLOOKUP(INDICE!$F$2,Nombres!$C$3:$E$853,31) -> (Constant million euros)
B75: 2014-03-31 | C75: 2014-06-30 | D75: 2014-09-30 | E75: 2014-12-31 | F75: 2015-03-31 | G75: 2015-06-30
A76: =HLOOKUP(INDICE!$F$2,Nombres!$C$3:$E$853,100) -> Cash and balances with central banks | B76: 305.8070793 | C76: 294.0777521 | D76: 254.7842674 | E76: 380.2885435 | F76: 516.6720324 | G76: 440.285
A77: =HLOOKUP(INDICE!$F$2,Nombres!$C$3:$E$853,101) -> Financial assets | B77: 118.11436 | C77: 115.6642336 | D77: 116.2662835 | E77: 115.9049847 | F77: 238.300382 | G77: 264.31
A78: =HLOOKUP(INDICE!$F$2,Nombres!$C$3:$E$853,102) -> Loans and receivables | B78: 552.6688218 | C78: 628.4629488 | D78: 787.3604033 | E78: 903.0494743 | F78: 1450.389012 | G78: 1687.444
A79: =HLOOKUP(INDICE!$F$2,Nombres!$C$3:$E$853,103) -> . Loans and advances to customers | B79: 440.5938603 | C79: 504.0062273 | D79: 607.0202736 | E79: 696.9947969 | F79: 950.6219577 | G79: 1161.918
A80: =HLOOKUP(INDICE!$F$2,Nombres!$C$3:$E$853,104) -> . Loans and advances to credit institutions and other | B80: 112.0749615 | C80: 124.4567214 | D80: 180.3401297 | E80: 206.0546774 | F80: 499.7670542 | G80: 525.526
A81: =HLOOKUP(INDICE!$F$2,Nombres!$C$3:$E$853,106) -> Tangible assets | B81: 14.15726919 | C81: 16.62215468 | D81: 18.73567835 | E81: 24.71185684 | F81: 29.55267802 | G81: 36.501
A82: =HLOOKUP(INDICE!$F$2,Nombres!$C$3:$E$853,107) -> Other assets | B82: 14.10086306 | C82: 15.57144813 | D82: 20.75676157 | E82: 27.20165092 | F82: 62.07990243 | G82: 73.588
A83: =HLOOKUP(INDICE!$F$2,Nombres!$C$3:$E$853,108) -> Total assets / Liabilities and equity | B83: 1004.848393 | C83: 1070.398537 | D83: 1197.903394 | E83: 1451.15651 | F83: 2296.994007 | G83: 2502.128
A84: =HLOOKUP(INDICE!$F$2,Nombres!$C$3:$E$853,109) -> Deposits from central banks and credit institutions | B84: 8.583087545 | C84: 6.910786414 | D84: 13.28246863 | E84: 24.60962528 | F84: 34.68360598 | G84: 8.277
A85: =HLOOKUP(INDICE!$F$2,Nombres!$C$3:$E$853,110) -> Deposits from customers | B85: 844.316226 | C85: 904.9153262 | D85: 1001.744721 | E85: 1210.474501 | F85: 1828.602163 | G85: 2017.466
A86: =HLOOKUP(INDICE!$F$2,Nombres!$C$3:$E$853,111) -> Debt certificates | B86: 0 | C86: 0 | D86: 0 | E86: 0 | F86: 0 | G86: 0
A87: =HLOOKUP(INDICE!$F$2,Nombres!$C$3:$E$853,112) -> Subordinated liabilities | B87: 0 | C87: 0 | D87: 0 | E87: 0 | F87: 0 | G87: 0
A88: =HLOOKUP(INDICE!$F$2,Nombres!$C$3:$E$853,114) -> Financial liabilities held for trading | B88: 0.1375400549 | C88: 0.1234268093 | D88: 0 | E88: 0 | F88: 0 | G88: 0
A89: =HLOOKUP(INDICE!$F$2,Nombres!$C$3:$E$853,115) -> Other liabilities | B89: 105.5629445 | C89: 107.6718354 | D89: 123.566069 | E89: 146.8804669 | F89: 351.3564675 | G89: 361.43967
A90: =HLOOKUP(INDICE!$F$2,Nombres!$C$3:$E$853,116) -> Economic capital allocated | B90: 46.24859531 | C90: 50.77716238 | D90: 59.31013587 | E90: 69.19191711 | F90: 82.35176998 | G90: 114.94533
A91: =HLOOKUP(INDICE!$F$2,Nombres!$C$3:$E$853,117) -> Relevant business indicators
A92: =HLOOKUP(INDICE!$F$2,Nombres!$C$3:$E$853,201) -> Annex:
A93: =HLOOKUP(INDICE!$F$2,Nombres!$C$3:$E$853,31) -> (Constant million euros)
B94: 2014-03-31 | C94: 2014-06-30 | D94: 2014-09-30 | E94: 2014-12-31 | F94: 2015-03-31 | G94: 2015-06-30
A95: =HLOOKUP(INDICE!$F$2,Nombres!$C$3:$E$853,118) -> Loans and advances to customers gross | B95: 455.3171289 | C95: 521.50647 | D95: 627.9750206 | E95: 721.8006355 | F95: 979.5652439 | G95: 1195.561
A96: =HLOOKUP(INDICE!$F$2,Nombres!$C$3:$E$853,121) -> Customer deposits under management (*) | B96: 836.2164525 | C96: 896.0370798 | D96: 991.6979599 | E96: 1209.918157 | F96: 1807.487478 | G96: 1995.884073
A97: =HLOOKUP(INDICE!$F$2,Nombres!$C$3:$E$853,122) -> Mutual funds | B97: 0.6362454886 | C97: 0.6399310721 | D97: 0.6319292276 | E97: 0.6139955974 | F97: 0.6241469454 | G97: 0.61977721
A98: =HLOOKUP(INDICE!$F$2,Nombres!$C$3:$E$853,206) -> Pension funds | B98: 0 | C98: 0 | D98: 0 | E98: 0 | F98: 0 | G98: 0
A99: =HLOOKUP(INDICE!$F$2,Nombres!$C$3:$E$853,284) -> (*) Excluding repos and including specific marketable debt securities.

Sheet AdS_sinVenezuela
A1: =HLOOKUP(INDICE!$F$2,Nombres!$C$3:$E$853,305) -> South America without Venezuela
A2: =HLOOKUP(INDICE!$F$2,Nombres!$C$3:$E$853,93) -> Income statement
A3: =HLOOKUP(INDICE!$F$2,Nombres!$C$3:$E$853,30) -> (Million euros)
B4: 2014 | F4: 2015
B5: =HLOOKUP(INDICE!$F$2,Nombres!$C$3:$E$857,34) -> 1st Quarter | C5: =HLOOKUP(INDICE!$F$2,Nombres!$C$3:$E$857,35) -> 2nd Quarter | D5: =HLOOKUP(INDICE!$F$2,Nombres!$C$3:$E$857,36) -> 3rd Quarter | E5: =HLOOKUP(INDICE!$F$2,Nombres!$C$3:$E$857,37) -> 4th Quarter | F5: =HLOOKUP(INDICE!$F$2,Nombres!$C$3:$E$857,34) -> 1st Quarter | G5: =HLOOKUP(INDICE!$F$2,Nombres!$C$3:$E$857,35) -> 2nd Quarter
A6: =HLOOKUP(INDICE!$F$2,Nombres!$C$3:$E$853,38) -> Net interest income | B6: 640.595386 | C6: 679.615122 | D6: 695.2743695 | E6: 758.042563 | F6: 762.9999619 | G6: 795.4296925
A7: =HLOOKUP(INDICE!$F$2,Nombres!$C$3:$E$853,39) -> Net fees and commissions | B7: 135.7903958 | C7: 151.132422 | D7: 155.4052547 | E7: 155.8314889 | F7: 168.1580066 | G7: 177.5089776
A8: =HLOOKUP(INDICE!$F$2,Nombres!$C$3:$E$853,40) -> Net trading income | B8: 81.73201292 | C8: 82.73567595 | D8: 113.8857388 | E8: 93.04788722 | F8: 108.2274424 | G8: 108.4491785
A9: =HLOOKUP(INDICE!$F$2,Nombres!$C$3:$E$853,95) -> Other income/expenses | B9: 19.13299725 | C9: 23.75900156 | D9: 23.35699931 | E9: 17.94399995 | F9: 25.74200111 | G9: 22.62999881
A10: =HLOOKUP(INDICE!$F$2,Nombres!$C$3:$E$853,44) -> Gross income | B10: 877.2507919 | C10: 937.2422215 | D10: 987.9223623 | E10: 1024.865939 | F10: 1065.127412 | G10: 1104.017847
A11: =HLOOKUP(INDICE!$F$2,Nombres!$C$3:$E$853,45) -> Operating expenses | B11: -401.8128224 | C11: -410.5470093 | D11: -428.3072118 | E11: -442.4735302 | F11: -489.0881328 | G11: -491.4157671
A12: =HLOOKUP(INDICE!$F$2,Nombres!$C$3:$E$853,46) -> Administration expenses | B12: -379.409899 | C12: -388.9114931 | D12: -404.7141447 | E12: -423.8988236 | F12: -464.0784769 | G12: -467.5673038
A13: =HLOOKUP(INDICE!$F$2,Nombres!$C$3:$E$853,47) -> Personnel expenses | B13: -210.0632598 | C13: -215.2661054 | D13: -217.8078333 | E13: -224.0513496 | F13: -260.8638689 | G13: -253.6303959
A14: =HLOOKUP(INDICE!$F$2,Nombres!$C$3:$E$853,48) -> General and administrative expenses | B14: -169.3466392 | C14: -173.6453877 | D14: -186.9063114 | E14: -199.8474741 | F14: -203.214608 | G14: -213.9369079
A15: =HLOOKUP(INDICE!$F$2,Nombres!$C$3:$E$853,49) -> Depreciation and amortization | B15: -22.40292338 | C15: -21.63551619 | D15: -23.59306714 | E15: -18.57470656 | F15: -25.00965587 | G15: -23.84846333
A16: =HLOOKUP(INDICE!$F$2,Nombres!$C$3:$E$853,50) -> Operating income | B16: 475.4379696 | C16: 526.6952122 | D16: 559.6151505 | E16: 582.3924089 | F16: 576.0392792 | G16: 612.6020803
A17: =HLOOKUP(INDICE!$F$2,Nombres!$C$3:$E$853,51) -> Impairment on financial assets (net) | B17: -115.3149992 | C17: -119.1680013 | D17: -129.647998 | E17: -112.4130025 | F17: -133.2880006 | G17: -166.8859996
A18: =HLOOKUP(INDICE!$F$2,Nombres!$C$3:$E$853,160) -> Provisions (net) and other gains/losses | B18: -10.02599917 | C18: -8.39700031 | D18: -23.7870003 | E18: -71.34499759 | F18: -21.66600051 | G18: 6.79299694
A19: =HLOOKUP(INDICE!$F$2,Nombres!$C$3:$E$853,54) -> Income before tax | B19: 350.0969712 | C19: 399.1302106 | D19: 406.1801522 | E19: 398.6344088 | F19: 421.0852781 | G19: 452.5090776
A20: =HLOOKUP(INDICE!$F$2,Nombres!$C$3:$E$853,55) -> Income tax | B20: -92.55915722 | C20: -97.81309376 | D20: -89.17863994 | E20: -107.6904235 | F20: -123.7764223 | G20: -110.8832521
A21: =HLOOKUP(INDICE!$F$2,Nombres!$C$3:$E$853,56) -> Net income | B21: 257.537814 | C21: 301.3171168 | D21: 317.0015123 | E21: 290.9439853 | F21: 297.3088558 | G21: 341.6258255
A22: =HLOOKUP(INDICE!$F$2,Nombres!$C$3:$E$853,57) -> Non-controlling interests | B22: -70.93587257 | C22: -81.22465645 | D22: -92.81213665 | E22: -83.3622599 | F22: -84.58841325 | G22: -89.16038856
A23: =HLOOKUP(INDICE!$F$2,Nombres!$C$3:$E$853,58) -> Net attributable profit | B23: 186.6019414 | C23: 220.0924604 | D23: 224.1893756 | E23: 207.5817254 | F23: 212.7204426 | G23: 252.4654369
A24: =HLOOKUP(INDICE!$F$2,Nombres!$C$3:$E$853,94) -> Balance sheet
A25: =HLOOKUP(INDICE!$F$2,Nombres!$C$3:$E$853,30) -> (Million euros)
B26: 2014-03-31 | C26: 2014-06-30 | D26: 2014-09-30 | E26: 2014-12-31 | F26: 2015-03-31 | G26: 2015-06-30
A27: =HLOOKUP(INDICE!$F$2,Nombres!$C$3:$E$853,100) -> Cash and balances with central banks | B27: 6500.732 | C27: 6159.863 | D27: 6992.887 | E27: 7760.63 | F27: 9237.023 | G27: 9282.187
A28: =HLOOKUP(INDICE!$F$2,Nombres!$C$3:$E$853,101) -> Financial assets | B28: 7524.725 | C28: 7422.185 | D28: 8205.611 | E28: 8914.472 | F28: 10274.481 | G28: 9472.187
A29: =HLOOKUP(INDICE!$F$2,Nombres!$C$3:$E$853,102) -> Loans and receivables | B29: 38955.65827 | C29: 41202.81471 | D29: 43556.2284 | E29: 43529.37348 | F29: 48884.88733 | G29: 47825.72108
A30: =HLOOKUP(INDICE!$F$2,Nombres!$C$3:$E$853,103) -> . Loans and advances to customers | B30: 36107.74127 | C30: 38449.50071 | D30: 40345.8014 | E30: 40741.70448 | F30: 44788.93133 | G30: 43856.42508
A31: =HLOOKUP(INDICE!$F$2,Nombres!$C$3:$E$853,104) -> . Loans and advances to credit institutions and other | B31: 2847.917 | C31: 2753.314 | D31: 3210.427 | E31: 2787.669 | F31: 4095.956 | G31: 3969.296
A32: =HLOOKUP(INDICE!$F$2,Nombres!$C$3:$E$853,106) -> Tangible assets | B32: 583.466 | C32: 603.971 | D32: 643.787 | E32: 688.008 | F32: 776.839 | G32: 730.874
A33: =HLOOKUP(INDICE!$F$2,Nombres!$C$3:$E$853,107) -> Other assets | B33: 1367.957 | C33: 1325.355 | D33: 1709.302 | E33: 1484.921 | F33: 1913.231 | G33: 1627.661
A34: =HLOOKUP(INDICE!$F$2,Nombres!$C$3:$E$853,108) -> Total assets / Liabilities and equity | B34: 54932.53827 | C34: 56714.18871 | D34: 61107.8154 | E34: 62377.40448 | F34: 71086.46133 | G34: 68938.63008
A35: =HLOOKUP(INDICE!$F$2,Nombres!$C$3:$E$853,109) -> Deposits from central banks and credit institutions | B35: 4288.492 | C35: 4255.232 | D35: 4984.128 | E35: 5397.28 | F35: 7037.736 | G35: 6399.071
A36: =HLOOKUP(INDICE!$F$2,Nombres!$C$3:$E$853,110) -> Deposits from customers | B36: 35425.031 | C36: 36544.713 | D36: 37450.915 | E36: 38028.938 | F36: 42110.754 | G36: 41320.054
A37: =HLOOKUP(INDICE!$F$2,Nombres!$C$3:$E$853,111) -> Debt certificates | B37: 3783.181 | C37: 4266.398 | D37: 4656.833 | E37: 4676.737 | F37: 5314.727 | G37: 5119.176
A38: =HLOOKUP(INDICE!$F$2,Nombres!$C$3:$E$853,112) -> Subordinated liabilities | B38: 1243.008339 | C38: 1262.393339 | D38: 1540.795338 | E38: 1658.236338 | F38: 1813.877 | G38: 2056.328
A39: =HLOOKUP(INDICE!$F$2,Nombres!$C$3:$E$853,114) -> Financial liabilities held for trading | B39: 1356.418 | C39: 1376.169 | D39: 2405.108 | E39: 2647.652 | F39: 3659.251 | G39: 3444.762
A40: =HLOOKUP(INDICE!$F$2,Nombres!$C$3:$E$853,115) -> Other liabilities | B40: 6621.713936 | C40: 6704.458176 | D40: 7743.041573 | E40: 7609.097914 | F40: 8594.014346 | G40: 8120.490916
A41: =HLOOKUP(INDICE!$F$2,Nombres!$C$3:$E$853,116) -> Economic capital allocated | B41: 2214.69399 | C41: 2304.82519 | D41: 2326.994492 | E41: 2359.463226 | F41: 2556.10198 | G41: 2478.74816
A42: =HLOOKUP(INDICE!$F$2,Nombres!$C$3:$E$853,117) -> Relevant business indicators
A43: =HLOOKUP(INDICE!$F$2,Nombres!$C$3:$E$853,201) -> Annex:
A44: =HLOOKUP(INDICE!$F$2,Nombres!$C$3:$E$853,30) -> (Million euros) | B44: 2014-03-31 | C44: 2014-06-30 | D44: 2014-09-30 | E44: 2014-12-31 | F44: 2015-03-31 | G44: 2015-06-30
A45: =HLOOKUP(INDICE!$F$2,Nombres!$C$3:$E$853,118) -> Loans and advances to customers gross | B45: 37263.89927 | C45: 39657.01971 | D45: 41624.5704 | E45: 41983.15048 | F45: 46170.67633 | G45: 45207.47208
A46: =HLOOKUP(INDICE!$F$2,Nombres!$C$3:$E$853,121) -> Customer deposits under management (*) | B46: 35431.98185 | C46: 36298.97648 | D46: 37579.75635 | E46: 38287.08836 | F46: 42312.55841 | G46: 41288.4787
A47: =HLOOKUP(INDICE!$F$2,Nombres!$C$3:$E$853,122) -> Mutual funds | B47: 3210.262251 | C47: 3161.074042 | D47: 3725.647988 | E47: 3838.255249 | F47: 4399.145487 | G47: 4327.048615
A48: =HLOOKUP(INDICE!$F$2,Nombres!$C$3:$E$853,206) -> Pension funds | B48: 3656.447729 | C48: 3828.208599 | D48: 4285.031887 | E48: 4631.60694 | F48: 5410.975285 | G48: 5381.215325
A49: =HLOOKUP(INDICE!$F$2,Nombres!$C$3:$E$853,284) -> (*) Excluding repos and including specific marketable debt securities.
A50: =HLOOKUP(INDICE!$F$2,Nombres!$C$3:$E$853,93) -> Income statement
A51: =HLOOKUP(INDICE!$F$2,Nombres!$C$3:$E$853,31) -> (Constant million euros)
B52: 2014 | F52: 2015
B53: =HLOOKUP(INDICE!$F$2,Nombres!$C$3:$E$857,34) -> 1st Quarter | C53: =HLOOKUP(INDICE!$F$2,Nombres!$C$3:$E$857,35) -> 2nd Quarter | D53: =HLOOKUP(INDICE!$F$2,Nombres!$C$3:$E$857,36) -> 3rd Quarter | E53: =HLOOKUP(INDICE!$F$2,Nombres!$C$3:$E$857,37) -> 4th Quarter | F53: =HLOOKUP(INDICE!$F$2,Nombres!$C$3:$E$857,34) -> 1st Quarter | G53: =HLOOKUP(INDICE!$F$2,Nombres!$C$3:$E$857,35) -> 2nd Quarter
A54: =HLOOKUP(INDICE!$F$2,Nombres!$C$3:$E$853,38) -> Net interest income | B54: 679.2740276 | C54: 721.1789577 | D54: 725.0518605 | E54: 793.8812856 | F54: 762.2608949 | G54: 796.1687595
A55: =HLOOKUP(INDICE!$F$2,Nombres!$C$3:$E$853,39) -> Net fees and commissions | B55: 145.8346722 | C55: 164.3726053 | D55: 166.5168417 | E55: 165.244667 | F55: 167.7332436 | G55: 177.9337406
A56: =HLOOKUP(INDICE!$F$2,Nombres!$C$3:$E$853,40) -> Net trading income | B56: 87.35885806 | C56: 89.78895766 | D56: 122.1815404 | E56: 97.61901771 | F56: 108.289869 | G56: 108.3867519
A57: =HLOOKUP(INDICE!$F$2,Nombres!$C$3:$E$853,95) -> Other income/expenses | B57: 19.67451887 | C57: 25.8732971 | D57: 25.1038407 | E57: 19.07102431 | F57: 25.80410136 | G57: 22.56789856
A58: =HLOOKUP(INDICE!$F$2,Nombres!$C$3:$E$853,44) -> Gross income | B58: 932.1420767 | C58: 1001.213818 | D58: 1038.854083 | E58: 1075.815995 | F58: 1064.088109 | G58: 1105.05715
A59: =HLOOKUP(INDICE!$F$2,Nombres!$C$3:$E$853,45) -> Operating expenses | B59: -426.614968 | C59: -439.9032268 | D59: -451.4963681 | E59: -464.2616187 | F59: -488.4308254 | G59: -492.0730745
A60: =HLOOKUP(INDICE!$F$2,Nombres!$C$3:$E$853,46) -> Administration expenses | B60: -402.8723701 | C60: -417.0704267 | D60: -427.0807539 | E60: -444.4323555 | F60: -463.5042788 | G60: -468.141502
A61: =HLOOKUP(INDICE!$F$2,Nombres!$C$3:$E$853,47) -> Personnel expenses | B61: -223.3884134 | C61: -231.4544515 | D61: -230.3881285 | E61: -235.9025523 | F61: -260.3891447 | G61: -254.1051201
A62: =HLOOKUP(INDICE!$F$2,Nombres!$C$3:$E$853,48) -> General and administrative expenses | B62: -179.4839567 | C62: -185.6159751 | D62: -196.6926255 | E62: -208.5298033 | F62: -203.1151341 | G62: -214.0363819
A63: =HLOOKUP(INDICE!$F$2,Nombres!$C$3:$E$853,49) -> Depreciation and amortization | B63: -23.74259789 | C63: -22.83280012 | D63: -24.4156142 | E63: -19.82926318 | F63: -24.92654662 | G63: -23.93157258
A64: =HLOOKUP(INDICE!$F$2,Nombres!$C$3:$E$853,50) -> Operating income | B64: 505.5271087 | C64: 561.310591 | D64: 587.3577152 | E64: 611.5543759 | F64: 575.6572835 | G64: 612.9840759
A65: =HLOOKUP(INDICE!$F$2,Nombres!$C$3:$E$853,51) -> Impairment on financial assets (net) | B65: -122.5203315 | C65: -125.6329677 | D65: -133.9122383 | E65: -116.6838979 | F65: -133.563182 | G65: -166.6108182
A66: =HLOOKUP(INDICE!$F$2,Nombres!$C$3:$E$853,160) -> Provisions (net) and other gains/losses | B66: -10.7811511 | C66: -9.695818124 | D66: -26.44075474 | E66: -77.30778768 | F66: -21.59805211 | G66: 6.725048545
A67: =HLOOKUP(INDICE!$F$2,Nombres!$C$3:$E$853,54) -> Income before tax | B67: 372.2256262 | C67: 425.9818052 | D67: 427.0047222 | E67: 417.5626903 | F67: 420.4960494 | G67: 453.0983063
A68: =HLOOKUP(INDICE!$F$2,Nombres!$C$3:$E$853,55) -> Income tax | B68: -97.78270564 | C68: -104.1816794 | D68: -92.20949273 | E68: -112.8879602 | F68: -123.5471219 | G68: -111.1125525
A69: =HLOOKUP(INDICE!$F$2,Nombres!$C$3:$E$853,56) -> Net income | B69: 274.4429205 | C69: 321.8001257 | D69: 334.7952295 | E69: 304.6747301 | F69: 296.9489275 | G69: 341.9857538
A70: =HLOOKUP(INDICE!$F$2,Nombres!$C$3:$E$853,57) -> Non-controlling interests | B70: -77.57542854 | C70: -89.4751104 | D70: -100.9830859 | E70: -88.74062726 | F70: -84.45343311 | G70: -89.2953687
A71: =HLOOKUP(INDICE!$F$2,Nombres!$C$3:$E$853,58) -> Net attributable profit | B71: 196.867492 | C71: 232.3250153 | D71: 233.8121436 | E71: 215.9341028 | F71: 212.4954944 | G71: 252.6903851
A73: =HLOOKUP(INDICE!$F$2,Nombres!$C$3:$E$853,94) -> Balance sheet
A74: =HLOOKUP(INDICE!$F$2,Nombres!$C$3:$E$853,31) -> (Constant million euros)
B75: 2014-03-31 | C75: 2014-06-30 | D75: 2014-09-30 | E75: 2014-12-31 | F75: 2015-03-31 | G75: 2015-06-30
A76: =HLOOKUP(INDICE!$F$2,Nombres!$C$3:$E$853,100) -> Cash and balances with central banks | B76: 6842.295817 | C76: 6388.235463 | D76: 7053.638827 | E76: 7855.863035 | F76: 8665.289441 | G76: 9282.187
A77: =HLOOKUP(INDICE!$F$2,Nombres!$C$3:$E$853,101) -> Financial assets | B77: 7622.888287 | C77: 7408.071319 | D77: 8173.427733 | E77: 9069.023397 | F77: 9797.103078 | G77: 9472.187
A78: =HLOOKUP(INDICE!$F$2,Nombres!$C$3:$E$853,102) -> Loans and receivables | B78: 40534.83691 | C78: 41964.30625 | D78: 43558.03697 | E78: 44322.84833 | F78: 46129.1095 | G78: 47825.72108
A79: =HLOOKUP(INDICE!$F$2,Nombres!$C$3:$E$853,103) -> . Loans and advances to customers | B79: 37526.52423 | C79: 39062.60084 | D79: 40213.48839 | E79: 41470.12082 | F79: 42269.92514 | G79: 43856.42508
A80: =HLOOKUP(INDICE!$F$2,Nombres!$C$3:$E$853,104) -> . Loans and advances to credit institutions and other | B80: 3008.312681 | C80: 2901.705409 | D80: 3344.548579 | E80: 2852.727503 | F80: 3859.184363 | G80: 3969.296
A81: =HLOOKUP(INDICE!$F$2,Nombres!$C$3:$E$853,106) -> Tangible assets | B81: 614.3141365 | C81: 626.8408712 | D81: 649.6633337 | E81: 699.7647632 | F81: 730.3469487 | G81: 730.874
A82: =HLOOKUP(INDICE!$F$2,Nombres!$C$3:$E$853,107) -> Other assets | B82: 1440.051526 | C82: 1361.806213 | D82: 1737.880261 | E82: 1517.270746 | F82: 1808.23638 | G82: 1627.661
A83: =HLOOKUP(INDICE!$F$2,Nombres!$C$3:$E$853,108) -> Total assets / Liabilities and equity | B83: 57054.38668 | C83: 57749.26012 | D83: 61172.64712 | E83: 63464.77027 | F83: 67130.08535 | G83: 68938.63008
A84: =HLOOKUP(INDICE!$F$2,Nombres!$C$3:$E$853,109) -> Deposits from central banks and credit institutions | B84: 4568.494374 | C84: 4462.277125 | D84: 5136.823598 | E84: 5510.550842 | F84: 6639.865271 | G84: 6399.071
A85: =HLOOKUP(INDICE!$F$2,Nombres!$C$3:$E$853,110) -> Deposits from customers | B85: 36531.30761 | C85: 36877.32469 | D85: 37058.26569 | E85: 38599.16665 | F85: 39687.10175 | G85: 41320.054
A86: =HLOOKUP(INDICE!$F$2,Nombres!$C$3:$E$853,111) -> Debt certificates | B86: 4042.612136 | C86: 4497.798801 | D86: 4841.422518 | E86: 4804.509538 | F86: 5018.537416 | G86: 5119.176
A87: =HLOOKUP(INDICE!$F$2,Nombres!$C$3:$E$853,112) -> Subordinated liabilities | B87: 1290.888087 | C87: 1284.098907 | D87: 1552.931332 | E87: 1683.657761 | F87: 1714.243565 | G87: 2056.328
A88: =HLOOKUP(INDICE!$F$2,Nombres!$C$3:$E$853,114) -> Financial liabilities held for trading | B88: 1439.280422 | C88: 1438.667484 | D88: 2458.887405 | E88: 2721.07099 | F88: 3481.64717 | G88: 3444.762
A89: =HLOOKUP(INDICE!$F$2,Nombres!$C$3:$E$853,115) -> Other liabilities | B89: 6950.90764 | C89: 6923.671336 | D89: 7881.085833 | E89: 7786.279622 | F89: 8175.353359 | G89: 8120.490916
A90: =HLOOKUP(INDICE!$F$2,Nombres!$C$3:$E$853,116) -> Economic capital allocated | B90: 2230.896411 | C90: 2265.421777 | D90: 2243.230752 | E90: 2359.534867 | F90: 2413.336812 | G90: 2478.74816
A91: =HLOOKUP(INDICE!$F$2,Nombres!$C$3:$E$853,117) -> Relevant business indicators
A92: =HLOOKUP(INDICE!$F$2,Nombres!$C$3:$E$853,201) -> Annex:
A93: =HLOOKUP(INDICE!$F$2,Nombres!$C$3:$E$853,31) -> (Constant million euros)
B94: 2014-03-31 | C94: 2014-06-30 | D94: 2014-09-30 | E94: 2014-12-31 | F94: 2015-03-31 | G94: 2015-06-30
A95: =HLOOKUP(INDICE!$F$2,Nombres!$C$3:$E$853,118) -> Loans and advances to customers gross | B95: 38730.00334 | C95: 40290.86526 | D95: 41482.24236 | E95: 42731.55248 | F95: 43573.25343 | G95: 45207.47208
A96: =HLOOKUP(INDICE!$F$2,Nombres!$C$3:$E$853,121) -> Customer deposits under management (*) | B96: 36528.27282 | C96: 36608.15329 | D96: 37181.91654 | E96: 38867.2618 | F96: 39885.60665 | G96: 41288.4787
A97: =HLOOKUP(INDICE!$F$2,Nombres!$C$3:$E$853,122) -> Mutual funds | B97: 3367.181938 | C97: 3260.034093 | D97: 3774.419702 | E97: 3925.931592 | F97: 4154.68476 | G97: 4327.048615
A98: =HLOOKUP(INDICE!$F$2,Nombres!$C$3:$E$853,206) -> Pension funds | B98: 4505.771709 | C98: 4672.952226 | D98: 4818.858538 | E98: 5025.649843 | F98: 5202.998553 | G98: 5381.215325
A99: =HLOOKUP(INDICE!$F$2,Nombres!$C$3:$E$853,284) -> (*) Excluding repos and including specific marketable debt securities.

Sheet Resto de Eurasia
A1: =HLOOKUP(INDICE!$F$2,Nombres!$C$3:$E$853,184) -> Rest of Eurasia
A2: =HLOOKUP(INDICE!$F$2,Nombres!$C$3:$E$853,93) -> Income statement
A3: =HLOOKUP(INDICE!$F$2,Nombres!$C$3:$E$853,30) -> (Million euros)
B4: 2014 | F4: 2015
B5: =HLOOKUP(INDICE!$F$2,Nombres!$C$3:$E$857,34) -> 1st Quarter | C5: =HLOOKUP(INDICE!$F$2,Nombres!$C$3:$E$857,35) -> 2nd Quarter | D5: =HLOOKUP(INDICE!$F$2,Nombres!$C$3:$E$857,36) -> 3rd Quarter | E5: =HLOOKUP(INDICE!$F$2,Nombres!$C$3:$E$857,37) -> 4th Quarter | F5: =HLOOKUP(INDICE!$F$2,Nombres!$C$3:$E$857,34) -> 1st Quarter | G5: =HLOOKUP(INDICE!$F$2,Nombres!$C$3:$E$857,35) -> 2nd Quarter
A6: =HLOOKUP(INDICE!$F$2,Nombres!$C$3:$E$853,38) -> Net interest income | B6: 47.33471787 | C6: 47.79871852 | D6: 49.94009346 | E6: 43.78986058 | F6: 46.3167853 | G6: 38.98655649
A7: =HLOOKUP(INDICE!$F$2,Nombres!$C$3:$E$853,39) -> Net fees and commissions | B7: 47.18769953 | C7: 49.2224688 | D7: 44.67667034 | E7: 46.30841053 | F7: 45.51863519 | G7: 44.86949046
A8: =HLOOKUP(INDICE!$F$2,Nombres!$C$3:$E$853,40) -> Net trading income | B8: 42.84832279 | C8: 51.86429322 | D8: 25.27883155 | E8: 30.00676567 | F8: 73.42216023 | G8: 15.89961881
A9: =HLOOKUP(INDICE!$F$2,Nombres!$C$3:$E$853,95) -> Other income/expenses | B9: 18.90306078 | C9: 157.8069256 | D9: 18.85367917 | E9: 13.78575273 | F9: -1.40023639 | G9: 1.50184945
A10: =HLOOKUP(INDICE!$F$2,Nombres!$C$3:$E$853,44) -> Gross income | B10: 156.273801 | C10: 306.6924061 | D10: 138.7492745 | E10: 133.8907895 | F10: 163.8573443 | G10: 101.2575152
A11: =HLOOKUP(INDICE!$F$2,Nombres!$C$3:$E$853,45) -> Operating expenses | B11: -86.026503 | C11: -78.67287601 | D11: -88.19227027 | E11: -89.95224709 | F11: -89.84415032 | G11: -86.10209205
A12: =HLOOKUP(INDICE!$F$2,Nombres!$C$3:$E$853,46) -> Administration expenses | B12: -83.35005737 | C12: -76.01928617 | D12: -85.54749477 | E12: -86.2085315 | F12: -86.22710655 | G12: -82.58290573
A13: =HLOOKUP(INDICE!$F$2,Nombres!$C$3:$E$853,47) -> Personnel expenses | B13: -51.12524674 | C13: -40.09200425 | D13: -47.91834666 | E13: -46.09022703 | F13: -51.42449924 | G13: -48.90420056
A14: =HLOOKUP(INDICE!$F$2,Nombres!$C$3:$E$853,48) -> General and administrative expenses | B14: -32.22481063 | C14: -35.92728192 | D14: -37.62914811 | E14: -40.11830447 | F14: -34.80260731 | G14: -33.67870517
A15: =HLOOKUP(INDICE!$F$2,Nombres!$C$3:$E$853,49) -> Depreciation and amortization | B15: -2.67644563 | C15: -2.65358984 | D15: -2.6447755 | E15: -3.74371559 | F15: -3.61704377 | G15: -3.51918632
A16: =HLOOKUP(INDICE!$F$2,Nombres!$C$3:$E$853,50) -> Operating income | B16: 70.24729797 | C16: 228.0195301 | D16: 50.55700425 | E16: 43.93854242 | F16: 74.01319401 | G16: 15.15542316
A17: =HLOOKUP(INDICE!$F$2,Nombres!$C$3:$E$853,51) -> Impairment on financial assets (net) | B17: -24.15598497 | C17: -17.74837295 | D17: -14.67261315 | E17: 0.36999792 | F17: -22.13536695 | G17: -5.62934671
A18: =HLOOKUP(INDICE!$F$2,Nombres!$C$3:$E$853,160) -> Provisions (net) and other gains/losses | B18: 2.38625548 | C18: -6.062854 | D18: 1.93762981 | E18: -14.56561801 | F18: 4.09722439 | G18: 0.86933723
A19: =HLOOKUP(INDICE!$F$2,Nombres!$C$3:$E$853,54) -> Income before tax | B19: 48.47756848 | C19: 204.2083031 | D19: 37.82202091 | E19: 29.74292233 | F19: 55.97505145 | G19: 10.39541368
A20: =HLOOKUP(INDICE!$F$2,Nombres!$C$3:$E$853,55) -> Income tax | B20: -11.05751298 | C20: -33.1959989 | D20: -10.49497441 | E20: -10.55334435 | F20: -19.66401539 | G20: -3.46082416
A21: =HLOOKUP(INDICE!$F$2,Nombres!$C$3:$E$853,56) -> Net income | B21: 37.4200555 | C21: 171.0123042 | D21: 27.3270465 | E21: 19.18957798 | F21: 36.31103606 | G21: 6.93458952
A22: =HLOOKUP(INDICE!$F$2,Nombres!$C$3:$E$853,57) -> Non-controlling interests | B22: 0 | C22: 0 | D22: 0 | E22: 0 | F22: 0 | G22: 0
A23: =HLOOKUP(INDICE!$F$2,Nombres!$C$3:$E$853,58) -> Net attributable profit | B23: 37.4200555 | C23: 171.0123042 | D23: 27.3270465 | E23: 19.18957798 | F23: 36.31103606 | G23: 6.93458952
A25: =HLOOKUP(INDICE!$F$2,Nombres!$C$3:$E$853,94) -> Balance sheet
A26: =HLOOKUP(INDICE!$F$2,Nombres!$C$3:$E$853,30) -> (Million euros) | B26: 2014-03-31 | C26: 2014-06-30 | D26: 2014-09-30 | E26: 2014-12-31 | F26: 2015-03-31 | G26: 2015-06-30
A27: =HLOOKUP(INDICE!$F$2,Nombres!$C$3:$E$853,100) -> Cash and balances with central banks | B27: 173.667011 | C27: 190.8010502 | D27: 204.1465078 | E27: 198.4359516 | F27: 246.5384704 | G27: 277.0391691
A28: =HLOOKUP(INDICE!$F$2,Nombres!$C$3:$E$853,101) -> Financial assets | B28: 4228.716325 | C28: 4376.048735 | D28: 4640.778326 | E28: 5119.222814 | F28: 3474.074152 | G28: 3134.222616
A29: =HLOOKUP(INDICE!$F$2,Nombres!$C$3:$E$853,102) -> Loans and receivables | B29: 17221.83173 | C29: 17214.25962 | D29: 17618.31971 | E29: 16277.03431 | F29: 17188.79888 | G29: 15890.0662
A30: =HLOOKUP(INDICE!$F$2,Nombres!$C$3:$E$853,103) -> . Loans and advances to customers | B30: 15949.28131 | C30: 15625.61115 | D30: 16018.88603 | E30: 15101.06986 | F30: 16186.92075 | G30: 15070.46613
A31: =HLOOKUP(INDICE!$F$2,Nombres!$C$3:$E$853,104) -> . Loans and advances to credit institutions and other | B31: 1272.550423 | C31: 1588.648469 | D31: 1599.433681 | E31: 1175.964444 | F31: 1001.878128 | G31: 819.6000632
A32: =HLOOKUP(INDICE!$F$2,Nombres!$C$3:$E$853,105) -> Inter-area positions | B32: 0 | C32: 0 | D32: 0 | E32: 0 | F32: 0 | G32: 0
A33: =HLOOKUP(INDICE!$F$2,Nombres!$C$3:$E$853,106) -> Tangible assets | B33: 81.70771687 | C33: 79.35615132 | D33: 77.14566966 | E33: 52.12531934 | F33: 52.06968357 | G33: 51.1739064
A34: =HLOOKUP(INDICE!$F$2,Nombres!$C$3:$E$853,107) -> Other assets | B34: 314.3841291 | C34: 292.903067 | D34: 287.6688667 | E34: 677.8641855 | F34: 621.4667735 | G34: 599.6518223
A35: =HLOOKUP(INDICE!$F$2,Nombres!$C$3:$E$853,108) -> Total assets / Liabilities and equity | B35: 22020.30691 | C35: 22153.36862 | D35: 22828.05908 | E35: 22324.68258 | F35: 21582.94796 | G35: 19952.15371
A36: =HLOOKUP(INDICE!$F$2,Nombres!$C$3:$E$853,109) -> Deposits from central banks and credit institutions | B36: 5282.16882 | C36: 5295.246391 | D36: 4775.791935 | E36: 5443.347815 | F36: 6069.971965 | G36: 5652.015498
A37: =HLOOKUP(INDICE!$F$2,Nombres!$C$3:$E$853,110) -> Deposits from customers | B37: 8525.464623 | C37: 7734.683775 | D37: 8766.615023 | E37: 11044.86847 | F37: 12968.67992 | G37: 11809.39356
A38: =HLOOKUP(INDICE!$F$2,Nombres!$C$3:$E$853,111) -> Debt certificates | B38: 0.36899974 | C38: 0.36499973 | D38: 0.3609997 | E38: 0.35699968 | F38: 0.35299964 | G38: 0.34799966
A39: =HLOOKUP(INDICE!$F$2,Nombres!$C$3:$E$853,112) -> Subordinated liabilities | B39: 516.2194888 | C39: 528.5961439 | D39: 540.4253958 | E39: 609.4983566 | F39: 331.4077461 | G39: 324.9001276
A40: =HLOOKUP(INDICE!$F$2,Nombres!$C$3:$E$853,113) -> Inter-area positions | B40: 5486.174348 | C40: 6122.539749 | D40: 5920.549227 | E40: 1274.999737 | F40: 309.8291931 | G40: 444.2270963
A41: =HLOOKUP(INDICE!$F$2,Nombres!$C$3:$E$853,114) -> Financial liabilities held for trading | B41: 190.2707305 | C41: 202.4167692 | D41: 212.4773956 | E41: 216.5282674 | F41: 114.7857125 | G41: 96.71122938
A42: =HLOOKUP(INDICE!$F$2,Nombres!$C$3:$E$853,115) -> Other liabilities | B42: -45.71957671 | C42: 154.1790614 | D42: 449.0838859 | E42: 1296.053346 | F42: 461.1780705 | G42: 324.0018932
A43: =HLOOKUP(INDICE!$F$2,Nombres!$C$3:$E$853,116) -> Economic capital allocated | B43: 2065.35948 | C43: 2115.34173 | D43: 2162.755221 | E43: 2439.029584 | F43: 1326.74235 | G43: 1300.55631
A45: =HLOOKUP(INDICE!$F$2,Nombres!$C$3:$E$853,117) -> Relevant business indicators
A46: =HLOOKUP(INDICE!$F$2,Nombres!$C$3:$E$853,201) -> Annex:
A47: =HLOOKUP(INDICE!$F$2,Nombres!$C$3:$E$853,30) -> (Million euros) | B47: 2014-03-31 | C47: 2014-06-30 | D47: 2014-09-30 | E47: 2014-12-31 | F47: 2015-03-31 | G47: 2015-06-30
A48: =HLOOKUP(INDICE!$F$2,Nombres!$C$3:$E$853,118) -> Loans and advances to customers gross | B48: 16675.91082 | C48: 16364.43347 | D48: 16767.87861 | E48: 15794.97996 | F48: 16867.73442 | G48: 15742.08219
A49: =HLOOKUP(INDICE!$F$2,Nombres!$C$3:$E$853,121) -> Customer deposits under management (*) | B49: 8424.547756 | C49: 7631.003296 | D49: 8662.712123 | E49: 10940.63137 | F49: 12858.37184 | G49: 11706.85656
A50: =HLOOKUP(INDICE!$F$2,Nombres!$C$3:$E$853,122) -> Mutual funds | B50: 997.7474402 | C50: 1139.030734 | D50: 1190.981481 | E50: 1204.959394 | F50: 1235.601297 | G50: 1184.799755
A51: =HLOOKUP(INDICE!$F$2,Nombres!$C$3:$E$853,206) -> Pension funds | B51: 289.6856519 | C51: 307.1623594 | D51: 323.5049714 | E51: 314.2638427 | F51: 365.2814697 | G51: 338.2145414
A52: =HLOOKUP(INDICE!$F$2,Nombres!$C$3:$E$853,298) -> (*) Excluding repos.

Sheet Centro Corporativo
A1: =HLOOKUP(INDICE!$F$2,Nombres!$C$3:$E$853,25) -> Corporate Center
A4: =HLOOKUP(INDICE!$F$2,Nombres!$C$3:$E$853,93) -> Income statement
A5: =HLOOKUP(INDICE!$F$2,Nombres!$C$3:$E$853,30) -> (Million euros)
B7: 2014 | F7: 2015
B8: =HLOOKUP(INDICE!$F$2,Nombres!$C$3:$E$857,34) -> 1st Quarter | C8: =HLOOKUP(INDICE!$F$2,Nombres!$C$3:$E$857,35) -> 2nd Quarter | D8: =HLOOKUP(INDICE!$F$2,Nombres!$C$3:$E$857,36) -> 3rd Quarter | E8: =HLOOKUP(INDICE!$F$2,Nombres!$C$3:$E$857,37) -> 4th Quarter | F8: =HLOOKUP(INDICE!$F$2,Nombres!$C$3:$E$857,34) -> 1st Quarter | G8: =HLOOKUP(INDICE!$F$2,Nombres!$C$3:$E$857,35) -> 2nd Quarter
A9: =HLOOKUP(INDICE!$F$2,Nombres!$C$3:$E$853,38) -> Net interest income | B9: -178.5306004 | C9: -146.5469554 | D9: -171.4691052 | E9: -154.2312973 | F9: -129.2437018 | G9: -95.99563236
A10: =HLOOKUP(INDICE!$F$2,Nombres!$C$3:$E$853,39) -> Net fees and commissions | B10: -19.75984051 | C10: -37.70175166 | D10: -13.84207198 | E10: -19.89638619 | F10: -22.57925721 | G10: -42.49359343
A11: =HLOOKUP(INDICE!$F$2,Nombres!$C$3:$E$853,40) -> Net trading income | B11: 15.5886897 | C11: -30.21492492 | D11: 46.82828141 | E11: -18.02258521 | F11: 91.22010059 | G11: 56.62124057
A12: =HLOOKUP(INDICE!$F$2,Nombres!$C$3:$E$853,95) -> Other income/expenses | B12: -41.85587158 | C12: 103.8285543 | D12: -10.34277186 | E12: 101.3895154 | F12: -25.0963173 | G12: 104.8659385
A13: =HLOOKUP(INDICE!$F$2,Nombres!$C$3:$E$853,44) -> Gross income | B13: -224.5576228 | C13: -110.6350776 | D13: -148.8256676 | E13: -90.76075326 | F13: -85.69917568 | G13: 22.99795331
A14: =HLOOKUP(INDICE!$F$2,Nombres!$C$3:$E$853,45) -> Operating expenses | B14: -278.980275 | C14: -238.1524785 | D14: -235.2978367 | E14: -241.8408721 | F14: -257.2035804 | G14: -285.0583055
A15: =HLOOKUP(INDICE!$F$2,Nombres!$C$3:$E$853,46) -> Administration expenses | B15: -163.7613475 | C15: -122.3335669 | D15: -120.016205 | E15: -128.9030206 | F15: -142.7370322 | G15: -168.380877
A16: =HLOOKUP(INDICE!$F$2,Nombres!$C$3:$E$853,47) -> Personnel expenses | B16: -123.7764453 | C16: -96.11720508 | D16: -122.2153127 | E16: -111.9689525 | F16: -122.8090991 | G16: -142.5238517
A17: =HLOOKUP(INDICE!$F$2,Nombres!$C$3:$E$853,48) -> General and administrative expenses | B17: -39.98490215 | C17: -26.21636181 | D17: 2.199107667 | E17: -16.93406809 | F17: -19.92793312 | G17: -25.85702529
A18: =HLOOKUP(INDICE!$F$2,Nombres!$C$3:$E$853,49) -> Depreciation and amortization | B18: -115.2189275 | C18: -115.8189116 | D18: -115.2816316 | E18: -112.9378515 | F18: -114.4665482 | G18: -116.6774285
A19: =HLOOKUP(INDICE!$F$2,Nombres!$C$3:$E$853,50) -> Operating income | B19: -503.5378977 | C19: -348.7875562 | D19: -384.1235043 | E19: -332.6016254 | F19: -342.9027561 | G19: -262.0603522
A20: =HLOOKUP(INDICE!$F$2,Nombres!$C$3:$E$853,51) -> Impairment on financial assets (net) | B20: -4.083755 | C20: 2.9230524 | D20: 8.13149381 | E20: -11.41651264 | F20: 2.10053638 | G20: 3.34848417
A21: =HLOOKUP(INDICE!$F$2,Nombres!$C$3:$E$853,160) -> Provisions (net) and other gains/losses | B21: -51.34427315 | C21: -51.81215998 | D21: -48.18787406 | E21: -130.9094502 | F21: -7.85795453 | G21: -44.99317247
A22: =HLOOKUP(INDICE!$F$2,Nombres!$C$3:$E$853,54) -> Income before tax | B22: -558.9659259 | C22: -397.6766638 | D22: -424.1798846 | E22: -474.9275882 | F22: -348.6601743 | G22: -303.7050405
A23: =HLOOKUP(INDICE!$F$2,Nombres!$C$3:$E$853,55) -> Income tax | B23: 137.4253427 | C23: 67.16017702 | D23: 34.3478573 | E23: 201.9260289 | F23: 103.8061433 | G23: 68.22885152
A24: =HLOOKUP(INDICE!$F$2,Nombres!$C$3:$E$853,269) -> Net income from ongoing operations | B24: -421.5405832 | C24: -330.5164867 | D24: -389.8320273 | E24: -273.0015593 | F24: -244.854031 | G24: -235.4761889
A25: =HLOOKUP(INDICE!$F$2,Nombres!$C$3:$E$853,270) -> Result from corporate operations | B25: 0 | C25: 0 | D25: 0 | E25: 0 | F25: 582.942 | G25: 144.274
A26: =HLOOKUP(INDICE!$F$2,Nombres!$C$3:$E$853,56) -> Net income | B26: -421.5405832 | C26: -330.5164867 | D26: -389.8320273 | E26: -273.0015593 | F26: 338.087969 | G26: -91.20218893
A27: =HLOOKUP(INDICE!$F$2,Nombres!$C$3:$E$853,57) -> Non-controlling interests | B27: -3.43714643 | C27: 0.87788345 | D27: 0.64892165 | E27: -0.7589191 | F27: -5.07254575 | G27: -11.62562544
A28: =HLOOKUP(INDICE!$F$2,Nombres!$C$3:$E$853,58) -> Net attributable profit | B28: -424.9777296 | C28: -329.6386033 | D28: -389.1831056 | E28: -273.7604784 | F28: 333.0154232 | G28: -102.8278144
A29: =HLOOKUP(INDICE!$F$2,Nombres!$C$3:$E$853,296) -> Net attributable profit (excluding results from corporate operations) | B29: -424.9777296 | C29: -329.6386033 | D29: -389.1831056 | E29: -273.7604784 | F29: -249.9265768 | G29: -247.1018144
A31: =HLOOKUP(INDICE!$F$2,Nombres!$C$3:$E$853,94) -> Balance sheet
A32: =HLOOKUP(INDICE!$F$2,Nombres!$C$3:$E$853,30) -> (Million euros)
B34: 2014-03-31 | C34: 2014-06-30 | D34: 2014-09-30 | E34: 2014-12-31 | F34: 2015-03-31 | G34: 2015-06-30
A35: =HLOOKUP(INDICE!$F$2,Nombres!$C$3:$E$853,100) -> Cash and balances with central banks | B35: 21.2876474 | C35: 19.57324333 | D35: 15.56087889 | E35: 14.30829954 | F35: 14.58921347 | G35: 12.63383027
A36: =HLOOKUP(INDICE!$F$2,Nombres!$C$3:$E$853,101) -> Financial assets | B36: 3164.228413 | C36: 3452.50722 | D36: 3400.530037 | E36: 3194.161367 | F36: 3504.043746 | G36: 3491.338076
A37: =HLOOKUP(INDICE!$F$2,Nombres!$C$3:$E$853,102) -> Loans and receivables | B37: 80.58072554 | C37: 35.71317945 | D37: 38.99843963 | E37: 23.98171381 | F37: 30.23714095 | G37: 89.61791276
A38: =HLOOKUP(INDICE!$F$2,Nombres!$C$3:$E$853,103) -> . Loans and advances to customers | B38: 80.58072554 | C38: 35.71117945 | D38: 38.99443963 | E38: 23.98271381 | F38: 30.23714095 | G38: 89.61391276
A39: =HLOOKUP(INDICE!$F$2,Nombres!$C$3:$E$853,104) -> . Loans and advances to credit institutions and other | B39: - | C39: - | D39: - | E39: - | F39: - | G39: -
A40: =HLOOKUP(INDICE!$F$2,Nombres!$C$3:$E$853,105) -> Inter-area positions | B40: - | C40: - | D40: - | E40: - | F40: - | G40: -
A41: =HLOOKUP(INDICE!$F$2,Nombres!$C$3:$E$853,106) -> Tangible assets | B41: 2084.627026 | C41: 2097.480351 | D41: 2159.972503 | E41: 2245.21863 | F41: 2309.927688 | G41: 2775.296961
A42: =HLOOKUP(INDICE!$F$2,Nombres!$C$3:$E$853,107) -> Other assets | B42: 16540.28412 | C42: 16721.34042 | D42: 17755.20713 | E42: 18198.65392 | F42: 18081.7817 | G42: 22645.21737
A43: =HLOOKUP(INDICE!$F$2,Nombres!$C$3:$E$853,108) -> Total assets / Liabilities and equity | B43: 21891.00793 | C43: 22326.61441 | D43: 23370.26899 | E43: 23676.32393 | F43: 23939.65548 | G43: 29014.10415
A44: =HLOOKUP(INDICE!$F$2,Nombres!$C$3:$E$853,109) -> Deposits from central banks and credit institutions | B44: - | C44: - | D44: - | E44: - | F44: - | G44: -
A45: =HLOOKUP(INDICE!$F$2,Nombres!$C$3:$E$853,110) -> Deposits from customers | B45: - | C45: - | D45: - | E45: - | F45: - | G45: -
A46: =HLOOKUP(INDICE!$F$2,Nombres!$C$3:$E$853,111) -> Debt certificates | B46: 6048.608102 | C46: 4618.561236 | D46: 4874.926941 | E46: 5875.247323 | F46: 5339.479458 | G46: 5900.328014
A47: =HLOOKUP(INDICE!$F$2,Nombres!$C$3:$E$853,112) -> Subordinated liabilities | B47: 2965.44901 | C47: 4504.16016 | D47: 4691.270562 | E47: 3958.101963 | F47: 5197.729184 | G47: 4780.235946
A48: =HLOOKUP(INDICE!$F$2,Nombres!$C$3:$E$853,113) -> Inter-area positions | B48: -13335.36733 | C48: -13938.79714 | D48: -14383.33685 | E48: -14624.8475 | F48: -19565.15703 | G48: -12505.27347
A49: =HLOOKUP(INDICE!$F$2,Nombres!$C$3:$E$853,114) -> Financial liabilities held for trading | B49: - | C49: - | D49: - | E49: - | F49: - | G49: 0.002
A50: =HLOOKUP(INDICE!$F$2,Nombres!$C$3:$E$853,115) -> Other liabilities | B50: 4610.676744 | C50: 5846.19678 | D50: 7066.824864 | E50: 6800.674117 | F50: 7181.054202 | G50: 6499.035116
A51: =HLOOKUP(INDICE!$F$2,Nombres!$C$3:$E$853,135) -> Shareholders' funds | B51: 46165.427 | C51: 46226.447 | D51: 46164.701 | E51: 47602.517 | F51: 49632.823 | G51: 49567.365
A52: =HLOOKUP(INDICE!$F$2,Nombres!$C$3:$E$853,116) -> Economic capital allocated | B52: -24563.7966 | C52: -24929.95863 | D52: -25044.11853 | E52: -25936.27397 | F52: -23845.35533 | G52: -25227.59846

Sheet Grupo BBVA sin V
A1: =HLOOKUP(INDICE!$F$2,Nombres!$C$3:$E$853,303) -> BBVA Group without Venezuela
A2: =HLOOKUP(INDICE!$F$2,Nombres!$C$3:$E$853,30) -> (Million euros)
B3: 2014 | F3: 2015
B4: =HLOOKUP(INDICE!$F$2,Nombres!$C$3:$E$857,34) -> 1st Quarter | C4: =HLOOKUP(INDICE!$F$2,Nombres!$C$3:$E$857,35) -> 2nd Quarter | D4: =HLOOKUP(INDICE!$F$2,Nombres!$C$3:$E$857,36) -> 3rd Quarter | E4: =HLOOKUP(INDICE!$F$2,Nombres!$C$3:$E$857,37) -> 4th Quarter | F4: =HLOOKUP(INDICE!$F$2,Nombres!$C$3:$E$857,34) -> 1st Quarter | G4: =HLOOKUP(INDICE!$F$2,Nombres!$C$3:$E$857,35) -> 2nd Quarter
A5: =HLOOKUP(INDICE!$F$2,Nombres!$C$3:$E$853,38) -> Net interest income | B5: 3097.435001 | C5: 3200.222 | D5: 3321.599 | E5: 3572.025 | F5: 3624.003001 | G5: 3802.798999
A6: =HLOOKUP(INDICE!$F$2,Nombres!$C$3:$E$853,39) -> Net fees and commissions | B6: 948.196 | C6: 1033.992409 | D6: 1027.898176 | E6: 1051.93404 | F6: 1070.599001 | G6: 1131.354002
A7: =HLOOKUP(INDICE!$F$2,Nombres!$C$3:$E$853,40) -> Net trading income | B7: 679.9910151 | C7: 415.2820152 | D7: 424.9805562 | E7: 504.0706148 | F7: 703.3500056 | G7: 632.1710484
A8: =HLOOKUP(INDICE!$F$2,Nombres!$C$3:$E$853,41) -> Dividends | B8: 28.536 | C8: 342.071 | D8: 41.577 | E8: 118.765 | F8: 41.867 | G8: 194.2300004
A9: =HLOOKUP(INDICE!$F$2,Nombres!$C$3:$E$853,42) -> Income by the equity method | B9: -13.683 | C9: 16.359 | D9: 31.065 | E9: 3.223 | F9: 2.89 | G9: 18.1
A10: =HLOOKUP(INDICE!$F$2,Nombres!$C$3:$E$853,43) -> Other operating income and expenses | B10: 27.66099889 | C10: 44.66200105 | D10: 9.76000126 | E10: 64.85699984 | F10: 95.66700022 | G10: 109.4270008
A11: =HLOOKUP(INDICE!$F$2,Nombres!$C$3:$E$853,44) -> Gross income | B11: 4768.136015 | C11: 5052.588425 | D11: 4856.879734 | E11: 5314.874654 | F11: 5538.376007 | G11: 5888.08105
A12: =HLOOKUP(INDICE!$F$2,Nombres!$C$3:$E$853,45) -> Operating expenses | B12: -2519.385997 | C12: -2522.805007 | D12: -2610.897001 | E12: -2664.631998 | F12: -2760.797995 | G12: -2923.273008
A13: =HLOOKUP(INDICE!$F$2,Nombres!$C$3:$E$853,46) -> Administration expenses | B13: -2252.073998 | C13: -2254.320006 | D13: -2334.981 | E13: -2389.265001 | F13: -2471.281995 | G13: -2626.902006
A14: =HLOOKUP(INDICE!$F$2,Nombres!$C$3:$E$853,47) -> Personnel expenses | B14: -1338.495 | C14: -1304.332998 | D14: -1379.436002 | E14: -1355.393004 | F14: -1454.523 | G14: -1530.814005
A15: =HLOOKUP(INDICE!$F$2,Nombres!$C$3:$E$853,48) -> General and administrative expenses | B15: -913.5789982 | C15: -949.9870074 | D15: -955.5449973 | E15: -1033.871997 | F15: -1016.758995 | G15: -1096.088001
A16: =HLOOKUP(INDICE!$F$2,Nombres!$C$3:$E$853,49) -> Depreciation and amortization | B16: -267.3119987 | C16: -268.4850011 | D16: -275.916001 | E16: -275.366997 | F16: -289.5159995 | G16: -296.3710027
A17: =HLOOKUP(INDICE!$F$2,Nombres!$C$3:$E$853,50) -> Operating income | B17: 2248.750018 | C17: 2529.783418 | D17: 2245.982733 | E17: 2650.242656 | F17: 2777.578012 | G17: 2964.808042
A18: =HLOOKUP(INDICE!$F$2,Nombres!$C$3:$E$853,51) -> Impairment on financial assets (net) | B18: -1082.178999 | C18: -1022.728001 | D18: -1072.211999 | E18: -1079.622 | F18: -1116.032 | G18: -1082.499
A19: =HLOOKUP(INDICE!$F$2,Nombres!$C$3:$E$853,52) -> Provisions | B19: -127.943 | C19: -280.3249997 | D19: -174.4080004 | E19: -467.883 | F19: -200.7920004 | G19: -161.6669997
A20: =HLOOKUP(INDICE!$F$2,Nombres!$C$3:$E$853,53) -> Other gains (losses) | B20: -173.1389995 | C20: -189.9990008 | D20: -134.185 | E20: -203.7359992 | F20: -65.86600031 | G20: -123.1319997
A21: =HLOOKUP(INDICE!$F$2,Nombres!$C$3:$E$853,54) -> Income before tax | B21: 865.4890185 | C21: 1036.731417 | D21: 865.1777335 | E21: 899.0016569 | F21: 1394.888012 | G21: 1597.510042
A22: =HLOOKUP(INDICE!$F$2,Nombres!$C$3:$E$853,55) -> Income tax | B22: -224.1539458 | C22: -267.9734468 | D22: -219.8868023 | E22: -166.4170219 | F22: -365.251002 | G22: -412.6310163
A23: =HLOOKUP(INDICE!$F$2,Nombres!$C$3:$E$853,269) -> Net income from ongoing operations | B23: 641.3350727 | C23: 768.75797 | D23: 645.2909312 | E23: 732.584635 | F23: 1029.63701 | G23: 1184.879026
A24: =HLOOKUP(INDICE!$F$2,Nombres!$C$3:$E$853,270) -> Result from corporate operations | B24: 0 | C24: 0 | D24: 0 | E24: 0 | F24: 582.942 | G24: 144.274
A25: =HLOOKUP(INDICE!$F$2,Nombres!$C$3:$E$853,56) -> Net income | B25: 641.3350727 | C25: 768.75797 | D25: 645.2909312 | E25: 732.584635 | F25: 1612.57901 | G25: 1329.153026
A26: =HLOOKUP(INDICE!$F$2,Nombres!$C$3:$E$853,57) -> Non-controlling interests | B26: -73.961019 | C26: -81.845348 | D26: -92.824336 | E26: -83.791179 | F26: -91.169002 | G26: -101.196014
A27: =HLOOKUP(INDICE!$F$2,Nombres!$C$3:$E$853,58) -> Net attributable profit | B27: 567.3740537 | C27: 686.912622 | D27: 552.4665952 | E27: 648.793456 | F27: 1521.410008 | G27: 1227.957012
A28: =HLOOKUP(INDICE!$F$2,Nombres!$C$3:$E$853,242) -> Net attributable profit (excluding results from corporate operations) (**) | B28: 567.3740537 | C28: 686.912622 | D28: 552.4665952 | E28: 648.793456 | F28: 938.4680077 | G28: 1083.683012
A29: =HLOOKUP(INDICE!$F$2,Nombres!$C$3:$E$853,289) -> (*) Financial statements with the revenues and expenses of the Garanti Group consolidated in proportion to the percentage of the Group's stake.
A30: =HLOOKUP(INDICE!$F$2,Nombres!$C$3:$E$853,29) -> (**) 2015 includes the capitral gains from the various sale operations equivalent to 6.34 of BBVA Group's stake in CNCB and the badwill from Catalunya Banc operation.
A31: =HLOOKUP(INDICE!$F$2,Nombres!$C$3:$E$853,290) -> Consolidated income statement (*)
A32: =HLOOKUP(INDICE!$F$2,Nombres!$C$3:$E$853,31) -> (Constant million euros)
B33: 2014 | F33: 2015
B34: =HLOOKUP(INDICE!$F$2,Nombres!$C$3:$E$857,34) -> 1st Quarter | C34: =HLOOKUP(INDICE!$F$2,Nombres!$C$3:$E$857,35) -> 2nd Quarter | D34: =HLOOKUP(INDICE!$F$2,Nombres!$C$3:$E$857,36) -> 3rd Quarter | E34: =HLOOKUP(INDICE!$F$2,Nombres!$C$3:$E$857,37) -> 4th Quarter | F34: =HLOOKUP(INDICE!$F$2,Nombres!$C$3:$E$857,34) -> 1st Quarter | G34: =HLOOKUP(INDICE!$F$2,Nombres!$C$3:$E$857,35) -> 2nd Quarter
A35: =HLOOKUP(INDICE!$F$2,Nombres!$C$3:$E$853,38) -> Net interest income | B35: 3310.747019 | C35: 3390.037307 | D35: 3456.611695 | E35: 3691.229134 | F35: 3616.164543 | G35: 3810.637457
A36: =HLOOKUP(INDICE!$F$2,Nombres!$C$3:$E$853,39) -> Net fees and commissions | B36: 1011.858301 | C36: 1097.403817 | D36: 1074.101356 | E36: 1088.845268 | F36: 1069.032533 | G36: 1132.920469
A37: =HLOOKUP(INDICE!$F$2,Nombres!$C$3:$E$853,40) -> Net trading income | B37: 698.8044512 | C37: 434.1914259 | D37: 439.1059892 | E37: 511.7064194 | F37: 704.1346328 | G37: 631.3864212
A38: =HLOOKUP(INDICE!$F$2,Nombres!$C$3:$E$853,41) -> Dividends | B38: 29.67113405 | C38: 343.9010336 | D38: 42.85642001 | E38: 119.4803133 | F38: 41.92993414 | G38: 194.1670663
A39: =HLOOKUP(INDICE!$F$2,Nombres!$C$3:$E$853,42) -> Income by the equity method | B39: -12.99863402 | C39: 16.88376035 | D39: 31.63241405 | E39: 3.651972172 | F39: 2.834293824 | G39: 18.15570618
A40: =HLOOKUP(INDICE!$F$2,Nombres!$C$3:$E$853,43) -> Other operating income and expenses | B40: 33.85217838 | C40: 49.96736277 | D40: 11.98854546 | E40: 69.94154482 | F40: 95.21234857 | G40: 109.8816524
A41: =HLOOKUP(INDICE!$F$2,Nombres!$C$3:$E$853,44) -> Gross income | B41: 5071.93445 | C41: 5332.384706 | D41: 5056.29642 | E41: 5484.854653 | F41: 5529.308285 | G41: 5897.148772
A42: =HLOOKUP(INDICE!$F$2,Nombres!$C$3:$E$853,45) -> Operating expenses | B42: -2675.376846 | C42: -2672.3742 | D42: -2724.966658 | E42: -2753.439806 | F42: -2757.984321 | G42: -2926.086682
A43: =HLOOKUP(INDICE!$F$2,Nombres!$C$3:$E$853,46) -> Administration expenses | B43: -2392.400957 | C43: -2389.720132 | D43: -2438.063152 | E43: -2469.47721 | F43: -2468.582001 | G43: -2629.602
A44: =HLOOKUP(INDICE!$F$2,Nombres!$C$3:$E$853,47) -> Personnel expenses | B44: -1421.210464 | C44: -1384.433164 | D44: -1440.395356 | E44: -1402.170914 | F44: -1453.399449 | G44: -1531.937556
A45: =HLOOKUP(INDICE!$F$2,Nombres!$C$3:$E$853,48) -> General and administrative expenses | B45: -971.1904928 | C45: -1005.286967 | D45: -997.6677955 | E45: -1067.306296 | F45: -1015.182552 | G45: -1097.664444
A46: =HLOOKUP(INDICE!$F$2,Nombres!$C$3:$E$853,49) -> Depreciation and amortization | B46: -282.9758895 | C46: -282.6540682 | D46: -286.9035059 | E46: -283.9625962 | F46: -289.40232 | G46: -296.4846822
A47: =HLOOKUP(INDICE!$F$2,Nombres!$C$3:$E$853,50) -> Operating income | B47: 2396.557603 | C47: 2660.010506 | D47: 2331.329762 | E47: 2731.414846 | F47: 2771.323964 | G47: 2971.06209
A48: =HLOOKUP(INDICE!$F$2,Nombres!$C$3:$E$853,51) -> Impairment on financial assets (net) | B48: -1121.544067 | C48: -1056.891381 | D48: -1089.367516 | E48: -1096.314494 | F48: -1113.927083 | G48: -1084.603917
A49: =HLOOKUP(INDICE!$F$2,Nombres!$C$3:$E$853,52) -> Provisions | B49: -130.0916221 | C49: -285.4950533 | D49: -178.6275399 | E49: -471.3432061 | F49: -200.6449205 | G49: -161.8140796
A50: =HLOOKUP(INDICE!$F$2,Nombres!$C$3:$E$853,53) -> Other gains (losses) | B50: -173.966613 | C50: -190.6247435 | D50: -135.0346154 | E50: -203.3040811 | F50: -65.98797078 | G50: -123.0100292
A51: =HLOOKUP(INDICE!$F$2,Nombres!$C$3:$E$853,54) -> Income before tax | B51: 970.955301 | C51: 1126.999328 | D51: 928.3000904 | E51: 960.4530654 | F51: 1390.76399 | G51: 1601.634064
A52: =HLOOKUP(INDICE!$F$2,Nombres!$C$3:$E$853,55) -> Income tax | B52: -250.5287258 | C52: -290.4755258 | D52: -232.2863451 | E52: -182.5325611 | F52: -364.2845036 | G52: -413.5975146
A53: =HLOOKUP(INDICE!$F$2,Nombres!$C$3:$E$853,269) -> Net income from ongoing operations | B53: 720.4265752 | C53: 836.5238019 | D53: 696.0137453 | E53: 777.9205044 | F53: 1026.479486 | G53: 1188.036549
A54: =HLOOKUP(INDICE!$F$2,Nombres!$C$3:$E$853,270) -> Result from corporate operations | B54: 0 | C54: 0 | D54: 0 | E54: 0 | F54: 582.942 | G54: 144.274
A55: =HLOOKUP(INDICE!$F$2,Nombres!$C$3:$E$853,56) -> Net income | B55: 720.4265752 | C55: 836.5238019 | D55: 696.0137453 | E55: 777.9205044 | F55: 1609.421486 | G55: 1332.310549
A56: =HLOOKUP(INDICE!$F$2,Nombres!$C$3:$E$853,57) -> Non-controlling interests | B56: -80.61149676 | C56: -90.10362532 | D56: -100.9994081 | E56: -89.17475177 | F56: -91.03347667 | G56: -101.3315393
A57: =HLOOKUP(INDICE!$F$2,Nombres!$C$3:$E$853,58) -> Net attributable profit | B57: 639.8150785 | C57: 746.4201766 | D57: 595.0143372 | E57: 688.7457526 | F57: 1518.38801 | G57: 1230.97901
A58: =HLOOKUP(INDICE!$F$2,Nombres!$C$3:$E$853,242) -> Net attributable profit (excluding results from corporate operations) (**) | B58: 639.8150785 | C58: 746.4201766 | D58: 595.0143372 | E58: 688.7457526 | F58: 935.4460097 | G58: 1086.70501
A60: =HLOOKUP(INDICE!$F$2,Nombres!$C$3:$E$853,289) -> (*) Financial statements with the revenues and expenses of the Garanti Group consolidated in proportion to the percentage of the Group's stake.
A61: =HLOOKUP(INDICE!$F$2,Nombres!$C$3:$E$853,29) -> (**) 2015 includes the capitral gains from the various sale operations equivalent to 6.34 of BBVA Group's stake in CNCB and the badwill from Catalunya Banc operation.

Sheet Corporate & Investment Banking
A1: =HLOOKUP(INDICE!$F$2,Nombres!$C$3:$E$853,186) -> Corporate & Investment Banking
A2: =HLOOKUP(INDICE!$F$2,Nombres!$C$3:$E$853,93) -> Income statement
A3: =HLOOKUP(INDICE!$F$2,Nombres!$C$3:$E$853,30) -> (Million euros)
B4: 2014 | F4: 2015
B5: =HLOOKUP(INDICE!$F$2,Nombres!$C$3:$E$857,34) -> 1st Quarter | C5: =HLOOKUP(INDICE!$F$2,Nombres!$C$3:$E$857,35) -> 2nd Quarter | D5: =HLOOKUP(INDICE!$F$2,Nombres!$C$3:$E$857,36) -> 3rd Quarter | E5: =HLOOKUP(INDICE!$F$2,Nombres!$C$3:$E$857,37) -> 4th Quarter | F5: =HLOOKUP(INDICE!$F$2,Nombres!$C$3:$E$857,34) -> 1st Quarter | G5: =HLOOKUP(INDICE!$F$2,Nombres!$C$3:$E$857,35) -> 2nd Quarter
A6: =HLOOKUP(INDICE!$F$2,Nombres!$C$3:$E$853,38) -> Net interest income | B6: 369.5692744 | C6: 381.6345056 | D6: 381.6799541 | E6: 381.8915124 | F6: 341.7458007 | G6: 361.2487016
A7: =HLOOKUP(INDICE!$F$2,Nombres!$C$3:$E$853,39) -> Net fees and commissions | B7: 174.6528209 | C7: 197.3005757 | D7: 173.0870978 | E7: 182.346106 | F7: 186.4529889 | G7: 176.3134117
A8: =HLOOKUP(INDICE!$F$2,Nombres!$C$3:$E$853,40) -> Net trading income | B8: 251.4399071 | C8: 20.58793137 | D8: 98.33160374 | E8: 164.1825197 | F8: 232.6830278 | G8: 213.863747
A9: =HLOOKUP(INDICE!$F$2,Nombres!$C$3:$E$853,95) -> Other income/expenses | B9: -5.57774109 | C9: 54.30976511 | D9: -1.14656823 | E9: 6.34844151 | F9: 15.54303812 | G9: 50.85717512
A10: =HLOOKUP(INDICE!$F$2,Nombres!$C$3:$E$853,44) -> Gross income | B10: 790.0842614 | C10: 653.8327778 | D10: 651.9520874 | E10: 734.7685796 | F10: 776.4248555 | G10: 802.2830354
A11: =HLOOKUP(INDICE!$F$2,Nombres!$C$3:$E$853,45) -> Operating expenses | B11: -214.9736563 | C11: -234.1146933 | D11: -235.9639791 | E11: -234.7062293 | F11: -243.0044129 | G11: -247.6346251
A12: =HLOOKUP(INDICE!$F$2,Nombres!$C$3:$E$853,46) -> Administration expenses | B12: -210.4634194 | C12: -229.4390808 | D12: -231.3620916 | E12: -229.2630636 | F12: -237.413676 | G12: -241.9351627
A13: =HLOOKUP(INDICE!$F$2,Nombres!$C$3:$E$853,47) -> Personnel expenses | B13: -117.5249908 | C13: -118.7130814 | D13: -120.5629364 | E13: -117.3321208 | F13: -124.0050658 | G13: -127.8460631
A14: =HLOOKUP(INDICE!$F$2,Nombres!$C$3:$E$853,48) -> General and administrative expenses | B14: -92.93842865 | C14: -110.7259994 | D14: -110.7991552 | E14: -111.9309429 | F14: -113.4086103 | G14: -114.0890996
A15: =HLOOKUP(INDICE!$F$2,Nombres!$C$3:$E$853,49) -> Depreciation and amortization | B15: -4.51023693 | C15: -4.675612498 | D15: -4.601887512 | E15: -5.44316572 | F15: -5.59073684 | G15: -5.69946238
A16: =HLOOKUP(INDICE!$F$2,Nombres!$C$3:$E$853,50) -> Operating income | B16: 575.110605 | C16: 419.7180845 | D16: 415.9881083 | E16: 500.0623502 | F16: 533.4204427 | G16: 554.6484103
A17: =HLOOKUP(INDICE!$F$2,Nombres!$C$3:$E$853,51) -> Impairment on financial assets (net) | B17: -43.60987563 | C17: -73.28843684 | D17: -33.39386834 | E17: -49.97884014 | F17: -22.74455201 | G17: -23.65797448
A18: =HLOOKUP(INDICE!$F$2,Nombres!$C$3:$E$853,160) -> Provisions (net) and other gains/losses | B18: 3.18211238 | C18: -11.56541768 | D18: 4.74191944 | E18: -62.00897058 | F18: 2.37578977 | G18: 5.07429323
A19: =HLOOKUP(INDICE!$F$2,Nombres!$C$3:$E$853,54) -> Income before tax | B19: 534.6828418 | C19: 334.86423 | D19: 387.3361594 | E19: 388.0745395 | F19: 513.0516804 | G19: 536.0647291
A20: =HLOOKUP(INDICE!$F$2,Nombres!$C$3:$E$853,55) -> Income tax | B20: -162.2944059 | C20: -83.95173967 | D20: -102.5860904 | E20: -104.3797302 | F20: -144.49104 | G20: -164.3708334
A21: =HLOOKUP(INDICE!$F$2,Nombres!$C$3:$E$853,56) -> Net income | B21: 372.3884358 | C21: 250.9124903 | D21: 284.750069 | E21: 283.6948093 | F21: 368.5606405 | G21: 371.6938957
A22: =HLOOKUP(INDICE!$F$2,Nombres!$C$3:$E$853,57) -> Non-controlling interests | B22: -36.1811654 | C22: -35.21729956 | D22: -37.15863576 | E22: -31.58149187 | F22: -46.37386099 | G22: -27.29992165
A23: =HLOOKUP(INDICE!$F$2,Nombres!$C$3:$E$853,58) -> Net attributable profit | B23: 336.2072704 | C23: 215.6951908 | D23: 247.5914332 | E23: 252.1133174 | F23: 322.1867795 | G23: 344.393974
A24: =HLOOKUP(INDICE!$F$2,Nombres!$C$3:$E$853,94) -> Balance sheet
A25: =HLOOKUP(INDICE!$F$2,Nombres!$C$3:$E$853,30) -> (Million euros)
B26: 2014-03-31 | C26: 2014-06-30 | D26: 2014-09-30 | E26: 2014-12-31 | F26: 2015-03-31 | G26: 2015-06-30
A27: =HLOOKUP(INDICE!$F$2,Nombres!$C$3:$E$853,100) -> Cash and balances with central banks | B27: 2837.769519 | C27: 4014.919326 | D27: 4252.676069 | E27: 3296.945466 | F27: 3423.756509 | G27: 2680.932438
A28: =HLOOKUP(INDICE!$F$2,Nombres!$C$3:$E$853,101) -> Financial assets | B28: 84630.94246 | C28: 88782.41984 | D28: 97761.37521 | E28: 93647.73661 | F28: 103224.4314 | G28: 93237.02549
A29: =HLOOKUP(INDICE!$F$2,Nombres!$C$3:$E$853,102) -> Loans and receivables | B29: 65180.63038 | C29: 72481.89701 | D29: 73707.2707 | E29: 76096.0093 | F29: 89074.65957 | G29: 81740.92594
A30: =HLOOKUP(INDICE!$F$2,Nombres!$C$3:$E$853,103) -> . Loans and advances to customers | B30: 48385.20848 | C30: 50336.29689 | D30: 50889.0824 | E30: 51841.48113 | F30: 57593.07161 | G30: 55455.48238
A31: =HLOOKUP(INDICE!$F$2,Nombres!$C$3:$E$853,104) -> . Loans and advances to credit institutions and other | B31: 16795.4219 | C31: 22145.60012 | D31: 22818.1883 | E31: 24254.52817 | F31: 31481.58796 | G31: 26285.44357
A32: =HLOOKUP(INDICE!$F$2,Nombres!$C$3:$E$853,105) -> Inter-area positions | B32: 0 | C32: 0 | D32: 0 | E32: 3212.294523 | F32: 0 | G32: 0
A33: =HLOOKUP(INDICE!$F$2,Nombres!$C$3:$E$853,106) -> Tangible assets | B33: 25.18688848 | C33: 24.19525095 | D33: 24.44187792 | E33: 23.48639101 | F33: 56.20733664 | G33: 51.41260095
A34: =HLOOKUP(INDICE!$F$2,Nombres!$C$3:$E$853,107) -> Other assets | B34: 3443.855049 | C34: 4277.478971 | D34: 4859.590734 | E34: 3424.029208 | F34: 4967.556359 | G34: 3045.301578
A35: =HLOOKUP(INDICE!$F$2,Nombres!$C$3:$E$853,108) -> Total assets / Liabilities and equity | B35: 156118.3843 | C35: 169580.9104 | D35: 180605.3546 | E35: 179700.5015 | F35: 200746.6111 | G35: 180755.5981
A36: =HLOOKUP(INDICE!$F$2,Nombres!$C$3:$E$853,109) -> Deposits from central banks and credit institutions | B36: 53983.13955 | C36: 56591.79186 | D36: 48304.2747 | E36: 59923.34933 | F36: 51685.62907 | G36: 55401.78153
A37: =HLOOKUP(INDICE!$F$2,Nombres!$C$3:$E$853,110) -> Deposits from customers | B37: 38836.47231 | C37: 45518.92043 | D37: 49723.78242 | E37: 51295.15056 | F37: 58461.94092 | G37: 51363.65521
A38: =HLOOKUP(INDICE!$F$2,Nombres!$C$3:$E$853,111) -> Debt certificates | B38: -66.61259512 | C38: -69.75126973 | D38: 17.66093931 | E38: -8.68530637 | F38: -18.77019515 | G38: 1587.553467
A39: =HLOOKUP(INDICE!$F$2,Nombres!$C$3:$E$853,112) -> Subordinated liabilities | B39: 1298.204599 | C39: 1258.598577 | D39: 1273.959927 | E39: 1513.87206 | F39: 1875.350278 | G39: 1663.137718
A40: =HLOOKUP(INDICE!$F$2,Nombres!$C$3:$E$853,113) -> Inter-area positions | B40: 4744.359839 | C40: 5679.635871 | D40: 12776.31546 | E40: 0 | F40: 12080.53319 | G40: 5263.891992
A41: =HLOOKUP(INDICE!$F$2,Nombres!$C$3:$E$853,114) -> Financial liabilities held for trading | B41: 49550.27995 | C41: 52035.12982 | D41: 59215.28916 | E41: 57331.61996 | F41: 67361.87354 | G41: 56571.93199
A42: =HLOOKUP(INDICE!$F$2,Nombres!$C$3:$E$853,115) -> Other liabilities | B42: 3678.105668 | C42: 4451.223491 | D42: 5289.648747 | E42: 5569.684261 | F42: 5110.7055 | G42: 4744.96684
A43: =HLOOKUP(INDICE!$F$2,Nombres!$C$3:$E$853,116) -> Economic capital allocated | B43: 4094.434982 | C43: 4115.361612 | D43: 4004.423243 | E43: 4075.510636 | F43: 4189.34883 | G43: 4158.67931
A44: =HLOOKUP(INDICE!$F$2,Nombres!$C$3:$E$853,117) -> Relevant business indicators
A45: =HLOOKUP(INDICE!$F$2,Nombres!$C$3:$E$853,201) -> Annex:
A46: =HLOOKUP(INDICE!$F$2,Nombres!$C$3:$E$853,30) -> (Million euros) | B46: 2014-03-31 | C46: 2014-06-30 | D46: 2014-09-30 | E46: 2014-12-31 | F46: 2015-03-31 | G46: 2015-06-30
A47: =HLOOKUP(INDICE!$F$2,Nombres!$C$3:$E$853,118) -> Loans and advances to customers gross | B47: 49330.84198 | C47: 51368.89294 | D47: 51737.48352 | E47: 52730.46106 | F47: 58465.62008 | G47: 56405.41175
A48: =HLOOKUP(INDICE!$F$2,Nombres!$C$3:$E$853,121) -> Customer deposits under management (*) | B48: 29197.38013 | C48: 32149.43131 | D48: 35883.52013 | E48: 36743.56551 | F48: 40030.16169 | G48: 37092.28387
A49: =HLOOKUP(INDICE!$F$2,Nombres!$C$3:$E$853,122) -> Mutual funds | B49: 984.1568046 | C49: 766.1838418 | D49: 1050.222078 | E49: 1093.059872 | F49: 1313.5545 | G49: 1332.249807
A50: =HLOOKUP(INDICE!$F$2,Nombres!$C$3:$E$853,206) -> Pension funds | B50: 0.00296882 | C50: 0.00313638 | D50: 0.00325847 | E50: 0.00345058 | F50: 0.00187477 | G50: 0.00191649
A51: =HLOOKUP(INDICE!$F$2,Nombres!$C$3:$E$853,286) -> (*) Includes area's repos in Mexico.
A52: =HLOOKUP(INDICE!$F$2,Nombres!$C$3:$E$853,93) -> Income statement
A53: =HLOOKUP(INDICE!$F$2,Nombres!$C$3:$E$853,31) -> (Constant million euros)
B54: 2014 | F54: 2015
B55: =HLOOKUP(INDICE!$F$2,Nombres!$C$3:$E$857,34) -> 1st Quarter | C55: =HLOOKUP(INDICE!$F$2,Nombres!$C$3:$E$857,35) -> 2nd Quarter | D55: =HLOOKUP(INDICE!$F$2,Nombres!$C$3:$E$857,36) -> 3rd Quarter | E55: =HLOOKUP(INDICE!$F$2,Nombres!$C$3:$E$857,37) -> 4th Quarter | F55: =HLOOKUP(INDICE!$F$2,Nombres!$C$3:$E$857,34) -> 1st Quarter | G55: =HLOOKUP(INDICE!$F$2,Nombres!$C$3:$E$857,35) -> 2nd Quarter
A56: =HLOOKUP(INDICE!$F$2,Nombres!$C$3:$E$853,38) -> Net interest income | B56: 349.7272192 | C56: 348.6286605 | D56: 346.8117535 | E56: 345.1227083 | F56: 341.4363341 | G56: 361.5581681
A57: =HLOOKUP(INDICE!$F$2,Nombres!$C$3:$E$853,39) -> Net fees and commissions | B57: 182.4928624 | C57: 203.6884113 | D57: 175.5216053 | E57: 184.2947967 | F57: 186.4643816 | G57: 176.302019
A58: =HLOOKUP(INDICE!$F$2,Nombres!$C$3:$E$853,40) -> Net trading income | B58: 233.9311422 | C58: 30.00560834 | D58: 95.73883185 | E58: 167.954912 | F58: 230.8842969 | G58: 215.6624779
A59: =HLOOKUP(INDICE!$F$2,Nombres!$C$3:$E$853,95) -> Other income/expenses | B59: 3.623851447 | C59: 65.61776414 | D59: 9.742168155 | E59: 19.30225478 | F59: 15.58308791 | G59: 50.81712533
A60: =HLOOKUP(INDICE!$F$2,Nombres!$C$3:$E$853,44) -> Gross income | B60: 769.7750753 | C60: 647.9404442 | D60: 627.8143587 | E60: 716.6746718 | F60: 774.3681005 | G60: 804.3397904
A61: =HLOOKUP(INDICE!$F$2,Nombres!$C$3:$E$853,45) -> Operating expenses | B61: -220.2056451 | C61: -239.9005234 | D61: -237.3189685 | E61: -232.1816249 | F61: -242.7719197 | G61: -247.8671183
A62: =HLOOKUP(INDICE!$F$2,Nombres!$C$3:$E$853,46) -> Administration expenses | B62: -215.2896469 | C62: -234.8484251 | D62: -232.5958786 | E62: -226.6265899 | F62: -237.2015959 | G62: -242.1472429
A63: =HLOOKUP(INDICE!$F$2,Nombres!$C$3:$E$853,47) -> Personnel expenses | B63: -122.8668744 | C63: -123.6972133 | D63: -123.1336205 | E63: -118.2068091 | F63: -123.8309666 | G63: -128.0201624
A64: =HLOOKUP(INDICE!$F$2,Nombres!$C$3:$E$853,48) -> General and administrative expenses | B64: -92.42277252 | C64: -111.1512118 | D64: -109.4622581 | E64: -108.4197808 | F64: -113.3706293 | G64: -114.1270805
A65: =HLOOKUP(INDICE!$F$2,Nombres!$C$3:$E$853,49) -> Depreciation and amortization | B65: -4.915998122 | C65: -5.052098263 | D65: -4.723089847 | E65: -5.555035001 | F65: -5.570323812 | G65: -5.719875408
A66: =HLOOKUP(INDICE!$F$2,Nombres!$C$3:$E$853,50) -> Operating income | B66: 549.5694302 | C66: 408.0399209 | D66: 390.4953903 | E66: 484.4930469 | F66: 531.5961809 | G66: 556.4726721
A67: =HLOOKUP(INDICE!$F$2,Nombres!$C$3:$E$853,51) -> Impairment on financial assets (net) | B67: -41.54748354 | C67: -73.80112377 | D67: -30.83762709 | E67: -53.17321551 | F67: -22.64924066 | G67: -23.75328583
A68: =HLOOKUP(INDICE!$F$2,Nombres!$C$3:$E$853,160) -> Provisions (net) and other gains/losses | B68: 6.275771397 | C68: -10.51072196 | D68: 7.194260497 | E68: -64.91340883 | F68: 2.3865679 | G68: 5.0635151
A69: =HLOOKUP(INDICE!$F$2,Nombres!$C$3:$E$853,54) -> Income before tax | B69: 514.2977181 | C69: 323.7280752 | D69: 366.8520237 | E69: 366.4064225 | F69: 511.3335081 | G69: 537.7829014
A70: =HLOOKUP(INDICE!$F$2,Nombres!$C$3:$E$853,55) -> Income tax | B70: -154.3892787 | C70: -93.00080616 | D70: -99.51155888 | E70: -105.4385715 | F70: -143.8344085 | G70: -165.0274649
A71: =HLOOKUP(INDICE!$F$2,Nombres!$C$3:$E$853,56) -> Net income | B71: 359.9084393 | C71: 230.727269 | D71: 267.3404648 | E71: 260.9678511 | F71: 367.4990996 | G71: 372.7554365
A72: =HLOOKUP(INDICE!$F$2,Nombres!$C$3:$E$853,57) -> Non-controlling interests | B72: -25.10815048 | C72: -23.16312044 | D72: -27.07054787 | E72: -19.59506093 | F72: -45.69790973 | G72: -27.97587291
A73: =HLOOKUP(INDICE!$F$2,Nombres!$C$3:$E$853,58) -> Net attributable profit | B73: 334.8002888 | C73: 207.5641486 | D73: 240.2699169 | E73: 241.3727901 | F73: 321.8011899 | G73: 344.7795636
A74: =HLOOKUP(INDICE!$F$2,Nombres!$C$3:$E$853,94) -> Balance sheet
A75: =HLOOKUP(INDICE!$F$2,Nombres!$C$3:$E$853,31) -> (Constant million euros)
B76: 2014-03-31 | C76: 2014-06-30 | D76: 2014-09-30 | E76: 2014-12-31 | F76: 2015-03-31 | G76: 2015-06-30
A77: =HLOOKUP(INDICE!$F$2,Nombres!$C$3:$E$853,100) -> Cash and balances with central banks | B77: 2498.268685 | C77: 3591.28957 | D77: 3591.463624 | E77: 2448.896702 | F77: 3143.276449 | G77: 2680.932438
A78: =HLOOKUP(INDICE!$F$2,Nombres!$C$3:$E$853,101) -> Financial assets | B78: 85235.05226 | C78: 89039.96898 | D78: 97283.27331 | E78: 94231.54695 | F78: 102035.1244 | G78: 93237.02549
A79: =HLOOKUP(INDICE!$F$2,Nombres!$C$3:$E$853,102) -> Loans and receivables | B79: 67097.438 | C79: 74057.43917 | D79: 74269.2702 | E79: 76976.83725 | F79: 87324.4319 | G79: 81740.92594
A80: =HLOOKUP(INDICE!$F$2,Nombres!$C$3:$E$853,103) -> . Loans and advances to customers | B80: 50034.01156 | C80: 51647.01281 | D80: 51328.77346 | E80: 52598.1562 | F80: 56223.14114 | G80: 55455.48238
A81: =HLOOKUP(INDICE!$F$2,Nombres!$C$3:$E$853,104) -> . Loans and advances to credit institutions and other | B81: 17063.42644 | C81: 22410.42636 | D81: 22940.49674 | E81: 24378.68105 | F81: 31101.29076 | G81: 26285.44357
A82: =HLOOKUP(INDICE!$F$2,Nombres!$C$3:$E$853,105) -> Inter-area positions | B82: 0 | C82: 0 | D82: 0 | E82: 0 | F82: 0 | G82: 0
A83: =HLOOKUP(INDICE!$F$2,Nombres!$C$3:$E$853,106) -> Tangible assets | B83: 27.27335962 | C83: 25.97607298 | D83: 25.2259004 | E83: 24.21121801 | F83: 53.66110436 | G83: 51.41260095
A84: =HLOOKUP(INDICE!$F$2,Nombres!$C$3:$E$853,107) -> Other assets | B84: 3500.881926 | C84: 4315.76661 | D84: 4930.909355 | E84: 3431.725838 | F84: 4869.993743 | G84: 3045.301578
A85: =HLOOKUP(INDICE!$F$2,Nombres!$C$3:$E$853,108) -> Total assets / Liabilities and equity | B85: 158358.9142 | C85: 171030.4404 | D85: 180100.1424 | E85: 177113.218 | F85: 197426.4876 | G85: 180755.5981
A86: =HLOOKUP(INDICE!$F$2,Nombres!$C$3:$E$853,109) -> Deposits from central banks and credit institutions | B86: 54358.1559 | C86: 56812.79265 | D86: 47969.64257 | E86: 60203.23995 | F86: 51013.48556 | G86: 55401.78153
A87: =HLOOKUP(INDICE!$F$2,Nombres!$C$3:$E$853,110) -> Deposits from customers | B87: 36493.96655 | C87: 43127.53512 | D87: 46296.20793 | E87: 47621.5553 | F87: 57532.00809 | G87: 51363.65521
A88: =HLOOKUP(INDICE!$F$2,Nombres!$C$3:$E$853,111) -> Debt certificates | B88: -63.63681341 | C88: -65.58544257 | D88: 21.80724402 | E88: -7.840544585 | F88: -21.77319558 | G88: 1587.553467
A89: =HLOOKUP(INDICE!$F$2,Nombres!$C$3:$E$853,112) -> Subordinated liabilities | B89: 1322.994984 | C89: 1270.927718 | D89: 1257.7593 | E89: 1533.507899 | F89: 1798.265285 | G89: 1663.137718
A90: =HLOOKUP(INDICE!$F$2,Nombres!$C$3:$E$853,113) -> Inter-area positions | B90: 8659.225222 | C90: 9136.517279 | D90: 16016.97492 | E90: 514.854681 | F90: 10999.92734 | G90: 5263.891992
A91: =HLOOKUP(INDICE!$F$2,Nombres!$C$3:$E$853,114) -> Financial liabilities held for trading | B91: 49744.36537 | C91: 52156.97497 | D91: 59287.88904 | E91: 57636.07822 | F91: 67010.24627 | G91: 56571.93199
A92: =HLOOKUP(INDICE!$F$2,Nombres!$C$3:$E$853,115) -> Other liabilities | B92: 3685.506072 | C92: 4447.836468 | D92: 5296.253177 | E92: 5572.703872 | F92: 5010.128366 | G92: 4744.96684
A93: =HLOOKUP(INDICE!$F$2,Nombres!$C$3:$E$853,116) -> Economic capital allocated | B93: 4158.336938 | C93: 4143.441634 | D93: 3953.608212 | E93: 4039.118587 | F93: 4084.199833 | G93: 4158.67931
A94: =HLOOKUP(INDICE!$F$2,Nombres!$C$3:$E$853,117) -> Relevant business indicators
A95: =HLOOKUP(INDICE!$F$2,Nombres!$C$3:$E$853,201) -> Annex:
A96: =HLOOKUP(INDICE!$F$2,Nombres!$C$3:$E$853,31) -> (Constant million euros)
B97: 2014-03-31 | C97: 2014-06-30 | D97: 2014-09-30 | E97: 2014-12-31 | F97: 2015-03-31 | G97: 2015-06-30
A98: =HLOOKUP(INDICE!$F$2,Nombres!$C$3:$E$853,118) -> Loans and advances to customers gross | B98: 50992.92304 | C98: 52690.08408 | D98: 52173.18402 | E98: 53487.13259 | F98: 57088.29378 | G98: 56405.41175
A99: =HLOOKUP(INDICE!$F$2,Nombres!$C$3:$E$853,121) -> Customer deposits under management (*) | B99: 26852.01423 | C99: 29749.55556 | D99: 32454.61473 | E99: 33067.69554 | F99: 39104.10745 | G99: 37092.28387
A100: =HLOOKUP(INDICE!$F$2,Nombres!$C$3:$E$853,122) -> Mutual funds | B100: 1025.051368 | C100: 789.8554908 | D100: 1079.306499 | E100: 1118.104663 | F100: 1250.199874 | G100: 1332.249807
A101: =HLOOKUP(INDICE!$F$2,Nombres!$C$3:$E$853,206) -> Pension funds | B101: 0.00296882 | C101: 0.00313638 | D101: 0.00325847 | E101: 0.00345058 | F101: 0.00187477 | G101: 0.00191649
A102: =HLOOKUP(INDICE!$F$2,Nombres!$C$3:$E$853,286) -> (*) Includes area's repos in Mexico.

Sheet Eficiencia
A1: =HLOOKUP(INDICE!$F$2,Nombres!$C$3:$E$853,138) -> Efficiency (%) (*)
B3: 2014-03-31 | C3: 2014-06-30 | D3: 2014-09-30 | E3: 2014-12-31 | F3: 2015-03-31 | G3: 2015-06-30
A5: =HLOOKUP(INDICE!$F$2,Nombres!$C$3:$E$853,164) -> BBVA Group | B5: 51.73221364 | C5: 50.87813953 | D5: 51.60193264 | E5: 51.27643807 | F5: 49.2796395 | G5: 49.48569461
A7: =HLOOKUP(INDICE!$F$2,Nombres!$C$3:$E$853,301) -> Banking activity in Spain | B7: 40.25490081 | C7: 41.94147726 | D7: 43.81784485 | E7: 42.98709511 | F7: 39.46638041 | G7: 40.50944677
A9: =HLOOKUP(INDICE!$F$2,Nombres!$C$3:$E$853,20) -> The United States | B9: 67.90493327 | C9: 68.75102412 | D9: 69.90046672 | E9: 70.05864674 | F9: 65.8908064 | G9: 66.25755294
A11: =HLOOKUP(INDICE!$F$2,Nombres!$C$3:$E$853,295) -> Turkey | B11: 43.76605685 | C11: 42.16090428 | D11: 41.89317317 | E11: 41.790413 | F11: 43.95245952 | G11: 43.36508885
A13: =HLOOKUP(INDICE!$F$2,Nombres!$C$3:$E$853,9) -> Mexico | B13: 36.9344997 | C13: 36.8360885 | D13: 37.06500353 | E13: 36.89816261 | F13: 36.92077275 | G13: 36.79922834
A15: =HLOOKUP(INDICE!$F$2,Nombres!$C$3:$E$853,12) -> South America | B15: 42.7037522 | C15: 44.2562145 | D15: 43.9440481 | E15: 44.61854276 | F15: 43.47178235 | G15: 44.15081145
A17: =HLOOKUP(INDICE!$F$2,Nombres!$C$3:$E$853,184) -> Rest of Eurasia | B17: 55.04857658 | C17: 35.57481658 | D17: 42.02844318 | E17: 46.6069839 | F17: 54.83071307 | G17: 66.36604326
A20: =HLOOKUP(INDICE!$F$2,Nombres!$C$3:$E$853,137) -> (*) Operating expenses / Gross income. Including depreciation

Sheet Mora,cobertura,prima de riesgo
A1: =HLOOKUP(INDICE!$F$2,Nombres!$C$3:$E$853,139) -> NPA ratio (%)
B3: 2014-03-31 | C3: 2014-06-30 | D3: 2014-09-30 | E3: 2014-12-31 | F3: 2015-03-31 | G3: 2015-06-30
A5: =HLOOKUP(INDICE!$F$2,Nombres!$C$3:$E$853,164) -> BBVA Group | B5: 0.066 | C5: 0.064 | D5: 0.061 | E5: 0.058 | F5: 0.056 | G5: 0.061
A7: =HLOOKUP(INDICE!$F$2,Nombres!$C$3:$E$853,301) -> Banking activity in Spain | B7: 0.064 | C7: 0.063 | D7: 0.062 | E7: 0.06 | F7: 0.059 | G7: 0.068
A9: =HLOOKUP(INDICE!$F$2,Nombres!$C$3:$E$853,20) -> The United States | B9: 0.01 | C9: 0.009 | D9: 0.009 | E9: 0.009 | F9: 0.009 | G9: 0.009
A11: =HLOOKUP(INDICE!$F$2,Nombres!$C$3:$E$853,295) -> Turkey | B11: 0.027 | C11: 0.027 | D11: 0.026 | E11: 0.028 | F11: 0.026 | G11: 0.027
A13: =HLOOKUP(INDICE!$F$2,Nombres!$C$3:$E$853,9) -> Mexico | B13: 0.034 | C13: 0.034 | D13: 0.032 | E13: 0.029 | F13: 0.028 | G13: 0.028
A15: =HLOOKUP(INDICE!$F$2,Nombres!$C$3:$E$853,12) -> South America | B15: 0.022 | C15: 0.021 | D15: 0.021 | E15: 0.021 | F15: 0.023 | G15: 0.023
A17: =HLOOKUP(INDICE!$F$2,Nombres!$C$3:$E$853,184) -> Rest of Eurasia | B17: 0.038 | C17: 0.04 | D17: 0.038 | E17: 0.037 | F17: 0.034 | G17: 0.034
A20: =HLOOKUP(INDICE!$F$2,Nombres!$C$3:$E$853,140) -> Coverage ratio (%)
B22: 2014-03-31 | C22: 2014-06-30 | D22: 2014-09-30 | E22: 2014-12-31 | F22: 2015-03-31 | G22: 2015-06-30
A24: =HLOOKUP(INDICE!$F$2,Nombres!$C$3:$E$853,164) -> BBVA Group | B24: 0.6 | C24: 0.62 | D24: 0.63 | E24: 0.64 | F24: 0.65 | G24: 0.72
A26: =HLOOKUP(INDICE!$F$2,Nombres!$C$3:$E$853,301) -> Banking activity in Spain | B26: 0.41 | C26: 0.44 | D26: 0.44 | E26: 0.45 | F26: 0.46 | G26: 0.62
A28: =HLOOKUP(INDICE!$F$2,Nombres!$C$3:$E$853,20) -> The United States | B28: 1.6 | C28: 1.68 | D28: 1.64 | E28: 1.67 | F28: 1.64 | G28: 1.51
A30: =HLOOKUP(INDICE!$F$2,Nombres!$C$3:$E$853,295) -> Turkey | B30: 1.12 | C30: 1.12 | D30: 1.15 | E30: 1.15 | F30: 1.18 | G30: 1.19
A32: =HLOOKUP(INDICE!$F$2,Nombres!$C$3:$E$853,9) -> Mexico | B32: 1.14 | C32: 1.13 | D32: 1.12 | E32: 1.14 | F32: 1.16 | G32: 1.16
A34: =HLOOKUP(INDICE!$F$2,Nombres!$C$3:$E$853,12) -> South America | B34: 1.36 | C34: 1.38 | D34: 1.37 | E34: 1.38 | F34: 1.21 | G34: 1.22
A36: =HLOOKUP(INDICE!$F$2,Nombres!$C$3:$E$853,184) -> Rest of Eurasia | B36: 0.77 | C36: 0.79 | D36: 0.81 | E36: 0.8 | F36: 0.82 | G36: 0.86
A39: =HLOOKUP(INDICE!$F$2,Nombres!$C$3:$E$853,198) -> Cost of risk (%)
B41: 2014-03-31 | C41: 2014-06-30 | D41: 2014-09-30 | E41: 2014-12-31 | F41: 2015-03-31 | G41: 2015-06-30
A43: =HLOOKUP(INDICE!$F$2,Nombres!$C$3:$E$853,164) -> BBVA Group | B43: 1.270086653 | C43: 1.244365845 | D43: 1.250162672 | E43: 1.251278888 | F43: 1.212089382 | G43: 1.160423106
A45: =HLOOKUP(INDICE!$F$2,Nombres!$C$3:$E$853,301) -> Banking activity in Spain | B45: 1.039471497 | C45: 0.968931956 | D45: 0.9337128227 | E45: 0.9497655982 | F45: 0.9879717188 | G45: 0.8561275006
A47: =HLOOKUP(INDICE!$F$2,Nombres!$C$3:$E$853,20) -> The United States | B47: 0.1925943614 | C47: 0.2069146141 | D47: 0.1711256406 | E47: 0.1597019063 | F47: 0.2295452758 | G47: 0.227514695
A49: =HLOOKUP(INDICE!$F$2,Nombres!$C$3:$E$853,295) -> Turkey | B49: 0.8777701034 | C49: 0.8463278618 | D49: 1.097920283 | E49: 1.163060309 | F49: 0.9370892786 | G49: 1.000232002
A51: =HLOOKUP(INDICE!$F$2,Nombres!$C$3:$E$853,9) -> Mexico | B51: 3.508524592 | C51: 3.613355738 | D51: 3.564824555 | E51: 3.450922052 | F51: 3.44010723 | G51: 3.429620938
A53: =HLOOKUP(INDICE!$F$2,Nombres!$C$3:$E$853,12) -> South America | B53: 1.225195408 | C53: 1.34638776 | D53: 1.442935199 | E53: 1.457645806 | F53: 1.030062588 | G53: 1.227503793
A55: Resto de Eurasia | B55: 0.4876370466 | C55: 0.4593648859 | D55: 0.420016656 | E55: 0.3110617954 | F55: 0.5477486514 | G55: 0.3443605052

Sheet Empleados,oficinas y cajeros
A1: =HLOOKUP(INDICE!$F$2,Nombres!$C$3:$F$853,141) -> Branches
B2: 2014-03-31 | C2: 2014-06-30 | D2: 2014-09-30 | E2: 2014-12-31 | F2: 2015-03-31 | G2: 2015-06-30
A3: =HLOOKUP(INDICE!$F$2,Nombres!$C$3:$F$853,142) -> Spain | B3: 3231 | C3: 3137 | D3: 3131 | E3: 3112 | F3: 3111 | G3: 3869
A4: =HLOOKUP(INDICE!$F$2,Nombres!$C$3:$E$853,184) -> Rest of Eurasia | B4: 117 | C4: 117 | D4: 118 | E4: 75 | F4: 75 | G4: 75
A5: =HLOOKUP(INDICE!$F$2,Nombres!$C$3:$E$853,295) -> Turkey | B5: 1 | C5: 1 | D5: 1 | E5: 1 | F5: 1 | G5: 1
A6: =HLOOKUP(INDICE!$F$2,Nombres!$C$3:$F$853,143) -> America | B6: 4092 | C6: 4104 | D6: 4112 | E6: 4183 | F6: 4173 | G6: 4190
A7: =HLOOKUP(INDICE!$F$2,Nombres!$C$3:$F$853,144) -> Mexico | B7: 1795 | C7: 1802 | D7: 1802 | E7: 1831 | F7: 1820 | G7: 1831
A8: =HLOOKUP(INDICE!$F$2,Nombres!$C$3:$F$853,145) -> The United States | B8: 686 | C8: 675 | D8: 675 | E8: 675 | F8: 675 | G8: 675
A9: =HLOOKUP(INDICE!$F$2,Nombres!$C$3:$F$853,146) -> Argentina | B9: 245 | C9: 245 | D9: 248 | E9: 251 | F9: 251 | G9: 251
A10: =HLOOKUP(INDICE!$F$2,Nombres!$C$3:$F$853,147) -> Colombia | B10: 476 | C10: 483 | D10: 491 | E10: 519 | F10: 522 | G10: 528
A11: =HLOOKUP(INDICE!$F$2,Nombres!$C$3:$F$853,148) -> Venezuela | B11: 336 | C11: 339 | D11: 340 | E11: 341 | F11: 341 | G11: 340
A12: =HLOOKUP(INDICE!$F$2,Nombres!$C$3:$F$853,149) -> Peru | B12: 327 | C12: 330 | D12: 330 | E12: 338 | F12: 341 | G12: 344
A13: =HLOOKUP(INDICE!$F$2,Nombres!$C$3:$F$853,150) -> Chile | B13: 158 | C13: 163 | D13: 159 | E13: 161 | F13: 156 | G13: 154
A14: =HLOOKUP(INDICE!$F$2,Nombres!$C$3:$F$853,152) -> Paraguay | B14: 24 | C14: 22 | D14: 22 | E14: 22 | F14: 22 | G14: 22
A15: =HLOOKUP(INDICE!$F$2,Nombres!$C$3:$F$853,153) -> Uruguay | B15: 34 | C15: 34 | D15: 34 | E15: 34 | F15: 34 | G15: 34
A16: =HLOOKUP(INDICE!$F$2,Nombres!$C$3:$F$853,155) -> Bolivia | B16: 9 | C16: 9 | D16: 9 | E16: 9 | F16: 9 | G16: 9
A17: =HLOOKUP(INDICE!$F$2,Nombres!$C$3:$F$853,302) -> Brazil | B17: 1 | C17: 1 | D17: 1 | E17: 1 | F17: 1 | G17: 1
A18: =HLOOKUP(INDICE!$F$2,Nombres!$C$3:$F$853,157) -> Total | B18: 7441 | C18: 7359 | D18: 7362 | E18: 7371 | F18: 7360 | G18: 8135
A19: =HLOOKUP(INDICE!$F$2,Nombres!$C$3:$F$853,158) -> Employees
B20: 2014-03-31 | C20: 2014-06-30 | D20: 2014-09-30 | E20: 2014-12-31 | F20: 2015-03-31 | G20: 2015-06-30
A21: =HLOOKUP(INDICE!$F$2,Nombres!$C$3:$F$853,142) -> Spain | B21: 30385 | C21: 30074 | D21: 29600 | E21: 28620 | F21: 28711 | G21: 33604
A22: =HLOOKUP(INDICE!$F$2,Nombres!$C$3:$E$853,184) -> Rest of Eurasia | B22: 1606 | C22: 1598 | D22: 1587 | E22: 1443 | F22: 1443 | G22: 1442
A23: =HLOOKUP(INDICE!$F$2,Nombres!$C$3:$E$853,295) -> Turkey | B23: 18 | C23: 19 | D23: 18 | E23: 16 | F23: 16 | G23: 16
A24: =HLOOKUP(INDICE!$F$2,Nombres!$C$3:$F$853,143) -> America | B24: 77070 | C24: 77759 | D24: 77715 | E24: 78691 | F24: 78674 | G24: 79166
A25: =HLOOKUP(INDICE!$F$2,Nombres!$C$3:$F$853,144) -> Mexico | B25: 36785 | C25: 37442 | D25: 37490 | E25: 38107 | F25: 37930 | G25: 38134
A26: =HLOOKUP(INDICE!$F$2,Nombres!$C$3:$F$853,145) -> The United States | B26: 11314 | C26: 11029 | D26: 10938 | E26: 10944 | F26: 10861 | G26: 11034
A27: =HLOOKUP(INDICE!$F$2,Nombres!$C$3:$F$853,146) -> Argentina | B27: 5479 | C27: 5528 | D27: 5529 | E27: 5655 | F27: 5792 | G27: 5809
A28: =HLOOKUP(INDICE!$F$2,Nombres!$C$3:$F$853,147) -> Colombia | B28: 6378 | C28: 6491 | D28: 6579 | E28: 6678 | F28: 6851 | G28: 6967
A29: =HLOOKUP(INDICE!$F$2,Nombres!$C$3:$F$853,148) -> Venezuela | B29: 5285 | C29: 5283 | D29: 5244 | E29: 5363 | F29: 5288 | G29: 5276
A30: =HLOOKUP(INDICE!$F$2,Nombres!$C$3:$F$853,149) -> Peru | B30: 5908 | C30: 5991 | D30: 5949 | E30: 5958 | F30: 5907 | G30: 5884
A31: =HLOOKUP(INDICE!$F$2,Nombres!$C$3:$F$853,150) -> Chile | B31: 4584 | C31: 4583 | D31: 4568 | E31: 4567 | F31: 4593 | G31: 4587
A32: =HLOOKUP(INDICE!$F$2,Nombres!$C$3:$F$853,152) -> Paraguay | B32: 488 | C32: 486 | D32: 486 | E32: 481 | F32: 480 | G32: 487
A33: =HLOOKUP(INDICE!$F$2,Nombres!$C$3:$F$853,153) -> Uruguay | B33: 586 | C33: 639 | D33: 641 | E33: 639 | F33: 636 | G33: 635
A34: =HLOOKUP(INDICE!$F$2,Nombres!$C$3:$F$853,155) -> Bolivia | B34: 253 | C34: 277 | D34: 283 | E34: 291 | F34: 328 | G34: 344
A35: =HLOOKUP(INDICE!$F$2,Nombres!$C$3:$F$853,302) -> Brazil | B35: 9 | C35: 9 | D35: 7 | E35: 8 | F35: 7 | G35: 9
A36: =HLOOKUP(INDICE!$F$2,Nombres!$C$3:$F$853,157) -> Total | B36: 109079 | C36: 109450 | D36: 108920 | E36: 108770 | F36: 108844 | G36: 114228
A37: =HLOOKUP(INDICE!$F$2,Nombres!$C$3:$F$853,205) -> ATM's
B38: 2014-03-31 | C38: 2014-06-30 | D38: 2014-09-30 | E38: 2014-12-31 | F38: 2015-03-31 | G38: 2015-06-30
A39: =HLOOKUP(INDICE!$F$2,Nombres!$C$3:$F$853,142) -> Spain | B39: 5924 | C39: 5956 | D39: 5930 | E39: 5909 | F39: 5953 | G39: 7226
A40: =HLOOKUP(INDICE!$F$2,Nombres!$C$3:$E$853,184) -> Rest of Eurasia | B40: 100 | C40: 100 | D40: 100 | E40: 55 | F40: 55 | G40: 55
A41: =HLOOKUP(INDICE!$F$2,Nombres!$C$3:$F$853,143) -> America | B41: 14940 | C41: 15327 | D41: 15636 | E41: 16195 | F41: 16587 | G41: =+SUM(G42:G50) -> 17056
A42: =HLOOKUP(INDICE!$F$2,Nombres!$C$3:$F$853,144) -> Mexico | B42: 7999 | C42: 8327 | D42: 8574 | E42: 8996 | F42: 9284 | G42: 9713
A43: =HLOOKUP(INDICE!$F$2,Nombres!$C$3:$F$853,145) -> The United States | B43: 1033 | C43: 1024 | D43: 1025 | E43: 1013 | F43: 1027 | G43: 1021
A44: =HLOOKUP(INDICE!$F$2,Nombres!$C$3:$F$853,146) -> Argentina | B44: 655 | C44: 659 | D44: 669 | E44: 686 | F44: 686 | G44: 688
A45: =HLOOKUP(INDICE!$F$2,Nombres!$C$3:$F$853,147) -> Colombia | B45: 1129 | C45: 1141 | D45: 1153 | E45: 1210 | F45: 1222 | G45: 1227
A46: =HLOOKUP(INDICE!$F$2,Nombres!$C$3:$F$853,148) -> Venezuela | B46: 1919 | C46: 1962 | D46: 1975 | E46: 1990 | F46: 1999 | G46: 2030
A47: =HLOOKUP(INDICE!$F$2,Nombres!$C$3:$F$853,149) -> Peru | B47: 1574 | C47: 1583 | D47: 1609 | E47: 1671 | F47: 1738 | G47: 1769
A48: =HLOOKUP(INDICE!$F$2,Nombres!$C$3:$F$853,150) -> Chile | B48: 522 | C48: 522 | D48: 522 | E48: 522 | F48: 523 | G48: 500
A49: =HLOOKUP(INDICE!$F$2,Nombres!$C$3:$F$853,152) -> Paraguay | B49: 43 | C49: 43 | D49: 43 | E49: 41 | F49: 42 | G49: 42
A50: =HLOOKUP(INDICE!$F$2,Nombres!$C$3:$F$853,153) -> Uruguay | B50: 66 | C50: 66 | D50: 66 | E50: 66 | F50: 66 | G50: 66
A51: =HLOOKUP(INDICE!$F$2,Nombres!$C$3:$F$853,157) -> Total | B51: 20964 | C51: =+C41+C40+C39 -> 21383 | D51: =+D41+D40+D39 -> 21666 | E51: 22159 | F51: 22595 | G51: =+G41+G39+G40 -> 24337

Sheet Tipos de cambio
A1: =HLOOKUP(INDICE!$F$2,Nombres!$C$3:$F$853,182) -> Exchange rates
A2: =HLOOKUP(INDICE!$F$2,Nombres!$C$3:$E$853,167) -> (Expressed in currency/euro)
C3: =HLOOKUP(INDICE!$F$2,Nombres!$C$3:$E$853,175) -> Year-end exchange rates (*) | F3: =HLOOKUP(INDICE!$F$2,Nombres!$C$3:$E$853,176) -> Average exchange rates (**)
B4: 2015-06-30 | C4: =HLOOKUP(INDICE!$F$2,Nombres!$C$3:$E$853,180) -> ∆ % on | D4: =HLOOKUP(INDICE!$F$2,Nombres!$C$3:$E$853,180) -> ∆ % on | G4: =HLOOKUP(INDICE!$F$2,Nombres!$C$3:$E$853,180) -> ∆ % on
C5: 2014-06-30 | D5: 2015-03-31 | F5: =HLOOKUP(INDICE!$F$2,Nombres!$C$3:$E$853,203) -> 1H15 | G5: =HLOOKUP(INDICE!$F$2,Nombres!$C$3:$E$853,204) -> 1H14
A6: =HLOOKUP(INDICE!$F$2,Nombres!$C$3:$E$853,168) -> Mexican peso | B6: 17.53309371 | C6: 1.021998654 | D6: -5.822228827 | F6: 16.88447641 | G6: 6.462224299
A7: =HLOOKUP(INDICE!$F$2,Nombres!$C$3:$E$853,169) -> U.S. dollar | B7: 1.118899898 | C7: 22.06626312 | D7: -3.843008906 | F7: 1.115529849 | G7: 22.85333688
A8: =HLOOKUP(INDICE!$F$2,Nombres!$C$3:$E$853,170) -> Argentine peso | B8: 10.1616722 | C8: 9.299613488 | D8: -6.660280183 | F8: 9.834485607 | G8: 9.023556027
A9: =HLOOKUP(INDICE!$F$2,Nombres!$C$3:$E$853,171) -> Chilean peso | B9: 710.2272727 | C9: 5.864661654 | D9: -5.057316251 | F9: 693.000693 | G9: 9.318181818
A10: =HLOOKUP(INDICE!$F$2,Nombres!$C$3:$E$853,172) -> Colombian peso | B10: 2890.17341 | C10: -11.05398458 | D10: -4.155124654 | F10: 2770.083102 | G10: -2.956989247
A11: =HLOOKUP(INDICE!$F$2,Nombres!$C$3:$E$853,173) -> Peruvian new sol | B11: 3.552726007 | C11: 7.334912046 | D11: -6.210973164 | F11: 3.457587503 | G11: 10.97515118
A12: =HLOOKUP(INDICE!$F$2,Nombres!$C$3:$E$853,174) -> Venezuelan bolivar fuerte | B12: 220.7505519 | C12: -93.44172108 | D12: -5.958065186 | F12: 220.7505519 | G12: -93.37079638
A13: =HLOOKUP(INDICE!$F$2,Nombres!$C$3:$E$853,190) -> Turkish lira | B13: 2.995303364 | C13: -3.285370383 | D13: -6.083042647 | F13: 2.862262218 | G13: 3.682578309
A16: =HLOOKUP(INDICE!$F$2,Nombres!$C$3:$E$853,177) -> (*) Used in the constant euros comparisons for the balance sheet and business activity
A17: =HLOOKUP(INDICE!$F$2,Nombres!$C$3:$E$853,178) -> (**) Used in the constant euros comparisons for the profit and loss

Sheet Rendimientos y costes
A1: =HLOOKUP(INDICE!$F$2,Nombres!$C$3:$E$853,199) -> Breakdown of yields and costs
B4: =HLOOKUP(INDICE!$F$2,Nombres!$C$3:$E$853,231) -> 1st Quarter | C4: 2014 | D4: =HLOOKUP(INDICE!$F$2,Nombres!$C$3:$E$853,232) -> 2nd Quarter | E4: 2014 | F4: =HLOOKUP(INDICE!$F$2,Nombres!$C$3:$E$853,233) -> 3rd Quarter | G4: 2014 | H4: =HLOOKUP(INDICE!$F$2,Nombres!$C$3:$E$853,234) -> 4th Quarter | I4: 2014 | J4: =HLOOKUP(INDICE!$F$2,Nombres!$C$3:$E$853,231) -> 1st Quarter | K4: 2015 | L4: =HLOOKUP(INDICE!$F$2,Nombres!$C$3:$E$853,236) -> 2nd Quarter | M4: 2015
B5: =HLOOKUP(INDICE!$F$2,Nombres!$C$3:$E$853,239) -> % of ATA | C5: =HLOOKUP(INDICE!$F$2,Nombres!$C$3:$E$853,240) -> % yield/Cost | D5: =HLOOKUP(INDICE!$F$2,Nombres!$C$3:$E$853,239) -> % of ATA | E5: =HLOOKUP(INDICE!$F$2,Nombres!$C$3:$E$853,240) -> % yield/Cost | F5: =HLOOKUP(INDICE!$F$2,Nombres!$C$3:$E$853,239) -> % of ATA | G5: =HLOOKUP(INDICE!$F$2,Nombres!$C$3:$E$853,240) -> % yield/Cost | H5: =HLOOKUP(INDICE!$F$2,Nombres!$C$3:$E$853,239) -> % of ATA | I5: =HLOOKUP(INDICE!$F$2,Nombres!$C$3:$E$853,240) -> % yield/Cost | J5: =HLOOKUP(INDICE!$F$2,Nombres!$C$3:$E$853,239) -> % of ATA | K5: =HLOOKUP(INDICE!$F$2,Nombres!$C$3:$E$853,240) -> % yield/Cost | L5: =HLOOKUP(INDICE!$F$2,Nombres!$C$3:$E$853,239) -> % of ATA | M5: =HLOOKUP(INDICE!$F$2,Nombres!$C$3:$E$853,240) -> % yield/Cost
A6: =HLOOKUP(INDICE!F2,Nombres!$C$3:$E$853,209) -> Cash and balances with central banks | B6: 4.534331039 | C6: 0.5577098977 | D6: 4.566910693 | E6: 0.5141925044 | F6: 3.858377991 | G6: 0.398318762 | H6: 4.404716333 | I6: 0.494843494 | J6: 4.592678313 | K6: 0.2451826774 | L6: 4.064051674 | M6: 0.115865316
A7: =HLOOKUP(INDICE!F2,Nombres!$C$3:$E$853,210) -> Financial assets and derivatives | B7: 27.48032042 | C7: 2.889152863 | D7: 28.70730185 | E7: 2.678311608 | F7: 29.05950976 | G7: 2.562796384 | H7: 29.18542227 | I7: 2.653459989 | J7: 28.80317554 | K7: 2.205896218 | L7: 29.34984516 | M7: 2.092636549
A8: =HLOOKUP(INDICE!F2,Nombres!$C$3:$E$853,211) -> Loans and advances to credit institutions | B8: 3.90945552 | C8: 1.526011895 | D8: 4.11514562 | E8: 1.244134386 | F8: 4.424524884 | G8: 1.097208098 | H8: 4.318939271 | I8: 1.009953997 | J8: 4.615577626 | K8: 0.9095500831 | L8: 4.442785546 | M8: 0.8171482804
A9: =HLOOKUP(INDICE!F2,Nombres!$C$3:$E$853,212) -> Loans and advances to customers | B9: 56.23611001 | C9: 5.336241528 | D9: 54.8821247 | E9: 5.537670369 | F9: 54.77275369 | G9: 5.513362554 | H9: 54.26015218 | I9: 5.81246838 | J9: 54.02537802 | K9: 4.944658705 | L9: 53.67714522 | M9: 5.004606269
A10: =HLOOKUP(INDICE!$F$2,Nombres!$C$3:$E$853,213) -> Euros | B10: 32.41554506 | C10: 2.683543433 | D10: 31.06752521 | E10: 2.630910366 | F10: 30.02572094 | G10: 2.518562705 | H10: 28.73489012 | I10: 2.464217011 | J10: 27.30578021 | K10: 2.334746968 | L10: 28.44042723 | M10: 2.308221868
A11: =HLOOKUP(INDICE!$F$2,Nombres!$C$3:$E$853,216) -> Foreign currencies | B11: 23.82056495 | C11: 8.946091036 | D11: 23.8145995 | E11: 9.329707253 | F11: 24.74703275 | G11: 9.146970892 | H11: 25.52526207 | I11: 9.58173958 | J11: 26.71959781 | K11: 7.611827452 | L11: 25.23671799 | M11: 8.04328683
A12: =HLOOKUP(INDICE!$F$2,Nombres!$C$3:$E$853,217) -> Other assets | B12: 7.839783008 | C12: 0.4768691021 | D12: 7.728517135 | E12: 0.3999778925 | F12: 7.884833675 | G12: 0.5044490995 | H12: 7.830769943 | I12: 0.5350127748 | J12: 7.963190496 | K12: 0.500192878 | L12: 8.466172395 | M12: 0.4408751073
A13: =HLOOKUP(INDICE!$F$2,Nombres!$C$3:$E$853,218) -> Total assets | B13: 100 | C13: 3.917175792 | D13: 100 | E13: 3.913655169 | F13: 100 | G13: 3.868246418 | H13: 100 | I13: 4.035589063 | J13: 100 | K13: 3.399811471 | L13: 100 | M13: 3.378853581
A14: =HLOOKUP(INDICE!$F$2,Nombres!$C$3:$E$853,219) -> Deposits from central banks and credit institutions | B14: 14.20835397 | C14: 1.799276456 | D14: 13.94230517 | E14: 1.89019792 | F14: 12.94132776 | G14: 1.744613782 | H14: 14.61588428 | I14: 1.636600271 | J14: 13.14275712 | K14: 1.540369194 | L14: 14.07200344 | M14: 1.451104195
A15: =HLOOKUP(INDICE!$F$2,Nombres!$C$3:$E$853,220) -> Deposits from customers | B15: 51.24497718 | C15: 1.601494145 | D15: 51.38077349 | E15: 1.56843227 | F15: 52.14584398 | G15: 1.449555211 | H15: 50.94455376 | I15: 1.425763606 | J15: 51.35624207 | K15: 1.147252184 | L15: 51.38448347 | M15: 1.124032252
A16: =HLOOKUP(INDICE!$F$2,Nombres!$C$3:$E$853,221) -> Euros | B16: 26.82782661 | C16: 1.281396509 | D16: 26.71368718 | E16: 1.1402756 | F16: 26.72617396 | G16: 0.982617901 | H16: 25.21398804 | I16: 0.8690381166 | J16: 24.61779194 | K16: 0.6938372425 | L16: 27.18584668 | M16: 0.6123216421
A17: =HLOOKUP(INDICE!$F$2,Nombres!$C$3:$E$853,224) -> Foreign currencies | B17: 24.41715058 | C17: 1.953194638 | D17: 24.66708632 | E17: 2.032112624 | F17: 25.41967002 | G17: 1.940491866 | H17: 25.73056571 | I17: 1.97131204 | J17: 26.73845012 | K17: 1.564706248 | L17: 24.19863679 | M17: 1.698911173
A18: =HLOOKUP(INDICE!$F$2,Nombres!$C$3:$E$853,225) -> Debt certificates and subordinated liabilities | B18: 13.91607518 | C18: 2.402398445 | D18: 13.66356354 | E18: 2.361095597 | F18: 13.21269527 | G18: 2.242380555 | H18: 12.52997752 | I18: 2.245010695 | J18: 12.75286823 | K18: 2.01963285 | L18: 12.75638562 | M18: 2.037504972
A19: =HLOOKUP(INDICE!$F$2,Nombres!$C$3:$E$853,226) -> Other liabilities | B19: 13.13003027 | C19: 1.329818148 | D19: 13.50936107 | E19: 0.9952332631 | F19: 14.05991592 | G19: 1.103347766 | H19: 14.1118108 | I19: 1.28215633 | J19: 14.69488317 | K19: 0.854986435 | L19: 14.27319631 | M19: 0.7911020235
A20: =HLOOKUP(INDICE!$F$2,Nombres!$C$3:$E$853,227) -> Equity | B20: 7.500563397 | C20: 0 | D20: 7.503996727 | E20: 0 | F20: 7.640217058 | G20: - | H20: 7.797773638 | I20: 0 | J20: 8.053294935 | K20: 0 | L20: 7.513889624 | M20: 0
A21: =HLOOKUP(INDICE!$F$2,Nombres!$C$3:$E$853,228) -> Total liabilities and equity | B21: 100 | C21: 1.585257976 | D21: 100 | E21: 1.526469246 | F21: 100 | G21: 1.433067664 | H21: 100 | I21: 1.427787319 | J21: 100.0000455 | K21: 1.174832429 | L21: 99.99995847 | M21: 1.154605615
A22: =HLOOKUP(INDICE!$F$2,Nombres!$C$3:$E$853,229) -> Net interest income/Average total assets (ATA) | C22: 2.331917816 | E22: 2.387185923 | G22: 2.435178754 | I22: 2.607801744 | K22: 2.224979041 | M22: 2.224247966

Sheet Nombres (hidden)
B2: Orden | C2: Inglés | D2: Castellano
B3: 1 | C3: 1 | D3: 2
B4: 2 | C4: Choose your language | D4: Escoja su idioma
B5: =B4+1 -> 3 | C5: Quarterly series (*) - March 2011. Information by geographies | D5: Series trimestrales (*) - Marzo 2011. Información por geografías
B6: 4 | C6: BBVA Group. Consolidated Income statement | D6: Grupo BBVA. Cuentas de resultados consolidadas
B7: 5 | C7: BBVA Group. Consolidated income statement excluding one-offs | D7: Grupo BBVA. Cuentas de resultados consolidadas sin singulares
B8: 6 | C8: BBVA Group. Consolidated balance sheet | D8: Grupo BBVA. Balances de situación consolidados
B9: 7 | C9: Banking activity in Spain | D9: Actividad bancaria en España
B10: 8 | C10: Spain excluding one-offs | D10: España sin singulares
B11: 9 | C11: Mexico | D11: México
B12: 10 | C12: Bancomer | D12: Grupo Bancario Bancomer
B13: 11 | C13: Pensions and Insurance Mexico | D13: Pensiones y Seguros México
B14: 12 | C14: South America | D14: América del Sur
B15: 13 | C15: Banking South America | D15: Bancos América del Sur
B16: 14 | C16: Pensions and Insurance South America | D16: Pensiones y Seguros América del Sur
B17: 15 | C17: Argentina | D17: Argentina
B18: 16 | C18: Chile | D18: Chile
B19: 17 | C19: Colombia | D19: Colombia
B20: 18 | C20: Peru | D20: Perú
B21: 19 | C21: Venezuela | D21: Venezuela
B22: 20 | C22: The United States | D22: Estados Unidos
B23: 21 | C23: USA excluding one-offs | D23: Estados Unidos sin singulares
B24: 22 | C24: Wholesale Banking & Asset Management | D24: Wholesale Banking & Asset Management
B25: 23 | C25: Corporate & Investment Banking | D25: Corporate & Investment Banking
B26: 24 | C26: Global Markets | D26: Global Markets
B27: 25 | C27: Corporate Center | D27: Centro Corporativo
B28: 26 | C28: Efficiency | D28: Eficiencia
B29: 27 | C29: NPL, coverage ratios and cost of risk | D29: Tasas de mora, cobertura y prima de riesgo
B30: 28 | C30: Branches, employees and atm´s | D30: Empleados, oficinas y cajeros automáticos
B31: 29 | C31: (**) 2015 includes the capitral gains from the various sale operations equivalent to 6.34 of BBVA Group's stake in CNCB and the badwill from Catalunya Banc operation. | D31: (**)2015 incorpora las plusvalías procedentes de las distintas operaciones de venta equivalentes a un 6,34% de la participación del Grupo BBVA en CNCB y el badwill generado por la operación de Catalunya Banc.
B32: 30 | C32: (Million euros) | D32: (Millones de euros)
B33: 31 | C33: (Constant million euros) | D33: (Millones de euros constantes)
B34: 32 | C34: (Constant million euros and percentages) | D34: (Millones de euros constantes y porcentajes)
B35: 33 | C35: (Million euros and percentages) | D35: (Millones de euros y porcentajes)
B36: 34 | C36: 1st Quarter | D36: 1er Trim.
B37: 35 | C37: 2nd Quarter | D37: 2º Trim.
B38: 36 | C38: 3rd Quarter | D38: 3er Trim.
B39: 37 | C39: 4th Quarter | D39: 4º Trim.
B40: 38 | C40: Net interest income | D40: Margen de intereses
B41: 39 | C41: Net fees and commissions | D41: Comisiones
B42: 40 | C42: Net trading income | D42: Resultados de operaciones financieras
B43: 41 | C43: Dividends | D43: Dividendos
B44: 42 | C44: Income by the equity method | D44: Resultados por puesta en equivalencia
B45: 43 | C45: Other operating income and expenses | D45: Otros productos y cargas de explotación
B46: 44 | C46: Gross income | D46: Margen bruto
B47: 45 | C47: Operating expenses | D47: Gastos de explotación
B48: 46 | C48: Administration expenses | D48: Gastos de administración
B49: 47 | C49: Personnel expenses | D49: Gastos de personal
B50: 48 | C50: General and administrative expenses | D50: Otros gastos generales de administración
B51: 49 | C51: Depreciation and amortization | D51: Amortizaciones
B52: 50 | C52: Operating income | D52: Margen neto
B53: 51 | C53: Impairment on financial assets (net) | D53: Pérdidas por deterioro de activos financieros
B54: 52 | C54: Provisions | D54: Dotaciones a provisiones
B55: 53 | C55: Other gains (losses) | D55: Otros resultados
B56: 54 | C56: Income before tax | D56: Beneficio antes de impuestos
B57: 55 | C57: Income tax | D57: Impuesto sobre beneficios
B58: 56 | C58: Net income | D58: Beneficio después de impuestos
B59: 57 | C59: Non-controlling interests | D59: Resultado atribuido a la minoría
B60: 58 | C60: Net attributable profit | D60: Beneficio atribuido al Grupo
B61: 59 | C61: One offs (1) | D61: Resultados singulares netos(*)
B62: 60 | C62: Net attributable profit (Excluding one-offs) (*) | D62: Beneficio atribuido al Grupo (sin singulares)
B63: 61 | C63: (*) The third quarter of 2009 and of 2010 includes capital gains from the sale-and-leaseback of retail branches which have been alloted to generic provisions for NPA, with no effect on net attributable profit, | D63: (*) En 2009 y 2010, en el tercer trimestre, plusvalías por venta y posterior arrendamiento de oficinas comerciales que se han aplicado a provisiones genéricas de insolvencias, sin efecto en atribuido,
B64: 62 | C64: (Constant million euros) | D64: (Millones de euros constantes)
B65: 63 | C65: Cash and balances with central banks | D65: Caja y depósitos en bancos centrales
B66: 64 | C66: Financial assets held for trading | D66: Cartera de negociación
B67: 65 | C67: Other financial assets designated at fair value | D67: Otros activos financieros a valor razonable
B68: 66 | C68: Financial assets available for sale | D68: Activos financieros disponibles para la venta
B69: =B68+1 -> 67 | C69: Loans and receivables | D69: Inversiones crediticias
B70: 68 | C70: . Due from banks | D70: . Depósitos en entidades de crédito
B71: 69 | C71: . Loans and advances to customers | D71: . Crédito a la clientela
B72: 70 | C72: . Other | D72: . Otros activos financieros
B73: 71 | C73: Held to maturity investments | D73: Cartera de inversion a vencimiento
B74: 72 | C74: Investments in associates | D74: Participaciones
B75: 73 | C75: Tangible assets | D75: Activo material
B76: 74 | C76: Intangible assets | D76: Activo intangible
B77: 75 | C77: Other assets | D77: Otros activos
B78: 76 | C78: Total assets | D78: Total activo
B79: 77 | C79: Financial liabilities held for trading | D79: Cartera de negociación
B80: 78 | C80: Other financial liabilities at fair value | D80: Otros pasivos financieros a valor razonable
B81: 79 | C81: Financial liabilities at amortised cost | D81: Pasivos financieros a coste amortizado
B82: 80 | C82: . Deposits from central banks and credit institutions | D82: . Depósitos de bancos centrales y entidades de crédito
B83: 81 | C83: . Deposits from customers | D83: . Depósitos de la clientela
B84: 82 | C84: . Debt certificates | D84: . Débitos representados por valores negociables
B85: 83 | C85: . Subordinated liabilities | D85: . Pasivos subordinados
B86: 84 | C86: . Other financial liabilities | D86: . Otros pasivos financieros
B87: 85 | C87: Liabilities under insurance contracts | D87: Pasivos por contratos de seguros
B88: 86 | C88: Other liabilities | D88: Otros pasivos
B89: 87 | C89: Total liabilities | D89: Total pasivo
B90: 88 | C90: Minority interests | D90: Intereses minoritarios
B91: 89 | C91: Valuation adjustments | D91: Ajustes por valoración
B92: 90 | C92: Shareholders' funds | D92: Fondos propios
B93: 91 | C93: Equity | D93: Patrimonio neto
B94: 92 | C94: Total liabilities and equity | D94: Total patrimonio neto y pasivo
B95: 93 | C95: Income statement | D95: Cuentas de resultados
B96: 94 | C96: Balance sheet | D96: Balances
B97: 95 | C97: Other income/expenses | D97: Otros ingresos netos
B98: 96 | C98: Impairment on financial assets (net) (1) | D98: Pérdidas por deterioro de activos financieros
B99: 97 | C99: Provisions (net) and other gains/losses (1) | D99: Dotaciones a provisiones y otros resultados
B100: 98 | C100: (*) The third quarter, both for 2009 and 2010, includes 830 and 233 million euros, in capital gains from the sale-and-leaseback of retail branches and insolvency provisions for the same amount. | D100: (*) El tercer trimestre de 2009 y de 2010 incluyen 830 y 233 millones de euros, respectivamente, de plusvalías por venta y posterior arrendamiento de oficinas comerciales y provisiones genéricas de insolvencias por el mismo importe.
B101: 99 | C101: (*) The third quarter, both for 2009 and 2010, excludes 830 and 233 million euros in capital gains from the sale-and-leaseback of retail branches and insolvency provisions for the same amount. | D101: (*) No incluye en el tercer trimestre de 2009 ni de 2010, 830 y 233 millones de euros, respectivamante, de plusvalías por venta y posterior arrendamiento de oficinas comerciales y provisiones genéricas de insolvencias por el mismo importe.
B102: 100 | C102: Cash and balances with central banks | D102: Caja y depósitos en bancos centrales
B103: 101 | C103: Financial assets | D103: Cartera de títulos
B104: 102 | C104: Loans and receivables | D104: Inversiones crediticias
B105: 103 | C105: . Loans and advances to customers | D105: . Crédito a la clientela neto
B106: 104 | C106: . Loans and advances to credit institutions and other | D106: . Depósitos en entidades de crédito y otros
B107: 105 | C107: Inter-area positions | D107: Posiciones inter-áreas activo
B108: 106 | C108: Tangible assets | D108: Activo material
B109: 107 | C109: Other assets | D109: Otros activos
B110: 108 | C110: Total assets / Liabilities and equity | D110: Total activo / pasivo
B111: 109 | C111: Deposits from central banks and credit institutions | D111: Depósitos de bancos centrales y entidades de crédito
B112: 110 | C112: Deposits from customers | D112: Depósitos de la clientela
B113: 111 | C113: Debt certificates | D113: Débitos representados por valores negociables
B114: 112 | C114: Subordinated liabilities | D114: Pasivos subordinados
B115: 113 | C115: Inter-area positions | D115: Posiciones inter-áreas pasivo
B116: 114 | C116: Financial liabilities held for trading | D116: Cartera de negociación
B117: 115 | C117: Other liabilities | D117: Otros pasivos
B118: 116 | C118: Economic capital allocated | D118: Dotación de capital económico
B119: 117 | C119: Relevant business indicators | D119: Indicadores relevantes
B120: 118 | C120: Loans and advances to customers gross | D120: Crédito a la clientela bruto
B121: 119 | C121: Customer deposits (1) | D121: Depósitos de clientes (*)
B122: 120 | C122: Loans under management | D122: Inversión en gestión
B123: 121 | C123: Customer deposits under management (*) | D123: Depósitos de clientes en gestión (*)
B124: 122 | C124: Mutual funds | D124: Fondos de inversión
B125: 123 | C125: Other placements | D125: Otras colocaciones
B126: 124 | C126: ROE (%) | D126: ROE (%)
B127: 125 | C127: Efficiency ratio (%) | D127: Ratio de eficiencia (%)
B128: 126 | C128: NPA ratio (%) | D128: Tasa de mora (%)
B129: 127 | C129: Coverage ratio (%) | D129: Tasa de cobertura (%)
B130: 128 | C130: (*) Includes collection accounts and individual annuities. | D130: (*) Incluye cuentas de recaudación y rentas de seguros
B131: 129 | C131: (*) Excluding deposits and repos issued by Bancomer's Markets unit. | D131: (*) Excluidos depósitos y repos emitidos por Mercados Bancomer.
B132: 130 | C132: (*) Including marketable debt securities. | D132: (*) Incluye valores negociables.
B133: =B132+1 -> 131 | C133: (*) In the fourth quarter of 2009, there was an extraordinary provision of 533 million euros and a 998 miliion euros | D133: (*) En el cuarto trimestre de 2009, dotación extraordinaria a saneamientos por importe de 533 millones de euros y cargo por el deterioro de valor del fondo de comercio
B134: 132 | C134: (*) Excluding deposits and repos issued by Markets unit. | D134: (*) Excluidos depósitos y repos emitidos por Mercados.
B135: 133 | C135: (*) In the fourth quarter of 2009, excludes an extraordinary provision of 533 million euros and a 998 miliion euros | D135: (*) En el cuarto trimestre de 2009, no incluye dotación extraordinaria a saneamientos por importe de 533 millones de euros y cargo por el deterioro de valor del fondo de comercio
B136: 134 | C136: . Assets sold under repurchase agreement | D136: . Cesiones temporales de activos
B137: 135 | C137: Shareholders' funds | D137: Capital y reservas
B138: 136 | C138: Economic capital allocated | D138: Dotación de capital económico
B139: 137 | C139: (*) Operating expenses / Gross income. Including depreciation | D139: (*) Gastos de explotación / Margen bruto. Incluye amortizaciones
B140: 138 | C140: Efficiency (%) (*) | D140: Eficiencia (%) (*)
B141: 139 | C141: NPA ratio (%) | D141: Tasa de mora (%)
B142: 140 | C142: Coverage ratio (%) | D142: Tasa de cobertura (%)
B143: 141 | C143: Branches | D143: Oficinas
B144: 142 | C144: Spain | D144: España
B145: 143 | C145: America | D145: América
B146: 144 | C146: Mexico | D146: México
B147: 145 | C147: The United States | D147: Estados Unidos
B148: 146 | C148: Argentina | D148: Argentina
B149: 147 | C149: Colombia | D149: Colombia
B150: 148 | C150: Venezuela | D150: Venezuela
B151: 149 | C151: Peru | D151: Perú
B152: 150 | C152: Chile | D152: Chile
B153: 151 | C153: Panama | D153: Panamá
B154: 152 | C154: Paraguay | D154: Paraguay
B155: 153 | C155: Uruguay | D155: Uruguay
B156: 154 | C156: Ecuador | D156: Ecuador
B157: 155 | C157: Bolivia | D157: Bolivia
B158: 156 | C158: Rest of the world | D158: Resto del mundo
B159: 157 | C159: Total | D159: Total
B160: 158 | C160: Employees | D160: Empleados
B161: 159 | C161: BBVA Group. Consolidated income statement excluding one-offs (*) | D161: Grupo BBVA. Cuentas de resultados consolidadas sin singulares (*)
B162: 160 | C162: Provisions (net) and other gains/losses | D162: Dotaciones a provisiones y otros resultados
B163: 161 | C163: Customer deposits | D163: Depósitos de clientes
B164: 162 | C164: . Deposits | D164: . Depósitos
B165: 163 | C165: Valuation adjustments | D165: Ajustes por valoración
B166: 164 | C166: BBVA Group | D166: Grupo BBVA
B167: 165 | C167: and in the fourth quarter of 2009, there was an extraordinary provision and a charge for goodwill impairment in the United States. | D167: y en el cuarto trimestre de 2009, dotación extraordinaria a saneamientos y cargo por el deterioro del valor del fondo de comercio en Estados Unidos.
B168: 166 | C168: charge for goodwill impairment, both before tax. | D168: por 998 millones, ambas antes de impuestos.
B169: =B168+1 -> 167 | C169: (Expressed in currency/euro) | D169: (Expresados en divisa/euro)
B170: 168 | C170: Mexican peso | D170: Peso mexicano
B171: 169 | C171: U.S. dollar | D171: Dólar estadounidense
B172: 170 | C172: Argentine peso | D172: Peso argentino
B173: 171 | C173: Chilean peso | D173: Peso chileno
B174: 172 | C174: Colombian peso | D174: Peso colombiano
B175: 173 | C175: Peruvian new sol | D175: Nuevo sol peruano
B176: 174 | C176: Venezuelan bolivar fuerte | D176: Bolívar fuerte venezolano
B177: 175 | C177: Year-end exchange rates (*) | D177: Cambios finales (*)
B178: 176 | C178: Average exchange rates (**) | D178: Cambios medios (**)
B179: 177 | C179: (*) Used in the constant euros comparisons for the balance sheet and business activity | D179: (*) Utilizados en el cálculo de euros constantes de los datos de balance y actividad
B180: 178 | C180: (**) Used in the constant euros comparisons for the profit and loss | D180: (**) Utilizados en el cálculo de euros constantes de los datos de resultados
B181: 179 | C181: Jan.-Dec. 2010 | D181: Enero-Dic. 2010
B182: 180 | C182: ∆ % on | D182: ∆% sobre
B183: 181 | C183: Jan.-Dec. 2009 | D183: Enero-Dic. 2009
B184: 182 | C184: Exchange rates | D184: Tipos de cambio
B185: 183 | C185: Rest of Eurasia | D185: Resto de Eurasia
B186: 184 | C186: Rest of Eurasia | D186: Resto de Eurasia
B187: 185 | C187: Local business | D187: Negocios locales
B188: 186 | C188: Corporate & Investment Banking | D188: Corporate & Investment Banking
B189: 187 | C189: Quarterly series (*) - March 2011. Information by segments | D189: Series trimestrales (*) - Marzo 2011. Información por segmentos
B190: 188 | C190: Quarterly series (*) - March 2011. Main ratios | D190: Series trimestrales (*) - Marzo 2011. Principales ratios
B191: 189 | C191: Asset management, Pensions and Insurance | D191: Gestión de activos, Pensiones y Seguros
B192: 190 | C192: Turkish lira | D192: Lira turca
B193: 191 | C193: Yuan Chinese | D193: Yuan chino
B194: 192 | C194: Quarterly series 2014-2015 | D194: Series trimestrales 2014-2015
B195: 193 | C195: Business areas | D195: Areas de negocio
B196: 194 | C196: Additional information: | D196: Información adicional:
B197: 195 | C197: Consolidated income statement | D197: Cuentas de resultados consolidadas
B198: 196 | C198: Consolidated balance sheet | D198: Balances de situación consolidados
B199: 197 | C199: March 2011 | D199: Marzo 2011
B200: 198 | C200: Cost of risk (%) | D200: Coste de riesgo (%)
B201: 199 | C201: Breakdown of yields and costs | D201: Estructura de rendimientos y costes
... 107 more rows
